Workbook

Sheet Sensi
B1: I) Frais et commissions
B3: Frais | C3: Taux
B4: Frais Acquisition | C4: 0.006324348591
B5: Frais Gestion Sinistres | C5: 0.003310441478
B6: Frais Administration | C6: 0.002613334516
B7: Frais Financiers | C7: 0.00075859202
B8: Prélèvements Sociaux | C8: 0.172
B9: Clause PB | C9: 0.85
B11: 2) Chargements
B13: Chargements € (x100) | C13: 0.45
B14: Chargement UC (x100) | C14: 0.39
B15: Comm distrib. € (x100) | C15: 0.6
B16: Comm distrib UC (x100) | C16: 0.6
B20: Chargements | C20: Taux
B21: Frais Gestion Euro | C21: 0.0045
B22: Commissions Distributeur Euro | C22: 0.006
B23: Frais Gestion UC | C23: 0.0039
B24: Commissions Distributeur UC | C24: 0.006

Sheet Console
J3: Scénario | K3: BP_1
C4: Console | J4: Choc S2 | K4: Central
C8: Produits | D8: Assurance Vie | F8: TRUE
D9: PER | F9: TRUE
C11: Chocs S2 | D11: Central
D12: Up
D13: Down | G13: Longevity
D14: Equity T1 | E14: -0.39 | F14: Dampener | G14: 0
D15: Equity T2 | E15: -0.49 | G15: Laps Down
D16: Spread | G16: Mass Laps
D17: Longevity | E17: -0.2 | G17: Expense
D18: Mortality | E18: 0.15 | G18: CAT
D19: Laps Up | E19: 0.5 | G19: Up
D20: Laps Down | E20: -0.5 | G20: Down
D21: Mass Laps | E21: 0.4 | G21: Spread
D22: Expense | E22: 0.1 | F22: 0.01 | G22: Equity T1
D23: CAT | E23: 0.0015 | G23: Equity T2
C26: Scénario (max 5) | D26: BP_1
D27: BP_2
D28: BP_3
D29: BP_4
D30: BP_5
C32: Paramètres | D32: Âge départ retraite | E32: 65
D33: Taux d'imposition | E33: 0.25
D34: Cap IDP | E34: Oui

Sheet Hypothèses & Paramètres=>

Sheet Hypothèses
B2: Décès
B4: Âge | C4: 0 | D4: =C4+1 -> 1 | E4: 2 | F4: 3 | G4: 4 | H4: 5 | I4: 6 | J4: 7 | K4: 8 | L4: 9 | M4: 10 | N4: 11 | O4: 12 | P4: 13 | Q4: 14 | R4: 15 | S4: 16 | T4: 17 | U4: 18 | V4: 19 | W4: 20 | X4: 21 | Y4: 22 | Z4: 23 | AA4: 24 | AB4: 25 | AC4: 26 | AD4: 27 | AE4: 28 | AF4: 29 | AG4: 30 | AH4: 31 | AI4: 32 | AJ4: =AI4+1 -> 33 | AK4: 34 | AL4: 35 | AM4: 36 | AN4: 37 | AO4: 38 | AP4: 39 | AQ4: 40 | AR4: 41 | AS4: 42 | AT4: 43 | AU4: 44 | AV4: 45 | AW4: 46 | AX4: 47 | AY4: 48 | AZ4: 49 | BA4: 50 | BB4: 51 | BC4: 52 | BD4: 53 | BE4: 54 | BF4: 55 | BG4: 56 | BH4: 57 | BI4: 58 | BJ4: 59 | BK4: 60 | BL4: 61 | BM4: 62 | BN4: 63 | BO4: 64 | BP4: =BO4+1 -> 65 | BQ4: 66 | BR4: 67 | BS4: 68 | BT4: 69 | BU4: 70 | BV4: 71 | BW4: 72 | BX4: 73 | BY4: 74 | BZ4: 75 | CA4: 76 | CB4: 77 | CC4: 78 | CD4: 79 | CE4: 80 | CF4: 81 | CG4: 82 | CH4: 83 | CI4: 84 | CJ4: 85 | CK4: 86 | CL4: 87 | CM4: 88 | CN4: 89 | CO4: 90 | CP4: 91 | CQ4: 92 | CR4: 93 | CS4: 94 | CT4: 95 | CU4: 96 | CV4: =CU4+1 -> 97 | CW4: 98 | CX4: 99 | CY4: 100 | CZ4: 101 | DA4: 102 | DB4: 103 | DC4: 104 | DD4: 105 | DE4: 106 | DF4: 107 | DG4: 108 | DH4: 109 | DI4: 110 | DJ4: 111 | DK4: 112
B5: Lx Hommes | C5: 100000 | D5: 99511 | E5: 99473 | F5: 99446 | G5: 99424 | H5: 99406 | I5: 99390 | J5: 99376 | K5: 99363 | L5: 99350 | M5: 99338 | N5: 99325 | O5: 99312 | P5: 99296 | Q5: 99276 | R5: 99250 | S5: 99213 | T5: 99163 | U5: 99097 | V5: 99015 | W5: 98921 | X5: 98820 | Y5: 98716 | Z5: 98612 | AA5: 98509 | AB5: 98406 | AC5: 98303 | AD5: 98198 | AE5: 98091 | AF5: 97982 | AG5: 97870 | AH5: 97756 | AI5: 97639 | AJ5: 97517 | AK5: 97388 | AL5: 97249 | AM5: 97100 | AN5: 96939 | AO5: 96765 | AP5: 96576 | AQ5: 96369 | AR5: 96141 | AS5: 95887 | AT5: 95606 | AU5: 95295 | AV5: 94952 | AW5: 94575 | AX5: 94164 | AY5: 93720 | AZ5: 93244 | BA5: 92736 | BB5: 92196 | BC5: 91621 | BD5: 91009 | BE5: 90358 | BF5: 89665 | BG5: 88929 | BH5: 88151 | BI5: 87329 | BJ5: 86460 | BK5: 85538 | BL5: 84558 | BM5: 83514 | BN5: 82399 | BO5: 81206 | BP5: 79926 | BQ5: 78552 | BR5: 77078 | BS5: 75501 | BT5: 73816 | BU5: 72019 | BV5: 70105 | BW5: 68070 | BX5: 65914 | BY5: 63637 | BZ5: 61239 | CA5: 58718 | CB5: 56072 | CC5: 53303 | CD5: 50411 | CE5: 47390 | CF5: 44234 | CG5: 40946 | CH5: 37546 | CI5: 34072 | CJ5: 30575 | CK5: 27104 | CL5: 23707 | CM5: 20435 | CN5: 17338 | CO5: 14464 | CP5: 11852 | CQ5: 9526 | CR5: 7498 | CS5: 5769 | CT5: 4331 | CU5: 3166 | CV5: 2249 | CW5: 1549 | CX5: 1032 | CY5: 663 | CZ5: 410 | DA5: 244 | DB5: 139 | DC5: 75 | DD5: 39 | DE5: 19 | DF5: 9 | DG5: 4 | DH5: 2 | DI5: 1 | DJ5: 0 | DK5: 0
B6: Taux décès | C6: =IF(OR(D5=0,D5=""),1,(C5-D5)/C5) -> 0.00489 | D6: 0.0003818673312 | E6: 0.0002714304384 | F6: 0.0002212255898 | G6: 0.0001810428066 | H6: 0.0001609560791 | I6: 0.0001408592414 | J6: 0.0001308162937 | K6: 0.0001308334088 | L6: 0.0001207851032 | M6: 0.0001308663351 | N6: 0.0001308834634 | O6: 0.000161108426 | P6: 0.0002014179826 | Q6: 0.000261896128 | R6: 0.0003727959698 | S6: 0.0005039662141 | T6: 0.0006655708278 | U6: 0.0008274720728 | V6: 0.0009493511084 | W6: 0.001021016771 | X6: 0.001052418539 | Y6: 0.00105352729 | Z6: 0.001044497627 | AA6: 0.001045589743 | AB6: 0.001046684145 | AC6: 0.0010681261 | AD6: 0.001089635227 | AE6: 0.001111213057 | AF6: 0.001143067094 | AG6: 0.001164810463 | AH6: 0.001196857482 | AI6: =IF(OR(AJ5=0,AJ5=""),1,(AI5-AJ5)/AI5) -> 0.001249500712 | AJ6: 0.001322846273 | AK6: 0.001427280568 | AL6: 0.001532149431 | AM6: 0.001658084449 | AN6: 0.001794943212 | AO6: 0.001953185553 | AP6: 0.002143389662 | AQ6: 0.002365906049 | AR6: 0.002641952965 | AS6: 0.002930532815 | AT6: 0.003252933916 | AU6: 0.003599349389 | AV6: 0.003970427163 | AW6: 0.004345757335 | AX6: 0.004715177775 | AY6: 0.0050789586 | AZ6: 0.005448071726 | BA6: 0.005822981366 | BB6: 0.00623671309 | BC6: 0.006679691337 | BD6: 0.007153138701 | BE6: 0.007669492463 | BF6: 0.00820833101 | BG6: 0.008748552216 | BH6: 0.009324908396 | BI6: 0.009950875425 | BJ6: 0.01066389082 | BK6: 0.01145689635 | BL6: 0.01234655503 | BM6: 0.01335105491 | BN6: 0.01447833105 | BO6: =IF(OR(BP5=0,BP5=""),1,(BO5-BP5)/BO5) -> 0.01576238209 | BP6: 0.01719090158 | BQ6: 0.01876463998 | BR6: 0.02045979397 | BS6: 0.0223175852 | BT6: 0.0243443156 | BU6: 0.02657632014 | BV6: 0.02902788674 | BW6: 0.03167327751 | BX6: 0.0345450132 | BY6: 0.03768248032 | BZ6: 0.04116657685 | CA6: 0.04506284274 | CB6: 0.04938293622 | CC6: 0.05425585802 | CD6: 0.0599273968 | CE6: 0.06659632834 | CF6: 0.07433196184 | CG6: 0.08303619401 | CH6: 0.09252650083 | CI6: 0.1026355952 | CJ6: 0.113524121 | CK6: 0.1253320543 | CL6: 0.1380183068 | CM6: 0.1515537069 | CN6: 0.1657630638 | CO6: 0.1805862832 | CP6: 0.1962537968 | CQ6: 0.2128910351 | CR6: 0.2305948253 | CS6: 0.2492633039 | CT6: 0.2689909952 | CU6: =IF(OR(CV5=0,CV5=""),1,(CU5-CV5)/CU5) -> 0.2896399242 | CV6: 0.3112494442 | CW6: 0.3337637185 | CX6: 0.3575581395 | CY6: 0.3815987934 | CZ6: 0.4048780488 | DA6: 0.4303278689 | DB6: 0.4604316547 | DC6: 0.48 | DD6: 0.5128205128 | DE6: 0.5263157895 | DF6: 0.5555555556 | DG6: 0.5 | DH6: 0.5 | DI6: 1 | DJ6: 1 | DK6: 1
B8: Âge | C8: 0 | D8: =C8+1 -> 1 | E8: 2 | F8: 3 | G8: 4 | H8: 5 | I8: 6 | J8: 7 | K8: 8 | L8: 9 | M8: 10 | N8: 11 | O8: 12 | P8: 13 | Q8: 14 | R8: 15 | S8: 16 | T8: 17 | U8: 18 | V8: 19 | W8: 20 | X8: 21 | Y8: 22 | Z8: 23 | AA8: 24 | AB8: 25 | AC8: 26 | AD8: 27 | AE8: 28 | AF8: 29 | AG8: 30 | AH8: 31 | AI8: 32 | AJ8: =AI8+1 -> 33 | AK8: 34 | AL8: 35 | AM8: 36 | AN8: 37 | AO8: 38 | AP8: 39 | AQ8: 40 | AR8: 41 | AS8: 42 | AT8: 43 | AU8: 44 | AV8: 45 | AW8: 46 | AX8: 47 | AY8: 48 | AZ8: 49 | BA8: 50 | BB8: 51 | BC8: 52 | BD8: 53 | BE8: 54 | BF8: 55 | BG8: 56 | BH8: 57 | BI8: 58 | BJ8: 59 | BK8: 60 | BL8: 61 | BM8: 62 | BN8: 63 | BO8: 64 | BP8: =BO8+1 -> 65 | BQ8: 66 | BR8: 67 | BS8: 68 | BT8: 69 | BU8: 70 | BV8: 71 | BW8: 72 | BX8: 73 | BY8: 74 | BZ8: 75 | CA8: 76 | CB8: 77 | CC8: 78 | CD8: 79 | CE8: 80 | CF8: 81 | CG8: 82 | CH8: 83 | CI8: 84 | CJ8: 85 | CK8: 86 | CL8: 87 | CM8: 88 | CN8: 89 | CO8: 90 | CP8: 91 | CQ8: 92 | CR8: 93 | CS8: 94 | CT8: 95 | CU8: 96 | CV8: =CU8+1 -> 97 | CW8: 98 | CX8: 99 | CY8: 100 | CZ8: 101 | DA8: 102 | DB8: 103 | DC8: 104 | DD8: 105 | DE8: 106 | DF8: 107 | DG8: 108 | DH8: 109 | DI8: 110 | DJ8: 111 | DK8: 112
B9: Lx Femmes | C9: 100000 | D9: 99616 | E9: 99583 | F9: 99562 | G9: 99545 | H9: 99531 | I9: 99519 | J9: 99508 | K9: 99498 | L9: 99488 | M9: 99478 | N9: 99467 | O9: 99456 | P9: 99444 | Q9: 99431 | R9: 99415 | S9: 99395 | T9: 99371 | U9: 99342 | V9: 99309 | W9: 99274 | X9: 99239 | Y9: 99205 | Z9: 99171 | AA9: 99137 | AB9: 99103 | AC9: 99068 | AD9: 99033 | AE9: 98997 | AF9: 98960 | AG9: 98921 | AH9: 98879 | AI9: 98833 | AJ9: 98782 | AK9: 98725 | AL9: 98662 | AM9: 98593 | AN9: 98518 | AO9: 98435 | AP9: 98343 | AQ9: 98242 | AR9: 98130 | AS9: 98007 | AT9: 97872 | AU9: 97724 | AV9: 97563 | AW9: 97387 | AX9: 97197 | AY9: 96993 | AZ9: 96776 | BA9: 96546 | BB9: 96304 | BC9: 96049 | BD9: 95778 | BE9: 95489 | BF9: 95180 | BG9: 94851 | BH9: 94501 | BI9: 94131 | BJ9: 93741 | BK9: 93329 | BL9: 92892 | BM9: 92425 | BN9: 91923 | BO9: 91382 | BP9: 90797 | BQ9: 90164 | BR9: 89476 | BS9: 88726 | BT9: 87907 | BU9: 87010 | BV9: 86024 | BW9: 84941 | BX9: 83751 | BY9: 82442 | BZ9: 80998 | CA9: 79402 | CB9: 77633 | CC9: 75671 | CD9: 73496 | CE9: 71088 | CF9: 68423 | CG9: 65478 | CH9: 62233 | CI9: 58680 | CJ9: 54828 | CK9: 50706 | CL9: 46362 | CM9: 41868 | CN9: 37319 | CO9: 32821 | CP9: 28469 | CQ9: 24328 | CR9: 20444 | CS9: 16860 | CT9: 13618 | CU9: 10750 | CV9: 8277 | CW9: 6204 | CX9: 4516 | CY9: 3185 | CZ9: 2171 | DA9: 1426 | DB9: 900 | DC9: 544 | DD9: 314 | DE9: 172 | DF9: 89 | DG9: 44 | DH9: 20 | DI9: 9 | DJ9: 4 | DK9: 1
B10: Taux décès | C10: =IF(OR(D9=0,D9=""),1,(C9-D9)/C9) -> 0.00384 | D10: 0.0003312720848 | E10: 0.000210879367 | F10: 0.0001707478757 | G10: 0.0001406399116 | H10: 0.000120565452 | I10: 0.0001105316573 | J10: 0.0001004944326 | K10: 0.0001005045328 | L10: 0.0001005146349 | M10: 0.0001105772131 | N10: 0.0001105894417 | O10: 0.0001206563707 | P10: 0.0001307268412 | Q10: 0.0001609156098 | R10: 0.0002011768848 | S10: 0.0002414608381 | T10: 0.0002918356462 | U10: 0.0003321857824 | V10: 0.0003524353281 | W10: 0.0003525595826 | X10: 0.0003426072411 | Y10: 0.0003427246611 | Z10: 0.0003428421615 | AA10: 0.0003429597426 | AB10: 0.0003531679162 | AC10: 0.0003532926879 | AD10: 0.0003635151919 | AE10: 0.0003737486995 | AF10: 0.0003940986257 | AG10: 0.0004245812315 | AH10: 0.0004652150608 | AI10: =IF(OR(AJ9=0,AJ9=""),1,(AI9-AJ9)/AI9) -> 0.0005160219765 | AJ10: 0.0005770282035 | AK10: 0.000638136237 | AL10: 0.000699357402 | AM10: 0.0007607030925 | AN10: 0.0008424856371 | AO10: 0.0009346269112 | AP10: 0.001027017683 | AQ10: 0.001140041937 | AR10: 0.001253439315 | AS10: 0.001377452631 | AT10: 0.001512179173 | AU10: 0.001647497032 | AV10: 0.001803962568 | AW10: 0.001950979083 | AX10: 0.002098830211 | AY10: 0.002237274855 | AZ10: 0.002376622303 | BA10: 0.002506577176 | BB10: 0.002647865094 | BC10: 0.002821476538 | BD10: 0.003017394391 | BE10: 0.003235974824 | BF10: 0.003456608531 | BG10: 0.003689997997 | BH10: 0.003915302484 | BI10: 0.004143162189 | BJ10: 0.004395088595 | BK10: 0.004682360252 | BL10: 0.005027343582 | BM10: 0.00543143089 | BN10: 0.005885360574 | BO10: =IF(OR(BP9=0,BP9=""),1,(BO9-BP9)/BO9) -> 0.006401698365 | BP10: 0.006971595978 | BQ10: 0.007630539905 | BR10: 0.008382135992 | BS10: 0.009230665194 | BT10: 0.01020396555 | BU10: 0.0113320308 | BV10: 0.0125895099 | BW10: 0.0140097244 | BX10: 0.01562966412 | BY10: 0.01751534412 | BZ10: 0.01970419023 | CA10: 0.02227903579 | CB10: 0.02527275772 | CC10: 0.02874284733 | CD10: 0.03276368782 | CE10: 0.03748874634 | CF10: 0.04304108268 | CG10: 0.04955863038 | CH10: 0.05709189658 | CI10: 0.06564417178 | CJ10: 0.07518056467 | CK10: 0.08567033487 | CL10: 0.09693283292 | CM10: 0.1086509984 | CN10: 0.1205284172 | CO10: 0.1325980317 | CP10: 0.1454564614 | CQ10: 0.1596514305 | CR10: 0.1753081589 | CS10: 0.1922894425 | CT10: 0.2106036129 | CU10: =IF(OR(CV9=0,CV9=""),1,(CU9-CV9)/CU9) -> 0.2300465116 | CV10: 0.2504530627 | CW10: 0.2720825274 | CX10: 0.2947298494 | CY10: 0.3183673469 | CZ10: 0.3431598342 | DA10: 0.3688639551 | DB10: 0.3955555556 | DC10: 0.4227941176 | DD10: 0.4522292994 | DE10: 0.4825581395 | DF10: 0.5056179775 | DG10: 0.5454545455 | DH10: 0.55 | DI10: 0.5555555556 | DJ10: 0.75 | DK10: 1
B13: Rachats structurels
B15: Ancienneté | C15: 0 | D15: =C15+1 -> 1 | E15: =D15+1 -> 2 | F15: 3 | G15: 4 | H15: 5 | I15: 6 | J15: 7 | K15: 8 | L15: 9 | M15: 10 | N15: 11 | O15: 12 | P15: 13 | Q15: 14 | R15: 15 | S15: 16 | T15: 17 | U15: 18 | V15: 19 | W15: 20 | X15: 21 | Y15: 22 | Z15: 23 | AA15: 24 | AB15: 25 | AC15: 26 | AD15: 27 | AE15: 28 | AF15: 29 | AG15: 30 | AH15: 31 | AI15: 32 | AJ15: 33 | AK15: 34 | AL15: 35 | AM15: 36 | AN15: 37 | AO15: 38 | AP15: 39 | AQ15: 40 | AR15: 41 | AS15: 42 | AT15: 43 | AU15: 44 | AV15: 45 | AW15: 46 | AX15: 47 | AY15: 48 | AZ15: 49 | BA15: 50 | BB15: 51 | BC15: 52 | BD15: 53 | BE15: 54 | BF15: 55 | BG15: 56 | BH15: 57 | BI15: 58 | BJ15: 59 | BK15: 60 | BL15: 61 | BM15: 62 | BN15: 63 | BO15: 64 | BP15: 65 | BQ15: 66 | BR15: 67 | BS15: 68 | BT15: 69 | BU15: 70 | BV15: 71 | BW15: 72 | BX15: 73 | BY15: 74 | BZ15: 75 | CA15: 76 | CB15: 77 | CC15: 78 | CD15: 79 | CE15: 80 | CF15: 81 | CG15: 82 | CH15: 83 | CI15: 84 | CJ15: 85 | CK15: 86 | CL15: 87 | CM15: 88 | CN15: 89 | CO15: 90 | CP15: 91 | CQ15: 92 | CR15: 93 | CS15: 94 | CT15: 95 | CU15: 96 | CV15: 97 | CW15: 98 | CX15: 99 | CY15: 100
B16: A_VIE | C16: 0.04 | D16: 0.04 | E16: 0.04 | F16: 0.04 | G16: 0.04 | H16: 0.04 | I16: 0.04 | J16: 0.04 | K16: 0.08 | L16: 0.06 | M16: 0.06 | N16: 0.06 | O16: 0.06 | P16: 0.06 | Q16: 0.06 | R16: 0.06 | S16: 0.06 | T16: 0.06 | U16: 0.06 | V16: 0.06 | W16: 0.06 | X16: 0.06 | Y16: 0.06 | Z16: 0.06 | AA16: 0.06 | AB16: 0.06 | AC16: 0.06 | AD16: 0.06 | AE16: 0.06 | AF16: 0.06 | AG16: 0.06 | AH16: 0.06 | AI16: 0.06 | AJ16: 0.06 | AK16: 0.06 | AL16: 0.06 | AM16: 0.06 | AN16: 0.06 | AO16: 0.06 | AP16: 0.06 | AQ16: 0.06 | AR16: 0.06 | AS16: 0.06 | AT16: 0.06 | AU16: 0.06 | AV16: 0.06 | AW16: 0.06 | AX16: 0.06 | AY16: 0.06 | AZ16: 0.06 | BA16: 0.06 | BB16: 0.06 | BC16: 0.06 | BD16: 0.06 | BE16: 0.06 | BF16: 0.06 | BG16: 0.06 | BH16: 0.06 | BI16: 0.06 | BJ16: 0.06 | BK16: 0.06 | BL16: 0.06 | BM16: 0.06 | BN16: 0.06 | BO16: 0.06 | BP16: 0.06 | BQ16: 0.06 | BR16: 0.06 | BS16: 0.06 | BT16: 0.06 | BU16: 0.06 | BV16: 0.06 | BW16: 0.06 | BX16: 0.06 | BY16: 0.06 | BZ16: 0.06 | CA16: 0.06 | CB16: 0.06 | CC16: 0.06 | CD16: 0.06 | CE16: 0.06 | CF16: 0.06 | CG16: 0.06 | CH16: 0.06 | CI16: 0.06 | CJ16: 0.06 | CK16: 0.06 | CL16: 0.06 | CM16: 0.06 | CN16: 0.06 | CO16: 0.06 | CP16: 0.06 | CQ16: 0.06 | CR16: 0.06 | CS16: 0.06 | CT16: 0.06 | CU16: 0.06 | CV16: 0.06 | CW16: 0.06 | CX16: 0.06 | CY16: 0.06
B17: A_PER | C17: 0 | D17: 0 | E17: 0 | F17: 0 | G17: 0 | H17: 0 | I17: 0 | J17: 0 | K17: 0 | L17: 0 | M17: 0 | N17: 0 | O17: 0 | P17: 0 | Q17: 0 | R17: 0 | S17: 0 | T17: 0 | U17: 0 | V17: 0 | W17: 0 | X17: 0 | Y17: 0 | Z17: 0 | AA17: 0 | AB17: 0 | AC17: 0 | AD17: 0 | AE17: 0 | AF17: 0 | AG17: 0 | AH17: 0 | AI17: 0 | AJ17: 0 | AK17: 0 | AL17: 0 | AM17: 0 | AN17: 0 | AO17: 0 | AP17: 0 | AQ17: 0 | AR17: 0 | AS17: 0 | AT17: 0 | AU17: 0 | AV17: 0 | AW17: 0 | AX17: 0 | AY17: 0 | AZ17: 0 | BA17: 0 | BB17: 0 | BC17: 0 | BD17: 0 | BE17: 0 | BF17: 0 | BG17: 0 | BH17: 0 | BI17: 0 | BJ17: 0 | BK17: 0 | BL17: 0 | BM17: 0 | BN17: 0 | BO17: 0 | BP17: 0 | BQ17: 0 | BR17: 0 | BS17: 0 | BT17: 0 | BU17: 0 | BV17: 0 | BW17: 0 | BX17: 0 | BY17: 0 | BZ17: 0 | CA17: 0 | CB17: 0 | CC17: 0 | CD17: 0 | CE17: 0 | CF17: 0 | CG17: 0 | CH17: 0 | CI17: 0 | CJ17: 0 | CK17: 0 | CL17: 0 | CM17: 0 | CN17: 0 | CO17: 0 | CP17: 0 | CQ17: 0 | CR17: 0 | CS17: 0 | CT17: 0 | CU17: 0 | CV17: 0 | CW17: 0 | CX17: 0 | CY17: 0
B18: A_CAPI | C18: 0.04 | D18: 0.04 | E18: 0.04 | F18: 0.04 | G18: 0.04 | H18: 0.04 | I18: 0.04 | J18: 0.04 | K18: 0.08 | L18: 0.06 | M18: 0.06 | N18: 0.06 | O18: 0.06 | P18: 0.06 | Q18: 0.06 | R18: 0.06 | S18: 0.06 | T18: 0.06 | U18: 0.06 | V18: 0.06 | W18: 0.06 | X18: 0.06 | Y18: 0.06 | Z18: 0.06 | AA18: 0.06 | AB18: 0.06 | AC18: 0.06 | AD18: 0.06 | AE18: 0.06 | AF18: 0.06 | AG18: 0.06 | AH18: 0.06 | AI18: 0.06 | AJ18: 0.06 | AK18: 0.06 | AL18: 0.06 | AM18: 0.06 | AN18: 0.06 | AO18: 0.06 | AP18: 0.06 | AQ18: 0.06 | AR18: 0.06 | AS18: 0.06 | AT18: 0.06 | AU18: 0.06 | AV18: 0.06 | AW18: 0.06 | AX18: 0.06 | AY18: 0.06 | AZ18: 0.06 | BA18: 0.06 | BB18: 0.06 | BC18: 0.06 | BD18: 0.06 | BE18: 0.06 | BF18: 0.06 | BG18: 0.06 | BH18: 0.06 | BI18: 0.06 | BJ18: 0.06 | BK18: 0.06 | BL18: 0.06 | BM18: 0.06 | BN18: 0.06 | BO18: 0.06 | BP18: 0.06 | BQ18: 0.06 | BR18: 0.06 | BS18: 0.06 | BT18: 0.06 | BU18: 0.06 | BV18: 0.06 | BW18: 0.06 | BX18: 0.06 | BY18: 0.06 | BZ18: 0.06 | CA18: 0.06 | CB18: 0.06 | CC18: 0.06 | CD18: 0.06 | CE18: 0.06 | CF18: 0.06 | CG18: 0.06 | CH18: 0.06 | CI18: 0.06 | CJ18: 0.06 | CK18: 0.06 | CL18: 0.06 | CM18: 0.06 | CN18: 0.06 | CO18: 0.06 | CP18: 0.06 | CQ18: 0.06 | CR18: 0.06 | CS18: 0.06 | CT18: 0.06 | CU18: 0.06 | CV18: 0.06 | CW18: 0.06 | CX18: 0.06 | CY18: 0.06
B19: A_PEA | C19: 0.04 | D19: 0.04 | E19: 0.04 | F19: 0.04 | G19: 0.04 | H19: 0.04 | I19: 0.04 | J19: 0.04 | K19: 0.08 | L19: 0.06 | M19: 0.06 | N19: 0.06 | O19: 0.06 | P19: 0.06 | Q19: 0.06 | R19: 0.06 | S19: 0.06 | T19: 0.06 | U19: 0.06 | V19: 0.06 | W19: 0.06 | X19: 0.06 | Y19: 0.06 | Z19: 0.06 | AA19: 0.06 | AB19: 0.06 | AC19: 0.06 | AD19: 0.06 | AE19: 0.06 | AF19: 0.06 | AG19: 0.06 | AH19: 0.06 | AI19: 0.06 | AJ19: 0.06 | AK19: 0.06 | AL19: 0.06 | AM19: 0.06 | AN19: 0.06 | AO19: 0.06 | AP19: 0.06 | AQ19: 0.06 | AR19: 0.06 | AS19: 0.06 | AT19: 0.06 | AU19: 0.06 | AV19: 0.06 | AW19: 0.06 | AX19: 0.06 | AY19: 0.06 | AZ19: 0.06 | BA19: 0.06 | BB19: 0.06 | BC19: 0.06 | BD19: 0.06 | BE19: 0.06 | BF19: 0.06 | BG19: 0.06 | BH19: 0.06 | BI19: 0.06 | BJ19: 0.06 | BK19: 0.06 | BL19: 0.06 | BM19: 0.06 | BN19: 0.06 | BO19: 0.06 | BP19: 0.06 | BQ19: 0.06 | BR19: 0.06 | BS19: 0.06 | BT19: 0.06 | BU19: 0.06 | BV19: 0.06 | BW19: 0.06 | BX19: 0.06 | BY19: 0.06 | BZ19: 0.06 | CA19: 0.06 | CB19: 0.06 | CC19: 0.06 | CD19: 0.06 | CE19: 0.06 | CF19: 0.06 | CG19: 0.06 | CH19: 0.06 | CI19: 0.06 | CJ19: 0.06 | CK19: 0.06 | CL19: 0.06 | CM19: 0.06 | CN19: 0.06 | CO19: 0.06 | CP19: 0.06 | CQ19: 0.06 | CR19: 0.06 | CS19: 0.06 | CT19: 0.06 | CU19: 0.06 | CV19: 0.06 | CW19: 0.06 | CX19: 0.06 | CY19: 0.06
B22: Inflation
B24: Année projection | C24: 1 | D24: =C24+1 -> 2 | E24: =D24+1 -> 3 | F24: =E24+1 -> 4 | G24: =F24+1 -> 5 | H24: =G24+1 -> 6 | I24: =H24+1 -> 7 | J24: =I24+1 -> 8 | K24: =J24+1 -> 9 | L24: =K24+1 -> 10 | M24: =L24+1 -> 11 | N24: =M24+1 -> 12 | O24: =N24+1 -> 13 | P24: =O24+1 -> 14 | Q24: =P24+1 -> 15 | R24: =Q24+1 -> 16 | S24: =R24+1 -> 17 | T24: =S24+1 -> 18 | U24: =T24+1 -> 19 | V24: =U24+1 -> 20 | W24: =V24+1 -> 21 | X24: =W24+1 -> 22 | Y24: =X24+1 -> 23 | Z24: =Y24+1 -> 24 | AA24: =Z24+1 -> 25 | AB24: =AA24+1 -> 26 | AC24: =AB24+1 -> 27 | AD24: =AC24+1 -> 28 | AE24: =AD24+1 -> 29 | AF24: =AE24+1 -> 30 | AG24: =AF24+1 -> 31 | AH24: =AG24+1 -> 32 | AI24: =AH24+1 -> 33 | AJ24: =AI24+1 -> 34 | AK24: =AJ24+1 -> 35 | AL24: =AK24+1 -> 36 | AM24: =AL24+1 -> 37 | AN24: =AM24+1 -> 38 | AO24: =AN24+1 -> 39 | AP24: =AO24+1 -> 40
B25: Inflation | C25: 0.01 | D25: 0.01 | E25: 0.01 | F25: 0.01 | G25: 0.01 | H25: 0.01 | I25: 0.01 | J25: 0.01 | K25: 0.01 | L25: 0.01 | M25: 0.01 | N25: 0.01 | O25: 0.01 | P25: 0.01 | Q25: 0.01 | R25: 0.01 | S25: 0.01 | T25: 0.01 | U25: 0.01 | V25: 0.01 | W25: 0.01 | X25: 0.01 | Y25: 0.01 | Z25: 0.01 | AA25: 0.01 | AB25: 0.01 | AC25: 0.01 | AD25: 0.01 | AE25: 0.01 | AF25: 0.01 | AG25: 0.01 | AH25: 0.01 | AI25: 0.01 | AJ25: 0.01 | AK25: 0.01 | AL25: 0.01 | AM25: 0.01 | AN25: 0.01 | AO25: 0.01 | AP25: 0.01
B26: Inflation - choc frais | C26: =C25+Choc_exp_infln -> 0.02 | D26: 0.02 | E26: 0.02 | F26: 0.02 | G26: 0.02 | H26: 0.02 | I26: 0.02 | J26: 0.02 | K26: 0.02 | L26: 0.02 | M26: 0.02 | N26: 0.02 | O26: 0.02 | P26: 0.02 | Q26: 0.02 | R26: 0.02 | S26: 0.02 | T26: 0.02 | U26: 0.02 | V26: 0.02 | W26: 0.02 | X26: 0.02 | Y26: 0.02 | Z26: 0.02 | AA26: 0.02 | AB26: 0.02 | AC26: 0.02 | AD26: 0.02 | AE26: 0.02 | AF26: 0.02 | AG26: 0.02 | AH26: 0.02 | AI26: 0.02 | AJ26: 0.02 | AK26: 0.02 | AL26: 0.02 | AM26: 0.02 | AN26: 0.02 | AO26: 0.02 | AP26: 0.02
B27: Inflation Index | C27: =(1+C25)^C$24 -> 1.01 | D27: =(1+D25)^D$24 -> 1.0201 | E27: 1.030301 | F27: 1.04060401 | G27: 1.05101005 | H27: 1.061520151 | I27: 1.072135352 | J27: 1.082856706 | K27: 1.093685273 | L27: 1.104622125 | M27: 1.115668347 | N27: 1.12682503 | O27: 1.13809328 | P27: 1.149474213 | Q27: 1.160968955 | R27: 1.172578645 | S27: 1.184304431 | T27: 1.196147476 | U27: 1.20810895 | V27: 1.22019004 | W27: 1.23239194 | X27: 1.24471586 | Y27: 1.257163018 | Z27: 1.269734649 | AA27: 1.282431995 | AB27: 1.295256315 | AC27: 1.308208878 | AD27: 1.321290967 | AE27: 1.334503877 | AF27: 1.347848915 | AG27: 1.361327404 | AH27: 1.374940679 | AI27: 1.388690085 | AJ27: 1.402576986 | AK27: 1.416602756 | AL27: 1.430768784 | AM27: 1.445076471 | AN27: 1.459527236 | AO27: 1.474122509 | AP27: 1.488863734
B28: Inflation - choc frais - Index | C28: =(1+C26)^C$24 -> 1.02 | D28: 1.0404 | E28: 1.061208 | F28: 1.08243216 | G28: 1.104080803 | H28: 1.126162419 | I28: 1.148685668 | J28: 1.171659381 | K28: 1.195092569 | L28: 1.21899442 | M28: 1.243374308 | N28: 1.268241795 | O28: 1.29360663 | P28: 1.319478763 | Q28: 1.345868338 | R28: 1.372785705 | S28: 1.400241419 | T28: 1.428246248 | U28: 1.456811173 | V28: 1.485947396 | W28: 1.515666344 | X28: 1.545979671 | Y28: 1.576899264 | Z28: 1.608437249 | AA28: 1.640605994 | AB28: 1.673418114 | AC28: 1.706886477 | AD28: 1.741024206 | AE28: 1.77584469 | AF28: 1.811361584 | AG28: 1.847588816 | AH28: 1.884540592 | AI28: 1.922231404 | AJ28: 1.960676032 | AK28: 1.999889553 | AL28: 2.039887344 | AM28: 2.080685091 | AN28: 2.122298792 | AO28: 2.164744768 | AP28: 2.208039664

Sheet Corr_S2
B7: Market risk module - Up | C7: Interest rate | D7: Equity | E7: Property | F7: Spread | G7: Concentration | H7: Currency | K7: Market risk module - Down | L7: Interest rate | M7: Equity | N7: Property | O7: Spread | P7: Concentration | Q7: Currency
B8: Interest rate | C8: 1 | D8: 0 | E8: 0 | F8: 0 | G8: 0.25 | H8: 0 | K8: Interest rate | L8: 1 | M8: 0.5 | N8: 0.5 | O8: 0.5 | P8: 0.25 | Q8: 0
B9: Equity | C9: 0 | D9: 1 | E9: 0.75 | F9: 0.75 | G9: 0.25 | H9: 0 | K9: Equity | L9: 0.5 | M9: 1 | N9: 0.75 | O9: 0.75 | P9: 0.25 | Q9: 0
B10: Property | C10: 0 | D10: 0.75 | E10: 1 | F10: 0.5 | G10: 0.25 | H10: 0 | K10: Property | L10: 0.5 | M10: 0.75 | N10: 1 | O10: 0.5 | P10: 0.25 | Q10: 0
B11: Spread | C11: 0 | D11: 0.75 | E11: 0.5 | F11: 1 | G11: 0.25 | H11: 0 | K11: Spread | L11: 0.5 | M11: 0.75 | N11: 0.5 | O11: 1 | P11: 0.25 | Q11: 0
B12: Concentration | C12: 0.25 | D12: 0.25 | E12: 0.25 | F12: 0.25 | G12: 1 | H12: 0 | K12: Concentration | L12: 0.25 | M12: 0.25 | N12: 0.25 | O12: 0.25 | P12: 1 | Q12: 0
B13: Currency | C13: 0 | D13: 0 | E13: 0 | F13: 0 | G13: 0 | H13: 1 | K13: Currency | L13: 0 | M13: 0 | N13: 0 | O13: 0 | P13: 0 | Q13: 1
B15: Life underwriting risk module | C15: Mortality | D15: Longevity | E15: Disability | F15: Life Expense | G15: Revision | H15: Lapse | I15: Life catastrophe
B16: Mortality | C16: 1 | D16: -0.25 | E16: 0.25 | F16: 0.25 | G16: 0 | H16: 0 | I16: 0.25
B17: Longevity | C17: -0.25 | D17: 1 | E17: 0 | F17: 0.25 | G17: 0.25 | H17: 0.25 | I17: 0
B18: Disability | C18: 0.25 | D18: 0 | E18: 1 | F18: 0.5 | G18: 0 | H18: 0 | I18: 0.25
B19: Life Expense | C19: 0.25 | D19: 0.25 | E19: 0.5 | F19: 1 | G19: 0.5 | H19: 0.5 | I19: 0.25
B20: Revision | C20: 0 | D20: 0.25 | E20: 0 | F20: 0.5 | G20: 1 | H20: 0 | I20: 0
B21: Lapse | C21: 0 | D21: 0.25 | E21: 0 | F21: 0.5 | G21: 0 | H21: 1 | I21: 0.25
B22: Life catastrophe | C22: 0.25 | D22: 0 | E22: 0.25 | F22: 0.25 | G22: 0 | H22: 0.25 | I22: 1
B24: Equity risk sub-module | C24: Equity T1 | D24: Equity T2
B25: Equity T1 | C25: 1 | D25: 0.75
B26: Equity T2 | C26: 0.75 | D26: 1
B29: BSCR | C29: SCRmkt | D29: SCRdef | E29: SCRlife
B30: Market | C30: 1 | D30: 0.25 | E30: 0.25
B31: Default | C31: 0.25 | D31: 1 | E31: 0.25
B32: Life underwriting | C32: 0.25 | D32: 0.25 | E32: 1

Sheet INPUTS=>

Sheet Frais_BP_1
B2: I) Frais et commissions
B5: AVIE / PER / CAPI | D5: 2031-12-31
B6: Frais | C6: Taux | D6: Driver
B7: Frais Acquisition | C7: 0.006324348591 | D7: Primes
B8: Frais Gestion Sinistres | C8: 0.003310441478 | D8: Prestations
B9: Frais Administration | C9: 0.002613334516 | D9: PM | E9: exclusion C3S sur primes
B10: Frais Financiers | C10: 0.00075859202 | D10: VM | E10: MP 2029 car 2030 non calculés
B11: Prélèvements Sociaux | C11: 0.172 | D11: PB
B12: Clause PB | C12: 0.85 | D12: Produits financiers
B13: Frais d'acquisition : hors comm. distribution intégrées directement dans la projection des frais dans la maquette S2
B14: Frais Administration / Frais acq : montant de frais sur l'ensemble des périmètres => tx unique tout produit

Sheet Bilan_Social_BP_1
B2: I) Bilan Social
B5: AVIE + PER + CAPI + FP | C5: 2027-12-31
B7: ACTIF | C7: VNC | D7: VM | F7: PASSIF
B8: Capital souscrit non appelé ou compte de liaison avec le siège | C8: 0 | D8: 0 | F8: Capitaux Propres | G8: 15000000
B9: Actifs Incorporels | C9: 0 | D9: 0 | F9: Résultat de l'exercice | G9: -1718010.364
B10: Obligation Govies | C10: 26724854.07 | D10: 26724854.07 | F10: Passifs subordonnés | G10: 0
B11: Obligation Corporate | C11: 7126627.752 | D11: 7340426.585 | F11: Provisions techniques brutes | G11: 22351149.13
B12: Action | C12: 0 | D12: 0 | F12: PM | G12: 22351149.13 | J12: =ROUND(G12,2)=ROUND(SUM(Model_Points_BP_1!$C$7:$C$11,Model_Points_BP_1!$C$15:$C$19),2) -> TRUE
B13: Monétaire | C13: 1781656.938 | D13: 1781656.938 | F13: PSAP | G13: 0
B14: UC | C14: 42261056.46 | D14: 42261056.46 | F14: PPE | G14: 0 | I14: =C14=G15 -> TRUE
B15: Provisions sur placements | C15: 0 | D15: 0 | F15: Provision techniques des contrats en unité de comptes | G15: 42261056.46 | J15: =ROUND(G15,5)=ROUND(SUM(Model_Points_BP_1!$L$7:$L$11,Model_Points_BP_1!$L$15:$L$19),5) -> TRUE
B16: PDD | C16: 0 | D16: 0 | F16: Autres provisions techniques | G16: 0
B17: Part des cessionnaires et rétrocessionnaires dans les provisions techniques | C17: 0 | D17: 0 | F17: RC | G17: 0
B18: Créances | C18: 0 | D18: 0 | F18: PRE | G18: 0
B19: Autres Actifs | C19: 0 | D19: 0 | F19: Provisions (autres que techniques) | G19: 0
B20: Comptes de régularisation Actif | C20: 0 | D20: 0 | F20: Dettes pour dépôts en espèces reçues des cessionnaires | G20: 0
F21: Autres Dettes | G21: 0
F22: Comptes de régularisation Passif | G22: 0
C24: =C21-C22 -> 0

Sheet Model_Points_BP_1
B2: I) Model Points Actifs
B5: AVIE | C5: Euro | D5: 2027-12-31 | K5: AVIE / CAPI | L5: UC | M5: 2027-12-31 | Q5: AVIE / CAPI | R5: 2027-12-31
B6: Asset Type | C6: VNC | D6: VM | E6: COUPON_PC | F6: NOMINAL | G6: MATURITY_RESID | H6: SPREAD_PC | I6: DIV_PC | K6: Asset Type | L6: VNC | M6: VM | N6: DIV_PC | O6: UC_TYPE | Q6: Reserves | R6: VNC
B7: BONDS_GOV | C7: 15573836.99 | D7: 15573836.99 | E7: 0 | F7: 15573836.99 | G7: 7 | K7: OBLIG_CORP | L7: 4999148.751 | M7: 4999148.751 | N7: 0 | O7: 1 | P7: =M7/SUM($M$7:$M$11) -> 0.1272855134 | Q7: PPE | R7: 0
B8: BONDS_CORP | C8: 4153023.197 | D8: 4277613.893 | E8: 0 | F8: 4153023.197 | G8: 7 | K8: OBLIG_CORP_NR | L8: 3341972.369 | M8: 3341972.369 | N8: 0 | O8: 2 | P8: =M8/SUM($M$7:$M$11) -> 0.08509142053 | Q8: RC | R8: 0
B9: EQ_TYPE_1 | C9: 0 | D9: 0 | E9: 0 | I9: 0 | K9: EQ_TYPE_1 | L9: 26155767.22 | M9: 26155767.22 | N9: 0 | O9: 3 | P9: 0.6659634318 | Q9: PSAP | R9: 0
B10: EQ_TYPE_2 | C10: 0 | D10: 0 | E10: 0 | I10: 0 | K10: EQ_TYPE_2 | L10: 3231493.944 | M10: 3231493.944 | N10: 0 | O10: 4 | P10: 0.08227848101 | T10: PMVL ALL | U10: =SUM(D7:D11)-SUM(C7:C11)+SUM(D15:D19)-SUM(C15:C19) -> 134106.8948
B11: CASH | C11: 1038255.799 | D11: 1038255.799 | E11: 0 | K11: MONETAIRE | L11: 1546697.956 | M11: 1546697.956 | N11: 0 | O11: 5 | P11: 0.03938115331
B13: PER | C13: Euro | D13: 2027-12-31 | K13: PER | L13: UC | M13: 2027-12-31 | Q13: PER | R13: 2027-12-31
B14: Asset Type | C14: VNC | D14: VM | E14: COUPON_PC | F14: NOMINAL | G14: MATURITY_RESID | H14: SPREAD_PC | I14: DIV_PC | K14: Asset Type | L14: VNC | M14: VM | N14: DIV_PC | O14: UC_TYPE | Q14: Reserves | R14: VNC
B15: BONDS_GOV | C15: 1189524.856 | D15: 1189524.856 | E15: 0 | F15: 1189524.856 | G15: 7 | K15: OBLIG_CORP | L15: 380071.5156 | M15: 380071.5156 | N15: 0 | O15: 1 | Q15: PPE | R15: 0
B16: BONDS_CORP | C16: 317206.6283 | D16: 326722.8271 | E16: 0 | F16: 317206.6283 | G16: 7 | K16: OBLIG_CORP_NR | L16: 254080.958 | M16: 254080.958 | N16: 0 | O16: 2 | Q16: RC | R16: 0
B17: EQ_TYPE_1 | C17: 0 | D17: 0 | E17: 0 | I17: 0 | K17: EQ_TYPE_1 | L17: 1988550.969 | M17: 1988550.969 | N17: 0 | O17: 3 | Q17: PSAP | R17: 0
B18: EQ_TYPE_2 | C18: 0 | D18: 0 | E18: 0 | I18: 0 | K18: EQ_TYPE_2 | L18: 245681.5875 | M18: 245681.5875 | N18: 0 | O18: 4
B19: CASH | C19: 79301.65707 | D19: 79301.65707 | E19: 0 | K19: MONETAIRE | L19: 117591.1872 | M19: 117591.1872 | N19: 0 | O19: 5
B22: II) Model Points Passif
B25: Assurance Vie | C25: Euro - UC | D25: 2027-12-31
B26: ID | C26: AGE | D26: SOUSCRIPTION_YR | E26: SEXE | F26: PDT | G26: CHGT_GEST_EURO_PC | H26: CHGT_GEST_UC_PC | I26: COMM_DIST_EURO_PC | J26: COMM_DIST_UC_PC | K26: CLAUSE_PB_PC | L26: TMG_PC | M26: NO_POLS | N26: PM_EURO | O26: PM_UC_TOT | P26: PM_UC_1 | Q26: PM_UC_2 | R26: PM_UC_3 | S26: PM_UC_4 | T26: PM_UC_5
B27: #1 | C27: 18 | D27: 2026 | E27: H | F27: A_VIE | G27: 0.45 | H27: 0.39 | I27: 0.6 | J27: 0.6 | K27: 85 | L27: 0 | M27: 17 | N27: 103825.5799 | O27: 195469.2523 | P27: 24880.40413 | Q27: 16632.75635 | R27: 130175.3741 | S27: 16082.91317 | T27: 7697.804593
B28: #2 | C28: 19 | D28: 2026 | E28: H | F28: A_VIE | G28: 0.45 | H28: 0.39 | I28: 0.6 | J28: 0.6 | K28: 85 | L28: 0 | M28: 17 | N28: 103825.5799 | O28: 195469.2523 | P28: 24880.40413 | Q28: 16632.75635 | R28: 130175.3741 | S28: 16082.91317 | T28: 7697.804593
B29: #3 | C29: 20 | D29: 2026 | E29: F | F29: A_VIE | G29: 0.45 | H29: 0.39 | I29: 0.6 | J29: 0.6 | K29: 85 | L29: 0 | M29: 33 | N29: 207651.1598 | O29: 390938.5047 | P29: 49760.80826 | Q29: 33265.51271 | R29: 260350.7482 | S29: 32165.82634 | T29: 15395.60919
B30: #4 | C30: 21 | D30: 2026 | E30: H | F30: A_VIE | G30: 0.45 | H30: 0.39 | I30: 0.6 | J30: 0.6 | K30: 85 | L30: 0 | M30: 33 | N30: 207651.1598 | O30: 390938.5047 | P30: 49760.80826 | Q30: 33265.51271 | R30: 260350.7482 | S30: 32165.82634 | T30: 15395.60919
B31: #5 | C31: 22 | D31: 2026 | E31: H | F31: A_VIE | G31: 0.45 | H31: 0.39 | I31: 0.6 | J31: 0.6 | K31: 85 | L31: 0 | M31: 33 | N31: 207651.1598 | O31: 390938.5047 | P31: 49760.80826 | Q31: 33265.51271 | R31: 260350.7482 | S31: 32165.82634 | T31: 15395.60919
B32: #6 | C32: 23 | D32: 2026 | E32: F | F32: A_VIE | G32: 0.45 | H32: 0.39 | I32: 0.6 | J32: 0.6 | K32: 85 | L32: 0 | M32: 33 | N32: 207651.1598 | O32: 390938.5047 | P32: 49760.80826 | Q32: 33265.51271 | R32: 260350.7482 | S32: 32165.82634 | T32: 15395.60919
B33: #7 | C33: 24 | D33: 2026 | E33: H | F33: A_VIE | G33: 0.45 | H33: 0.39 | I33: 0.6 | J33: 0.6 | K33: 85 | L33: 0 | M33: 33 | N33: 207651.1598 | O33: 390938.5047 | P33: 49760.80826 | Q33: 33265.51271 | R33: 260350.7482 | S33: 32165.82634 | T33: 15395.60919
B34: #8 | C34: 25 | D34: 2026 | E34: H | F34: A_VIE | G34: 0.45 | H34: 0.39 | I34: 0.6 | J34: 0.6 | K34: 85 | L34: 0 | M34: 167 | N34: 1038255.799 | O34: 1954692.523 | P34: 248804.0413 | Q34: 166327.5635 | R34: 1301753.741 | S34: 160829.1317 | T34: 76978.04593
B35: #9 | C35: 26 | D35: 2026 | E35: F | F35: A_VIE | G35: 0.45 | H35: 0.39 | I35: 0.6 | J35: 0.6 | K35: 85 | L35: 0 | M35: 100 | N35: 622953.4795 | O35: 1172815.514 | P35: 149282.4248 | Q35: 99796.53812 | R35: 781052.2446 | S35: 96497.47901 | T35: 46186.82756
B36: #10 | C36: 27 | D36: 2026 | E36: H | F36: A_VIE | G36: 0.45 | H36: 0.39 | I36: 0.6 | J36: 0.6 | K36: 85 | L36: 0 | M36: 100 | N36: 622953.4795 | O36: 1172815.514 | P36: 149282.4248 | Q36: 99796.53812 | R36: 781052.2446 | S36: 96497.47901 | T36: 46186.82756
B37: #11 | C37: 28 | D37: 2026 | E37: H | F37: A_VIE | G37: 0.45 | H37: 0.39 | I37: 0.6 | J37: 0.6 | K37: 85 | L37: 0 | M37: 100 | N37: 622953.4795 | O37: 1172815.514 | P37: 149282.4248 | Q37: 99796.53812 | R37: 781052.2446 | S37: 96497.47901 | T37: 46186.82756
B38: #12 | C38: 29 | D38: 2026 | E38: F | F38: A_VIE | G38: 0.45 | H38: 0.39 | I38: 0.6 | J38: 0.6 | K38: 85 | L38: 0 | M38: 100 | N38: 622953.4795 | O38: 1172815.514 | P38: 149282.4248 | Q38: 99796.53812 | R38: 781052.2446 | S38: 96497.47901 | T38: 46186.82756
B39: #13 | C39: 30 | D39: 2026 | E39: H | F39: A_VIE | G39: 0.45 | H39: 0.39 | I39: 0.6 | J39: 0.6 | K39: 85 | L39: 0 | M39: 100 | N39: 622953.4795 | O39: 1172815.514 | P39: 149282.4248 | Q39: 99796.53812 | R39: 781052.2446 | S39: 96497.47901 | T39: 46186.82756
B40: #14 | C40: 31 | D40: 2026 | E40: H | F40: A_VIE | G40: 0.45 | H40: 0.39 | I40: 0.6 | J40: 0.6 | K40: 85 | L40: 0 | M40: 100 | N40: 622953.4795 | O40: 1172815.514 | P40: 149282.4248 | Q40: 99796.53812 | R40: 781052.2446 | S40: 96497.47901 | T40: 46186.82756
B41: #15 | C41: 32 | D41: 2026 | E41: F | F41: A_VIE | G41: 0.45 | H41: 0.39 | I41: 0.6 | J41: 0.6 | K41: 85 | L41: 0 | M41: 100 | N41: 622953.4795 | O41: 1172815.514 | P41: 149282.4248 | Q41: 99796.53812 | R41: 781052.2446 | S41: 96497.47901 | T41: 46186.82756
B42: #16 | C42: 33 | D42: 2026 | E42: H | F42: A_VIE | G42: 0.45 | H42: 0.39 | I42: 0.6 | J42: 0.6 | K42: 85 | L42: 0 | M42: 100 | N42: 622953.4795 | O42: 1172815.514 | P42: 149282.4248 | Q42: 99796.53812 | R42: 781052.2446 | S42: 96497.47901 | T42: 46186.82756
B43: #17 | C43: 34 | D43: 2026 | E43: H | F43: A_VIE | G43: 0.45 | H43: 0.39 | I43: 0.6 | J43: 0.6 | K43: 85 | L43: 0 | M43: 100 | N43: 622953.4795 | O43: 1172815.514 | P43: 149282.4248 | Q43: 99796.53812 | R43: 781052.2446 | S43: 96497.47901 | T43: 46186.82756
B44: #18 | C44: 35 | D44: 2026 | E44: F | F44: A_VIE | G44: 0.45 | H44: 0.39 | I44: 0.6 | J44: 0.6 | K44: 85 | L44: 0 | M44: 100 | N44: 622953.4795 | O44: 1172815.514 | P44: 149282.4248 | Q44: 99796.53812 | R44: 781052.2446 | S44: 96497.47901 | T44: 46186.82756
B45: #19 | C45: 36 | D45: 2026 | E45: H | F45: A_VIE | G45: 0.45 | H45: 0.39 | I45: 0.6 | J45: 0.6 | K45: 85 | L45: 0 | M45: 17 | N45: 103825.5799 | O45: 195469.2523 | P45: 24880.40413 | Q45: 16632.75635 | R45: 130175.3741 | S45: 16082.91317 | T45: 7697.804593
B46: #20 | C46: 37 | D46: 2026 | E46: H | F46: A_VIE | G46: 0.45 | H46: 0.39 | I46: 0.6 | J46: 0.6 | K46: 85 | L46: 0 | M46: 17 | N46: 103825.5799 | O46: 195469.2523 | P46: 24880.40413 | Q46: 16632.75635 | R46: 130175.3741 | S46: 16082.91317 | T46: 7697.804593
B47: #21 | C47: 38 | D47: 2026 | E47: F | F47: A_VIE | G47: 0.45 | H47: 0.39 | I47: 0.6 | J47: 0.6 | K47: 85 | L47: 0 | M47: 17 | N47: 103825.5799 | O47: 195469.2523 | P47: 24880.40413 | Q47: 16632.75635 | R47: 130175.3741 | S47: 16082.91317 | T47: 7697.804593
B48: #22 | C48: 39 | D48: 2026 | E48: H | F48: A_VIE | G48: 0.45 | H48: 0.39 | I48: 0.6 | J48: 0.6 | K48: 85 | L48: 0 | M48: 17 | N48: 103825.5799 | O48: 195469.2523 | P48: 24880.40413 | Q48: 16632.75635 | R48: 130175.3741 | S48: 16082.91317 | T48: 7697.804593
B49: #23 | C49: 40 | D49: 2026 | E49: H | F49: A_VIE | G49: 0.45 | H49: 0.39 | I49: 0.6 | J49: 0.6 | K49: 85 | L49: 0 | M49: 17 | N49: 103825.5799 | O49: 195469.2523 | P49: 24880.40413 | Q49: 16632.75635 | R49: 130175.3741 | S49: 16082.91317 | T49: 7697.804593
B50: #24 | C50: 41 | D50: 2026 | E50: F | F50: A_VIE | G50: 0.45 | H50: 0.39 | I50: 0.6 | J50: 0.6 | K50: 85 | L50: 0 | M50: 17 | N50: 103825.5799 | O50: 195469.2523 | P50: 24880.40413 | Q50: 16632.75635 | R50: 130175.3741 | S50: 16082.91317 | T50: 7697.804593
B51: #25 | C51: 42 | D51: 2026 | E51: H | F51: A_VIE | G51: 0.45 | H51: 0.39 | I51: 0.6 | J51: 0.6 | K51: 85 | L51: 0 | M51: 17 | N51: 103825.5799 | O51: 195469.2523 | P51: 24880.40413 | Q51: 16632.75635 | R51: 130175.3741 | S51: 16082.91317 | T51: 7697.804593
B52: #26 | C52: 43 | D52: 2026 | E52: H | F52: A_VIE | G52: 0.45 | H52: 0.39 | I52: 0.6 | J52: 0.6 | K52: 85 | L52: 0 | M52: 17 | N52: 103825.5799 | O52: 195469.2523 | P52: 24880.40413 | Q52: 16632.75635 | R52: 130175.3741 | S52: 16082.91317 | T52: 7697.804593
B53: #27 | C53: 44 | D53: 2026 | E53: F | F53: A_VIE | G53: 0.45 | H53: 0.39 | I53: 0.6 | J53: 0.6 | K53: 85 | L53: 0 | M53: 17 | N53: 103825.5799 | O53: 195469.2523 | P53: 24880.40413 | Q53: 16632.75635 | R53: 130175.3741 | S53: 16082.91317 | T53: 7697.804593
B54: #28 | C54: 45 | D54: 2026 | E54: H | F54: A_VIE | G54: 0.45 | H54: 0.39 | I54: 0.6 | J54: 0.6 | K54: 85 | L54: 0 | M54: 17 | N54: 103825.5799 | O54: 195469.2523 | P54: 24880.40413 | Q54: 16632.75635 | R54: 130175.3741 | S54: 16082.91317 | T54: 7697.804593
B55: #29 | C55: 46 | D55: 2026 | E55: H | F55: A_VIE | G55: 0.45 | H55: 0.39 | I55: 0.6 | J55: 0.6 | K55: 85 | L55: 0 | M55: 17 | N55: 103825.5799 | O55: 195469.2523 | P55: 24880.40413 | Q55: 16632.75635 | R55: 130175.3741 | S55: 16082.91317 | T55: 7697.804593
B56: #30 | C56: 47 | D56: 2026 | E56: F | F56: A_VIE | G56: 0.45 | H56: 0.39 | I56: 0.6 | J56: 0.6 | K56: 85 | L56: 0 | M56: 17 | N56: 103825.5799 | O56: 195469.2523 | P56: 24880.40413 | Q56: 16632.75635 | R56: 130175.3741 | S56: 16082.91317 | T56: 7697.804593
B57: #31 | C57: 48 | D57: 2026 | E57: H | F57: A_VIE | G57: 0.45 | H57: 0.39 | I57: 0.6 | J57: 0.6 | K57: 85 | L57: 0 | M57: 17 | N57: 103825.5799 | O57: 195469.2523 | P57: 24880.40413 | Q57: 16632.75635 | R57: 130175.3741 | S57: 16082.91317 | T57: 7697.804593
B58: #32 | C58: 49 | D58: 2026 | E58: H | F58: A_VIE | G58: 0.45 | H58: 0.39 | I58: 0.6 | J58: 0.6 | K58: 85 | L58: 0 | M58: 17 | N58: 103825.5799 | O58: 195469.2523 | P58: 24880.40413 | Q58: 16632.75635 | R58: 130175.3741 | S58: 16082.91317 | T58: 7697.804593
B59: #33 | C59: 50 | D59: 2026 | E59: F | F59: A_VIE | G59: 0.45 | H59: 0.39 | I59: 0.6 | J59: 0.6 | K59: 85 | L59: 0 | M59: 100 | N59: 622953.4795 | O59: 1172815.514 | P59: 149282.4248 | Q59: 99796.53812 | R59: 781052.2446 | S59: 96497.47901 | T59: 46186.82756
B60: #34 | C60: 51 | D60: 2026 | E60: H | F60: A_VIE | G60: 0.45 | H60: 0.39 | I60: 0.6 | J60: 0.6 | K60: 85 | L60: 0 | M60: 100 | N60: 622953.4795 | O60: 1172815.514 | P60: 149282.4248 | Q60: 99796.53812 | R60: 781052.2446 | S60: 96497.47901 | T60: 46186.82756
B61: #35 | C61: 52 | D61: 2026 | E61: H | F61: A_VIE | G61: 0.45 | H61: 0.39 | I61: 0.6 | J61: 0.6 | K61: 85 | L61: 0 | M61: 100 | N61: 622953.4795 | O61: 1172815.514 | P61: 149282.4248 | Q61: 99796.53812 | R61: 781052.2446 | S61: 96497.47901 | T61: 46186.82756
B62: #36 | C62: 53 | D62: 2026 | E62: F | F62: A_VIE | G62: 0.45 | H62: 0.39 | I62: 0.6 | J62: 0.6 | K62: 85 | L62: 0 | M62: 100 | N62: 622953.4795 | O62: 1172815.514 | P62: 149282.4248 | Q62: 99796.53812 | R62: 781052.2446 | S62: 96497.47901 | T62: 46186.82756
B63: #37 | C63: 54 | D63: 2026 | E63: H | F63: A_VIE | G63: 0.45 | H63: 0.39 | I63: 0.6 | J63: 0.6 | K63: 85 | L63: 0 | M63: 100 | N63: 622953.4795 | O63: 1172815.514 | P63: 149282.4248 | Q63: 99796.53812 | R63: 781052.2446 | S63: 96497.47901 | T63: 46186.82756
B64: #38 | C64: 55 | D64: 2026 | E64: H | F64: A_VIE | G64: 0.45 | H64: 0.39 | I64: 0.6 | J64: 0.6 | K64: 85 | L64: 0 | M64: 100 | N64: 622953.4795 | O64: 1172815.514 | P64: 149282.4248 | Q64: 99796.53812 | R64: 781052.2446 | S64: 96497.47901 | T64: 46186.82756
B65: #39 | C65: 56 | D65: 2026 | E65: F | F65: A_VIE | G65: 0.45 | H65: 0.39 | I65: 0.6 | J65: 0.6 | K65: 85 | L65: 0 | M65: 100 | N65: 622953.4795 | O65: 1172815.514 | P65: 149282.4248 | Q65: 99796.53812 | R65: 781052.2446 | S65: 96497.47901 | T65: 46186.82756
B66: #40 | C66: 57 | D66: 2026 | E66: H | F66: A_VIE | G66: 0.45 | H66: 0.39 | I66: 0.6 | J66: 0.6 | K66: 85 | L66: 0 | M66: 100 | N66: 622953.4795 | O66: 1172815.514 | P66: 149282.4248 | Q66: 99796.53812 | R66: 781052.2446 | S66: 96497.47901 | T66: 46186.82756
B67: #41 | C67: 58 | D67: 2026 | E67: H | F67: A_VIE | G67: 0.45 | H67: 0.39 | I67: 0.6 | J67: 0.6 | K67: 85 | L67: 0 | M67: 100 | N67: 622953.4795 | O67: 1172815.514 | P67: 149282.4248 | Q67: 99796.53812 | R67: 781052.2446 | S67: 96497.47901 | T67: 46186.82756
B68: #42 | C68: 59 | D68: 2026 | E68: F | F68: A_VIE | G68: 0.45 | H68: 0.39 | I68: 0.6 | J68: 0.6 | K68: 85 | L68: 0 | M68: 100 | N68: 622953.4795 | O68: 1172815.514 | P68: 149282.4248 | Q68: 99796.53812 | R68: 781052.2446 | S68: 96497.47901 | T68: 46186.82756
B69: #43 | C69: 60 | D69: 2026 | E69: H | F69: A_VIE | G69: 0.45 | H69: 0.39 | I69: 0.6 | J69: 0.6 | K69: 85 | L69: 0 | M69: 167 | N69: 1038255.799 | O69: 1954692.523 | P69: 248804.0413 | Q69: 166327.5635 | R69: 1301753.741 | S69: 160829.1317 | T69: 76978.04593
B70: #44 | C70: 61 | D70: 2026 | E70: H | F70: A_VIE | G70: 0.45 | H70: 0.39 | I70: 0.6 | J70: 0.6 | K70: 85 | L70: 0 | M70: 100 | N70: 622953.4795 | O70: 1172815.514 | P70: 149282.4248 | Q70: 99796.53812 | R70: 781052.2446 | S70: 96497.47901 | T70: 46186.82756
B71: #45 | C71: 62 | D71: 2026 | E71: F | F71: A_VIE | G71: 0.45 | H71: 0.39 | I71: 0.6 | J71: 0.6 | K71: 85 | L71: 0 | M71: 100 | N71: 622953.4795 | O71: 1172815.514 | P71: 149282.4248 | Q71: 99796.53812 | R71: 781052.2446 | S71: 96497.47901 | T71: 46186.82756
B72: #46 | C72: 63 | D72: 2026 | E72: H | F72: A_VIE | G72: 0.45 | H72: 0.39 | I72: 0.6 | J72: 0.6 | K72: 85 | L72: 0 | M72: 100 | N72: 622953.4795 | O72: 1172815.514 | P72: 149282.4248 | Q72: 99796.53812 | R72: 781052.2446 | S72: 96497.47901 | T72: 46186.82756
B73: #47 | C73: 64 | D73: 2026 | E73: H | F73: A_VIE | G73: 0.45 | H73: 0.39 | I73: 0.6 | J73: 0.6 | K73: 85 | L73: 0 | M73: 100 | N73: 622953.4795 | O73: 1172815.514 | P73: 149282.4248 | Q73: 99796.53812 | R73: 781052.2446 | S73: 96497.47901 | T73: 46186.82756
B74: #48 | C74: 65 | D74: 2026 | E74: F | F74: A_VIE | G74: 0.45 | H74: 0.39 | I74: 0.6 | J74: 0.6 | K74: 85 | L74: 0 | M74: 100 | N74: 622953.4795 | O74: 1172815.514 | P74: 149282.4248 | Q74: 99796.53812 | R74: 781052.2446 | S74: 96497.47901 | T74: 46186.82756
B75: #49 | C75: 70 | D75: 2026 | E75: H | F75: A_VIE | G75: 0.45 | H75: 0.39 | I75: 0.6 | J75: 0.6 | K75: 85 | L75: 0 | M75: 17 | N75: 103825.5799 | O75: 195469.2523 | P75: 24880.40413 | Q75: 16632.75635 | R75: 130175.3741 | S75: 16082.91317 | T75: 7697.804593
B76: #50 | C76: 75 | D76: 2026 | E76: H | F76: A_VIE | G76: 0.45 | H76: 0.39 | I76: 0.6 | J76: 0.6 | K76: 85 | L76: 0 | M76: 17 | N76: 103825.5799 | O76: 195469.2523 | P76: 24880.40413 | Q76: 16632.75635 | R76: 130175.3741 | S76: 16082.91317 | T76: 7697.804593
B77: #51 | C77: 80 | D77: 2026 | E77: F | F77: A_VIE | G77: 0.45 | H77: 0.39 | I77: 0.6 | J77: 0.6 | K77: 85 | L77: 0 | M77: 17 | N77: 103825.5799 | O77: 195469.2523 | P77: 24880.40413 | Q77: 16632.75635 | R77: 130175.3741 | S77: 16082.91317 | T77: 7697.804593
B78: #52 | C78: 85 | D78: 2026 | E78: H | F78: A_VIE | G78: 0.45 | H78: 0.39 | I78: 0.6 | J78: 0.6 | K78: 85 | L78: 0 | M78: 8 | N78: 51912.78996 | O78: 97734.62617 | P78: 12440.20207 | Q78: 8316.378177 | R78: 65087.68705 | S78: 8041.456584 | T78: 3848.902297
B79: #53 | C79: 90 | D79: 2026 | E79: H | F79: A_VIE | G79: 0.45 | H79: 0.39 | I79: 0.6 | J79: 0.6 | K79: 85 | L79: 0 | M79: 8 | N79: 51912.78996 | O79: 97734.62617 | P79: 12440.20207 | Q79: 8316.378177 | R79: 65087.68705 | S79: 8041.456584 | T79: 3848.902297
B80: #54 | C80: 18 | D80: 2026 | E80: H | F80: A_CAPI | G80: 0.45 | H80: 0.39 | I80: 0.6 | J80: 0.6 | K80: 85 | L80: 0 | M80: 0.05 | N80: 0 | O80: 906.1488519 | P80: 115.3396218 | Q80: 77.10549303 | R80: 603.4619991 | S80: 74.55655111 | T80: 35.68518686
B81: #55 | C81: 19 | D81: 2026 | E81: H | F81: A_CAPI | G81: 0.45 | H81: 0.39 | I81: 0.6 | J81: 0.6 | K81: 85 | L81: 0 | M81: 0.05 | N81: 0 | O81: 906.1488519 | P81: 115.3396218 | Q81: 77.10549303 | R81: 603.4619991 | S81: 74.55655111 | T81: 35.68518686
B82: #56 | C82: 20 | D82: 2026 | E82: F | F82: A_CAPI | G82: 0.45 | H82: 0.39 | I82: 0.6 | J82: 0.6 | K82: 85 | L82: 0 | M82: 0.1 | N82: 0 | O82: 1812.297704 | P82: 230.6792436 | Q82: 154.2109861 | R82: 1206.923998 | S82: 149.1131022 | T82: 71.37037371
B83: #57 | C83: 21 | D83: 2026 | E83: H | F83: A_CAPI | G83: 0.45 | H83: 0.39 | I83: 0.6 | J83: 0.6 | K83: 85 | L83: 0 | M83: 0.1 | N83: 0 | O83: 1812.297704 | P83: 230.6792436 | Q83: 154.2109861 | R83: 1206.923998 | S83: 149.1131022 | T83: 71.37037371
B84: #58 | C84: 22 | D84: 2026 | E84: H | F84: A_CAPI | G84: 0.45 | H84: 0.39 | I84: 0.6 | J84: 0.6 | K84: 85 | L84: 0 | M84: 0.1 | N84: 0 | O84: 1812.297704 | P84: 230.6792436 | Q84: 154.2109861 | R84: 1206.923998 | S84: 149.1131022 | T84: 71.37037371
B85: #59 | C85: 23 | D85: 2026 | E85: F | F85: A_CAPI | G85: 0.45 | H85: 0.39 | I85: 0.6 | J85: 0.6 | K85: 85 | L85: 0 | M85: 0.1 | N85: 0 | O85: 1812.297704 | P85: 230.6792436 | Q85: 154.2109861 | R85: 1206.923998 | S85: 149.1131022 | T85: 71.37037371
B86: #60 | C86: 24 | D86: 2026 | E86: H | F86: A_CAPI | G86: 0.45 | H86: 0.39 | I86: 0.6 | J86: 0.6 | K86: 85 | L86: 0 | M86: 0.1 | N86: 0 | O86: 1812.297704 | P86: 230.6792436 | Q86: 154.2109861 | R86: 1206.923998 | S86: 149.1131022 | T86: 71.37037371
B87: #61 | C87: 25 | D87: 2026 | E87: H | F87: A_CAPI | G87: 0.45 | H87: 0.39 | I87: 0.6 | J87: 0.6 | K87: 85 | L87: 0 | M87: 0.5 | N87: 0 | O87: 9061.488519 | P87: 1153.396218 | Q87: 771.0549303 | R87: 6034.619991 | S87: 745.5655111 | T87: 356.8518686
B88: #62 | C88: 26 | D88: 2026 | E88: F | F88: A_CAPI | G88: 0.45 | H88: 0.39 | I88: 0.6 | J88: 0.6 | K88: 85 | L88: 0 | M88: 0.3 | N88: 0 | O88: 5436.893112 | P88: 692.0377308 | Q88: 462.6329582 | R88: 3620.771995 | S88: 447.3393067 | T88: 214.1111211
B89: #63 | C89: 27 | D89: 2026 | E89: H | F89: A_CAPI | G89: 0.45 | H89: 0.39 | I89: 0.6 | J89: 0.6 | K89: 85 | L89: 0 | M89: 0.3 | N89: 0 | O89: 5436.893112 | P89: 692.0377308 | Q89: 462.6329582 | R89: 3620.771995 | S89: 447.3393067 | T89: 214.1111211
B90: #64 | C90: 28 | D90: 2026 | E90: H | F90: A_CAPI | G90: 0.45 | H90: 0.39 | I90: 0.6 | J90: 0.6 | K90: 85 | L90: 0 | M90: 0.3 | N90: 0 | O90: 5436.893112 | P90: 692.0377308 | Q90: 462.6329582 | R90: 3620.771995 | S90: 447.3393067 | T90: 214.1111211
B91: #65 | C91: 29 | D91: 2026 | E91: F | F91: A_CAPI | G91: 0.45 | H91: 0.39 | I91: 0.6 | J91: 0.6 | K91: 85 | L91: 0 | M91: 0.3 | N91: 0 | O91: 5436.893112 | P91: 692.0377308 | Q91: 462.6329582 | R91: 3620.771995 | S91: 447.3393067 | T91: 214.1111211
B92: #66 | C92: 30 | D92: 2026 | E92: H | F92: A_CAPI | G92: 0.45 | H92: 0.39 | I92: 0.6 | J92: 0.6 | K92: 85 | L92: 0 | M92: 0.3 | N92: 0 | O92: 5436.893112 | P92: 692.0377308 | Q92: 462.6329582 | R92: 3620.771995 | S92: 447.3393067 | T92: 214.1111211
B93: #67 | C93: 31 | D93: 2026 | E93: H | F93: A_CAPI | G93: 0.45 | H93: 0.39 | I93: 0.6 | J93: 0.6 | K93: 85 | L93: 0 | M93: 0.3 | N93: 0 | O93: 5436.893112 | P93: 692.0377308 | Q93: 462.6329582 | R93: 3620.771995 | S93: 447.3393067 | T93: 214.1111211
B94: #68 | C94: 32 | D94: 2026 | E94: F | F94: A_CAPI | G94: 0.45 | H94: 0.39 | I94: 0.6 | J94: 0.6 | K94: 85 | L94: 0 | M94: 0.3 | N94: 0 | O94: 5436.893112 | P94: 692.0377308 | Q94: 462.6329582 | R94: 3620.771995 | S94: 447.3393067 | T94: 214.1111211
B95: #69 | C95: 33 | D95: 2026 | E95: H | F95: A_CAPI | G95: 0.45 | H95: 0.39 | I95: 0.6 | J95: 0.6 | K95: 85 | L95: 0 | M95: 0.3 | N95: 0 | O95: 5436.893112 | P95: 692.0377308 | Q95: 462.6329582 | R95: 3620.771995 | S95: 447.3393067 | T95: 214.1111211
B96: #70 | C96: 34 | D96: 2026 | E96: H | F96: A_CAPI | G96: 0.45 | H96: 0.39 | I96: 0.6 | J96: 0.6 | K96: 85 | L96: 0 | M96: 0.3 | N96: 0 | O96: 5436.893112 | P96: 692.0377308 | Q96: 462.6329582 | R96: 3620.771995 | S96: 447.3393067 | T96: 214.1111211
B97: #71 | C97: 35 | D97: 2026 | E97: F | F97: A_CAPI | G97: 0.45 | H97: 0.39 | I97: 0.6 | J97: 0.6 | K97: 85 | L97: 0 | M97: 0.3 | N97: 0 | O97: 5436.893112 | P97: 692.0377308 | Q97: 462.6329582 | R97: 3620.771995 | S97: 447.3393067 | T97: 214.1111211
B98: #72 | C98: 36 | D98: 2026 | E98: H | F98: A_CAPI | G98: 0.45 | H98: 0.39 | I98: 0.6 | J98: 0.6 | K98: 85 | L98: 0 | M98: 0.05 | N98: 0 | O98: 906.1488519 | P98: 115.3396218 | Q98: 77.10549303 | R98: 603.4619991 | S98: 74.55655111 | T98: 35.68518686
B99: #73 | C99: 37 | D99: 2026 | E99: H | F99: A_CAPI | G99: 0.45 | H99: 0.39 | I99: 0.6 | J99: 0.6 | K99: 85 | L99: 0 | M99: 0.05 | N99: 0 | O99: 906.1488519 | P99: 115.3396218 | Q99: 77.10549303 | R99: 603.4619991 | S99: 74.55655111 | T99: 35.68518686
B100: #74 | C100: 38 | D100: 2026 | E100: F | F100: A_CAPI | G100: 0.45 | H100: 0.39 | I100: 0.6 | J100: 0.6 | K100: 85 | L100: 0 | M100: 0.05 | N100: 0 | O100: 906.1488519 | P100: 115.3396218 | Q100: 77.10549303 | R100: 603.4619991 | S100: 74.55655111 | T100: 35.68518686
B101: #75 | C101: 39 | D101: 2026 | E101: H | F101: A_CAPI | G101: 0.45 | H101: 0.39 | I101: 0.6 | J101: 0.6 | K101: 85 | L101: 0 | M101: 0.05 | N101: 0 | O101: 906.1488519 | P101: 115.3396218 | Q101: 77.10549303 | R101: 603.4619991 | S101: 74.55655111 | T101: 35.68518686
B102: #76 | C102: 40 | D102: 2026 | E102: H | F102: A_CAPI | G102: 0.45 | H102: 0.39 | I102: 0.6 | J102: 0.6 | K102: 85 | L102: 0 | M102: 0.05 | N102: 0 | O102: 906.1488519 | P102: 115.3396218 | Q102: 77.10549303 | R102: 603.4619991 | S102: 74.55655111 | T102: 35.68518686
B103: #77 | C103: 41 | D103: 2026 | E103: F | F103: A_CAPI | G103: 0.45 | H103: 0.39 | I103: 0.6 | J103: 0.6 | K103: 85 | L103: 0 | M103: 0.05 | N103: 0 | O103: 906.1488519 | P103: 115.3396218 | Q103: 77.10549303 | R103: 603.4619991 | S103: 74.55655111 | T103: 35.68518686
B104: #78 | C104: 42 | D104: 2026 | E104: H | F104: A_CAPI | G104: 0.45 | H104: 0.39 | I104: 0.6 | J104: 0.6 | K104: 85 | L104: 0 | M104: 0.05 | N104: 0 | O104: 906.1488519 | P104: 115.3396218 | Q104: 77.10549303 | R104: 603.4619991 | S104: 74.55655111 | T104: 35.68518686
B105: #79 | C105: 43 | D105: 2026 | E105: H | F105: A_CAPI | G105: 0.45 | H105: 0.39 | I105: 0.6 | J105: 0.6 | K105: 85 | L105: 0 | M105: 0.05 | N105: 0 | O105: 906.1488519 | P105: 115.3396218 | Q105: 77.10549303 | R105: 603.4619991 | S105: 74.55655111 | T105: 35.68518686
B106: #80 | C106: 44 | D106: 2026 | E106: F | F106: A_CAPI | G106: 0.45 | H106: 0.39 | I106: 0.6 | J106: 0.6 | K106: 85 | L106: 0 | M106: 0.05 | N106: 0 | O106: 906.1488519 | P106: 115.3396218 | Q106: 77.10549303 | R106: 603.4619991 | S106: 74.55655111 | T106: 35.68518686
B107: #81 | C107: 45 | D107: 2026 | E107: H | F107: A_CAPI | G107: 0.45 | H107: 0.39 | I107: 0.6 | J107: 0.6 | K107: 85 | L107: 0 | M107: 0.05 | N107: 0 | O107: 906.1488519 | P107: 115.3396218 | Q107: 77.10549303 | R107: 603.4619991 | S107: 74.55655111 | T107: 35.68518686
B108: #82 | C108: 46 | D108: 2026 | E108: H | F108: A_CAPI | G108: 0.45 | H108: 0.39 | I108: 0.6 | J108: 0.6 | K108: 85 | L108: 0 | M108: 0.05 | N108: 0 | O108: 906.1488519 | P108: 115.3396218 | Q108: 77.10549303 | R108: 603.4619991 | S108: 74.55655111 | T108: 35.68518686
B109: #83 | C109: 47 | D109: 2026 | E109: F | F109: A_CAPI | G109: 0.45 | H109: 0.39 | I109: 0.6 | J109: 0.6 | K109: 85 | L109: 0 | M109: 0.05 | N109: 0 | O109: 906.1488519 | P109: 115.3396218 | Q109: 77.10549303 | R109: 603.4619991 | S109: 74.55655111 | T109: 35.68518686
B110: #84 | C110: 48 | D110: 2026 | E110: H | F110: A_CAPI | G110: 0.45 | H110: 0.39 | I110: 0.6 | J110: 0.6 | K110: 85 | L110: 0 | M110: 0.05 | N110: 0 | O110: 906.1488519 | P110: 115.3396218 | Q110: 77.10549303 | R110: 603.4619991 | S110: 74.55655111 | T110: 35.68518686
B111: #85 | C111: 49 | D111: 2026 | E111: H | F111: A_CAPI | G111: 0.45 | H111: 0.39 | I111: 0.6 | J111: 0.6 | K111: 85 | L111: 0 | M111: 0.05 | N111: 0 | O111: 906.1488519 | P111: 115.3396218 | Q111: 77.10549303 | R111: 603.4619991 | S111: 74.55655111 | T111: 35.68518686
B112: #86 | C112: 50 | D112: 2026 | E112: F | F112: A_CAPI | G112: 0.45 | H112: 0.39 | I112: 0.6 | J112: 0.6 | K112: 85 | L112: 0 | M112: 0.3 | N112: 0 | O112: 5436.893112 | P112: 692.0377308 | Q112: 462.6329582 | R112: 3620.771995 | S112: 447.3393067 | T112: 214.1111211
B113: #87 | C113: 51 | D113: 2026 | E113: H | F113: A_CAPI | G113: 0.45 | H113: 0.39 | I113: 0.6 | J113: 0.6 | K113: 85 | L113: 0 | M113: 0.3 | N113: 0 | O113: 5436.893112 | P113: 692.0377308 | Q113: 462.6329582 | R113: 3620.771995 | S113: 447.3393067 | T113: 214.1111211
B114: #88 | C114: 52 | D114: 2026 | E114: H | F114: A_CAPI | G114: 0.45 | H114: 0.39 | I114: 0.6 | J114: 0.6 | K114: 85 | L114: 0 | M114: 0.3 | N114: 0 | O114: 5436.893112 | P114: 692.0377308 | Q114: 462.6329582 | R114: 3620.771995 | S114: 447.3393067 | T114: 214.1111211
B115: #89 | C115: 53 | D115: 2026 | E115: F | F115: A_CAPI | G115: 0.45 | H115: 0.39 | I115: 0.6 | J115: 0.6 | K115: 85 | L115: 0 | M115: 0.3 | N115: 0 | O115: 5436.893112 | P115: 692.0377308 | Q115: 462.6329582 | R115: 3620.771995 | S115: 447.3393067 | T115: 214.1111211
B116: #90 | C116: 54 | D116: 2026 | E116: H | F116: A_CAPI | G116: 0.45 | H116: 0.39 | I116: 0.6 | J116: 0.6 | K116: 85 | L116: 0 | M116: 0.3 | N116: 0 | O116: 5436.893112 | P116: 692.0377308 | Q116: 462.6329582 | R116: 3620.771995 | S116: 447.3393067 | T116: 214.1111211
B117: #91 | C117: 55 | D117: 2026 | E117: H | F117: A_CAPI | G117: 0.45 | H117: 0.39 | I117: 0.6 | J117: 0.6 | K117: 85 | L117: 0 | M117: 0.3 | N117: 0 | O117: 5436.893112 | P117: 692.0377308 | Q117: 462.6329582 | R117: 3620.771995 | S117: 447.3393067 | T117: 214.1111211
B118: #92 | C118: 56 | D118: 2026 | E118: F | F118: A_CAPI | G118: 0.45 | H118: 0.39 | I118: 0.6 | J118: 0.6 | K118: 85 | L118: 0 | M118: 0.3 | N118: 0 | O118: 5436.893112 | P118: 692.0377308 | Q118: 462.6329582 | R118: 3620.771995 | S118: 447.3393067 | T118: 214.1111211
B119: #93 | C119: 57 | D119: 2026 | E119: H | F119: A_CAPI | G119: 0.45 | H119: 0.39 | I119: 0.6 | J119: 0.6 | K119: 85 | L119: 0 | M119: 0.3 | N119: 0 | O119: 5436.893112 | P119: 692.0377308 | Q119: 462.6329582 | R119: 3620.771995 | S119: 447.3393067 | T119: 214.1111211
B120: #94 | C120: 58 | D120: 2026 | E120: H | F120: A_CAPI | G120: 0.45 | H120: 0.39 | I120: 0.6 | J120: 0.6 | K120: 85 | L120: 0 | M120: 0.3 | N120: 0 | O120: 5436.893112 | P120: 692.0377308 | Q120: 462.6329582 | R120: 3620.771995 | S120: 447.3393067 | T120: 214.1111211
B121: #95 | C121: 59 | D121: 2026 | E121: F | F121: A_CAPI | G121: 0.45 | H121: 0.39 | I121: 0.6 | J121: 0.6 | K121: 85 | L121: 0 | M121: 0.3 | N121: 0 | O121: 5436.893112 | P121: 692.0377308 | Q121: 462.6329582 | R121: 3620.771995 | S121: 447.3393067 | T121: 214.1111211
B122: #96 | C122: 60 | D122: 2026 | E122: H | F122: A_CAPI | G122: 0.45 | H122: 0.39 | I122: 0.6 | J122: 0.6 | K122: 85 | L122: 0 | M122: 0.5 | N122: 0 | O122: 9061.488519 | P122: 1153.396218 | Q122: 771.0549303 | R122: 6034.619991 | S122: 745.5655111 | T122: 356.8518686
B123: #97 | C123: 61 | D123: 2026 | E123: H | F123: A_CAPI | G123: 0.45 | H123: 0.39 | I123: 0.6 | J123: 0.6 | K123: 85 | L123: 0 | M123: 0.3 | N123: 0 | O123: 5436.893112 | P123: 692.0377308 | Q123: 462.6329582 | R123: 3620.771995 | S123: 447.3393067 | T123: 214.1111211
B124: #98 | C124: 62 | D124: 2026 | E124: F | F124: A_CAPI | G124: 0.45 | H124: 0.39 | I124: 0.6 | J124: 0.6 | K124: 85 | L124: 0 | M124: 0.3 | N124: 0 | O124: 5436.893112 | P124: 692.0377308 | Q124: 462.6329582 | R124: 3620.771995 | S124: 447.3393067 | T124: 214.1111211
B125: #99 | C125: 63 | D125: 2026 | E125: H | F125: A_CAPI | G125: 0.45 | H125: 0.39 | I125: 0.6 | J125: 0.6 | K125: 85 | L125: 0 | M125: 0.3 | N125: 0 | O125: 5436.893112 | P125: 692.0377308 | Q125: 462.6329582 | R125: 3620.771995 | S125: 447.3393067 | T125: 214.1111211
B126: #100 | C126: 64 | D126: 2026 | E126: H | F126: A_CAPI | G126: 0.45 | H126: 0.39 | I126: 0.6 | J126: 0.6 | K126: 85 | L126: 0 | M126: 0.3 | N126: 0 | O126: 5436.893112 | P126: 692.0377308 | Q126: 462.6329582 | R126: 3620.771995 | S126: 447.3393067 | T126: 214.1111211
B127: #101 | C127: 65 | D127: 2026 | E127: F | F127: A_CAPI | G127: 0.45 | H127: 0.39 | I127: 0.6 | J127: 0.6 | K127: 85 | L127: 0 | M127: 0.3 | N127: 0 | O127: 5436.893112 | P127: 692.0377308 | Q127: 462.6329582 | R127: 3620.771995 | S127: 447.3393067 | T127: 214.1111211
B128: #102 | C128: 70 | D128: 2026 | E128: H | F128: A_CAPI | G128: 0.45 | H128: 0.39 | I128: 0.6 | J128: 0.6 | K128: 85 | L128: 0 | M128: 0.05 | N128: 0 | O128: 906.1488519 | P128: 115.3396218 | Q128: 77.10549303 | R128: 603.4619991 | S128: 74.55655111 | T128: 35.68518686
B129: #103 | C129: 75 | D129: 2026 | E129: H | F129: A_CAPI | G129: 0.45 | H129: 0.39 | I129: 0.6 | J129: 0.6 | K129: 85 | L129: 0 | M129: 0.05 | N129: 0 | O129: 906.1488519 | P129: 115.3396218 | Q129: 77.10549303 | R129: 603.4619991 | S129: 74.55655111 | T129: 35.68518686
B130: #104 | C130: 80 | D130: 2026 | E130: F | F130: A_CAPI | G130: 0.45 | H130: 0.39 | I130: 0.6 | J130: 0.6 | K130: 85 | L130: 0 | M130: 0.05 | N130: 0 | O130: 906.1488519 | P130: 115.3396218 | Q130: 77.10549303 | R130: 603.4619991 | S130: 74.55655111 | T130: 35.68518686
B131: #105 | C131: 85 | D131: 2026 | E131: H | F131: A_CAPI | G131: 0.45 | H131: 0.39 | I131: 0.6 | J131: 0.6 | K131: 85 | L131: 0 | M131: 0.03 | N131: 0 | O131: 453.074426 | P131: 57.6698109 | Q131: 38.55274651 | R131: 301.7309996 | S131: 37.27827555 | T131: 17.84259343
B132: #106 | C132: 90 | D132: 2026 | E132: H | F132: A_CAPI | G132: 0.45 | H132: 0.39 | I132: 0.6 | J132: 0.6 | K132: 85 | L132: 0 | M132: 0.03 | N132: 0 | O132: 453.074426 | P132: 57.6698109 | Q132: 38.55274651 | R132: 301.7309996 | S132: 37.27827555 | T132: 17.84259343
B1029: PER | C1029: Euro - UC | D1029: 2027-12-31
B1030: ID | C1030: AGE | D1030: SOUSCRIPTION_YR | E1030: SEXE | F1030: PDT | G1030: CHGT_GEST_EURO_PC | H1030: CHGT_GEST_UC_PC | I1030: COMM_DIST_EURO_PC | J1030: COMM_DIST_UC_PC | K1030: CLAUSE_PB_PC | L1030: TMG_PC | M1030: NO_POLS | N1030: PM_EURO | O1030: PM_UC_TOT | P1030: PM_UC_1 | Q1030: PM_UC_2 | R1030: PM_UC_3 | S1030: PM_UC_4 | T1030: PM_UC_5
B1031: #1 | C1031: 18 | D1031: 2026 | E1031: H | F1031: A_PER | G1031: 0.45 | H1031: 0.39 | I1031: 0.6 | J1031: 0.6 | K1031: 85 | L1031: 0 | M1031: 2 | N1031: 7930.165707 | O1031: 14929.88108 | P1031: 1900.357578 | Q1031: 1270.40479 | R1031: 9942.754843 | S1031: 1228.407937 | T1031: 587.9559358
B1032: #2 | C1032: 19 | D1032: 2026 | E1032: H | F1032: A_PER | G1032: 0.45 | H1032: 0.39 | I1032: 0.6 | J1032: 0.6 | K1032: 85 | L1032: 0 | M1032: 2 | N1032: 7930.165707 | O1032: 14929.88108 | P1032: 1900.357578 | Q1032: 1270.40479 | R1032: 9942.754843 | S1032: 1228.407937 | T1032: 587.9559358
B1033: #3 | C1033: 20 | D1033: 2026 | E1033: F | F1033: A_PER | G1033: 0.45 | H1033: 0.39 | I1033: 0.6 | J1033: 0.6 | K1033: 85 | L1033: 0 | M1033: 2 | N1033: 7930.165707 | O1033: 14929.88108 | P1033: 1900.357578 | Q1033: 1270.40479 | R1033: 9942.754843 | S1033: 1228.407937 | T1033: 587.9559358
B1034: #4 | C1034: 21 | D1034: 2026 | E1034: H | F1034: A_PER | G1034: 0.45 | H1034: 0.39 | I1034: 0.6 | J1034: 0.6 | K1034: 85 | L1034: 0 | M1034: 2 | N1034: 7930.165707 | O1034: 14929.88108 | P1034: 1900.357578 | Q1034: 1270.40479 | R1034: 9942.754843 | S1034: 1228.407937 | T1034: 587.9559358
B1035: #5 | C1035: 22 | D1035: 2026 | E1035: H | F1035: A_PER | G1035: 0.45 | H1035: 0.39 | I1035: 0.6 | J1035: 0.6 | K1035: 85 | L1035: 0 | M1035: 2 | N1035: 7930.165707 | O1035: 14929.88108 | P1035: 1900.357578 | Q1035: 1270.40479 | R1035: 9942.754843 | S1035: 1228.407937 | T1035: 587.9559358
B1036: #6 | C1036: 23 | D1036: 2026 | E1036: F | F1036: A_PER | G1036: 0.45 | H1036: 0.39 | I1036: 0.6 | J1036: 0.6 | K1036: 85 | L1036: 0 | M1036: 2 | N1036: 7930.165707 | O1036: 14929.88108 | P1036: 1900.357578 | Q1036: 1270.40479 | R1036: 9942.754843 | S1036: 1228.407937 | T1036: 587.9559358
B1037: #7 | C1037: 24 | D1037: 2026 | E1037: H | F1037: A_PER | G1037: 0.45 | H1037: 0.39 | I1037: 0.6 | J1037: 0.6 | K1037: 85 | L1037: 0 | M1037: 2 | N1037: 7930.165707 | O1037: 14929.88108 | P1037: 1900.357578 | Q1037: 1270.40479 | R1037: 9942.754843 | S1037: 1228.407937 | T1037: 587.9559358
B1038: #8 | C1038: 25 | D1038: 2026 | E1038: H | F1038: A_PER | G1038: 0.45 | H1038: 0.39 | I1038: 0.6 | J1038: 0.6 | K1038: 85 | L1038: 0 | M1038: 2 | N1038: 7930.165707 | O1038: 14929.88108 | P1038: 1900.357578 | Q1038: 1270.40479 | R1038: 9942.754843 | S1038: 1228.407937 | T1038: 587.9559358
B1039: #9 | C1039: 26 | D1039: 2026 | E1039: F | F1039: A_PER | G1039: 0.45 | H1039: 0.39 | I1039: 0.6 | J1039: 0.6 | K1039: 85 | L1039: 0 | M1039: 5 | N1039: 23790.49712 | O1039: 44789.64325 | P1039: 5701.072735 | Q1039: 3811.21437 | R1039: 29828.26453 | S1039: 3685.223812 | T1039: 1763.867807
B1040: #10 | C1040: 27 | D1040: 2026 | E1040: H | F1040: A_PER | G1040: 0.45 | H1040: 0.39 | I1040: 0.6 | J1040: 0.6 | K1040: 85 | L1040: 0 | M1040: 5 | N1040: 23790.49712 | O1040: 44789.64325 | P1040: 5701.072735 | Q1040: 3811.21437 | R1040: 29828.26453 | S1040: 3685.223812 | T1040: 1763.867807
B1041: #11 | C1041: 28 | D1041: 2026 | E1041: H | F1041: A_PER | G1041: 0.45 | H1041: 0.39 | I1041: 0.6 | J1041: 0.6 | K1041: 85 | L1041: 0 | M1041: 5 | N1041: 23790.49712 | O1041: 44789.64325 | P1041: 5701.072735 | Q1041: 3811.21437 | R1041: 29828.26453 | S1041: 3685.223812 | T1041: 1763.867807
B1042: #12 | C1042: 29 | D1042: 2026 | E1042: F | F1042: A_PER | G1042: 0.45 | H1042: 0.39 | I1042: 0.6 | J1042: 0.6 | K1042: 85 | L1042: 0 | M1042: 5 | N1042: 23790.49712 | O1042: 44789.64325 | P1042: 5701.072735 | Q1042: 3811.21437 | R1042: 29828.26453 | S1042: 3685.223812 | T1042: 1763.867807
B1043: #13 | C1043: 30 | D1043: 2026 | E1043: H | F1043: A_PER | G1043: 0.45 | H1043: 0.39 | I1043: 0.6 | J1043: 0.6 | K1043: 85 | L1043: 0 | M1043: 5 | N1043: 23790.49712 | O1043: 44789.64325 | P1043: 5701.072735 | Q1043: 3811.21437 | R1043: 29828.26453 | S1043: 3685.223812 | T1043: 1763.867807
B1044: #14 | C1044: 31 | D1044: 2026 | E1044: H | F1044: A_PER | G1044: 0.45 | H1044: 0.39 | I1044: 0.6 | J1044: 0.6 | K1044: 85 | L1044: 0 | M1044: 5 | N1044: 23790.49712 | O1044: 44789.64325 | P1044: 5701.072735 | Q1044: 3811.21437 | R1044: 29828.26453 | S1044: 3685.223812 | T1044: 1763.867807
B1045: #15 | C1045: 32 | D1045: 2026 | E1045: F | F1045: A_PER | G1045: 0.45 | H1045: 0.39 | I1045: 0.6 | J1045: 0.6 | K1045: 85 | L1045: 0 | M1045: 5 | N1045: 23790.49712 | O1045: 44789.64325 | P1045: 5701.072735 | Q1045: 3811.21437 | R1045: 29828.26453 | S1045: 3685.223812 | T1045: 1763.867807
B1046: #16 | C1046: 33 | D1046: 2026 | E1046: H | F1046: A_PER | G1046: 0.45 | H1046: 0.39 | I1046: 0.6 | J1046: 0.6 | K1046: 85 | L1046: 0 | M1046: 5 | N1046: 23790.49712 | O1046: 44789.64325 | P1046: 5701.072735 | Q1046: 3811.21437 | R1046: 29828.26453 | S1046: 3685.223812 | T1046: 1763.867807
B1047: #17 | C1047: 34 | D1047: 2026 | E1047: H | F1047: A_PER | G1047: 0.45 | H1047: 0.39 | I1047: 0.6 | J1047: 0.6 | K1047: 85 | L1047: 0 | M1047: 5 | N1047: 23790.49712 | O1047: 44789.64325 | P1047: 5701.072735 | Q1047: 3811.21437 | R1047: 29828.26453 | S1047: 3685.223812 | T1047: 1763.867807
B1048: #18 | C1048: 35 | D1048: 2026 | E1048: F | F1048: A_PER | G1048: 0.45 | H1048: 0.39 | I1048: 0.6 | J1048: 0.6 | K1048: 85 | L1048: 0 | M1048: 5 | N1048: 23790.49712 | O1048: 44789.64325 | P1048: 5701.072735 | Q1048: 3811.21437 | R1048: 29828.26453 | S1048: 3685.223812 | T1048: 1763.867807
B1049: #19 | C1049: 36 | D1049: 2026 | E1049: H | F1049: A_PER | G1049: 0.45 | H1049: 0.39 | I1049: 0.6 | J1049: 0.6 | K1049: 85 | L1049: 0 | M1049: 5 | N1049: 23790.49712 | O1049: 44789.64325 | P1049: 5701.072735 | Q1049: 3811.21437 | R1049: 29828.26453 | S1049: 3685.223812 | T1049: 1763.867807
B1050: #20 | C1050: 37 | D1050: 2026 | E1050: H | F1050: A_PER | G1050: 0.45 | H1050: 0.39 | I1050: 0.6 | J1050: 0.6 | K1050: 85 | L1050: 0 | M1050: 5 | N1050: 23790.49712 | O1050: 44789.64325 | P1050: 5701.072735 | Q1050: 3811.21437 | R1050: 29828.26453 | S1050: 3685.223812 | T1050: 1763.867807
B1051: #21 | C1051: 38 | D1051: 2026 | E1051: F | F1051: A_PER | G1051: 0.45 | H1051: 0.39 | I1051: 0.6 | J1051: 0.6 | K1051: 85 | L1051: 0 | M1051: 9 | N1051: 47580.99424 | O1051: 89579.28651 | P1051: 11402.14547 | Q1051: 7622.428739 | R1051: 59656.52906 | S1051: 7370.447624 | T1051: 3527.735615
B1052: #22 | C1052: 39 | D1052: 2026 | E1052: H | F1052: A_PER | G1052: 0.45 | H1052: 0.39 | I1052: 0.6 | J1052: 0.6 | K1052: 85 | L1052: 0 | M1052: 9 | N1052: 47580.99424 | O1052: 89579.28651 | P1052: 11402.14547 | Q1052: 7622.428739 | R1052: 59656.52906 | S1052: 7370.447624 | T1052: 3527.735615
B1053: #23 | C1053: 40 | D1053: 2026 | E1053: H | F1053: A_PER | G1053: 0.45 | H1053: 0.39 | I1053: 0.6 | J1053: 0.6 | K1053: 85 | L1053: 0 | M1053: 9 | N1053: 47580.99424 | O1053: 89579.28651 | P1053: 11402.14547 | Q1053: 7622.428739 | R1053: 59656.52906 | S1053: 7370.447624 | T1053: 3527.735615
B1054: #24 | C1054: 41 | D1054: 2026 | E1054: F | F1054: A_PER | G1054: 0.45 | H1054: 0.39 | I1054: 0.6 | J1054: 0.6 | K1054: 85 | L1054: 0 | M1054: 12 | N1054: 63441.32566 | O1054: 119439.0487 | P1054: 15202.86063 | Q1054: 10163.23832 | R1054: 79542.03874 | S1054: 9827.263499 | T1054: 4703.647486
B1055: #25 | C1055: 42 | D1055: 2026 | E1055: H | F1055: A_PER | G1055: 0.45 | H1055: 0.39 | I1055: 0.6 | J1055: 0.6 | K1055: 85 | L1055: 0 | M1055: 12 | N1055: 63441.32566 | O1055: 119439.0487 | P1055: 15202.86063 | Q1055: 10163.23832 | R1055: 79542.03874 | S1055: 9827.263499 | T1055: 4703.647486
B1056: #26 | C1056: 43 | D1056: 2026 | E1056: H | F1056: A_PER | G1056: 0.45 | H1056: 0.39 | I1056: 0.6 | J1056: 0.6 | K1056: 85 | L1056: 0 | M1056: 12 | N1056: 63441.32566 | O1056: 119439.0487 | P1056: 15202.86063 | Q1056: 10163.23832 | R1056: 79542.03874 | S1056: 9827.263499 | T1056: 4703.647486
B1057: #27 | C1057: 44 | D1057: 2026 | E1057: F | F1057: A_PER | G1057: 0.45 | H1057: 0.39 | I1057: 0.6 | J1057: 0.6 | K1057: 85 | L1057: 0 | M1057: 15 | N1057: 79301.65707 | O1057: 149298.8108 | P1057: 19003.57578 | Q1057: 12704.0479 | R1057: 99427.54843 | S1057: 12284.07937 | T1057: 5879.559358
B1058: #28 | C1058: 45 | D1058: 2026 | E1058: H | F1058: A_PER | G1058: 0.45 | H1058: 0.39 | I1058: 0.6 | J1058: 0.6 | K1058: 85 | L1058: 0 | M1058: 15 | N1058: 79301.65707 | O1058: 149298.8108 | P1058: 19003.57578 | Q1058: 12704.0479 | R1058: 99427.54843 | S1058: 12284.07937 | T1058: 5879.559358
B1059: #29 | C1059: 46 | D1059: 2026 | E1059: H | F1059: A_PER | G1059: 0.45 | H1059: 0.39 | I1059: 0.6 | J1059: 0.6 | K1059: 85 | L1059: 0 | M1059: 15 | N1059: 79301.65707 | O1059: 149298.8108 | P1059: 19003.57578 | Q1059: 12704.0479 | R1059: 99427.54843 | S1059: 12284.07937 | T1059: 5879.559358
B1060: #30 | C1060: 47 | D1060: 2026 | E1060: F | F1060: A_PER | G1060: 0.45 | H1060: 0.39 | I1060: 0.6 | J1060: 0.6 | K1060: 85 | L1060: 0 | M1060: 12 | N1060: 63441.32566 | O1060: 119439.0487 | P1060: 15202.86063 | Q1060: 10163.23832 | R1060: 79542.03874 | S1060: 9827.263499 | T1060: 4703.647486
B1061: #31 | C1061: 48 | D1061: 2026 | E1061: H | F1061: A_PER | G1061: 0.45 | H1061: 0.39 | I1061: 0.6 | J1061: 0.6 | K1061: 85 | L1061: 0 | M1061: 12 | N1061: 63441.32566 | O1061: 119439.0487 | P1061: 15202.86063 | Q1061: 10163.23832 | R1061: 79542.03874 | S1061: 9827.263499 | T1061: 4703.647486
B1062: #32 | C1062: 49 | D1062: 2026 | E1062: H | F1062: A_PER | G1062: 0.45 | H1062: 0.39 | I1062: 0.6 | J1062: 0.6 | K1062: 85 | L1062: 0 | M1062: 12 | N1062: 63441.32566 | O1062: 119439.0487 | P1062: 15202.86063 | Q1062: 10163.23832 | R1062: 79542.03874 | S1062: 9827.263499 | T1062: 4703.647486
B1063: #33 | C1063: 50 | D1063: 2026 | E1063: F | F1063: A_PER | G1063: 0.45 | H1063: 0.39 | I1063: 0.6 | J1063: 0.6 | K1063: 85 | L1063: 0 | M1063: 12 | N1063: 63441.32566 | O1063: 119439.0487 | P1063: 15202.86063 | Q1063: 10163.23832 | R1063: 79542.03874 | S1063: 9827.263499 | T1063: 4703.647486
B1064: #34 | C1064: 51 | D1064: 2026 | E1064: H | F1064: A_PER | G1064: 0.45 | H1064: 0.39 | I1064: 0.6 | J1064: 0.6 | K1064: 85 | L1064: 0 | M1064: 12 | N1064: 63441.32566 | O1064: 119439.0487 | P1064: 15202.86063 | Q1064: 10163.23832 | R1064: 79542.03874 | S1064: 9827.263499 | T1064: 4703.647486
B1065: #35 | C1065: 52 | D1065: 2026 | E1065: H | F1065: A_PER | G1065: 0.45 | H1065: 0.39 | I1065: 0.6 | J1065: 0.6 | K1065: 85 | L1065: 0 | M1065: 12 | N1065: 63441.32566 | O1065: 119439.0487 | P1065: 15202.86063 | Q1065: 10163.23832 | R1065: 79542.03874 | S1065: 9827.263499 | T1065: 4703.647486
B1066: #36 | C1066: 53 | D1066: 2026 | E1066: F | F1066: A_PER | G1066: 0.45 | H1066: 0.39 | I1066: 0.6 | J1066: 0.6 | K1066: 85 | L1066: 0 | M1066: 12 | N1066: 63441.32566 | O1066: 119439.0487 | P1066: 15202.86063 | Q1066: 10163.23832 | R1066: 79542.03874 | S1066: 9827.263499 | T1066: 4703.647486
B1067: #37 | C1067: 54 | D1067: 2026 | E1067: H | F1067: A_PER | G1067: 0.45 | H1067: 0.39 | I1067: 0.6 | J1067: 0.6 | K1067: 85 | L1067: 0 | M1067: 12 | N1067: 63441.32566 | O1067: 119439.0487 | P1067: 15202.86063 | Q1067: 10163.23832 | R1067: 79542.03874 | S1067: 9827.263499 | T1067: 4703.647486
B1068: #38 | C1068: 55 | D1068: 2026 | E1068: H | F1068: A_PER | G1068: 0.45 | H1068: 0.39 | I1068: 0.6 | J1068: 0.6 | K1068: 85 | L1068: 0 | M1068: 12 | N1068: 63441.32566 | O1068: 119439.0487 | P1068: 15202.86063 | Q1068: 10163.23832 | R1068: 79542.03874 | S1068: 9827.263499 | T1068: 4703.647486
B1069: #39 | C1069: 56 | D1069: 2026 | E1069: F | F1069: A_PER | G1069: 0.45 | H1069: 0.39 | I1069: 0.6 | J1069: 0.6 | K1069: 85 | L1069: 0 | M1069: 6 | N1069: 31720.66283 | O1069: 59719.52434 | P1069: 7601.430313 | Q1069: 5081.61916 | R1069: 39771.01937 | S1069: 4913.631749 | T1069: 2351.823743
B1070: #40 | C1070: 57 | D1070: 2026 | E1070: H | F1070: A_PER | G1070: 0.45 | H1070: 0.39 | I1070: 0.6 | J1070: 0.6 | K1070: 85 | L1070: 0 | M1070: 3 | N1070: 15860.33141 | O1070: 29859.76217 | P1070: 3800.715156 | Q1070: 2540.80958 | R1070: 19885.50969 | S1070: 2456.815875 | T1070: 1175.911872
B1071: #41 | C1071: 58 | D1071: 2026 | E1071: H | F1071: A_PER | G1071: 0.45 | H1071: 0.39 | I1071: 0.6 | J1071: 0.6 | K1071: 85 | L1071: 0 | M1071: 3 | N1071: 15860.33141 | O1071: 29859.76217 | P1071: 3800.715156 | Q1071: 2540.80958 | R1071: 19885.50969 | S1071: 2456.815875 | T1071: 1175.911872
B1072: #42 | C1072: 59 | D1072: 2026 | E1072: F | F1072: A_PER | G1072: 0.45 | H1072: 0.39 | I1072: 0.6 | J1072: 0.6 | K1072: 85 | L1072: 0 | M1072: 3 | N1072: 15860.33141 | O1072: 29859.76217 | P1072: 3800.715156 | Q1072: 2540.80958 | R1072: 19885.50969 | S1072: 2456.815875 | T1072: 1175.911872
B1073: #43 | C1073: 60 | D1073: 2026 | E1073: H | F1073: A_PER | G1073: 0.45 | H1073: 0.39 | I1073: 0.6 | J1073: 0.6 | K1073: 85 | L1073: 0 | M1073: 3 | N1073: 15860.33141 | O1073: 29859.76217 | P1073: 3800.715156 | Q1073: 2540.80958 | R1073: 19885.50969 | S1073: 2456.815875 | T1073: 1175.911872

Sheet SCR_Op_BP_1
B2: I) Inputs pour SCR Opérationnel
B5: AVIE + CAPI + PER | D5: 2027-12-31
B6: Flux | C6: Euro | D6: UC
B7: Primes acquises pour les 12 derniers mois VIE UC (N) - Earn life-ul | C7: - | D7: 48829704
B8: Primes acquises pour les 12 derniers mois VIE Euros (N) - Earn life | C8: 19728296 | D8: -
B9: Primes acquises sur les 12 mois précédents les 12 derniers mois VIE UC (N-1) - pEarn life-ul | C9: - | D9: 0
B10: Primes acquises sur les 12 mois précédents les 12 derniers mois VIE Euros (N-1) - pEarn life | C10: 0 | D10: -
B11: Montant de frais engagé au titre des contrats UC (12 derniers mois) (Expul) | C11: - | D11: 1543111.664 | E11: répartition au regard du mix Euro / UC (idem split collecte) - yc comm distribution
B12: Montant de frais engagé au titre des contrats euros (12 derniers mois) | C12: 627228.2291 | D12: - | E12: répartition au regard du mix Euro / UC (idem split collecte) - yc comm distribution

Sheet RFR_BP_1
B2: Choc S2 | C2: 1 | D2: =C2+1 -> 2 | E2: 3 | F2: 4 | G2: 5 | H2: 6 | I2: 7 | J2: 8 | K2: 9 | L2: 10 | M2: 11 | N2: 12 | O2: 13 | P2: 14 | Q2: 15 | R2: 16 | S2: 17 | T2: 18 | U2: 19 | V2: 20 | W2: 21 | X2: 22 | Y2: 23 | Z2: 24 | AA2: 25 | AB2: 26 | AC2: 27 | AD2: 28 | AE2: 29 | AF2: 30 | AG2: 31 | AH2: 32 | AI2: 33 | AJ2: 34 | AK2: 35 | AL2: 36 | AM2: 37 | AN2: 38 | AO2: 39 | AP2: 40 | AQ2: 41 | AR2: 42 | AS2: 43 | AT2: 44 | AU2: 45 | AV2: 46 | AW2: 47 | AX2: 48 | AY2: 49 | AZ2: 50 | BA2: 51 | BB2: 52 | BC2: 53 | BD2: 54 | BE2: 55 | BF2: 56 | BG2: 57 | BH2: 58 | BI2: 59 | BJ2: 60 | BK2: 61 | BL2: 62 | BM2: 63 | BN2: 64 | BO2: 65 | BP2: =BO2+1 -> 66 | BQ2: 67 | BR2: 68 | BS2: 69 | BT2: 70 | BU2: 71 | BV2: 72 | BW2: 73 | BX2: 74 | BY2: 75 | BZ2: 76 | CA2: 77 | CB2: 78 | CC2: 79 | CD2: 80 | CE2: 81 | CF2: 82 | CG2: 83 | CH2: 84 | CI2: 85 | CJ2: 86 | CK2: 87 | CL2: 88 | CM2: 89 | CN2: 90 | CO2: 91 | CP2: 92 | CQ2: 93 | CR2: 94 | CS2: 95 | CT2: 96 | CU2: 97 | CV2: 98 | CW2: 99 | CX2: 100
B3: Central | C3: 0.02161 | D3: 0.02162 | E3: 0.02243 | F3: 0.02337 | G3: 0.0242 | H3: 0.02502 | I3: 0.02579 | J3: 0.02655 | K3: 0.02726 | L3: 0.02795 | M3: 0.02853 | N3: 0.02907 | O3: 0.02953 | P3: 0.02994 | Q3: 0.03027 | R3: 0.03051 | S3: 0.03068 | T3: 0.0308 | U3: 0.03089 | V3: 0.03097 | W3: 0.03104 | X3: 0.03111 | Y3: 0.03118 | Z3: 0.03124 | AA3: 0.03129 | AB3: 0.03135 | AC3: 0.03139 | AD3: 0.03144 | AE3: 0.03148 | AF3: 0.03152 | AG3: 0.03156 | AH3: 0.0316 | AI3: 0.03163 | AJ3: 0.03167 | AK3: 0.0317 | AL3: 0.03173 | AM3: 0.03176 | AN3: 0.03179 | AO3: 0.03181 | AP3: 0.03184 | AQ3: 0.03186 | AR3: 0.03188 | AS3: 0.03191 | AT3: 0.03193 | AU3: 0.03195 | AV3: 0.03197 | AW3: 0.03199 | AX3: 0.03201 | AY3: 0.03203 | AZ3: 0.03204 | BA3: 0.03206 | BB3: 0.03208 | BC3: 0.03209 | BD3: 0.03211 | BE3: 0.03212 | BF3: 0.03214 | BG3: 0.03215 | BH3: 0.03216 | BI3: 0.03218 | BJ3: 0.03219 | BK3: 0.0322 | BL3: 0.03221 | BM3: 0.03222 | BN3: 0.03224 | BO3: 0.03225 | BP3: 0.03226 | BQ3: 0.03227 | BR3: 0.03228 | BS3: 0.03229 | BT3: 0.0323 | BU3: 0.03231 | BV3: 0.03232 | BW3: 0.03233 | BX3: 0.03233 | BY3: 0.03234 | BZ3: 0.03235 | CA3: 0.03236 | CB3: 0.03237 | CC3: 0.03237 | CD3: 0.03238 | CE3: 0.03239 | CF3: 0.0324 | CG3: 0.0324 | CH3: 0.03241 | CI3: 0.03242 | CJ3: 0.03242 | CK3: 0.03243 | CL3: 0.03244 | CM3: 0.03244 | CN3: 0.03245 | CO3: 0.03245 | CP3: 0.03246 | CQ3: 0.03247 | CR3: 0.03247 | CS3: 0.03248 | CT3: 0.03248 | CU3: 0.03249 | CV3: 0.03249 | CW3: 0.0325 | CX3: 0.0325
B4: Up | C4: 0.03534 | D4: 0.03535 | E4: 0.03551 | F4: 0.03598 | G4: 0.03641 | H4: 0.03699 | I4: 0.03745 | J4: 0.03809 | K4: 0.03837 | L4: 0.03885 | M4: 0.03888 | N4: 0.03909 | O4: 0.03953 | P4: 0.03994 | Q4: 0.04027 | R4: 0.04051 | S4: 0.04068 | T4: 0.0408 | U4: 0.04089 | V4: 0.04097 | W4: 0.04104 | X4: 0.04111 | Y4: 0.04118 | Z4: 0.04124 | AA4: 0.04129 | AB4: 0.04135 | AC4: 0.04139 | AD4: 0.04144 | AE4: 0.04148 | AF4: 0.04152 | AG4: 0.04156 | AH4: 0.0416 | AI4: 0.04163 | AJ4: 0.04167 | AK4: 0.0417 | AL4: 0.04173 | AM4: 0.04176 | AN4: 0.04179 | AO4: 0.04181 | AP4: 0.04184 | AQ4: 0.04186 | AR4: 0.04188 | AS4: 0.04191 | AT4: 0.04193 | AU4: 0.04195 | AV4: 0.04197 | AW4: 0.04199 | AX4: 0.04201 | AY4: 0.04203 | AZ4: 0.04204 | BA4: 0.04206 | BB4: 0.04208 | BC4: 0.04209 | BD4: 0.04211 | BE4: 0.04212 | BF4: 0.04214 | BG4: 0.04215 | BH4: 0.04216 | BI4: 0.04218 | BJ4: 0.04219 | BK4: 0.0422 | BL4: 0.04221 | BM4: 0.04222 | BN4: 0.04224 | BO4: 0.04225 | BP4: 0.04226 | BQ4: 0.04227 | BR4: 0.04228 | BS4: 0.04229 | BT4: 0.0423 | BU4: 0.04231 | BV4: 0.04232 | BW4: 0.04233 | BX4: 0.04233 | BY4: 0.04234 | BZ4: 0.04235 | CA4: 0.04236 | CB4: 0.04237 | CC4: 0.04237 | CD4: 0.04238 | CE4: 0.04239 | CF4: 0.0424 | CG4: 0.0424 | CH4: 0.04241 | CI4: 0.04242 | CJ4: 0.04242 | CK4: 0.04243 | CL4: 0.04244 | CM4: 0.04244 | CN4: 0.04245 | CO4: 0.04245 | CP4: 0.04246 | CQ4: 0.04247 | CR4: 0.04247 | CS4: 0.04248 | CT4: 0.04248 | CU4: 0.04249 | CV4: 0.04249 | CW4: 0.0425 | CX4: 0.0425
B5: Down | C5: 0.0069 | D5: 0.00887 | E5: 0.01099 | F5: 0.01269 | G5: 0.01399 | H5: 0.01535 | I5: 0.01651 | J5: 0.01771 | K5: 0.01892 | L5: 0.01991 | M5: 0.02057 | N5: 0.02122 | O5: 0.02182 | P5: 0.02212 | Q5: 0.02264 | R5: 0.02253 | S5: 0.02265 | T5: 0.02274 | U5: 0.02251 | V5: 0.02257 | W5: 0.02265 | X5: 0.02274 | Y5: 0.02282 | Z5: 0.02289 | AA5: 0.02296 | AB5: 0.02303 | AC5: 0.02309 | AD5: 0.02316 | AE5: 0.02321 | AF5: 0.02327 | AG5: 0.02333 | AH5: 0.02339 | AI5: 0.02344 | AJ5: 0.0235 | AK5: 0.02355 | AL5: 0.02361 | AM5: 0.02366 | AN5: 0.02371 | AO5: 0.02376 | AP5: 0.02381 | AQ5: 0.02386 | AR5: 0.0239 | AS5: 0.02396 | AT5: 0.02401 | AU5: 0.02405 | AV5: 0.0241 | AW5: 0.02415 | AX5: 0.0242 | AY5: 0.02425 | AZ5: 0.02429 | BA5: 0.02434 | BB5: 0.02439 | BC5: 0.02443 | BD5: 0.02448 | BE5: 0.02452 | BF5: 0.02457 | BG5: 0.02462 | BH5: 0.02466 | BI5: 0.02471 | BJ5: 0.02475 | BK5: 0.0248 | BL5: 0.02484 | BM5: 0.02489 | BN5: 0.02494 | BO5: 0.02498 | BP5: 0.02503 | BQ5: 0.02507 | BR5: 0.02512 | BS5: 0.02516 | BT5: 0.02521 | BU5: 0.02525 | BV5: 0.0253 | BW5: 0.02535 | BX5: 0.02538 | BY5: 0.02543 | BZ5: 0.02547 | CA5: 0.02552 | CB5: 0.02557 | CC5: 0.0256 | CD5: 0.02565 | CE5: 0.0257 | CF5: 0.02574 | CG5: 0.02578 | CH5: 0.02583 | CI5: 0.02588 | CJ5: 0.02591 | CK5: 0.02596 | CL5: 0.02601 | CM5: 0.02605 | CN5: 0.0261 | CO5: 0.02609 | CP5: 0.0261 | CQ5: 0.02611 | CR5: 0.02611 | CS5: 0.02611 | CT5: 0.02611 | CU5: 0.02612 | CV5: 0.02612 | CW5: 0.02612 | CX5: 0.02612
B6: Central hors VA | C6: 0.01961 | D6: 0.01962 | E6: 0.02043 | F6: 0.02137 | G6: 0.0222 | H6: 0.02302 | I6: 0.02379 | J6: 0.02455 | K6: 0.02526 | L6: 0.02595 | M6: 0.02653 | N6: 0.02707 | O6: 0.02753 | P6: 0.02794 | Q6: 0.02827 | R6: 0.02851 | S6: 0.02868 | T6: 0.0288 | U6: 0.02889 | V6: 0.02897 | W6: 0.02905 | X6: 0.02913 | Y6: 0.02921 | Z6: 0.0293 | AA6: 0.02938 | AB6: 0.02946 | AC6: 0.02953 | AD6: 0.02961 | AE6: 0.02969 | AF6: 0.02976 | AG6: 0.02983 | AH6: 0.0299 | AI6: 0.02996 | AJ6: 0.03003 | AK6: 0.03009 | AL6: 0.03015 | AM6: 0.03021 | AN6: 0.03027 | AO6: 0.03033 | AP6: 0.03038 | AQ6: 0.03043 | AR6: 0.03048 | AS6: 0.03053 | AT6: 0.03058 | AU6: 0.03062 | AV6: 0.03067 | AW6: 0.03071 | AX6: 0.03075 | AY6: 0.0308 | AZ6: 0.03083 | BA6: 0.03087 | BB6: 0.03091 | BC6: 0.03095 | BD6: 0.03098 | BE6: 0.03101 | BF6: 0.03105 | BG6: 0.03108 | BH6: 0.03111 | BI6: 0.03114 | BJ6: 0.03117 | BK6: 0.0312 | BL6: 0.03122 | BM6: 0.03125 | BN6: 0.03128 | BO6: 0.0313 | BP6: 0.03133 | BQ6: 0.03135 | BR6: 0.03138 | BS6: 0.0314 | BT6: 0.03142 | BU6: 0.03144 | BV6: 0.03146 | BW6: 0.03148 | BX6: 0.0315 | BY6: 0.03152 | BZ6: 0.03154 | CA6: 0.03156 | CB6: 0.03158 | CC6: 0.0316 | CD6: 0.03161 | CE6: 0.03163 | CF6: 0.03165 | CG6: 0.03166 | CH6: 0.03168 | CI6: 0.03169 | CJ6: 0.03171 | CK6: 0.03172 | CL6: 0.03174 | CM6: 0.03175 | CN6: 0.03177 | CO6: 0.03178 | CP6: 0.03179 | CQ6: 0.03181 | CR6: 0.03182 | CS6: 0.03183 | CT6: 0.03184 | CU6: 0.03185 | CV6: 0.03187 | CW6: 0.03188 | CX6: 0.03189

Sheet Frais_BP_2
B2: I) Frais et commissions
B5: AVIE / PER / CAPI | D5: 2031-12-31
B6: Frais | C6: Taux | D6: Driver
B7: Frais Acquisition | C7: 0.006324348591 | D7: Primes
B8: Frais Gestion Sinistres | C8: 0.003310441478 | D8: Prestations
B9: Frais Administration | C9: 0.002613334516 | D9: PM | E9: exclusion C3S sur primes
B10: Frais Financiers | C10: 0.00075859202 | D10: VM | E10: MP 2029 car 2030 non calculés
B11: Prélèvements Sociaux | C11: 0.172 | D11: PB
B12: Clause PB | C12: 0.85 | D12: Produits financiers
B13: Frais d'acquisition : hors comm. distribution intégrées directement dans la projection des frais dans la maquette S2
B14: Frais Administration / Frais acq : montant de frais sur l'ensemble des périmètres => tx unique tout produit

Sheet Bilan_Social_BP_2
B2: I) Bilan Social
B5: AVIE + PER + CAPI + FP | C5: 2028-12-31
B7: ACTIF | C7: VNC | D7: VM | F7: PASSIF
B8: Capital souscrit non appelé ou compte de liaison avec le siège | C8: 0 | D8: 0 | F8: Capitaux Propres | G8: 13281989.64
B9: Actifs Incorporels | C9: 0 | D9: 0 | F9: Résultat de l'exercice | G9: -1194300.495
B10: Obligation Govies | C10: 47968519.08 | D10: 47968519.08 | F10: Passifs subordonnés | G10: 0
B11: Obligation Corporate | C11: 12791605.09 | D11: 13175353.24 | F11: Provisions techniques brutes | G11: 51870336.3
B12: Action | C12: 0 | D12: 0 | F12: PM | G12: 51870336.3 | J12: =ROUND(G12,2)=ROUND(SUM(Model_Points_BP_2!$C$7:$C$11,Model_Points_BP_2!$C$15:$C$19),2) -> TRUE
B13: Monétaire | C13: 3197901.272 | D13: 3197901.272 | F13: PSAP | G13: 0
B14: UC | C14: 99004021.89 | D14: 99004021.89 | F14: PPE | G14: 0 | I14: =C14=G15 -> TRUE
B15: Provisions sur placements | C15: 0 | D15: 0 | F15: Provision techniques des contrats en unité de comptes | G15: 99004021.89 | J15: =ROUND(G15,5)=ROUND(SUM(Model_Points_BP_2!$L$7:$L$11,Model_Points_BP_2!$L$15:$L$19),5) -> TRUE
B16: PDD | C16: 0 | D16: 0 | F16: Autres provisions techniques | G16: 0
B17: Part des cessionnaires et rétrocessionnaires dans les provisions techniques | C17: 0 | D17: 0 | F17: RC | G17: 0
B18: Créances | C18: 0 | D18: 0 | F18: PRE | G18: 0
B19: Autres Actifs | C19: 0 | D19: 0 | F19: Provisions (autres que techniques) | G19: 0
B20: Comptes de régularisation Actif | C20: 0 | D20: 0 | F20: Dettes pour dépôts en espèces reçues des cessionnaires | G20: 0
F21: Autres Dettes | G21: 0
F22: Comptes de régularisation Passif | G22: 0

Sheet Model_Points_BP_2
B2: I) Model Points Actifs
B5: AVIE | C5: Euro | D5: 2028-12-31 | K5: AVIE / CAPI | L5: UC | M5: 2028-12-31 | Q5: AVIE / CAPI | R5: 2028-12-31
B6: Asset Type | C6: VNC | D6: VM | E6: COUPON_PC | F6: NOMINAL | G6: MATURITY_RESID | H6: SPREAD_PC | I6: DIV_PC | K6: Asset Type | L6: VNC | M6: VM | N6: DIV_PC | O6: UC_TYPE | Q6: Reserves | R6: VNC
B7: BONDS_GOV | C7: 36016053.28 | D7: 36016053.28 | E7: 0 | F7: 36016053.28 | G7: 7 | K7: OBLIG_CORP | L7: 11670617.29 | M7: 11670617.29 | N7: 0 | O7: 1 | P7: =M7/SUM($M$7:$M$11) -> 0.1272855134 | Q7: PPE | R7: 0
B8: BONDS_CORP | C8: 9604280.876 | D8: 9892409.302 | E8: 0 | F8: 9604280.876 | G8: 7 | K8: OBLIG_CORP_NR | L8: 7801904.373 | M8: 7801904.373 | N8: 0 | O8: 2 | P8: =M8/SUM($M$7:$M$11) -> 0.08509142053 | Q8: RC | R8: 0
B9: EQ_TYPE_1 | C9: 0 | D9: 0 | E9: 0 | I9: 0 | K9: EQ_TYPE_1 | L9: 61061185.47 | M9: 61061185.47 | N9: 0 | O9: 3 | P9: 0.6659634318
B10: EQ_TYPE_2 | C10: 0 | D10: 0 | E10: 0 | I10: 0 | K10: EQ_TYPE_2 | L10: 7543990.179 | M10: 7543990.179 | N10: 0 | O10: 4 | P10: 0.08227848101 | T10: PMVL ALL | U10: =SUM(D7:D11)-SUM(C7:C11)+SUM(D15:D19)-SUM(C15:C19) -> 311222.0178
B11: CASH | C11: 2401070.219 | D11: 2401070.219 | E11: 0 | K11: MONETAIRE | L11: 3610798.718 | M11: 3610798.718 | N11: 0 | O11: 5 | P11: 0.03938115331
B13: PER | C13: Euro | D13: 2028-12-31 | K13: PER | L13: UC | M13: 2028-12-31 | Q13: PER | R13: 2028-12-31
B14: Asset Type | C14: VNC | D14: VM | E14: COUPON_PC | F14: NOMINAL | G14: MATURITY_RESID | H14: SPREAD_PC | I14: DIV_PC | K14: Asset Type | L14: VNC | M14: VM | N14: DIV_PC | O14: UC_TYPE | Q14: Reserves | R14: VNC
B15: BONDS_GOV | C15: 2886698.938 | D15: 2886698.938 | E15: 0 | F15: 2886698.938 | G15: 7 | K15: OBLIG_CORP | L15: 931160.4662 | M15: 931160.4662 | N15: 0 | O15: 1 | Q15: PPE | R15: 0
B16: BONDS_CORP | C16: 769786.3835 | D16: 792879.9751 | E16: 0 | F16: 769786.3835 | G16: 7 | K16: OBLIG_CORP_NR | L16: 622488.4885 | M16: 622488.4885 | N16: 0 | O16: 2 | Q16: RC | R16: 0
B17: EQ_TYPE_1 | C17: 0 | D17: 0 | E17: 0 | I17: 0 | K17: EQ_TYPE_1 | L17: 4871872.716 | M17: 4871872.716 | N17: 0 | O17: 3
B18: EQ_TYPE_2 | C18: 0 | D18: 0 | E18: 0 | I18: 0 | K18: EQ_TYPE_2 | L18: 601910.3566 | M18: 601910.3566 | N18: 0 | O18: 4
B19: CASH | C19: 192446.5959 | D19: 192446.5959 | E19: 0 | K19: MONETAIRE | L19: 288093.8459 | M19: 288093.8459 | N19: 0 | O19: 5
B22: II) Model Points Passif
B25: Assurance Vie | C25: Euro - UC | D25: 2028-12-31
B26: ID | C26: AGE | D26: SOUSCRIPTION_YR | E26: SEXE | F26: PDT | G26: CHGT_GEST_EURO_PC | H26: CHGT_GEST_UC_PC | I26: COMM_DIST_EURO_PC | J26: COMM_DIST_UC_PC | K26: CLAUSE_PB_PC | L26: TMG_PC | M26: NO_POLS | N26: PM_EURO | O26: PM_UC_TOT | P26: PM_UC_1 | Q26: PM_UC_2 | R26: PM_UC_3 | S26: PM_UC_4 | T26: PM_UC_5
B27: #1 | C27: 18 | D27: 2026 | E27: H | F27: A_VIE | G27: 0.45 | H27: 0.39 | I27: 0.6 | J27: 0.6 | K27: 85 | L27: 0 | M27: 11 | N27: 120053.5109 | O27: 228181.3719 | P27: 29044.18307 | Q27: 19416.27708 | R27: 151960.4495 | S27: 18774.41668 | T27: 8986.045589
B28: #2 | C28: 18 | D28: 2028 | E28: H | F28: A_VIE | G28: 0.45 | H28: 0.39 | I28: 0.6 | J28: 0.6 | K28: 85 | L28: 0 | M28: 11 | N28: 120053.5109 | O28: 228181.3719 | P28: 29044.18307 | Q28: 19416.27708 | R28: 151960.4495 | S28: 18774.41668 | T28: 8986.045589
B29: #3 | C29: 19 | D29: 2026 | E29: H | F29: A_VIE | G29: 0.45 | H29: 0.39 | I29: 0.6 | J29: 0.6 | K29: 85 | L29: 0 | M29: 11 | N29: 120053.5109 | O29: 228181.3719 | P29: 29044.18307 | Q29: 19416.27708 | R29: 151960.4495 | S29: 18774.41668 | T29: 8986.045589
B30: #4 | C30: 19 | D30: 2028 | E30: H | F30: A_VIE | G30: 0.45 | H30: 0.39 | I30: 0.6 | J30: 0.6 | K30: 85 | L30: 0 | M30: 11 | N30: 120053.5109 | O30: 228181.3719 | P30: 29044.18307 | Q30: 19416.27708 | R30: 151960.4495 | S30: 18774.41668 | T30: 8986.045589
B31: #5 | C31: 20 | D31: 2026 | E31: F | F31: A_VIE | G31: 0.45 | H31: 0.39 | I31: 0.6 | J31: 0.6 | K31: 85 | L31: 0 | M31: 22 | N31: 240107.0219 | O31: 456362.7439 | P31: 58088.36613 | Q31: 38832.55415 | R31: 303920.899 | S31: 37548.83335 | T31: 17972.09118
B32: #6 | C32: 20 | D32: 2028 | E32: F | F32: A_VIE | G32: 0.45 | H32: 0.39 | I32: 0.6 | J32: 0.6 | K32: 85 | L32: 0 | M32: 22 | N32: 240107.0219 | O32: 456362.7439 | P32: 58088.36613 | Q32: 38832.55415 | R32: 303920.899 | S32: 37548.83335 | T32: 17972.09118
B33: #7 | C33: 21 | D33: 2026 | E33: H | F33: A_VIE | G33: 0.45 | H33: 0.39 | I33: 0.6 | J33: 0.6 | K33: 85 | L33: 0 | M33: 22 | N33: 240107.0219 | O33: 456362.7439 | P33: 58088.36613 | Q33: 38832.55415 | R33: 303920.899 | S33: 37548.83335 | T33: 17972.09118
B34: #8 | C34: 21 | D34: 2028 | E34: H | F34: A_VIE | G34: 0.45 | H34: 0.39 | I34: 0.6 | J34: 0.6 | K34: 85 | L34: 0 | M34: 22 | N34: 240107.0219 | O34: 456362.7439 | P34: 58088.36613 | Q34: 38832.55415 | R34: 303920.899 | S34: 37548.83335 | T34: 17972.09118
B35: #9 | C35: 22 | D35: 2026 | E35: H | F35: A_VIE | G35: 0.45 | H35: 0.39 | I35: 0.6 | J35: 0.6 | K35: 85 | L35: 0 | M35: 22 | N35: 240107.0219 | O35: 456362.7439 | P35: 58088.36613 | Q35: 38832.55415 | R35: 303920.899 | S35: 37548.83335 | T35: 17972.09118
B36: #10 | C36: 22 | D36: 2028 | E36: H | F36: A_VIE | G36: 0.45 | H36: 0.39 | I36: 0.6 | J36: 0.6 | K36: 85 | L36: 0 | M36: 22 | N36: 240107.0219 | O36: 456362.7439 | P36: 58088.36613 | Q36: 38832.55415 | R36: 303920.899 | S36: 37548.83335 | T36: 17972.09118
B37: #11 | C37: 23 | D37: 2026 | E37: F | F37: A_VIE | G37: 0.45 | H37: 0.39 | I37: 0.6 | J37: 0.6 | K37: 85 | L37: 0 | M37: 22 | N37: 240107.0219 | O37: 456362.7439 | P37: 58088.36613 | Q37: 38832.55415 | R37: 303920.899 | S37: 37548.83335 | T37: 17972.09118
B38: #12 | C38: 23 | D38: 2028 | E38: F | F38: A_VIE | G38: 0.45 | H38: 0.39 | I38: 0.6 | J38: 0.6 | K38: 85 | L38: 0 | M38: 22 | N38: 240107.0219 | O38: 456362.7439 | P38: 58088.36613 | Q38: 38832.55415 | R38: 303920.899 | S38: 37548.83335 | T38: 17972.09118
B39: #13 | C39: 24 | D39: 2026 | E39: H | F39: A_VIE | G39: 0.45 | H39: 0.39 | I39: 0.6 | J39: 0.6 | K39: 85 | L39: 0 | M39: 22 | N39: 240107.0219 | O39: 456362.7439 | P39: 58088.36613 | Q39: 38832.55415 | R39: 303920.899 | S39: 37548.83335 | T39: 17972.09118
B40: #14 | C40: 24 | D40: 2028 | E40: H | F40: A_VIE | G40: 0.45 | H40: 0.39 | I40: 0.6 | J40: 0.6 | K40: 85 | L40: 0 | M40: 22 | N40: 240107.0219 | O40: 456362.7439 | P40: 58088.36613 | Q40: 38832.55415 | R40: 303920.899 | S40: 37548.83335 | T40: 17972.09118
B41: #15 | C41: 25 | D41: 2026 | E41: H | F41: A_VIE | G41: 0.45 | H41: 0.39 | I41: 0.6 | J41: 0.6 | K41: 85 | L41: 0 | M41: 112 | N41: 1200535.109 | O41: 2281813.719 | P41: 290441.8307 | Q41: 194162.7708 | R41: 1519604.495 | S41: 187744.1668 | T41: 89860.45589
B42: #16 | C42: 25 | D42: 2028 | E42: H | F42: A_VIE | G42: 0.45 | H42: 0.39 | I42: 0.6 | J42: 0.6 | K42: 85 | L42: 0 | M42: 112 | N42: 1200535.109 | O42: 2281813.719 | P42: 290441.8307 | Q42: 194162.7708 | R42: 1519604.495 | S42: 187744.1668 | T42: 89860.45589
B43: #17 | C43: 26 | D43: 2026 | E43: F | F43: A_VIE | G43: 0.45 | H43: 0.39 | I43: 0.6 | J43: 0.6 | K43: 85 | L43: 0 | M43: 67 | N43: 720321.0657 | O43: 1369088.232 | P43: 174265.0984 | Q43: 116497.6625 | R43: 911762.6971 | S43: 112646.5001 | T43: 53916.27354
B44: #18 | C44: 26 | D44: 2028 | E44: F | F44: A_VIE | G44: 0.45 | H44: 0.39 | I44: 0.6 | J44: 0.6 | K44: 85 | L44: 0 | M44: 67 | N44: 720321.0657 | O44: 1369088.232 | P44: 174265.0984 | Q44: 116497.6625 | R44: 911762.6971 | S44: 112646.5001 | T44: 53916.27354
B45: #19 | C45: 27 | D45: 2026 | E45: H | F45: A_VIE | G45: 0.45 | H45: 0.39 | I45: 0.6 | J45: 0.6 | K45: 85 | L45: 0 | M45: 67 | N45: 720321.0657 | O45: 1369088.232 | P45: 174265.0984 | Q45: 116497.6625 | R45: 911762.6971 | S45: 112646.5001 | T45: 53916.27354
B46: #20 | C46: 27 | D46: 2028 | E46: H | F46: A_VIE | G46: 0.45 | H46: 0.39 | I46: 0.6 | J46: 0.6 | K46: 85 | L46: 0 | M46: 67 | N46: 720321.0657 | O46: 1369088.232 | P46: 174265.0984 | Q46: 116497.6625 | R46: 911762.6971 | S46: 112646.5001 | T46: 53916.27354
B47: #21 | C47: 28 | D47: 2026 | E47: H | F47: A_VIE | G47: 0.45 | H47: 0.39 | I47: 0.6 | J47: 0.6 | K47: 85 | L47: 0 | M47: 67 | N47: 720321.0657 | O47: 1369088.232 | P47: 174265.0984 | Q47: 116497.6625 | R47: 911762.6971 | S47: 112646.5001 | T47: 53916.27354
B48: #22 | C48: 28 | D48: 2028 | E48: H | F48: A_VIE | G48: 0.45 | H48: 0.39 | I48: 0.6 | J48: 0.6 | K48: 85 | L48: 0 | M48: 67 | N48: 720321.0657 | O48: 1369088.232 | P48: 174265.0984 | Q48: 116497.6625 | R48: 911762.6971 | S48: 112646.5001 | T48: 53916.27354
B49: #23 | C49: 29 | D49: 2026 | E49: F | F49: A_VIE | G49: 0.45 | H49: 0.39 | I49: 0.6 | J49: 0.6 | K49: 85 | L49: 0 | M49: 67 | N49: 720321.0657 | O49: 1369088.232 | P49: 174265.0984 | Q49: 116497.6625 | R49: 911762.6971 | S49: 112646.5001 | T49: 53916.27354
B50: #24 | C50: 29 | D50: 2028 | E50: F | F50: A_VIE | G50: 0.45 | H50: 0.39 | I50: 0.6 | J50: 0.6 | K50: 85 | L50: 0 | M50: 67 | N50: 720321.0657 | O50: 1369088.232 | P50: 174265.0984 | Q50: 116497.6625 | R50: 911762.6971 | S50: 112646.5001 | T50: 53916.27354
B51: #25 | C51: 30 | D51: 2026 | E51: H | F51: A_VIE | G51: 0.45 | H51: 0.39 | I51: 0.6 | J51: 0.6 | K51: 85 | L51: 0 | M51: 67 | N51: 720321.0657 | O51: 1369088.232 | P51: 174265.0984 | Q51: 116497.6625 | R51: 911762.6971 | S51: 112646.5001 | T51: 53916.27354
B52: #26 | C52: 30 | D52: 2028 | E52: H | F52: A_VIE | G52: 0.45 | H52: 0.39 | I52: 0.6 | J52: 0.6 | K52: 85 | L52: 0 | M52: 67 | N52: 720321.0657 | O52: 1369088.232 | P52: 174265.0984 | Q52: 116497.6625 | R52: 911762.6971 | S52: 112646.5001 | T52: 53916.27354
B53: #27 | C53: 31 | D53: 2026 | E53: H | F53: A_VIE | G53: 0.45 | H53: 0.39 | I53: 0.6 | J53: 0.6 | K53: 85 | L53: 0 | M53: 67 | N53: 720321.0657 | O53: 1369088.232 | P53: 174265.0984 | Q53: 116497.6625 | R53: 911762.6971 | S53: 112646.5001 | T53: 53916.27354
B54: #28 | C54: 31 | D54: 2028 | E54: H | F54: A_VIE | G54: 0.45 | H54: 0.39 | I54: 0.6 | J54: 0.6 | K54: 85 | L54: 0 | M54: 67 | N54: 720321.0657 | O54: 1369088.232 | P54: 174265.0984 | Q54: 116497.6625 | R54: 911762.6971 | S54: 112646.5001 | T54: 53916.27354
B55: #29 | C55: 32 | D55: 2026 | E55: F | F55: A_VIE | G55: 0.45 | H55: 0.39 | I55: 0.6 | J55: 0.6 | K55: 85 | L55: 0 | M55: 67 | N55: 720321.0657 | O55: 1369088.232 | P55: 174265.0984 | Q55: 116497.6625 | R55: 911762.6971 | S55: 112646.5001 | T55: 53916.27354
B56: #30 | C56: 32 | D56: 2028 | E56: F | F56: A_VIE | G56: 0.45 | H56: 0.39 | I56: 0.6 | J56: 0.6 | K56: 85 | L56: 0 | M56: 67 | N56: 720321.0657 | O56: 1369088.232 | P56: 174265.0984 | Q56: 116497.6625 | R56: 911762.6971 | S56: 112646.5001 | T56: 53916.27354
B57: #31 | C57: 33 | D57: 2026 | E57: H | F57: A_VIE | G57: 0.45 | H57: 0.39 | I57: 0.6 | J57: 0.6 | K57: 85 | L57: 0 | M57: 67 | N57: 720321.0657 | O57: 1369088.232 | P57: 174265.0984 | Q57: 116497.6625 | R57: 911762.6971 | S57: 112646.5001 | T57: 53916.27354
B58: #32 | C58: 33 | D58: 2028 | E58: H | F58: A_VIE | G58: 0.45 | H58: 0.39 | I58: 0.6 | J58: 0.6 | K58: 85 | L58: 0 | M58: 67 | N58: 720321.0657 | O58: 1369088.232 | P58: 174265.0984 | Q58: 116497.6625 | R58: 911762.6971 | S58: 112646.5001 | T58: 53916.27354
B59: #33 | C59: 34 | D59: 2026 | E59: H | F59: A_VIE | G59: 0.45 | H59: 0.39 | I59: 0.6 | J59: 0.6 | K59: 85 | L59: 0 | M59: 67 | N59: 720321.0657 | O59: 1369088.232 | P59: 174265.0984 | Q59: 116497.6625 | R59: 911762.6971 | S59: 112646.5001 | T59: 53916.27354
B60: #34 | C60: 34 | D60: 2028 | E60: H | F60: A_VIE | G60: 0.45 | H60: 0.39 | I60: 0.6 | J60: 0.6 | K60: 85 | L60: 0 | M60: 67 | N60: 720321.0657 | O60: 1369088.232 | P60: 174265.0984 | Q60: 116497.6625 | R60: 911762.6971 | S60: 112646.5001 | T60: 53916.27354
B61: #35 | C61: 35 | D61: 2026 | E61: F | F61: A_VIE | G61: 0.45 | H61: 0.39 | I61: 0.6 | J61: 0.6 | K61: 85 | L61: 0 | M61: 67 | N61: 720321.0657 | O61: 1369088.232 | P61: 174265.0984 | Q61: 116497.6625 | R61: 911762.6971 | S61: 112646.5001 | T61: 53916.27354
B62: #36 | C62: 35 | D62: 2028 | E62: F | F62: A_VIE | G62: 0.45 | H62: 0.39 | I62: 0.6 | J62: 0.6 | K62: 85 | L62: 0 | M62: 67 | N62: 720321.0657 | O62: 1369088.232 | P62: 174265.0984 | Q62: 116497.6625 | R62: 911762.6971 | S62: 112646.5001 | T62: 53916.27354
B63: #37 | C63: 36 | D63: 2026 | E63: H | F63: A_VIE | G63: 0.45 | H63: 0.39 | I63: 0.6 | J63: 0.6 | K63: 85 | L63: 0 | M63: 11 | N63: 120053.5109 | O63: 228181.3719 | P63: 29044.18307 | Q63: 19416.27708 | R63: 151960.4495 | S63: 18774.41668 | T63: 8986.045589
B64: #38 | C64: 36 | D64: 2028 | E64: H | F64: A_VIE | G64: 0.45 | H64: 0.39 | I64: 0.6 | J64: 0.6 | K64: 85 | L64: 0 | M64: 11 | N64: 120053.5109 | O64: 228181.3719 | P64: 29044.18307 | Q64: 19416.27708 | R64: 151960.4495 | S64: 18774.41668 | T64: 8986.045589
B65: #39 | C65: 37 | D65: 2026 | E65: H | F65: A_VIE | G65: 0.45 | H65: 0.39 | I65: 0.6 | J65: 0.6 | K65: 85 | L65: 0 | M65: 11 | N65: 120053.5109 | O65: 228181.3719 | P65: 29044.18307 | Q65: 19416.27708 | R65: 151960.4495 | S65: 18774.41668 | T65: 8986.045589
B66: #40 | C66: 37 | D66: 2028 | E66: H | F66: A_VIE | G66: 0.45 | H66: 0.39 | I66: 0.6 | J66: 0.6 | K66: 85 | L66: 0 | M66: 11 | N66: 120053.5109 | O66: 228181.3719 | P66: 29044.18307 | Q66: 19416.27708 | R66: 151960.4495 | S66: 18774.41668 | T66: 8986.045589
B67: #41 | C67: 38 | D67: 2026 | E67: F | F67: A_VIE | G67: 0.45 | H67: 0.39 | I67: 0.6 | J67: 0.6 | K67: 85 | L67: 0 | M67: 11 | N67: 120053.5109 | O67: 228181.3719 | P67: 29044.18307 | Q67: 19416.27708 | R67: 151960.4495 | S67: 18774.41668 | T67: 8986.045589
B68: #42 | C68: 38 | D68: 2028 | E68: F | F68: A_VIE | G68: 0.45 | H68: 0.39 | I68: 0.6 | J68: 0.6 | K68: 85 | L68: 0 | M68: 11 | N68: 120053.5109 | O68: 228181.3719 | P68: 29044.18307 | Q68: 19416.27708 | R68: 151960.4495 | S68: 18774.41668 | T68: 8986.045589
B69: #43 | C69: 39 | D69: 2026 | E69: H | F69: A_VIE | G69: 0.45 | H69: 0.39 | I69: 0.6 | J69: 0.6 | K69: 85 | L69: 0 | M69: 11 | N69: 120053.5109 | O69: 228181.3719 | P69: 29044.18307 | Q69: 19416.27708 | R69: 151960.4495 | S69: 18774.41668 | T69: 8986.045589
B70: #44 | C70: 39 | D70: 2028 | E70: H | F70: A_VIE | G70: 0.45 | H70: 0.39 | I70: 0.6 | J70: 0.6 | K70: 85 | L70: 0 | M70: 11 | N70: 120053.5109 | O70: 228181.3719 | P70: 29044.18307 | Q70: 19416.27708 | R70: 151960.4495 | S70: 18774.41668 | T70: 8986.045589
B71: #45 | C71: 40 | D71: 2026 | E71: H | F71: A_VIE | G71: 0.45 | H71: 0.39 | I71: 0.6 | J71: 0.6 | K71: 85 | L71: 0 | M71: 11 | N71: 120053.5109 | O71: 228181.3719 | P71: 29044.18307 | Q71: 19416.27708 | R71: 151960.4495 | S71: 18774.41668 | T71: 8986.045589
B72: #46 | C72: 40 | D72: 2028 | E72: H | F72: A_VIE | G72: 0.45 | H72: 0.39 | I72: 0.6 | J72: 0.6 | K72: 85 | L72: 0 | M72: 11 | N72: 120053.5109 | O72: 228181.3719 | P72: 29044.18307 | Q72: 19416.27708 | R72: 151960.4495 | S72: 18774.41668 | T72: 8986.045589
B73: #47 | C73: 41 | D73: 2026 | E73: F | F73: A_VIE | G73: 0.45 | H73: 0.39 | I73: 0.6 | J73: 0.6 | K73: 85 | L73: 0 | M73: 11 | N73: 120053.5109 | O73: 228181.3719 | P73: 29044.18307 | Q73: 19416.27708 | R73: 151960.4495 | S73: 18774.41668 | T73: 8986.045589
B74: #48 | C74: 41 | D74: 2028 | E74: F | F74: A_VIE | G74: 0.45 | H74: 0.39 | I74: 0.6 | J74: 0.6 | K74: 85 | L74: 0 | M74: 11 | N74: 120053.5109 | O74: 228181.3719 | P74: 29044.18307 | Q74: 19416.27708 | R74: 151960.4495 | S74: 18774.41668 | T74: 8986.045589
B75: #49 | C75: 42 | D75: 2026 | E75: H | F75: A_VIE | G75: 0.45 | H75: 0.39 | I75: 0.6 | J75: 0.6 | K75: 85 | L75: 0 | M75: 11 | N75: 120053.5109 | O75: 228181.3719 | P75: 29044.18307 | Q75: 19416.27708 | R75: 151960.4495 | S75: 18774.41668 | T75: 8986.045589
B76: #50 | C76: 42 | D76: 2028 | E76: H | F76: A_VIE | G76: 0.45 | H76: 0.39 | I76: 0.6 | J76: 0.6 | K76: 85 | L76: 0 | M76: 11 | N76: 120053.5109 | O76: 228181.3719 | P76: 29044.18307 | Q76: 19416.27708 | R76: 151960.4495 | S76: 18774.41668 | T76: 8986.045589
B77: #51 | C77: 43 | D77: 2026 | E77: H | F77: A_VIE | G77: 0.45 | H77: 0.39 | I77: 0.6 | J77: 0.6 | K77: 85 | L77: 0 | M77: 11 | N77: 120053.5109 | O77: 228181.3719 | P77: 29044.18307 | Q77: 19416.27708 | R77: 151960.4495 | S77: 18774.41668 | T77: 8986.045589
B78: #52 | C78: 43 | D78: 2028 | E78: H | F78: A_VIE | G78: 0.45 | H78: 0.39 | I78: 0.6 | J78: 0.6 | K78: 85 | L78: 0 | M78: 11 | N78: 120053.5109 | O78: 228181.3719 | P78: 29044.18307 | Q78: 19416.27708 | R78: 151960.4495 | S78: 18774.41668 | T78: 8986.045589
B79: #53 | C79: 44 | D79: 2026 | E79: F | F79: A_VIE | G79: 0.45 | H79: 0.39 | I79: 0.6 | J79: 0.6 | K79: 85 | L79: 0 | M79: 11 | N79: 120053.5109 | O79: 228181.3719 | P79: 29044.18307 | Q79: 19416.27708 | R79: 151960.4495 | S79: 18774.41668 | T79: 8986.045589
B80: #54 | C80: 44 | D80: 2028 | E80: F | F80: A_VIE | G80: 0.45 | H80: 0.39 | I80: 0.6 | J80: 0.6 | K80: 85 | L80: 0 | M80: 11 | N80: 120053.5109 | O80: 228181.3719 | P80: 29044.18307 | Q80: 19416.27708 | R80: 151960.4495 | S80: 18774.41668 | T80: 8986.045589
B81: #55 | C81: 45 | D81: 2026 | E81: H | F81: A_VIE | G81: 0.45 | H81: 0.39 | I81: 0.6 | J81: 0.6 | K81: 85 | L81: 0 | M81: 11 | N81: 120053.5109 | O81: 228181.3719 | P81: 29044.18307 | Q81: 19416.27708 | R81: 151960.4495 | S81: 18774.41668 | T81: 8986.045589
B82: #56 | C82: 45 | D82: 2028 | E82: H | F82: A_VIE | G82: 0.45 | H82: 0.39 | I82: 0.6 | J82: 0.6 | K82: 85 | L82: 0 | M82: 11 | N82: 120053.5109 | O82: 228181.3719 | P82: 29044.18307 | Q82: 19416.27708 | R82: 151960.4495 | S82: 18774.41668 | T82: 8986.045589
B83: #57 | C83: 46 | D83: 2026 | E83: H | F83: A_VIE | G83: 0.45 | H83: 0.39 | I83: 0.6 | J83: 0.6 | K83: 85 | L83: 0 | M83: 11 | N83: 120053.5109 | O83: 228181.3719 | P83: 29044.18307 | Q83: 19416.27708 | R83: 151960.4495 | S83: 18774.41668 | T83: 8986.045589
B84: #58 | C84: 46 | D84: 2028 | E84: H | F84: A_VIE | G84: 0.45 | H84: 0.39 | I84: 0.6 | J84: 0.6 | K84: 85 | L84: 0 | M84: 11 | N84: 120053.5109 | O84: 228181.3719 | P84: 29044.18307 | Q84: 19416.27708 | R84: 151960.4495 | S84: 18774.41668 | T84: 8986.045589
B85: #59 | C85: 47 | D85: 2026 | E85: F | F85: A_VIE | G85: 0.45 | H85: 0.39 | I85: 0.6 | J85: 0.6 | K85: 85 | L85: 0 | M85: 11 | N85: 120053.5109 | O85: 228181.3719 | P85: 29044.18307 | Q85: 19416.27708 | R85: 151960.4495 | S85: 18774.41668 | T85: 8986.045589
B86: #60 | C86: 47 | D86: 2028 | E86: F | F86: A_VIE | G86: 0.45 | H86: 0.39 | I86: 0.6 | J86: 0.6 | K86: 85 | L86: 0 | M86: 11 | N86: 120053.5109 | O86: 228181.3719 | P86: 29044.18307 | Q86: 19416.27708 | R86: 151960.4495 | S86: 18774.41668 | T86: 8986.045589
B87: #61 | C87: 48 | D87: 2026 | E87: H | F87: A_VIE | G87: 0.45 | H87: 0.39 | I87: 0.6 | J87: 0.6 | K87: 85 | L87: 0 | M87: 11 | N87: 120053.5109 | O87: 228181.3719 | P87: 29044.18307 | Q87: 19416.27708 | R87: 151960.4495 | S87: 18774.41668 | T87: 8986.045589
B88: #62 | C88: 48 | D88: 2028 | E88: H | F88: A_VIE | G88: 0.45 | H88: 0.39 | I88: 0.6 | J88: 0.6 | K88: 85 | L88: 0 | M88: 11 | N88: 120053.5109 | O88: 228181.3719 | P88: 29044.18307 | Q88: 19416.27708 | R88: 151960.4495 | S88: 18774.41668 | T88: 8986.045589
B89: #63 | C89: 49 | D89: 2026 | E89: H | F89: A_VIE | G89: 0.45 | H89: 0.39 | I89: 0.6 | J89: 0.6 | K89: 85 | L89: 0 | M89: 11 | N89: 120053.5109 | O89: 228181.3719 | P89: 29044.18307 | Q89: 19416.27708 | R89: 151960.4495 | S89: 18774.41668 | T89: 8986.045589
B90: #64 | C90: 49 | D90: 2028 | E90: H | F90: A_VIE | G90: 0.45 | H90: 0.39 | I90: 0.6 | J90: 0.6 | K90: 85 | L90: 0 | M90: 11 | N90: 120053.5109 | O90: 228181.3719 | P90: 29044.18307 | Q90: 19416.27708 | R90: 151960.4495 | S90: 18774.41668 | T90: 8986.045589
B91: #65 | C91: 50 | D91: 2026 | E91: F | F91: A_VIE | G91: 0.45 | H91: 0.39 | I91: 0.6 | J91: 0.6 | K91: 85 | L91: 0 | M91: 67 | N91: 720321.0657 | O91: 1369088.232 | P91: 174265.0984 | Q91: 116497.6625 | R91: 911762.6971 | S91: 112646.5001 | T91: 53916.27354
B92: #66 | C92: 50 | D92: 2028 | E92: F | F92: A_VIE | G92: 0.45 | H92: 0.39 | I92: 0.6 | J92: 0.6 | K92: 85 | L92: 0 | M92: 67 | N92: 720321.0657 | O92: 1369088.232 | P92: 174265.0984 | Q92: 116497.6625 | R92: 911762.6971 | S92: 112646.5001 | T92: 53916.27354
B93: #67 | C93: 51 | D93: 2026 | E93: H | F93: A_VIE | G93: 0.45 | H93: 0.39 | I93: 0.6 | J93: 0.6 | K93: 85 | L93: 0 | M93: 67 | N93: 720321.0657 | O93: 1369088.232 | P93: 174265.0984 | Q93: 116497.6625 | R93: 911762.6971 | S93: 112646.5001 | T93: 53916.27354
B94: #68 | C94: 51 | D94: 2028 | E94: H | F94: A_VIE | G94: 0.45 | H94: 0.39 | I94: 0.6 | J94: 0.6 | K94: 85 | L94: 0 | M94: 67 | N94: 720321.0657 | O94: 1369088.232 | P94: 174265.0984 | Q94: 116497.6625 | R94: 911762.6971 | S94: 112646.5001 | T94: 53916.27354
B95: #69 | C95: 52 | D95: 2026 | E95: H | F95: A_VIE | G95: 0.45 | H95: 0.39 | I95: 0.6 | J95: 0.6 | K95: 85 | L95: 0 | M95: 67 | N95: 720321.0657 | O95: 1369088.232 | P95: 174265.0984 | Q95: 116497.6625 | R95: 911762.6971 | S95: 112646.5001 | T95: 53916.27354
B96: #70 | C96: 52 | D96: 2028 | E96: H | F96: A_VIE | G96: 0.45 | H96: 0.39 | I96: 0.6 | J96: 0.6 | K96: 85 | L96: 0 | M96: 67 | N96: 720321.0657 | O96: 1369088.232 | P96: 174265.0984 | Q96: 116497.6625 | R96: 911762.6971 | S96: 112646.5001 | T96: 53916.27354
B97: #71 | C97: 53 | D97: 2026 | E97: F | F97: A_VIE | G97: 0.45 | H97: 0.39 | I97: 0.6 | J97: 0.6 | K97: 85 | L97: 0 | M97: 67 | N97: 720321.0657 | O97: 1369088.232 | P97: 174265.0984 | Q97: 116497.6625 | R97: 911762.6971 | S97: 112646.5001 | T97: 53916.27354
B98: #72 | C98: 53 | D98: 2028 | E98: F | F98: A_VIE | G98: 0.45 | H98: 0.39 | I98: 0.6 | J98: 0.6 | K98: 85 | L98: 0 | M98: 67 | N98: 720321.0657 | O98: 1369088.232 | P98: 174265.0984 | Q98: 116497.6625 | R98: 911762.6971 | S98: 112646.5001 | T98: 53916.27354
B99: #73 | C99: 54 | D99: 2026 | E99: H | F99: A_VIE | G99: 0.45 | H99: 0.39 | I99: 0.6 | J99: 0.6 | K99: 85 | L99: 0 | M99: 67 | N99: 720321.0657 | O99: 1369088.232 | P99: 174265.0984 | Q99: 116497.6625 | R99: 911762.6971 | S99: 112646.5001 | T99: 53916.27354
B100: #74 | C100: 54 | D100: 2028 | E100: H | F100: A_VIE | G100: 0.45 | H100: 0.39 | I100: 0.6 | J100: 0.6 | K100: 85 | L100: 0 | M100: 67 | N100: 720321.0657 | O100: 1369088.232 | P100: 174265.0984 | Q100: 116497.6625 | R100: 911762.6971 | S100: 112646.5001 | T100: 53916.27354
B101: #75 | C101: 55 | D101: 2026 | E101: H | F101: A_VIE | G101: 0.45 | H101: 0.39 | I101: 0.6 | J101: 0.6 | K101: 85 | L101: 0 | M101: 67 | N101: 720321.0657 | O101: 1369088.232 | P101: 174265.0984 | Q101: 116497.6625 | R101: 911762.6971 | S101: 112646.5001 | T101: 53916.27354
B102: #76 | C102: 55 | D102: 2028 | E102: H | F102: A_VIE | G102: 0.45 | H102: 0.39 | I102: 0.6 | J102: 0.6 | K102: 85 | L102: 0 | M102: 67 | N102: 720321.0657 | O102: 1369088.232 | P102: 174265.0984 | Q102: 116497.6625 | R102: 911762.6971 | S102: 112646.5001 | T102: 53916.27354
B103: #77 | C103: 56 | D103: 2026 | E103: F | F103: A_VIE | G103: 0.45 | H103: 0.39 | I103: 0.6 | J103: 0.6 | K103: 85 | L103: 0 | M103: 67 | N103: 720321.0657 | O103: 1369088.232 | P103: 174265.0984 | Q103: 116497.6625 | R103: 911762.6971 | S103: 112646.5001 | T103: 53916.27354
B104: #78 | C104: 56 | D104: 2028 | E104: F | F104: A_VIE | G104: 0.45 | H104: 0.39 | I104: 0.6 | J104: 0.6 | K104: 85 | L104: 0 | M104: 67 | N104: 720321.0657 | O104: 1369088.232 | P104: 174265.0984 | Q104: 116497.6625 | R104: 911762.6971 | S104: 112646.5001 | T104: 53916.27354
B105: #79 | C105: 57 | D105: 2026 | E105: H | F105: A_VIE | G105: 0.45 | H105: 0.39 | I105: 0.6 | J105: 0.6 | K105: 85 | L105: 0 | M105: 67 | N105: 720321.0657 | O105: 1369088.232 | P105: 174265.0984 | Q105: 116497.6625 | R105: 911762.6971 | S105: 112646.5001 | T105: 53916.27354
B106: #80 | C106: 57 | D106: 2028 | E106: H | F106: A_VIE | G106: 0.45 | H106: 0.39 | I106: 0.6 | J106: 0.6 | K106: 85 | L106: 0 | M106: 67 | N106: 720321.0657 | O106: 1369088.232 | P106: 174265.0984 | Q106: 116497.6625 | R106: 911762.6971 | S106: 112646.5001 | T106: 53916.27354
B107: #81 | C107: 58 | D107: 2026 | E107: H | F107: A_VIE | G107: 0.45 | H107: 0.39 | I107: 0.6 | J107: 0.6 | K107: 85 | L107: 0 | M107: 67 | N107: 720321.0657 | O107: 1369088.232 | P107: 174265.0984 | Q107: 116497.6625 | R107: 911762.6971 | S107: 112646.5001 | T107: 53916.27354
B108: #82 | C108: 58 | D108: 2028 | E108: H | F108: A_VIE | G108: 0.45 | H108: 0.39 | I108: 0.6 | J108: 0.6 | K108: 85 | L108: 0 | M108: 67 | N108: 720321.0657 | O108: 1369088.232 | P108: 174265.0984 | Q108: 116497.6625 | R108: 911762.6971 | S108: 112646.5001 | T108: 53916.27354
B109: #83 | C109: 59 | D109: 2026 | E109: F | F109: A_VIE | G109: 0.45 | H109: 0.39 | I109: 0.6 | J109: 0.6 | K109: 85 | L109: 0 | M109: 67 | N109: 720321.0657 | O109: 1369088.232 | P109: 174265.0984 | Q109: 116497.6625 | R109: 911762.6971 | S109: 112646.5001 | T109: 53916.27354
B110: #84 | C110: 59 | D110: 2028 | E110: F | F110: A_VIE | G110: 0.45 | H110: 0.39 | I110: 0.6 | J110: 0.6 | K110: 85 | L110: 0 | M110: 67 | N110: 720321.0657 | O110: 1369088.232 | P110: 174265.0984 | Q110: 116497.6625 | R110: 911762.6971 | S110: 112646.5001 | T110: 53916.27354
B111: #85 | C111: 60 | D111: 2026 | E111: H | F111: A_VIE | G111: 0.45 | H111: 0.39 | I111: 0.6 | J111: 0.6 | K111: 85 | L111: 0 | M111: 112 | N111: 1200535.109 | O111: 2281813.719 | P111: 290441.8307 | Q111: 194162.7708 | R111: 1519604.495 | S111: 187744.1668 | T111: 89860.45589
B112: #86 | C112: 60 | D112: 2028 | E112: H | F112: A_VIE | G112: 0.45 | H112: 0.39 | I112: 0.6 | J112: 0.6 | K112: 85 | L112: 0 | M112: 112 | N112: 1200535.109 | O112: 2281813.719 | P112: 290441.8307 | Q112: 194162.7708 | R112: 1519604.495 | S112: 187744.1668 | T112: 89860.45589
B113: #87 | C113: 61 | D113: 2026 | E113: H | F113: A_VIE | G113: 0.45 | H113: 0.39 | I113: 0.6 | J113: 0.6 | K113: 85 | L113: 0 | M113: 67 | N113: 720321.0657 | O113: 1369088.232 | P113: 174265.0984 | Q113: 116497.6625 | R113: 911762.6971 | S113: 112646.5001 | T113: 53916.27354
B114: #88 | C114: 61 | D114: 2028 | E114: H | F114: A_VIE | G114: 0.45 | H114: 0.39 | I114: 0.6 | J114: 0.6 | K114: 85 | L114: 0 | M114: 67 | N114: 720321.0657 | O114: 1369088.232 | P114: 174265.0984 | Q114: 116497.6625 | R114: 911762.6971 | S114: 112646.5001 | T114: 53916.27354
B115: #89 | C115: 62 | D115: 2026 | E115: F | F115: A_VIE | G115: 0.45 | H115: 0.39 | I115: 0.6 | J115: 0.6 | K115: 85 | L115: 0 | M115: 67 | N115: 720321.0657 | O115: 1369088.232 | P115: 174265.0984 | Q115: 116497.6625 | R115: 911762.6971 | S115: 112646.5001 | T115: 53916.27354
B116: #90 | C116: 62 | D116: 2028 | E116: F | F116: A_VIE | G116: 0.45 | H116: 0.39 | I116: 0.6 | J116: 0.6 | K116: 85 | L116: 0 | M116: 67 | N116: 720321.0657 | O116: 1369088.232 | P116: 174265.0984 | Q116: 116497.6625 | R116: 911762.6971 | S116: 112646.5001 | T116: 53916.27354
B117: #91 | C117: 63 | D117: 2026 | E117: H | F117: A_VIE | G117: 0.45 | H117: 0.39 | I117: 0.6 | J117: 0.6 | K117: 85 | L117: 0 | M117: 67 | N117: 720321.0657 | O117: 1369088.232 | P117: 174265.0984 | Q117: 116497.6625 | R117: 911762.6971 | S117: 112646.5001 | T117: 53916.27354
B118: #92 | C118: 63 | D118: 2028 | E118: H | F118: A_VIE | G118: 0.45 | H118: 0.39 | I118: 0.6 | J118: 0.6 | K118: 85 | L118: 0 | M118: 67 | N118: 720321.0657 | O118: 1369088.232 | P118: 174265.0984 | Q118: 116497.6625 | R118: 911762.6971 | S118: 112646.5001 | T118: 53916.27354
B119: #93 | C119: 64 | D119: 2026 | E119: H | F119: A_VIE | G119: 0.45 | H119: 0.39 | I119: 0.6 | J119: 0.6 | K119: 85 | L119: 0 | M119: 67 | N119: 720321.0657 | O119: 1369088.232 | P119: 174265.0984 | Q119: 116497.6625 | R119: 911762.6971 | S119: 112646.5001 | T119: 53916.27354
B120: #94 | C120: 64 | D120: 2028 | E120: H | F120: A_VIE | G120: 0.45 | H120: 0.39 | I120: 0.6 | J120: 0.6 | K120: 85 | L120: 0 | M120: 67 | N120: 720321.0657 | O120: 1369088.232 | P120: 174265.0984 | Q120: 116497.6625 | R120: 911762.6971 | S120: 112646.5001 | T120: 53916.27354
B121: #95 | C121: 65 | D121: 2026 | E121: F | F121: A_VIE | G121: 0.45 | H121: 0.39 | I121: 0.6 | J121: 0.6 | K121: 85 | L121: 0 | M121: 67 | N121: 720321.0657 | O121: 1369088.232 | P121: 174265.0984 | Q121: 116497.6625 | R121: 911762.6971 | S121: 112646.5001 | T121: 53916.27354
B122: #96 | C122: 65 | D122: 2028 | E122: F | F122: A_VIE | G122: 0.45 | H122: 0.39 | I122: 0.6 | J122: 0.6 | K122: 85 | L122: 0 | M122: 67 | N122: 720321.0657 | O122: 1369088.232 | P122: 174265.0984 | Q122: 116497.6625 | R122: 911762.6971 | S122: 112646.5001 | T122: 53916.27354
B123: #97 | C123: 70 | D123: 2026 | E123: H | F123: A_VIE | G123: 0.45 | H123: 0.39 | I123: 0.6 | J123: 0.6 | K123: 85 | L123: 0 | M123: 11 | N123: 120053.5109 | O123: 228181.3719 | P123: 29044.18307 | Q123: 19416.27708 | R123: 151960.4495 | S123: 18774.41668 | T123: 8986.045589
B124: #98 | C124: 70 | D124: 2028 | E124: H | F124: A_VIE | G124: 0.45 | H124: 0.39 | I124: 0.6 | J124: 0.6 | K124: 85 | L124: 0 | M124: 11 | N124: 120053.5109 | O124: 228181.3719 | P124: 29044.18307 | Q124: 19416.27708 | R124: 151960.4495 | S124: 18774.41668 | T124: 8986.045589
B125: #99 | C125: 75 | D125: 2026 | E125: H | F125: A_VIE | G125: 0.45 | H125: 0.39 | I125: 0.6 | J125: 0.6 | K125: 85 | L125: 0 | M125: 11 | N125: 120053.5109 | O125: 228181.3719 | P125: 29044.18307 | Q125: 19416.27708 | R125: 151960.4495 | S125: 18774.41668 | T125: 8986.045589
B126: #100 | C126: 75 | D126: 2028 | E126: H | F126: A_VIE | G126: 0.45 | H126: 0.39 | I126: 0.6 | J126: 0.6 | K126: 85 | L126: 0 | M126: 11 | N126: 120053.5109 | O126: 228181.3719 | P126: 29044.18307 | Q126: 19416.27708 | R126: 151960.4495 | S126: 18774.41668 | T126: 8986.045589
B127: #101 | C127: 80 | D127: 2026 | E127: F | F127: A_VIE | G127: 0.45 | H127: 0.39 | I127: 0.6 | J127: 0.6 | K127: 85 | L127: 0 | M127: 11 | N127: 120053.5109 | O127: 228181.3719 | P127: 29044.18307 | Q127: 19416.27708 | R127: 151960.4495 | S127: 18774.41668 | T127: 8986.045589
B128: #102 | C128: 80 | D128: 2028 | E128: F | F128: A_VIE | G128: 0.45 | H128: 0.39 | I128: 0.6 | J128: 0.6 | K128: 85 | L128: 0 | M128: 11 | N128: 120053.5109 | O128: 228181.3719 | P128: 29044.18307 | Q128: 19416.27708 | R128: 151960.4495 | S128: 18774.41668 | T128: 8986.045589
B129: #103 | C129: 85 | D129: 2026 | E129: H | F129: A_VIE | G129: 0.45 | H129: 0.39 | I129: 0.6 | J129: 0.6 | K129: 85 | L129: 0 | M129: 6 | N129: 60026.75547 | O129: 114090.686 | P129: 14522.09153 | Q129: 9708.138538 | R129: 75980.22476 | S129: 9387.208339 | T129: 4493.022795
B130: #104 | C130: 85 | D130: 2028 | E130: H | F130: A_VIE | G130: 0.45 | H130: 0.39 | I130: 0.6 | J130: 0.6 | K130: 85 | L130: 0 | M130: 6 | N130: 60026.75547 | O130: 114090.686 | P130: 14522.09153 | Q130: 9708.138538 | R130: 75980.22476 | S130: 9387.208339 | T130: 4493.022795
B131: #105 | C131: 90 | D131: 2026 | E131: H | F131: A_VIE | G131: 0.45 | H131: 0.39 | I131: 0.6 | J131: 0.6 | K131: 85 | L131: 0 | M131: 6 | N131: 60026.75547 | O131: 114090.686 | P131: 14522.09153 | Q131: 9708.138538 | R131: 75980.22476 | S131: 9387.208339 | T131: 4493.022795
B132: #106 | C132: 90 | D132: 2028 | E132: H | F132: A_VIE | G132: 0.45 | H132: 0.39 | I132: 0.6 | J132: 0.6 | K132: 85 | L132: 0 | M132: 6 | N132: 60026.75547 | O132: 114090.686 | P132: 14522.09153 | Q132: 9708.138538 | R132: 75980.22476 | S132: 9387.208339 | T132: 4493.022795
B133: #107 | C133: 18 | D133: 2026 | E133: H | F133: A_CAPI | G133: 0.45 | H133: 0.39 | I133: 0.6 | J133: 0.6 | K133: 85 | L133: 0 | M133: 0.04 | N133: 0 | O133: 1039.868127 | P133: 132.3601483 | Q133: 88.48385607 | R133: 692.5141463 | S133: 85.55876992 | T133: 40.95120611
B134: #108 | C134: 18 | D134: 2028 | E134: H | F134: A_CAPI | G134: 0.45 | H134: 0.39 | I134: 0.6 | J134: 0.6 | K134: 85 | L134: 0 | M134: 0.04 | N134: 0 | O134: 1039.868127 | P134: 132.3601483 | Q134: 88.48385607 | R134: 692.5141463 | S134: 85.55876992 | T134: 40.95120611
B135: #109 | C135: 19 | D135: 2026 | E135: H | F135: A_CAPI | G135: 0.45 | H135: 0.39 | I135: 0.6 | J135: 0.6 | K135: 85 | L135: 0 | M135: 0.04 | N135: 0 | O135: 1039.868127 | P135: 132.3601483 | Q135: 88.48385607 | R135: 692.5141463 | S135: 85.55876992 | T135: 40.95120611
B136: #110 | C136: 19 | D136: 2028 | E136: H | F136: A_CAPI | G136: 0.45 | H136: 0.39 | I136: 0.6 | J136: 0.6 | K136: 85 | L136: 0 | M136: 0.04 | N136: 0 | O136: 1039.868127 | P136: 132.3601483 | Q136: 88.48385607 | R136: 692.5141463 | S136: 85.55876992 | T136: 40.95120611
B137: #111 | C137: 20 | D137: 2026 | E137: F | F137: A_CAPI | G137: 0.45 | H137: 0.39 | I137: 0.6 | J137: 0.6 | K137: 85 | L137: 0 | M137: 0.08 | N137: 0 | O137: 2079.736253 | P137: 264.7202967 | Q137: 176.9677121 | R137: 1385.028293 | S137: 171.1175398 | T137: 81.90241223
B138: #112 | C138: 20 | D138: 2028 | E138: F | F138: A_CAPI | G138: 0.45 | H138: 0.39 | I138: 0.6 | J138: 0.6 | K138: 85 | L138: 0 | M138: 0.08 | N138: 0 | O138: 2079.736253 | P138: 264.7202967 | Q138: 176.9677121 | R138: 1385.028293 | S138: 171.1175398 | T138: 81.90241223
B139: #113 | C139: 21 | D139: 2026 | E139: H | F139: A_CAPI | G139: 0.45 | H139: 0.39 | I139: 0.6 | J139: 0.6 | K139: 85 | L139: 0 | M139: 0.08 | N139: 0 | O139: 2079.736253 | P139: 264.7202967 | Q139: 176.9677121 | R139: 1385.028293 | S139: 171.1175398 | T139: 81.90241223
B140: #114 | C140: 21 | D140: 2028 | E140: H | F140: A_CAPI | G140: 0.45 | H140: 0.39 | I140: 0.6 | J140: 0.6 | K140: 85 | L140: 0 | M140: 0.08 | N140: 0 | O140: 2079.736253 | P140: 264.7202967 | Q140: 176.9677121 | R140: 1385.028293 | S140: 171.1175398 | T140: 81.90241223
B141: #115 | C141: 22 | D141: 2026 | E141: H | F141: A_CAPI | G141: 0.45 | H141: 0.39 | I141: 0.6 | J141: 0.6 | K141: 85 | L141: 0 | M141: 0.08 | N141: 0 | O141: 2079.736253 | P141: 264.7202967 | Q141: 176.9677121 | R141: 1385.028293 | S141: 171.1175398 | T141: 81.90241223
B142: #116 | C142: 22 | D142: 2028 | E142: H | F142: A_CAPI | G142: 0.45 | H142: 0.39 | I142: 0.6 | J142: 0.6 | K142: 85 | L142: 0 | M142: 0.08 | N142: 0 | O142: 2079.736253 | P142: 264.7202967 | Q142: 176.9677121 | R142: 1385.028293 | S142: 171.1175398 | T142: 81.90241223
B143: #117 | C143: 23 | D143: 2026 | E143: F | F143: A_CAPI | G143: 0.45 | H143: 0.39 | I143: 0.6 | J143: 0.6 | K143: 85 | L143: 0 | M143: 0.08 | N143: 0 | O143: 2079.736253 | P143: 264.7202967 | Q143: 176.9677121 | R143: 1385.028293 | S143: 171.1175398 | T143: 81.90241223
B144: #118 | C144: 23 | D144: 2028 | E144: F | F144: A_CAPI | G144: 0.45 | H144: 0.39 | I144: 0.6 | J144: 0.6 | K144: 85 | L144: 0 | M144: 0.08 | N144: 0 | O144: 2079.736253 | P144: 264.7202967 | Q144: 176.9677121 | R144: 1385.028293 | S144: 171.1175398 | T144: 81.90241223
B145: #119 | C145: 24 | D145: 2026 | E145: H | F145: A_CAPI | G145: 0.45 | H145: 0.39 | I145: 0.6 | J145: 0.6 | K145: 85 | L145: 0 | M145: 0.08 | N145: 0 | O145: 2079.736253 | P145: 264.7202967 | Q145: 176.9677121 | R145: 1385.028293 | S145: 171.1175398 | T145: 81.90241223
B146: #120 | C146: 24 | D146: 2028 | E146: H | F146: A_CAPI | G146: 0.45 | H146: 0.39 | I146: 0.6 | J146: 0.6 | K146: 85 | L146: 0 | M146: 0.08 | N146: 0 | O146: 2079.736253 | P146: 264.7202967 | Q146: 176.9677121 | R146: 1385.028293 | S146: 171.1175398 | T146: 81.90241223
B147: #121 | C147: 25 | D147: 2026 | E147: H | F147: A_CAPI | G147: 0.45 | H147: 0.39 | I147: 0.6 | J147: 0.6 | K147: 85 | L147: 0 | M147: 0.38 | N147: 0 | O147: 10398.68127 | P147: 1323.601483 | Q147: 884.8385607 | R147: 6925.141463 | S147: 855.5876992 | T147: 409.5120611
B148: #122 | C148: 25 | D148: 2028 | E148: H | F148: A_CAPI | G148: 0.45 | H148: 0.39 | I148: 0.6 | J148: 0.6 | K148: 85 | L148: 0 | M148: 0.38 | N148: 0 | O148: 10398.68127 | P148: 1323.601483 | Q148: 884.8385607 | R148: 6925.141463 | S148: 855.5876992 | T148: 409.5120611
B149: #123 | C149: 26 | D149: 2026 | E149: F | F149: A_CAPI | G149: 0.45 | H149: 0.39 | I149: 0.6 | J149: 0.6 | K149: 85 | L149: 0 | M149: 0.23 | N149: 0 | O149: 6239.20876 | P149: 794.16089 | Q149: 530.9031364 | R149: 4155.084878 | S149: 513.3526195 | T149: 245.7072367
B150: #124 | C150: 26 | D150: 2028 | E150: F | F150: A_CAPI | G150: 0.45 | H150: 0.39 | I150: 0.6 | J150: 0.6 | K150: 85 | L150: 0 | M150: 0.23 | N150: 0 | O150: 6239.20876 | P150: 794.16089 | Q150: 530.9031364 | R150: 4155.084878 | S150: 513.3526195 | T150: 245.7072367
B151: #125 | C151: 27 | D151: 2026 | E151: H | F151: A_CAPI | G151: 0.45 | H151: 0.39 | I151: 0.6 | J151: 0.6 | K151: 85 | L151: 0 | M151: 0.23 | N151: 0 | O151: 6239.20876 | P151: 794.16089 | Q151: 530.9031364 | R151: 4155.084878 | S151: 513.3526195 | T151: 245.7072367
B152: #126 | C152: 27 | D152: 2028 | E152: H | F152: A_CAPI | G152: 0.45 | H152: 0.39 | I152: 0.6 | J152: 0.6 | K152: 85 | L152: 0 | M152: 0.23 | N152: 0 | O152: 6239.20876 | P152: 794.16089 | Q152: 530.9031364 | R152: 4155.084878 | S152: 513.3526195 | T152: 245.7072367
B153: #127 | C153: 28 | D153: 2026 | E153: H | F153: A_CAPI | G153: 0.45 | H153: 0.39 | I153: 0.6 | J153: 0.6 | K153: 85 | L153: 0 | M153: 0.23 | N153: 0 | O153: 6239.20876 | P153: 794.16089 | Q153: 530.9031364 | R153: 4155.084878 | S153: 513.3526195 | T153: 245.7072367
B154: #128 | C154: 28 | D154: 2028 | E154: H | F154: A_CAPI | G154: 0.45 | H154: 0.39 | I154: 0.6 | J154: 0.6 | K154: 85 | L154: 0 | M154: 0.23 | N154: 0 | O154: 6239.20876 | P154: 794.16089 | Q154: 530.9031364 | R154: 4155.084878 | S154: 513.3526195 | T154: 245.7072367
B155: #129 | C155: 29 | D155: 2026 | E155: F | F155: A_CAPI | G155: 0.45 | H155: 0.39 | I155: 0.6 | J155: 0.6 | K155: 85 | L155: 0 | M155: 0.23 | N155: 0 | O155: 6239.20876 | P155: 794.16089 | Q155: 530.9031364 | R155: 4155.084878 | S155: 513.3526195 | T155: 245.7072367
B156: #130 | C156: 29 | D156: 2028 | E156: F | F156: A_CAPI | G156: 0.45 | H156: 0.39 | I156: 0.6 | J156: 0.6 | K156: 85 | L156: 0 | M156: 0.23 | N156: 0 | O156: 6239.20876 | P156: 794.16089 | Q156: 530.9031364 | R156: 4155.084878 | S156: 513.3526195 | T156: 245.7072367
B157: #131 | C157: 30 | D157: 2026 | E157: H | F157: A_CAPI | G157: 0.45 | H157: 0.39 | I157: 0.6 | J157: 0.6 | K157: 85 | L157: 0 | M157: 0.23 | N157: 0 | O157: 6239.20876 | P157: 794.16089 | Q157: 530.9031364 | R157: 4155.084878 | S157: 513.3526195 | T157: 245.7072367
B158: #132 | C158: 30 | D158: 2028 | E158: H | F158: A_CAPI | G158: 0.45 | H158: 0.39 | I158: 0.6 | J158: 0.6 | K158: 85 | L158: 0 | M158: 0.23 | N158: 0 | O158: 6239.20876 | P158: 794.16089 | Q158: 530.9031364 | R158: 4155.084878 | S158: 513.3526195 | T158: 245.7072367
B159: #133 | C159: 31 | D159: 2026 | E159: H | F159: A_CAPI | G159: 0.45 | H159: 0.39 | I159: 0.6 | J159: 0.6 | K159: 85 | L159: 0 | M159: 0.23 | N159: 0 | O159: 6239.20876 | P159: 794.16089 | Q159: 530.9031364 | R159: 4155.084878 | S159: 513.3526195 | T159: 245.7072367
B160: #134 | C160: 31 | D160: 2028 | E160: H | F160: A_CAPI | G160: 0.45 | H160: 0.39 | I160: 0.6 | J160: 0.6 | K160: 85 | L160: 0 | M160: 0.23 | N160: 0 | O160: 6239.20876 | P160: 794.16089 | Q160: 530.9031364 | R160: 4155.084878 | S160: 513.3526195 | T160: 245.7072367
B161: #135 | C161: 32 | D161: 2026 | E161: F | F161: A_CAPI | G161: 0.45 | H161: 0.39 | I161: 0.6 | J161: 0.6 | K161: 85 | L161: 0 | M161: 0.23 | N161: 0 | O161: 6239.20876 | P161: 794.16089 | Q161: 530.9031364 | R161: 4155.084878 | S161: 513.3526195 | T161: 245.7072367
B162: #136 | C162: 32 | D162: 2028 | E162: F | F162: A_CAPI | G162: 0.45 | H162: 0.39 | I162: 0.6 | J162: 0.6 | K162: 85 | L162: 0 | M162: 0.23 | N162: 0 | O162: 6239.20876 | P162: 794.16089 | Q162: 530.9031364 | R162: 4155.084878 | S162: 513.3526195 | T162: 245.7072367
B163: #137 | C163: 33 | D163: 2026 | E163: H | F163: A_CAPI | G163: 0.45 | H163: 0.39 | I163: 0.6 | J163: 0.6 | K163: 85 | L163: 0 | M163: 0.23 | N163: 0 | O163: 6239.20876 | P163: 794.16089 | Q163: 530.9031364 | R163: 4155.084878 | S163: 513.3526195 | T163: 245.7072367
B164: #138 | C164: 33 | D164: 2028 | E164: H | F164: A_CAPI | G164: 0.45 | H164: 0.39 | I164: 0.6 | J164: 0.6 | K164: 85 | L164: 0 | M164: 0.23 | N164: 0 | O164: 6239.20876 | P164: 794.16089 | Q164: 530.9031364 | R164: 4155.084878 | S164: 513.3526195 | T164: 245.7072367
B165: #139 | C165: 34 | D165: 2026 | E165: H | F165: A_CAPI | G165: 0.45 | H165: 0.39 | I165: 0.6 | J165: 0.6 | K165: 85 | L165: 0 | M165: 0.23 | N165: 0 | O165: 6239.20876 | P165: 794.16089 | Q165: 530.9031364 | R165: 4155.084878 | S165: 513.3526195 | T165: 245.7072367
B166: #140 | C166: 34 | D166: 2028 | E166: H | F166: A_CAPI | G166: 0.45 | H166: 0.39 | I166: 0.6 | J166: 0.6 | K166: 85 | L166: 0 | M166: 0.23 | N166: 0 | O166: 6239.20876 | P166: 794.16089 | Q166: 530.9031364 | R166: 4155.084878 | S166: 513.3526195 | T166: 245.7072367
B167: #141 | C167: 35 | D167: 2026 | E167: F | F167: A_CAPI | G167: 0.45 | H167: 0.39 | I167: 0.6 | J167: 0.6 | K167: 85 | L167: 0 | M167: 0.23 | N167: 0 | O167: 6239.20876 | P167: 794.16089 | Q167: 530.9031364 | R167: 4155.084878 | S167: 513.3526195 | T167: 245.7072367
B168: #142 | C168: 35 | D168: 2028 | E168: F | F168: A_CAPI | G168: 0.45 | H168: 0.39 | I168: 0.6 | J168: 0.6 | K168: 85 | L168: 0 | M168: 0.23 | N168: 0 | O168: 6239.20876 | P168: 794.16089 | Q168: 530.9031364 | R168: 4155.084878 | S168: 513.3526195 | T168: 245.7072367
B169: #143 | C169: 36 | D169: 2026 | E169: H | F169: A_CAPI | G169: 0.45 | H169: 0.39 | I169: 0.6 | J169: 0.6 | K169: 85 | L169: 0 | M169: 0.04 | N169: 0 | O169: 1039.868127 | P169: 132.3601483 | Q169: 88.48385607 | R169: 692.5141463 | S169: 85.55876992 | T169: 40.95120611
B170: #144 | C170: 36 | D170: 2028 | E170: H | F170: A_CAPI | G170: 0.45 | H170: 0.39 | I170: 0.6 | J170: 0.6 | K170: 85 | L170: 0 | M170: 0.04 | N170: 0 | O170: 1039.868127 | P170: 132.3601483 | Q170: 88.48385607 | R170: 692.5141463 | S170: 85.55876992 | T170: 40.95120611
B171: #145 | C171: 37 | D171: 2026 | E171: H | F171: A_CAPI | G171: 0.45 | H171: 0.39 | I171: 0.6 | J171: 0.6 | K171: 85 | L171: 0 | M171: 0.04 | N171: 0 | O171: 1039.868127 | P171: 132.3601483 | Q171: 88.48385607 | R171: 692.5141463 | S171: 85.55876992 | T171: 40.95120611
B172: #146 | C172: 37 | D172: 2028 | E172: H | F172: A_CAPI | G172: 0.45 | H172: 0.39 | I172: 0.6 | J172: 0.6 | K172: 85 | L172: 0 | M172: 0.04 | N172: 0 | O172: 1039.868127 | P172: 132.3601483 | Q172: 88.48385607 | R172: 692.5141463 | S172: 85.55876992 | T172: 40.95120611
B173: #147 | C173: 38 | D173: 2026 | E173: F | F173: A_CAPI | G173: 0.45 | H173: 0.39 | I173: 0.6 | J173: 0.6 | K173: 85 | L173: 0 | M173: 0.04 | N173: 0 | O173: 1039.868127 | P173: 132.3601483 | Q173: 88.48385607 | R173: 692.5141463 | S173: 85.55876992 | T173: 40.95120611
B174: #148 | C174: 38 | D174: 2028 | E174: F | F174: A_CAPI | G174: 0.45 | H174: 0.39 | I174: 0.6 | J174: 0.6 | K174: 85 | L174: 0 | M174: 0.04 | N174: 0 | O174: 1039.868127 | P174: 132.3601483 | Q174: 88.48385607 | R174: 692.5141463 | S174: 85.55876992 | T174: 40.95120611
B175: #149 | C175: 39 | D175: 2026 | E175: H | F175: A_CAPI | G175: 0.45 | H175: 0.39 | I175: 0.6 | J175: 0.6 | K175: 85 | L175: 0 | M175: 0.04 | N175: 0 | O175: 1039.868127 | P175: 132.3601483 | Q175: 88.48385607 | R175: 692.5141463 | S175: 85.55876992 | T175: 40.95120611
B176: #150 | C176: 39 | D176: 2028 | E176: H | F176: A_CAPI | G176: 0.45 | H176: 0.39 | I176: 0.6 | J176: 0.6 | K176: 85 | L176: 0 | M176: 0.04 | N176: 0 | O176: 1039.868127 | P176: 132.3601483 | Q176: 88.48385607 | R176: 692.5141463 | S176: 85.55876992 | T176: 40.95120611
B177: #151 | C177: 40 | D177: 2026 | E177: H | F177: A_CAPI | G177: 0.45 | H177: 0.39 | I177: 0.6 | J177: 0.6 | K177: 85 | L177: 0 | M177: 0.04 | N177: 0 | O177: 1039.868127 | P177: 132.3601483 | Q177: 88.48385607 | R177: 692.5141463 | S177: 85.55876992 | T177: 40.95120611
B178: #152 | C178: 40 | D178: 2028 | E178: H | F178: A_CAPI | G178: 0.45 | H178: 0.39 | I178: 0.6 | J178: 0.6 | K178: 85 | L178: 0 | M178: 0.04 | N178: 0 | O178: 1039.868127 | P178: 132.3601483 | Q178: 88.48385607 | R178: 692.5141463 | S178: 85.55876992 | T178: 40.95120611
B179: #153 | C179: 41 | D179: 2026 | E179: F | F179: A_CAPI | G179: 0.45 | H179: 0.39 | I179: 0.6 | J179: 0.6 | K179: 85 | L179: 0 | M179: 0.04 | N179: 0 | O179: 1039.868127 | P179: 132.3601483 | Q179: 88.48385607 | R179: 692.5141463 | S179: 85.55876992 | T179: 40.95120611
B180: #154 | C180: 41 | D180: 2028 | E180: F | F180: A_CAPI | G180: 0.45 | H180: 0.39 | I180: 0.6 | J180: 0.6 | K180: 85 | L180: 0 | M180: 0.04 | N180: 0 | O180: 1039.868127 | P180: 132.3601483 | Q180: 88.48385607 | R180: 692.5141463 | S180: 85.55876992 | T180: 40.95120611
B181: #155 | C181: 42 | D181: 2026 | E181: H | F181: A_CAPI | G181: 0.45 | H181: 0.39 | I181: 0.6 | J181: 0.6 | K181: 85 | L181: 0 | M181: 0.04 | N181: 0 | O181: 1039.868127 | P181: 132.3601483 | Q181: 88.48385607 | R181: 692.5141463 | S181: 85.55876992 | T181: 40.95120611
B182: #156 | C182: 42 | D182: 2028 | E182: H | F182: A_CAPI | G182: 0.45 | H182: 0.39 | I182: 0.6 | J182: 0.6 | K182: 85 | L182: 0 | M182: 0.04 | N182: 0 | O182: 1039.868127 | P182: 132.3601483 | Q182: 88.48385607 | R182: 692.5141463 | S182: 85.55876992 | T182: 40.95120611
B183: #157 | C183: 43 | D183: 2026 | E183: H | F183: A_CAPI | G183: 0.45 | H183: 0.39 | I183: 0.6 | J183: 0.6 | K183: 85 | L183: 0 | M183: 0.04 | N183: 0 | O183: 1039.868127 | P183: 132.3601483 | Q183: 88.48385607 | R183: 692.5141463 | S183: 85.55876992 | T183: 40.95120611
B184: #158 | C184: 43 | D184: 2028 | E184: H | F184: A_CAPI | G184: 0.45 | H184: 0.39 | I184: 0.6 | J184: 0.6 | K184: 85 | L184: 0 | M184: 0.04 | N184: 0 | O184: 1039.868127 | P184: 132.3601483 | Q184: 88.48385607 | R184: 692.5141463 | S184: 85.55876992 | T184: 40.95120611
B185: #159 | C185: 44 | D185: 2026 | E185: F | F185: A_CAPI | G185: 0.45 | H185: 0.39 | I185: 0.6 | J185: 0.6 | K185: 85 | L185: 0 | M185: 0.04 | N185: 0 | O185: 1039.868127 | P185: 132.3601483 | Q185: 88.48385607 | R185: 692.5141463 | S185: 85.55876992 | T185: 40.95120611
B186: #160 | C186: 44 | D186: 2028 | E186: F | F186: A_CAPI | G186: 0.45 | H186: 0.39 | I186: 0.6 | J186: 0.6 | K186: 85 | L186: 0 | M186: 0.04 | N186: 0 | O186: 1039.868127 | P186: 132.3601483 | Q186: 88.48385607 | R186: 692.5141463 | S186: 85.55876992 | T186: 40.95120611
B187: #161 | C187: 45 | D187: 2026 | E187: H | F187: A_CAPI | G187: 0.45 | H187: 0.39 | I187: 0.6 | J187: 0.6 | K187: 85 | L187: 0 | M187: 0.04 | N187: 0 | O187: 1039.868127 | P187: 132.3601483 | Q187: 88.48385607 | R187: 692.5141463 | S187: 85.55876992 | T187: 40.95120611
B188: #162 | C188: 45 | D188: 2028 | E188: H | F188: A_CAPI | G188: 0.45 | H188: 0.39 | I188: 0.6 | J188: 0.6 | K188: 85 | L188: 0 | M188: 0.04 | N188: 0 | O188: 1039.868127 | P188: 132.3601483 | Q188: 88.48385607 | R188: 692.5141463 | S188: 85.55876992 | T188: 40.95120611
B189: #163 | C189: 46 | D189: 2026 | E189: H | F189: A_CAPI | G189: 0.45 | H189: 0.39 | I189: 0.6 | J189: 0.6 | K189: 85 | L189: 0 | M189: 0.04 | N189: 0 | O189: 1039.868127 | P189: 132.3601483 | Q189: 88.48385607 | R189: 692.5141463 | S189: 85.55876992 | T189: 40.95120611
B190: #164 | C190: 46 | D190: 2028 | E190: H | F190: A_CAPI | G190: 0.45 | H190: 0.39 | I190: 0.6 | J190: 0.6 | K190: 85 | L190: 0 | M190: 0.04 | N190: 0 | O190: 1039.868127 | P190: 132.3601483 | Q190: 88.48385607 | R190: 692.5141463 | S190: 85.55876992 | T190: 40.95120611
B191: #165 | C191: 47 | D191: 2026 | E191: F | F191: A_CAPI | G191: 0.45 | H191: 0.39 | I191: 0.6 | J191: 0.6 | K191: 85 | L191: 0 | M191: 0.04 | N191: 0 | O191: 1039.868127 | P191: 132.3601483 | Q191: 88.48385607 | R191: 692.5141463 | S191: 85.55876992 | T191: 40.95120611
B192: #166 | C192: 47 | D192: 2028 | E192: F | F192: A_CAPI | G192: 0.45 | H192: 0.39 | I192: 0.6 | J192: 0.6 | K192: 85 | L192: 0 | M192: 0.04 | N192: 0 | O192: 1039.868127 | P192: 132.3601483 | Q192: 88.48385607 | R192: 692.5141463 | S192: 85.55876992 | T192: 40.95120611
B193: #167 | C193: 48 | D193: 2026 | E193: H | F193: A_CAPI | G193: 0.45 | H193: 0.39 | I193: 0.6 | J193: 0.6 | K193: 85 | L193: 0 | M193: 0.04 | N193: 0 | O193: 1039.868127 | P193: 132.3601483 | Q193: 88.48385607 | R193: 692.5141463 | S193: 85.55876992 | T193: 40.95120611
B194: #168 | C194: 48 | D194: 2028 | E194: H | F194: A_CAPI | G194: 0.45 | H194: 0.39 | I194: 0.6 | J194: 0.6 | K194: 85 | L194: 0 | M194: 0.04 | N194: 0 | O194: 1039.868127 | P194: 132.3601483 | Q194: 88.48385607 | R194: 692.5141463 | S194: 85.55876992 | T194: 40.95120611
B195: #169 | C195: 49 | D195: 2026 | E195: H | F195: A_CAPI | G195: 0.45 | H195: 0.39 | I195: 0.6 | J195: 0.6 | K195: 85 | L195: 0 | M195: 0.04 | N195: 0 | O195: 1039.868127 | P195: 132.3601483 | Q195: 88.48385607 | R195: 692.5141463 | S195: 85.55876992 | T195: 40.95120611
B196: #170 | C196: 49 | D196: 2028 | E196: H | F196: A_CAPI | G196: 0.45 | H196: 0.39 | I196: 0.6 | J196: 0.6 | K196: 85 | L196: 0 | M196: 0.04 | N196: 0 | O196: 1039.868127 | P196: 132.3601483 | Q196: 88.48385607 | R196: 692.5141463 | S196: 85.55876992 | T196: 40.95120611
B197: #171 | C197: 50 | D197: 2026 | E197: F | F197: A_CAPI | G197: 0.45 | H197: 0.39 | I197: 0.6 | J197: 0.6 | K197: 85 | L197: 0 | M197: 0.23 | N197: 0 | O197: 6239.20876 | P197: 794.16089 | Q197: 530.9031364 | R197: 4155.084878 | S197: 513.3526195 | T197: 245.7072367
B198: #172 | C198: 50 | D198: 2028 | E198: F | F198: A_CAPI | G198: 0.45 | H198: 0.39 | I198: 0.6 | J198: 0.6 | K198: 85 | L198: 0 | M198: 0.23 | N198: 0 | O198: 6239.20876 | P198: 794.16089 | Q198: 530.9031364 | R198: 4155.084878 | S198: 513.3526195 | T198: 245.7072367
B199: #173 | C199: 51 | D199: 2026 | E199: H | F199: A_CAPI | G199: 0.45 | H199: 0.39 | I199: 0.6 | J199: 0.6 | K199: 85 | L199: 0 | M199: 0.23 | N199: 0 | O199: 6239.20876 | P199: 794.16089 | Q199: 530.9031364 | R199: 4155.084878 | S199: 513.3526195 | T199: 245.7072367
B200: #174 | C200: 51 | D200: 2028 | E200: H | F200: A_CAPI | G200: 0.45 | H200: 0.39 | I200: 0.6 | J200: 0.6 | K200: 85 | L200: 0 | M200: 0.23 | N200: 0 | O200: 6239.20876 | P200: 794.16089 | Q200: 530.9031364 | R200: 4155.084878 | S200: 513.3526195 | T200: 245.7072367
B201: #175 | C201: 52 | D201: 2026 | E201: H | F201: A_CAPI | G201: 0.45 | H201: 0.39 | I201: 0.6 | J201: 0.6 | K201: 85 | L201: 0 | M201: 0.23 | N201: 0 | O201: 6239.20876 | P201: 794.16089 | Q201: 530.9031364 | R201: 4155.084878 | S201: 513.3526195 | T201: 245.7072367
B202: #176 | C202: 52 | D202: 2028 | E202: H | F202: A_CAPI | G202: 0.45 | H202: 0.39 | I202: 0.6 | J202: 0.6 | K202: 85 | L202: 0 | M202: 0.23 | N202: 0 | O202: 6239.20876 | P202: 794.16089 | Q202: 530.9031364 | R202: 4155.084878 | S202: 513.3526195 | T202: 245.7072367
B203: #177 | C203: 53 | D203: 2026 | E203: F | F203: A_CAPI | G203: 0.45 | H203: 0.39 | I203: 0.6 | J203: 0.6 | K203: 85 | L203: 0 | M203: 0.23 | N203: 0 | O203: 6239.20876 | P203: 794.16089 | Q203: 530.9031364 | R203: 4155.084878 | S203: 513.3526195 | T203: 245.7072367
B204: #178 | C204: 53 | D204: 2028 | E204: F | F204: A_CAPI | G204: 0.45 | H204: 0.39 | I204: 0.6 | J204: 0.6 | K204: 85 | L204: 0 | M204: 0.23 | N204: 0 | O204: 6239.20876 | P204: 794.16089 | Q204: 530.9031364 | R204: 4155.084878 | S204: 513.3526195 | T204: 245.7072367
B205: #179 | C205: 54 | D205: 2026 | E205: H | F205: A_CAPI | G205: 0.45 | H205: 0.39 | I205: 0.6 | J205: 0.6 | K205: 85 | L205: 0 | M205: 0.23 | N205: 0 | O205: 6239.20876 | P205: 794.16089 | Q205: 530.9031364 | R205: 4155.084878 | S205: 513.3526195 | T205: 245.7072367
B206: #180 | C206: 54 | D206: 2028 | E206: H | F206: A_CAPI | G206: 0.45 | H206: 0.39 | I206: 0.6 | J206: 0.6 | K206: 85 | L206: 0 | M206: 0.23 | N206: 0 | O206: 6239.20876 | P206: 794.16089 | Q206: 530.9031364 | R206: 4155.084878 | S206: 513.3526195 | T206: 245.7072367
B207: #181 | C207: 55 | D207: 2026 | E207: H | F207: A_CAPI | G207: 0.45 | H207: 0.39 | I207: 0.6 | J207: 0.6 | K207: 85 | L207: 0 | M207: 0.23 | N207: 0 | O207: 6239.20876 | P207: 794.16089 | Q207: 530.9031364 | R207: 4155.084878 | S207: 513.3526195 | T207: 245.7072367
B208: #182 | C208: 55 | D208: 2028 | E208: H | F208: A_CAPI | G208: 0.45 | H208: 0.39 | I208: 0.6 | J208: 0.6 | K208: 85 | L208: 0 | M208: 0.23 | N208: 0 | O208: 6239.20876 | P208: 794.16089 | Q208: 530.9031364 | R208: 4155.084878 | S208: 513.3526195 | T208: 245.7072367
... 118 more rows

Sheet SCR_Op_BP_2
B2: I) Inputs pour SCR Opérationnel
B5: AVIE + CAPI + PER | D5: 2028-12-31
B6: Flux | C6: Euro | D6: UC
B7: Primes acquises pour les 12 derniers mois VIE UC (N) - Earn life-ul | C7: - | D7: 66275503
B8: Primes acquises pour les 12 derniers mois VIE Euros (N) - Earn life | C8: 26782497 | D8: -
B9: Primes acquises sur les 12 mois précédents les 12 derniers mois VIE UC (N-1) - pEarn life-ul | C9: - | D9: 48829704
B10: Primes acquises sur les 12 mois précédents les 12 derniers mois VIE Euros (N-1) - pEarn life | C10: 19728296 | D10: -
B11: Montant de frais engagé au titre des contrats UC (12 derniers mois) (Expul) | C11: - | D11: 1788121.286 | E11: répartition au regard du mix Euro / UC (idem split collecte) - yc comm distribution
B12: Montant de frais engagé au titre des contrats euros (12 derniers mois) | C12: 726817.2316 | D12: - | E12: répartition au regard du mix Euro / UC (idem split collecte) - yc comm distribution

Sheet RFR_BP_2
B2: Choc S2 | C2: 1 | D2: =C2+1 -> 2 | E2: 3 | F2: 4 | G2: 5 | H2: 6 | I2: 7 | J2: 8 | K2: 9 | L2: 10 | M2: 11 | N2: 12 | O2: 13 | P2: 14 | Q2: 15 | R2: 16 | S2: 17 | T2: 18 | U2: 19 | V2: 20 | W2: 21 | X2: 22 | Y2: 23 | Z2: 24 | AA2: 25 | AB2: 26 | AC2: 27 | AD2: 28 | AE2: 29 | AF2: 30 | AG2: 31 | AH2: 32 | AI2: 33 | AJ2: 34 | AK2: 35 | AL2: 36 | AM2: 37 | AN2: 38 | AO2: 39 | AP2: 40 | AQ2: 41 | AR2: 42 | AS2: 43 | AT2: 44 | AU2: 45 | AV2: 46 | AW2: 47 | AX2: 48 | AY2: 49 | AZ2: 50 | BA2: 51 | BB2: 52 | BC2: 53 | BD2: 54 | BE2: 55 | BF2: 56 | BG2: 57 | BH2: 58 | BI2: 59 | BJ2: 60 | BK2: 61 | BL2: 62 | BM2: 63 | BN2: 64 | BO2: 65 | BP2: =BO2+1 -> 66 | BQ2: 67 | BR2: 68 | BS2: 69 | BT2: 70 | BU2: 71 | BV2: 72 | BW2: 73 | BX2: 74 | BY2: 75 | BZ2: 76 | CA2: 77 | CB2: 78 | CC2: 79 | CD2: 80 | CE2: 81 | CF2: 82 | CG2: 83 | CH2: 84 | CI2: 85 | CJ2: 86 | CK2: 87 | CL2: 88 | CM2: 89 | CN2: 90 | CO2: 91 | CP2: 92 | CQ2: 93 | CR2: 94 | CS2: 95 | CT2: 96 | CU2: 97 | CV2: 98 | CW2: 99 | CX2: 100
B3: Central | C3: 0.02161 | D3: 0.02162 | E3: 0.02243 | F3: 0.02337 | G3: 0.0242 | H3: 0.02502 | I3: 0.02579 | J3: 0.02655 | K3: 0.02726 | L3: 0.02795 | M3: 0.02853 | N3: 0.02907 | O3: 0.02953 | P3: 0.02994 | Q3: 0.03027 | R3: 0.03051 | S3: 0.03068 | T3: 0.0308 | U3: 0.03089 | V3: 0.03097 | W3: 0.03104 | X3: 0.03111 | Y3: 0.03118 | Z3: 0.03124 | AA3: 0.03129 | AB3: 0.03135 | AC3: 0.03139 | AD3: 0.03144 | AE3: 0.03148 | AF3: 0.03152 | AG3: 0.03156 | AH3: 0.0316 | AI3: 0.03163 | AJ3: 0.03167 | AK3: 0.0317 | AL3: 0.03173 | AM3: 0.03176 | AN3: 0.03179 | AO3: 0.03181 | AP3: 0.03184 | AQ3: 0.03186 | AR3: 0.03188 | AS3: 0.03191 | AT3: 0.03193 | AU3: 0.03195 | AV3: 0.03197 | AW3: 0.03199 | AX3: 0.03201 | AY3: 0.03203 | AZ3: 0.03204 | BA3: 0.03206 | BB3: 0.03208 | BC3: 0.03209 | BD3: 0.03211 | BE3: 0.03212 | BF3: 0.03214 | BG3: 0.03215 | BH3: 0.03216 | BI3: 0.03218 | BJ3: 0.03219 | BK3: 0.0322 | BL3: 0.03221 | BM3: 0.03222 | BN3: 0.03224 | BO3: 0.03225 | BP3: 0.03226 | BQ3: 0.03227 | BR3: 0.03228 | BS3: 0.03229 | BT3: 0.0323 | BU3: 0.03231 | BV3: 0.03232 | BW3: 0.03233 | BX3: 0.03233 | BY3: 0.03234 | BZ3: 0.03235 | CA3: 0.03236 | CB3: 0.03237 | CC3: 0.03237 | CD3: 0.03238 | CE3: 0.03239 | CF3: 0.0324 | CG3: 0.0324 | CH3: 0.03241 | CI3: 0.03242 | CJ3: 0.03242 | CK3: 0.03243 | CL3: 0.03244 | CM3: 0.03244 | CN3: 0.03245 | CO3: 0.03245 | CP3: 0.03246 | CQ3: 0.03247 | CR3: 0.03247 | CS3: 0.03248 | CT3: 0.03248 | CU3: 0.03249 | CV3: 0.03249 | CW3: 0.0325 | CX3: 0.0325
B4: Up | C4: 0.03534 | D4: 0.03535 | E4: 0.03551 | F4: 0.03598 | G4: 0.03641 | H4: 0.03699 | I4: 0.03745 | J4: 0.03809 | K4: 0.03837 | L4: 0.03885 | M4: 0.03888 | N4: 0.03909 | O4: 0.03953 | P4: 0.03994 | Q4: 0.04027 | R4: 0.04051 | S4: 0.04068 | T4: 0.0408 | U4: 0.04089 | V4: 0.04097 | W4: 0.04104 | X4: 0.04111 | Y4: 0.04118 | Z4: 0.04124 | AA4: 0.04129 | AB4: 0.04135 | AC4: 0.04139 | AD4: 0.04144 | AE4: 0.04148 | AF4: 0.04152 | AG4: 0.04156 | AH4: 0.0416 | AI4: 0.04163 | AJ4: 0.04167 | AK4: 0.0417 | AL4: 0.04173 | AM4: 0.04176 | AN4: 0.04179 | AO4: 0.04181 | AP4: 0.04184 | AQ4: 0.04186 | AR4: 0.04188 | AS4: 0.04191 | AT4: 0.04193 | AU4: 0.04195 | AV4: 0.04197 | AW4: 0.04199 | AX4: 0.04201 | AY4: 0.04203 | AZ4: 0.04204 | BA4: 0.04206 | BB4: 0.04208 | BC4: 0.04209 | BD4: 0.04211 | BE4: 0.04212 | BF4: 0.04214 | BG4: 0.04215 | BH4: 0.04216 | BI4: 0.04218 | BJ4: 0.04219 | BK4: 0.0422 | BL4: 0.04221 | BM4: 0.04222 | BN4: 0.04224 | BO4: 0.04225 | BP4: 0.04226 | BQ4: 0.04227 | BR4: 0.04228 | BS4: 0.04229 | BT4: 0.0423 | BU4: 0.04231 | BV4: 0.04232 | BW4: 0.04233 | BX4: 0.04233 | BY4: 0.04234 | BZ4: 0.04235 | CA4: 0.04236 | CB4: 0.04237 | CC4: 0.04237 | CD4: 0.04238 | CE4: 0.04239 | CF4: 0.0424 | CG4: 0.0424 | CH4: 0.04241 | CI4: 0.04242 | CJ4: 0.04242 | CK4: 0.04243 | CL4: 0.04244 | CM4: 0.04244 | CN4: 0.04245 | CO4: 0.04245 | CP4: 0.04246 | CQ4: 0.04247 | CR4: 0.04247 | CS4: 0.04248 | CT4: 0.04248 | CU4: 0.04249 | CV4: 0.04249 | CW4: 0.0425 | CX4: 0.0425
B5: Down | C5: 0.0069 | D5: 0.00887 | E5: 0.01099 | F5: 0.01269 | G5: 0.01399 | H5: 0.01535 | I5: 0.01651 | J5: 0.01771 | K5: 0.01892 | L5: 0.01991 | M5: 0.02057 | N5: 0.02122 | O5: 0.02182 | P5: 0.02212 | Q5: 0.02264 | R5: 0.02253 | S5: 0.02265 | T5: 0.02274 | U5: 0.02251 | V5: 0.02257 | W5: 0.02265 | X5: 0.02274 | Y5: 0.02282 | Z5: 0.02289 | AA5: 0.02296 | AB5: 0.02303 | AC5: 0.02309 | AD5: 0.02316 | AE5: 0.02321 | AF5: 0.02327 | AG5: 0.02333 | AH5: 0.02339 | AI5: 0.02344 | AJ5: 0.0235 | AK5: 0.02355 | AL5: 0.02361 | AM5: 0.02366 | AN5: 0.02371 | AO5: 0.02376 | AP5: 0.02381 | AQ5: 0.02386 | AR5: 0.0239 | AS5: 0.02396 | AT5: 0.02401 | AU5: 0.02405 | AV5: 0.0241 | AW5: 0.02415 | AX5: 0.0242 | AY5: 0.02425 | AZ5: 0.02429 | BA5: 0.02434 | BB5: 0.02439 | BC5: 0.02443 | BD5: 0.02448 | BE5: 0.02452 | BF5: 0.02457 | BG5: 0.02462 | BH5: 0.02466 | BI5: 0.02471 | BJ5: 0.02475 | BK5: 0.0248 | BL5: 0.02484 | BM5: 0.02489 | BN5: 0.02494 | BO5: 0.02498 | BP5: 0.02503 | BQ5: 0.02507 | BR5: 0.02512 | BS5: 0.02516 | BT5: 0.02521 | BU5: 0.02525 | BV5: 0.0253 | BW5: 0.02535 | BX5: 0.02538 | BY5: 0.02543 | BZ5: 0.02547 | CA5: 0.02552 | CB5: 0.02557 | CC5: 0.0256 | CD5: 0.02565 | CE5: 0.0257 | CF5: 0.02574 | CG5: 0.02578 | CH5: 0.02583 | CI5: 0.02588 | CJ5: 0.02591 | CK5: 0.02596 | CL5: 0.02601 | CM5: 0.02605 | CN5: 0.0261 | CO5: 0.02609 | CP5: 0.0261 | CQ5: 0.02611 | CR5: 0.02611 | CS5: 0.02611 | CT5: 0.02611 | CU5: 0.02612 | CV5: 0.02612 | CW5: 0.02612 | CX5: 0.02612
B6: Central hors VA | C6: 0.01961 | D6: 0.01962 | E6: 0.02043 | F6: 0.02137 | G6: 0.0222 | H6: 0.02302 | I6: 0.02379 | J6: 0.02455 | K6: 0.02526 | L6: 0.02595 | M6: 0.02653 | N6: 0.02707 | O6: 0.02753 | P6: 0.02794 | Q6: 0.02827 | R6: 0.02851 | S6: 0.02868 | T6: 0.0288 | U6: 0.02889 | V6: 0.02897 | W6: 0.02905 | X6: 0.02913 | Y6: 0.02921 | Z6: 0.0293 | AA6: 0.02938 | AB6: 0.02946 | AC6: 0.02953 | AD6: 0.02961 | AE6: 0.02969 | AF6: 0.02976 | AG6: 0.02983 | AH6: 0.0299 | AI6: 0.02996 | AJ6: 0.03003 | AK6: 0.03009 | AL6: 0.03015 | AM6: 0.03021 | AN6: 0.03027 | AO6: 0.03033 | AP6: 0.03038 | AQ6: 0.03043 | AR6: 0.03048 | AS6: 0.03053 | AT6: 0.03058 | AU6: 0.03062 | AV6: 0.03067 | AW6: 0.03071 | AX6: 0.03075 | AY6: 0.0308 | AZ6: 0.03083 | BA6: 0.03087 | BB6: 0.03091 | BC6: 0.03095 | BD6: 0.03098 | BE6: 0.03101 | BF6: 0.03105 | BG6: 0.03108 | BH6: 0.03111 | BI6: 0.03114 | BJ6: 0.03117 | BK6: 0.0312 | BL6: 0.03122 | BM6: 0.03125 | BN6: 0.03128 | BO6: 0.0313 | BP6: 0.03133 | BQ6: 0.03135 | BR6: 0.03138 | BS6: 0.0314 | BT6: 0.03142 | BU6: 0.03144 | BV6: 0.03146 | BW6: 0.03148 | BX6: 0.0315 | BY6: 0.03152 | BZ6: 0.03154 | CA6: 0.03156 | CB6: 0.03158 | CC6: 0.0316 | CD6: 0.03161 | CE6: 0.03163 | CF6: 0.03165 | CG6: 0.03166 | CH6: 0.03168 | CI6: 0.03169 | CJ6: 0.03171 | CK6: 0.03172 | CL6: 0.03174 | CM6: 0.03175 | CN6: 0.03177 | CO6: 0.03178 | CP6: 0.03179 | CQ6: 0.03181 | CR6: 0.03182 | CS6: 0.03183 | CT6: 0.03184 | CU6: 0.03185 | CV6: 0.03187 | CW6: 0.03188 | CX6: 0.03189

Sheet Frais_BP_3
B2: I) Frais et commissions
B5: AVIE / PER / CAPI | D5: 2031-12-31
B6: Frais | C6: Taux | D6: Driver
B7: Frais Acquisition | C7: 0.006324348591 | D7: Primes
B8: Frais Gestion Sinistres | C8: 0.003310441478 | D8: Prestations
B9: Frais Administration | C9: 0.002613334516 | D9: PM | E9: exclusion C3S sur primes
B10: Frais Financiers | C10: 0.00075859202 | D10: VM | E10: MP 2029 car 2030 non calculés
B11: Prélèvements Sociaux | C11: 0.172 | D11: PB
B12: Clause PB | C12: 0.85 | D12: Produits financiers
B13: Frais d'acquisition : hors comm. distribution intégrées directement dans la projection des frais dans la maquette S2
B14: Frais Administration / Frais acq : montant de frais sur l'ensemble des périmètres => tx unique tout produit

Sheet Bilan_Social_BP_3
B2: I) Bilan Social
B5: AVIE + PER + CAPI + FP | C5: 2029-12-31
B7: ACTIF | C7: VNC | D7: VM | F7: PASSIF
B8: Capital souscrit non appelé ou compte de liaison avec le siège | C8: 0 | D8: 0 | F8: Capitaux Propres | G8: 27087689.14
B9: Actifs Incorporels | C9: 0 | D9: 0 | F9: Résultat de l'exercice | G9: -603422.4804
B10: Obligation Govies | C10: 92296254.15 | D10: 92296254.15 | F10: Passifs subordonnés | G10: 0
B11: Obligation Corporate | C11: 24612334.44 | D11: 25350704.47 | F11: Provisions techniques brutes | G11: 96577405.53
B12: Action | C12: 0 | D12: 0 | F12: PM | G12: 96577405.53 | J12: =G12=SUM(Model_Points_BP_3!$C$7:$C$11,Model_Points_BP_3!$C$15:$C$19) -> FALSE
B13: Monétaire | C13: 6153083.61 | D13: 6153083.61 | F13: PSAP | G13: 0
B14: UC | C14: 186308956 | D14: 186308956 | F14: PPE | G14: 0 | I14: =C14=G15 -> TRUE
B15: Provisions sur placements | C15: 0 | D15: 0 | F15: Provision techniques des contrats en unité de comptes | G15: 186308956 | J15: =ROUND(G15,2)=ROUND(SUM(Model_Points_BP_3!$L$7:$L$11,Model_Points_BP_3!$L$15:$L$19),2) -> TRUE
B16: PDD | C16: 0 | D16: 0 | F16: Autres provisions techniques | G16: 0
B17: Part des cessionnaires et rétrocessionnaires dans les provisions techniques | C17: 0 | D17: 0 | F17: RC | G17: 0
B18: Créances | C18: 0 | D18: 0 | F18: PRE | G18: 0
B19: Autres Actifs | C19: 0 | D19: 0 | F19: Provisions (autres que techniques) | G19: 0
B20: Comptes de régularisation Actif | C20: 0 | D20: 0 | F20: Dettes pour dépôts en espèces reçues des cessionnaires | G20: 0
F21: Autres Dettes | G21: 0
F22: Comptes de régularisation Passif | G22: 0

Sheet Model_Points_BP_3
B2: I) Model Points Actifs
B5: AVIE | C5: Euro | D5: 2029-12-31 | K5: AVIE / CAPI | L5: UC | M5: 2029-12-31 | Q5: AVIE / CAPI | R5: 2028-12-31
B6: Asset Type | C6: VNC | D6: VM | E6: COUPON_PC | F6: NOMINAL | G6: MATURITY_RESID | H6: SPREAD_PC | I6: DIV_PC | K6: Asset Type | L6: VNC | M6: VM | N6: DIV_PC | O6: UC_TYPE | Q6: Reserves | R6: VNC
B7: BONDS_GOV | C7: 66624546.71 | D7: 66624546.71 | E7: 0 | F7: 66624546.71 | G7: 7 | K7: OBLIG_CORP | L7: 21824130.72 | M7: 21824130.72 | N7: 0 | O7: 1 | P7: =M7/SUM($M$7:$M$11) -> 0.1272855134 | Q7: PPE | R7: 0
B8: BONDS_CORP | C8: 17766545.79 | D8: 18299542.16 | E8: 0 | F8: 17766545.79 | G8: 7 | K8: OBLIG_CORP_NR | L8: 14589612.25 | M8: 14589612.25 | N8: 0 | O8: 2 | P8: =M8/SUM($M$7:$M$11) -> 0.08509142053 | Q8: RC | R8: 0
B9: EQ_TYPE_1 | C9: 0 | D9: 0 | E9: 0 | I9: 0 | K9: EQ_TYPE_1 | L9: 114184816.5 | M9: 114184816.5 | N9: 0 | O9: 3 | P9: 0.6659634318
B10: EQ_TYPE_2 | C10: 0 | D10: 0 | E10: 0 | I10: 0 | K10: EQ_TYPE_2 | L10: 14107311.02 | M10: 14107311.02 | N10: 0 | O10: 4 | P10: 0.08227848101 | T10: PMVL ALL | U10: =SUM(D7:D11)-SUM(C7:C11)+SUM(D15:D19)-SUM(C15:C19) -> 579464.4332
B11: CASH | C11: 4441636.448 | D11: 4441636.448 | E11: 0 | K11: MONETAIRE | L11: 6752217.24 | M11: 6752217.24 | N11: 0 | O11: 5 | P11: 0.03938115331
B13: PER | C13: Euro | D13: 2029-12-31 | K13: PER | L13: UC | M13: 2029-12-31 | Q13: PER | R13: 2028-12-31
B14: Asset Type | C14: VNC | D14: VM | E14: COUPON_PC | F14: NOMINAL | G14: MATURITY_RESID | H14: SPREAD_PC | I14: DIV_PC | K14: Asset Type | L14: VNC | M14: VM | N14: DIV_PC | O14: UC_TYPE | Q14: Reserves | R14: VNC
B15: BONDS_GOV | C15: 5808507.436 | D15: 5808507.436 | E15: 0 | F15: 5808507.436 | G15: 7 | K15: OBLIG_CORP | L15: 1890300.388 | M15: 1890300.388 | N15: 0 | O15: 1 | Q15: PPE | R15: 0
B16: BONDS_CORP | C16: 1548935.316 | D16: 1595403.376 | E16: 0 | F16: 1548935.316 | G16: 7 | K16: OBLIG_CORP_NR | L16: 1263681.475 | M16: 1263681.475 | N16: 0 | O16: 2 | Q16: RC | R16: 0
B17: EQ_TYPE_1 | C17: 0 | D17: 0 | E17: 0 | I17: 0 | K17: EQ_TYPE_1 | L17: 9890135.177 | M17: 9890135.177 | N17: 0 | O17: 3
B18: EQ_TYPE_2 | C18: 0 | D18: 0 | E18: 0 | I18: 0 | K18: EQ_TYPE_2 | L18: 1221906.88 | M18: 1221906.88 | N18: 0 | O18: 4
B19: CASH | C19: 387233.8291 | D19: 387233.8291 | E19: 0 | K19: MONETAIRE | L19: 584844.3188 | M19: 584844.3188 | N19: 0 | O19: 5
B22: II) Model Points Passif
B25: Assurance Vie | C25: Euro - UC | D25: 2029-12-31
B26: ID | C26: AGE | D26: SOUSCRIPTION_YR | E26: SEXE | F26: PDT | G26: CHGT_GEST_EURO_PC | H26: CHGT_GEST_UC_PC | I26: COMM_DIST_EURO_PC | J26: COMM_DIST_UC_PC | K26: CLAUSE_PB_PC | L26: TMG_PC | M26: NO_POLS | N26: PM_EURO | O26: PM_UC_TOT | P26: PM_UC_1 | Q26: PM_UC_2 | R26: PM_UC_3 | S26: PM_UC_4 | T26: PM_UC_5
B27: #1 | C27: 18 | D27: 2026 | E27: H | F27: A_VIE | G27: 0.45 | H27: 0.39 | I27: 0.6 | J27: 0.6 | K27: 85 | L27: 0 | M27: 11 | N27: 148054.5483 | O27: 283903.216 | P27: 36136.76659 | Q27: 24157.72794 | R27: 189069.16 | S27: 23359.12536 | T27: 11180.43607
B28: #2 | C28: 18 | D28: 2028 | E28: H | F28: A_VIE | G28: 0.45 | H28: 0.39 | I28: 0.6 | J28: 0.6 | K28: 85 | L28: 0 | M28: 11 | N28: 148054.5483 | O28: 283903.216 | P28: 36136.76659 | Q28: 24157.72794 | R28: 189069.16 | S28: 23359.12536 | T28: 11180.43607
B29: #3 | C29: 18 | D29: 2029 | E29: H | F29: A_VIE | G29: 0.45 | H29: 0.39 | I29: 0.6 | J29: 0.6 | K29: 85 | L29: 0 | M29: 11 | N29: 148054.5483 | O29: 283903.216 | P29: 36136.76659 | Q29: 24157.72794 | R29: 189069.16 | S29: 23359.12536 | T29: 11180.43607
B30: #4 | C30: 19 | D30: 2026 | E30: H | F30: A_VIE | G30: 0.45 | H30: 0.39 | I30: 0.6 | J30: 0.6 | K30: 85 | L30: 0 | M30: 11 | N30: 148054.5483 | O30: 283903.216 | P30: 36136.76659 | Q30: 24157.72794 | R30: 189069.16 | S30: 23359.12536 | T30: 11180.43607
B31: #5 | C31: 19 | D31: 2028 | E31: H | F31: A_VIE | G31: 0.45 | H31: 0.39 | I31: 0.6 | J31: 0.6 | K31: 85 | L31: 0 | M31: 11 | N31: 148054.5483 | O31: 283903.216 | P31: 36136.76659 | Q31: 24157.72794 | R31: 189069.16 | S31: 23359.12536 | T31: 11180.43607
B32: #6 | C32: 19 | D32: 2029 | E32: H | F32: A_VIE | G32: 0.45 | H32: 0.39 | I32: 0.6 | J32: 0.6 | K32: 85 | L32: 0 | M32: 11 | N32: 148054.5483 | O32: 283903.216 | P32: 36136.76659 | Q32: 24157.72794 | R32: 189069.16 | S32: 23359.12536 | T32: 11180.43607
B33: #7 | C33: 20 | D33: 2026 | E33: F | F33: A_VIE | G33: 0.45 | H33: 0.39 | I33: 0.6 | J33: 0.6 | K33: 85 | L33: 0 | M33: 23 | N33: 296109.0965 | O33: 567806.4319 | P33: 72273.53318 | Q33: 48315.45588 | R33: 378138.32 | S33: 46718.25073 | T33: 22360.87214
B34: #8 | C34: 20 | D34: 2028 | E34: F | F34: A_VIE | G34: 0.45 | H34: 0.39 | I34: 0.6 | J34: 0.6 | K34: 85 | L34: 0 | M34: 23 | N34: 296109.0965 | O34: 567806.4319 | P34: 72273.53318 | Q34: 48315.45588 | R34: 378138.32 | S34: 46718.25073 | T34: 22360.87214
B35: #9 | C35: 20 | D35: 2029 | E35: F | F35: A_VIE | G35: 0.45 | H35: 0.39 | I35: 0.6 | J35: 0.6 | K35: 85 | L35: 0 | M35: 23 | N35: 296109.0965 | O35: 567806.4319 | P35: 72273.53318 | Q35: 48315.45588 | R35: 378138.32 | S35: 46718.25073 | T35: 22360.87214
B36: #10 | C36: 21 | D36: 2026 | E36: H | F36: A_VIE | G36: 0.45 | H36: 0.39 | I36: 0.6 | J36: 0.6 | K36: 85 | L36: 0 | M36: 23 | N36: 296109.0965 | O36: 567806.4319 | P36: 72273.53318 | Q36: 48315.45588 | R36: 378138.32 | S36: 46718.25073 | T36: 22360.87214
B37: #11 | C37: 21 | D37: 2028 | E37: H | F37: A_VIE | G37: 0.45 | H37: 0.39 | I37: 0.6 | J37: 0.6 | K37: 85 | L37: 0 | M37: 23 | N37: 296109.0965 | O37: 567806.4319 | P37: 72273.53318 | Q37: 48315.45588 | R37: 378138.32 | S37: 46718.25073 | T37: 22360.87214
B38: #12 | C38: 21 | D38: 2029 | E38: H | F38: A_VIE | G38: 0.45 | H38: 0.39 | I38: 0.6 | J38: 0.6 | K38: 85 | L38: 0 | M38: 23 | N38: 296109.0965 | O38: 567806.4319 | P38: 72273.53318 | Q38: 48315.45588 | R38: 378138.32 | S38: 46718.25073 | T38: 22360.87214
B39: #13 | C39: 22 | D39: 2026 | E39: H | F39: A_VIE | G39: 0.45 | H39: 0.39 | I39: 0.6 | J39: 0.6 | K39: 85 | L39: 0 | M39: 23 | N39: 296109.0965 | O39: 567806.4319 | P39: 72273.53318 | Q39: 48315.45588 | R39: 378138.32 | S39: 46718.25073 | T39: 22360.87214
B40: #14 | C40: 22 | D40: 2028 | E40: H | F40: A_VIE | G40: 0.45 | H40: 0.39 | I40: 0.6 | J40: 0.6 | K40: 85 | L40: 0 | M40: 23 | N40: 296109.0965 | O40: 567806.4319 | P40: 72273.53318 | Q40: 48315.45588 | R40: 378138.32 | S40: 46718.25073 | T40: 22360.87214
B41: #15 | C41: 22 | D41: 2029 | E41: H | F41: A_VIE | G41: 0.45 | H41: 0.39 | I41: 0.6 | J41: 0.6 | K41: 85 | L41: 0 | M41: 23 | N41: 296109.0965 | O41: 567806.4319 | P41: 72273.53318 | Q41: 48315.45588 | R41: 378138.32 | S41: 46718.25073 | T41: 22360.87214
B42: #16 | C42: 23 | D42: 2026 | E42: F | F42: A_VIE | G42: 0.45 | H42: 0.39 | I42: 0.6 | J42: 0.6 | K42: 85 | L42: 0 | M42: 23 | N42: 296109.0965 | O42: 567806.4319 | P42: 72273.53318 | Q42: 48315.45588 | R42: 378138.32 | S42: 46718.25073 | T42: 22360.87214
B43: #17 | C43: 23 | D43: 2028 | E43: F | F43: A_VIE | G43: 0.45 | H43: 0.39 | I43: 0.6 | J43: 0.6 | K43: 85 | L43: 0 | M43: 23 | N43: 296109.0965 | O43: 567806.4319 | P43: 72273.53318 | Q43: 48315.45588 | R43: 378138.32 | S43: 46718.25073 | T43: 22360.87214
B44: #18 | C44: 23 | D44: 2029 | E44: F | F44: A_VIE | G44: 0.45 | H44: 0.39 | I44: 0.6 | J44: 0.6 | K44: 85 | L44: 0 | M44: 23 | N44: 296109.0965 | O44: 567806.4319 | P44: 72273.53318 | Q44: 48315.45588 | R44: 378138.32 | S44: 46718.25073 | T44: 22360.87214
B45: #19 | C45: 24 | D45: 2026 | E45: H | F45: A_VIE | G45: 0.45 | H45: 0.39 | I45: 0.6 | J45: 0.6 | K45: 85 | L45: 0 | M45: 23 | N45: 296109.0965 | O45: 567806.4319 | P45: 72273.53318 | Q45: 48315.45588 | R45: 378138.32 | S45: 46718.25073 | T45: 22360.87214
B46: #20 | C46: 24 | D46: 2028 | E46: H | F46: A_VIE | G46: 0.45 | H46: 0.39 | I46: 0.6 | J46: 0.6 | K46: 85 | L46: 0 | M46: 23 | N46: 296109.0965 | O46: 567806.4319 | P46: 72273.53318 | Q46: 48315.45588 | R46: 378138.32 | S46: 46718.25073 | T46: 22360.87214
B47: #21 | C47: 24 | D47: 2029 | E47: H | F47: A_VIE | G47: 0.45 | H47: 0.39 | I47: 0.6 | J47: 0.6 | K47: 85 | L47: 0 | M47: 23 | N47: 296109.0965 | O47: 567806.4319 | P47: 72273.53318 | Q47: 48315.45588 | R47: 378138.32 | S47: 46718.25073 | T47: 22360.87214
B48: #22 | C48: 25 | D48: 2026 | E48: H | F48: A_VIE | G48: 0.45 | H48: 0.39 | I48: 0.6 | J48: 0.6 | K48: 85 | L48: 0 | M48: 114 | N48: 1480545.483 | O48: 2839032.16 | P48: 361367.6659 | Q48: 241577.2794 | R48: 1890691.6 | S48: 233591.2536 | T48: 111804.3607
B49: #23 | C49: 25 | D49: 2028 | E49: H | F49: A_VIE | G49: 0.45 | H49: 0.39 | I49: 0.6 | J49: 0.6 | K49: 85 | L49: 0 | M49: 114 | N49: 1480545.483 | O49: 2839032.16 | P49: 361367.6659 | Q49: 241577.2794 | R49: 1890691.6 | S49: 233591.2536 | T49: 111804.3607
B50: #24 | C50: 25 | D50: 2029 | E50: H | F50: A_VIE | G50: 0.45 | H50: 0.39 | I50: 0.6 | J50: 0.6 | K50: 85 | L50: 0 | M50: 114 | N50: 1480545.483 | O50: 2839032.16 | P50: 361367.6659 | Q50: 241577.2794 | R50: 1890691.6 | S50: 233591.2536 | T50: 111804.3607
B51: #25 | C51: 26 | D51: 2026 | E51: F | F51: A_VIE | G51: 0.45 | H51: 0.39 | I51: 0.6 | J51: 0.6 | K51: 85 | L51: 0 | M51: 68 | N51: 888327.2895 | O51: 1703419.296 | P51: 216820.5995 | Q51: 144946.3676 | R51: 1134414.96 | S51: 140154.7522 | T51: 67082.61643
B52: #26 | C52: 26 | D52: 2028 | E52: F | F52: A_VIE | G52: 0.45 | H52: 0.39 | I52: 0.6 | J52: 0.6 | K52: 85 | L52: 0 | M52: 68 | N52: 888327.2895 | O52: 1703419.296 | P52: 216820.5995 | Q52: 144946.3676 | R52: 1134414.96 | S52: 140154.7522 | T52: 67082.61643
B53: #27 | C53: 26 | D53: 2029 | E53: F | F53: A_VIE | G53: 0.45 | H53: 0.39 | I53: 0.6 | J53: 0.6 | K53: 85 | L53: 0 | M53: 68 | N53: 888327.2895 | O53: 1703419.296 | P53: 216820.5995 | Q53: 144946.3676 | R53: 1134414.96 | S53: 140154.7522 | T53: 67082.61643
B54: #28 | C54: 27 | D54: 2026 | E54: H | F54: A_VIE | G54: 0.45 | H54: 0.39 | I54: 0.6 | J54: 0.6 | K54: 85 | L54: 0 | M54: 68 | N54: 888327.2895 | O54: 1703419.296 | P54: 216820.5995 | Q54: 144946.3676 | R54: 1134414.96 | S54: 140154.7522 | T54: 67082.61643
B55: #29 | C55: 27 | D55: 2028 | E55: H | F55: A_VIE | G55: 0.45 | H55: 0.39 | I55: 0.6 | J55: 0.6 | K55: 85 | L55: 0 | M55: 68 | N55: 888327.2895 | O55: 1703419.296 | P55: 216820.5995 | Q55: 144946.3676 | R55: 1134414.96 | S55: 140154.7522 | T55: 67082.61643
B56: #30 | C56: 27 | D56: 2029 | E56: H | F56: A_VIE | G56: 0.45 | H56: 0.39 | I56: 0.6 | J56: 0.6 | K56: 85 | L56: 0 | M56: 68 | N56: 888327.2895 | O56: 1703419.296 | P56: 216820.5995 | Q56: 144946.3676 | R56: 1134414.96 | S56: 140154.7522 | T56: 67082.61643
B57: #31 | C57: 28 | D57: 2026 | E57: H | F57: A_VIE | G57: 0.45 | H57: 0.39 | I57: 0.6 | J57: 0.6 | K57: 85 | L57: 0 | M57: 68 | N57: 888327.2895 | O57: 1703419.296 | P57: 216820.5995 | Q57: 144946.3676 | R57: 1134414.96 | S57: 140154.7522 | T57: 67082.61643
B58: #32 | C58: 28 | D58: 2028 | E58: H | F58: A_VIE | G58: 0.45 | H58: 0.39 | I58: 0.6 | J58: 0.6 | K58: 85 | L58: 0 | M58: 68 | N58: 888327.2895 | O58: 1703419.296 | P58: 216820.5995 | Q58: 144946.3676 | R58: 1134414.96 | S58: 140154.7522 | T58: 67082.61643
B59: #33 | C59: 28 | D59: 2029 | E59: H | F59: A_VIE | G59: 0.45 | H59: 0.39 | I59: 0.6 | J59: 0.6 | K59: 85 | L59: 0 | M59: 68 | N59: 888327.2895 | O59: 1703419.296 | P59: 216820.5995 | Q59: 144946.3676 | R59: 1134414.96 | S59: 140154.7522 | T59: 67082.61643
B60: #34 | C60: 29 | D60: 2026 | E60: F | F60: A_VIE | G60: 0.45 | H60: 0.39 | I60: 0.6 | J60: 0.6 | K60: 85 | L60: 0 | M60: 68 | N60: 888327.2895 | O60: 1703419.296 | P60: 216820.5995 | Q60: 144946.3676 | R60: 1134414.96 | S60: 140154.7522 | T60: 67082.61643
B61: #35 | C61: 29 | D61: 2028 | E61: F | F61: A_VIE | G61: 0.45 | H61: 0.39 | I61: 0.6 | J61: 0.6 | K61: 85 | L61: 0 | M61: 68 | N61: 888327.2895 | O61: 1703419.296 | P61: 216820.5995 | Q61: 144946.3676 | R61: 1134414.96 | S61: 140154.7522 | T61: 67082.61643
B62: #36 | C62: 29 | D62: 2029 | E62: F | F62: A_VIE | G62: 0.45 | H62: 0.39 | I62: 0.6 | J62: 0.6 | K62: 85 | L62: 0 | M62: 68 | N62: 888327.2895 | O62: 1703419.296 | P62: 216820.5995 | Q62: 144946.3676 | R62: 1134414.96 | S62: 140154.7522 | T62: 67082.61643
B63: #37 | C63: 30 | D63: 2026 | E63: H | F63: A_VIE | G63: 0.45 | H63: 0.39 | I63: 0.6 | J63: 0.6 | K63: 85 | L63: 0 | M63: 68 | N63: 888327.2895 | O63: 1703419.296 | P63: 216820.5995 | Q63: 144946.3676 | R63: 1134414.96 | S63: 140154.7522 | T63: 67082.61643
B64: #38 | C64: 30 | D64: 2028 | E64: H | F64: A_VIE | G64: 0.45 | H64: 0.39 | I64: 0.6 | J64: 0.6 | K64: 85 | L64: 0 | M64: 68 | N64: 888327.2895 | O64: 1703419.296 | P64: 216820.5995 | Q64: 144946.3676 | R64: 1134414.96 | S64: 140154.7522 | T64: 67082.61643
B65: #39 | C65: 30 | D65: 2029 | E65: H | F65: A_VIE | G65: 0.45 | H65: 0.39 | I65: 0.6 | J65: 0.6 | K65: 85 | L65: 0 | M65: 68 | N65: 888327.2895 | O65: 1703419.296 | P65: 216820.5995 | Q65: 144946.3676 | R65: 1134414.96 | S65: 140154.7522 | T65: 67082.61643
B66: #40 | C66: 31 | D66: 2026 | E66: H | F66: A_VIE | G66: 0.45 | H66: 0.39 | I66: 0.6 | J66: 0.6 | K66: 85 | L66: 0 | M66: 68 | N66: 888327.2895 | O66: 1703419.296 | P66: 216820.5995 | Q66: 144946.3676 | R66: 1134414.96 | S66: 140154.7522 | T66: 67082.61643
B67: #41 | C67: 31 | D67: 2028 | E67: H | F67: A_VIE | G67: 0.45 | H67: 0.39 | I67: 0.6 | J67: 0.6 | K67: 85 | L67: 0 | M67: 68 | N67: 888327.2895 | O67: 1703419.296 | P67: 216820.5995 | Q67: 144946.3676 | R67: 1134414.96 | S67: 140154.7522 | T67: 67082.61643
B68: #42 | C68: 31 | D68: 2029 | E68: H | F68: A_VIE | G68: 0.45 | H68: 0.39 | I68: 0.6 | J68: 0.6 | K68: 85 | L68: 0 | M68: 68 | N68: 888327.2895 | O68: 1703419.296 | P68: 216820.5995 | Q68: 144946.3676 | R68: 1134414.96 | S68: 140154.7522 | T68: 67082.61643
B69: #43 | C69: 32 | D69: 2026 | E69: F | F69: A_VIE | G69: 0.45 | H69: 0.39 | I69: 0.6 | J69: 0.6 | K69: 85 | L69: 0 | M69: 68 | N69: 888327.2895 | O69: 1703419.296 | P69: 216820.5995 | Q69: 144946.3676 | R69: 1134414.96 | S69: 140154.7522 | T69: 67082.61643
B70: #44 | C70: 32 | D70: 2028 | E70: F | F70: A_VIE | G70: 0.45 | H70: 0.39 | I70: 0.6 | J70: 0.6 | K70: 85 | L70: 0 | M70: 68 | N70: 888327.2895 | O70: 1703419.296 | P70: 216820.5995 | Q70: 144946.3676 | R70: 1134414.96 | S70: 140154.7522 | T70: 67082.61643
B71: #45 | C71: 32 | D71: 2029 | E71: F | F71: A_VIE | G71: 0.45 | H71: 0.39 | I71: 0.6 | J71: 0.6 | K71: 85 | L71: 0 | M71: 68 | N71: 888327.2895 | O71: 1703419.296 | P71: 216820.5995 | Q71: 144946.3676 | R71: 1134414.96 | S71: 140154.7522 | T71: 67082.61643
B72: #46 | C72: 33 | D72: 2026 | E72: H | F72: A_VIE | G72: 0.45 | H72: 0.39 | I72: 0.6 | J72: 0.6 | K72: 85 | L72: 0 | M72: 68 | N72: 888327.2895 | O72: 1703419.296 | P72: 216820.5995 | Q72: 144946.3676 | R72: 1134414.96 | S72: 140154.7522 | T72: 67082.61643
B73: #47 | C73: 33 | D73: 2028 | E73: H | F73: A_VIE | G73: 0.45 | H73: 0.39 | I73: 0.6 | J73: 0.6 | K73: 85 | L73: 0 | M73: 68 | N73: 888327.2895 | O73: 1703419.296 | P73: 216820.5995 | Q73: 144946.3676 | R73: 1134414.96 | S73: 140154.7522 | T73: 67082.61643
B74: #48 | C74: 33 | D74: 2029 | E74: H | F74: A_VIE | G74: 0.45 | H74: 0.39 | I74: 0.6 | J74: 0.6 | K74: 85 | L74: 0 | M74: 68 | N74: 888327.2895 | O74: 1703419.296 | P74: 216820.5995 | Q74: 144946.3676 | R74: 1134414.96 | S74: 140154.7522 | T74: 67082.61643
B75: #49 | C75: 34 | D75: 2026 | E75: H | F75: A_VIE | G75: 0.45 | H75: 0.39 | I75: 0.6 | J75: 0.6 | K75: 85 | L75: 0 | M75: 68 | N75: 888327.2895 | O75: 1703419.296 | P75: 216820.5995 | Q75: 144946.3676 | R75: 1134414.96 | S75: 140154.7522 | T75: 67082.61643
B76: #50 | C76: 34 | D76: 2028 | E76: H | F76: A_VIE | G76: 0.45 | H76: 0.39 | I76: 0.6 | J76: 0.6 | K76: 85 | L76: 0 | M76: 68 | N76: 888327.2895 | O76: 1703419.296 | P76: 216820.5995 | Q76: 144946.3676 | R76: 1134414.96 | S76: 140154.7522 | T76: 67082.61643
B77: #51 | C77: 34 | D77: 2029 | E77: H | F77: A_VIE | G77: 0.45 | H77: 0.39 | I77: 0.6 | J77: 0.6 | K77: 85 | L77: 0 | M77: 68 | N77: 888327.2895 | O77: 1703419.296 | P77: 216820.5995 | Q77: 144946.3676 | R77: 1134414.96 | S77: 140154.7522 | T77: 67082.61643
B78: #52 | C78: 35 | D78: 2026 | E78: F | F78: A_VIE | G78: 0.45 | H78: 0.39 | I78: 0.6 | J78: 0.6 | K78: 85 | L78: 0 | M78: 68 | N78: 888327.2895 | O78: 1703419.296 | P78: 216820.5995 | Q78: 144946.3676 | R78: 1134414.96 | S78: 140154.7522 | T78: 67082.61643
B79: #53 | C79: 35 | D79: 2028 | E79: F | F79: A_VIE | G79: 0.45 | H79: 0.39 | I79: 0.6 | J79: 0.6 | K79: 85 | L79: 0 | M79: 68 | N79: 888327.2895 | O79: 1703419.296 | P79: 216820.5995 | Q79: 144946.3676 | R79: 1134414.96 | S79: 140154.7522 | T79: 67082.61643
B80: #54 | C80: 35 | D80: 2029 | E80: F | F80: A_VIE | G80: 0.45 | H80: 0.39 | I80: 0.6 | J80: 0.6 | K80: 85 | L80: 0 | M80: 68 | N80: 888327.2895 | O80: 1703419.296 | P80: 216820.5995 | Q80: 144946.3676 | R80: 1134414.96 | S80: 140154.7522 | T80: 67082.61643
B81: #55 | C81: 36 | D81: 2026 | E81: H | F81: A_VIE | G81: 0.45 | H81: 0.39 | I81: 0.6 | J81: 0.6 | K81: 85 | L81: 0 | M81: 11 | N81: 148054.5483 | O81: 283903.216 | P81: 36136.76659 | Q81: 24157.72794 | R81: 189069.16 | S81: 23359.12536 | T81: 11180.43607
B82: #56 | C82: 36 | D82: 2028 | E82: H | F82: A_VIE | G82: 0.45 | H82: 0.39 | I82: 0.6 | J82: 0.6 | K82: 85 | L82: 0 | M82: 11 | N82: 148054.5483 | O82: 283903.216 | P82: 36136.76659 | Q82: 24157.72794 | R82: 189069.16 | S82: 23359.12536 | T82: 11180.43607
B83: #57 | C83: 36 | D83: 2029 | E83: H | F83: A_VIE | G83: 0.45 | H83: 0.39 | I83: 0.6 | J83: 0.6 | K83: 85 | L83: 0 | M83: 11 | N83: 148054.5483 | O83: 283903.216 | P83: 36136.76659 | Q83: 24157.72794 | R83: 189069.16 | S83: 23359.12536 | T83: 11180.43607
B84: #58 | C84: 37 | D84: 2026 | E84: H | F84: A_VIE | G84: 0.45 | H84: 0.39 | I84: 0.6 | J84: 0.6 | K84: 85 | L84: 0 | M84: 11 | N84: 148054.5483 | O84: 283903.216 | P84: 36136.76659 | Q84: 24157.72794 | R84: 189069.16 | S84: 23359.12536 | T84: 11180.43607
B85: #59 | C85: 37 | D85: 2028 | E85: H | F85: A_VIE | G85: 0.45 | H85: 0.39 | I85: 0.6 | J85: 0.6 | K85: 85 | L85: 0 | M85: 11 | N85: 148054.5483 | O85: 283903.216 | P85: 36136.76659 | Q85: 24157.72794 | R85: 189069.16 | S85: 23359.12536 | T85: 11180.43607
B86: #60 | C86: 37 | D86: 2029 | E86: H | F86: A_VIE | G86: 0.45 | H86: 0.39 | I86: 0.6 | J86: 0.6 | K86: 85 | L86: 0 | M86: 11 | N86: 148054.5483 | O86: 283903.216 | P86: 36136.76659 | Q86: 24157.72794 | R86: 189069.16 | S86: 23359.12536 | T86: 11180.43607
B87: #61 | C87: 38 | D87: 2026 | E87: F | F87: A_VIE | G87: 0.45 | H87: 0.39 | I87: 0.6 | J87: 0.6 | K87: 85 | L87: 0 | M87: 11 | N87: 148054.5483 | O87: 283903.216 | P87: 36136.76659 | Q87: 24157.72794 | R87: 189069.16 | S87: 23359.12536 | T87: 11180.43607
B88: #62 | C88: 38 | D88: 2028 | E88: F | F88: A_VIE | G88: 0.45 | H88: 0.39 | I88: 0.6 | J88: 0.6 | K88: 85 | L88: 0 | M88: 11 | N88: 148054.5483 | O88: 283903.216 | P88: 36136.76659 | Q88: 24157.72794 | R88: 189069.16 | S88: 23359.12536 | T88: 11180.43607
B89: #63 | C89: 38 | D89: 2029 | E89: F | F89: A_VIE | G89: 0.45 | H89: 0.39 | I89: 0.6 | J89: 0.6 | K89: 85 | L89: 0 | M89: 11 | N89: 148054.5483 | O89: 283903.216 | P89: 36136.76659 | Q89: 24157.72794 | R89: 189069.16 | S89: 23359.12536 | T89: 11180.43607
B90: #64 | C90: 39 | D90: 2026 | E90: H | F90: A_VIE | G90: 0.45 | H90: 0.39 | I90: 0.6 | J90: 0.6 | K90: 85 | L90: 0 | M90: 11 | N90: 148054.5483 | O90: 283903.216 | P90: 36136.76659 | Q90: 24157.72794 | R90: 189069.16 | S90: 23359.12536 | T90: 11180.43607
B91: #65 | C91: 39 | D91: 2028 | E91: H | F91: A_VIE | G91: 0.45 | H91: 0.39 | I91: 0.6 | J91: 0.6 | K91: 85 | L91: 0 | M91: 11 | N91: 148054.5483 | O91: 283903.216 | P91: 36136.76659 | Q91: 24157.72794 | R91: 189069.16 | S91: 23359.12536 | T91: 11180.43607
B92: #66 | C92: 39 | D92: 2029 | E92: H | F92: A_VIE | G92: 0.45 | H92: 0.39 | I92: 0.6 | J92: 0.6 | K92: 85 | L92: 0 | M92: 11 | N92: 148054.5483 | O92: 283903.216 | P92: 36136.76659 | Q92: 24157.72794 | R92: 189069.16 | S92: 23359.12536 | T92: 11180.43607
B93: #67 | C93: 40 | D93: 2026 | E93: H | F93: A_VIE | G93: 0.45 | H93: 0.39 | I93: 0.6 | J93: 0.6 | K93: 85 | L93: 0 | M93: 11 | N93: 148054.5483 | O93: 283903.216 | P93: 36136.76659 | Q93: 24157.72794 | R93: 189069.16 | S93: 23359.12536 | T93: 11180.43607
B94: #68 | C94: 40 | D94: 2028 | E94: H | F94: A_VIE | G94: 0.45 | H94: 0.39 | I94: 0.6 | J94: 0.6 | K94: 85 | L94: 0 | M94: 11 | N94: 148054.5483 | O94: 283903.216 | P94: 36136.76659 | Q94: 24157.72794 | R94: 189069.16 | S94: 23359.12536 | T94: 11180.43607
B95: #69 | C95: 40 | D95: 2029 | E95: H | F95: A_VIE | G95: 0.45 | H95: 0.39 | I95: 0.6 | J95: 0.6 | K95: 85 | L95: 0 | M95: 11 | N95: 148054.5483 | O95: 283903.216 | P95: 36136.76659 | Q95: 24157.72794 | R95: 189069.16 | S95: 23359.12536 | T95: 11180.43607
B96: #70 | C96: 41 | D96: 2026 | E96: F | F96: A_VIE | G96: 0.45 | H96: 0.39 | I96: 0.6 | J96: 0.6 | K96: 85 | L96: 0 | M96: 11 | N96: 148054.5483 | O96: 283903.216 | P96: 36136.76659 | Q96: 24157.72794 | R96: 189069.16 | S96: 23359.12536 | T96: 11180.43607
B97: #71 | C97: 41 | D97: 2028 | E97: F | F97: A_VIE | G97: 0.45 | H97: 0.39 | I97: 0.6 | J97: 0.6 | K97: 85 | L97: 0 | M97: 11 | N97: 148054.5483 | O97: 283903.216 | P97: 36136.76659 | Q97: 24157.72794 | R97: 189069.16 | S97: 23359.12536 | T97: 11180.43607
B98: #72 | C98: 41 | D98: 2029 | E98: F | F98: A_VIE | G98: 0.45 | H98: 0.39 | I98: 0.6 | J98: 0.6 | K98: 85 | L98: 0 | M98: 11 | N98: 148054.5483 | O98: 283903.216 | P98: 36136.76659 | Q98: 24157.72794 | R98: 189069.16 | S98: 23359.12536 | T98: 11180.43607
B99: #73 | C99: 42 | D99: 2026 | E99: H | F99: A_VIE | G99: 0.45 | H99: 0.39 | I99: 0.6 | J99: 0.6 | K99: 85 | L99: 0 | M99: 11 | N99: 148054.5483 | O99: 283903.216 | P99: 36136.76659 | Q99: 24157.72794 | R99: 189069.16 | S99: 23359.12536 | T99: 11180.43607
B100: #74 | C100: 42 | D100: 2028 | E100: H | F100: A_VIE | G100: 0.45 | H100: 0.39 | I100: 0.6 | J100: 0.6 | K100: 85 | L100: 0 | M100: 11 | N100: 148054.5483 | O100: 283903.216 | P100: 36136.76659 | Q100: 24157.72794 | R100: 189069.16 | S100: 23359.12536 | T100: 11180.43607
B101: #75 | C101: 42 | D101: 2029 | E101: H | F101: A_VIE | G101: 0.45 | H101: 0.39 | I101: 0.6 | J101: 0.6 | K101: 85 | L101: 0 | M101: 11 | N101: 148054.5483 | O101: 283903.216 | P101: 36136.76659 | Q101: 24157.72794 | R101: 189069.16 | S101: 23359.12536 | T101: 11180.43607
B102: #76 | C102: 43 | D102: 2026 | E102: H | F102: A_VIE | G102: 0.45 | H102: 0.39 | I102: 0.6 | J102: 0.6 | K102: 85 | L102: 0 | M102: 11 | N102: 148054.5483 | O102: 283903.216 | P102: 36136.76659 | Q102: 24157.72794 | R102: 189069.16 | S102: 23359.12536 | T102: 11180.43607
B103: #77 | C103: 43 | D103: 2028 | E103: H | F103: A_VIE | G103: 0.45 | H103: 0.39 | I103: 0.6 | J103: 0.6 | K103: 85 | L103: 0 | M103: 11 | N103: 148054.5483 | O103: 283903.216 | P103: 36136.76659 | Q103: 24157.72794 | R103: 189069.16 | S103: 23359.12536 | T103: 11180.43607
B104: #78 | C104: 43 | D104: 2029 | E104: H | F104: A_VIE | G104: 0.45 | H104: 0.39 | I104: 0.6 | J104: 0.6 | K104: 85 | L104: 0 | M104: 11 | N104: 148054.5483 | O104: 283903.216 | P104: 36136.76659 | Q104: 24157.72794 | R104: 189069.16 | S104: 23359.12536 | T104: 11180.43607
B105: #79 | C105: 44 | D105: 2026 | E105: F | F105: A_VIE | G105: 0.45 | H105: 0.39 | I105: 0.6 | J105: 0.6 | K105: 85 | L105: 0 | M105: 11 | N105: 148054.5483 | O105: 283903.216 | P105: 36136.76659 | Q105: 24157.72794 | R105: 189069.16 | S105: 23359.12536 | T105: 11180.43607
B106: #80 | C106: 44 | D106: 2028 | E106: F | F106: A_VIE | G106: 0.45 | H106: 0.39 | I106: 0.6 | J106: 0.6 | K106: 85 | L106: 0 | M106: 11 | N106: 148054.5483 | O106: 283903.216 | P106: 36136.76659 | Q106: 24157.72794 | R106: 189069.16 | S106: 23359.12536 | T106: 11180.43607
B107: #81 | C107: 44 | D107: 2029 | E107: F | F107: A_VIE | G107: 0.45 | H107: 0.39 | I107: 0.6 | J107: 0.6 | K107: 85 | L107: 0 | M107: 11 | N107: 148054.5483 | O107: 283903.216 | P107: 36136.76659 | Q107: 24157.72794 | R107: 189069.16 | S107: 23359.12536 | T107: 11180.43607
B108: #82 | C108: 45 | D108: 2026 | E108: H | F108: A_VIE | G108: 0.45 | H108: 0.39 | I108: 0.6 | J108: 0.6 | K108: 85 | L108: 0 | M108: 11 | N108: 148054.5483 | O108: 283903.216 | P108: 36136.76659 | Q108: 24157.72794 | R108: 189069.16 | S108: 23359.12536 | T108: 11180.43607
B109: #83 | C109: 45 | D109: 2028 | E109: H | F109: A_VIE | G109: 0.45 | H109: 0.39 | I109: 0.6 | J109: 0.6 | K109: 85 | L109: 0 | M109: 11 | N109: 148054.5483 | O109: 283903.216 | P109: 36136.76659 | Q109: 24157.72794 | R109: 189069.16 | S109: 23359.12536 | T109: 11180.43607
B110: #84 | C110: 45 | D110: 2029 | E110: H | F110: A_VIE | G110: 0.45 | H110: 0.39 | I110: 0.6 | J110: 0.6 | K110: 85 | L110: 0 | M110: 11 | N110: 148054.5483 | O110: 283903.216 | P110: 36136.76659 | Q110: 24157.72794 | R110: 189069.16 | S110: 23359.12536 | T110: 11180.43607
B111: #85 | C111: 46 | D111: 2026 | E111: H | F111: A_VIE | G111: 0.45 | H111: 0.39 | I111: 0.6 | J111: 0.6 | K111: 85 | L111: 0 | M111: 11 | N111: 148054.5483 | O111: 283903.216 | P111: 36136.76659 | Q111: 24157.72794 | R111: 189069.16 | S111: 23359.12536 | T111: 11180.43607
B112: #86 | C112: 46 | D112: 2028 | E112: H | F112: A_VIE | G112: 0.45 | H112: 0.39 | I112: 0.6 | J112: 0.6 | K112: 85 | L112: 0 | M112: 11 | N112: 148054.5483 | O112: 283903.216 | P112: 36136.76659 | Q112: 24157.72794 | R112: 189069.16 | S112: 23359.12536 | T112: 11180.43607
B113: #87 | C113: 46 | D113: 2029 | E113: H | F113: A_VIE | G113: 0.45 | H113: 0.39 | I113: 0.6 | J113: 0.6 | K113: 85 | L113: 0 | M113: 11 | N113: 148054.5483 | O113: 283903.216 | P113: 36136.76659 | Q113: 24157.72794 | R113: 189069.16 | S113: 23359.12536 | T113: 11180.43607
B114: #88 | C114: 47 | D114: 2026 | E114: F | F114: A_VIE | G114: 0.45 | H114: 0.39 | I114: 0.6 | J114: 0.6 | K114: 85 | L114: 0 | M114: 11 | N114: 148054.5483 | O114: 283903.216 | P114: 36136.76659 | Q114: 24157.72794 | R114: 189069.16 | S114: 23359.12536 | T114: 11180.43607
B115: #89 | C115: 47 | D115: 2028 | E115: F | F115: A_VIE | G115: 0.45 | H115: 0.39 | I115: 0.6 | J115: 0.6 | K115: 85 | L115: 0 | M115: 11 | N115: 148054.5483 | O115: 283903.216 | P115: 36136.76659 | Q115: 24157.72794 | R115: 189069.16 | S115: 23359.12536 | T115: 11180.43607
B116: #90 | C116: 47 | D116: 2029 | E116: F | F116: A_VIE | G116: 0.45 | H116: 0.39 | I116: 0.6 | J116: 0.6 | K116: 85 | L116: 0 | M116: 11 | N116: 148054.5483 | O116: 283903.216 | P116: 36136.76659 | Q116: 24157.72794 | R116: 189069.16 | S116: 23359.12536 | T116: 11180.43607
B117: #91 | C117: 48 | D117: 2026 | E117: H | F117: A_VIE | G117: 0.45 | H117: 0.39 | I117: 0.6 | J117: 0.6 | K117: 85 | L117: 0 | M117: 11 | N117: 148054.5483 | O117: 283903.216 | P117: 36136.76659 | Q117: 24157.72794 | R117: 189069.16 | S117: 23359.12536 | T117: 11180.43607
B118: #92 | C118: 48 | D118: 2028 | E118: H | F118: A_VIE | G118: 0.45 | H118: 0.39 | I118: 0.6 | J118: 0.6 | K118: 85 | L118: 0 | M118: 11 | N118: 148054.5483 | O118: 283903.216 | P118: 36136.76659 | Q118: 24157.72794 | R118: 189069.16 | S118: 23359.12536 | T118: 11180.43607
B119: #93 | C119: 48 | D119: 2029 | E119: H | F119: A_VIE | G119: 0.45 | H119: 0.39 | I119: 0.6 | J119: 0.6 | K119: 85 | L119: 0 | M119: 11 | N119: 148054.5483 | O119: 283903.216 | P119: 36136.76659 | Q119: 24157.72794 | R119: 189069.16 | S119: 23359.12536 | T119: 11180.43607
B120: #94 | C120: 49 | D120: 2026 | E120: H | F120: A_VIE | G120: 0.45 | H120: 0.39 | I120: 0.6 | J120: 0.6 | K120: 85 | L120: 0 | M120: 11 | N120: 148054.5483 | O120: 283903.216 | P120: 36136.76659 | Q120: 24157.72794 | R120: 189069.16 | S120: 23359.12536 | T120: 11180.43607
B121: #95 | C121: 49 | D121: 2028 | E121: H | F121: A_VIE | G121: 0.45 | H121: 0.39 | I121: 0.6 | J121: 0.6 | K121: 85 | L121: 0 | M121: 11 | N121: 148054.5483 | O121: 283903.216 | P121: 36136.76659 | Q121: 24157.72794 | R121: 189069.16 | S121: 23359.12536 | T121: 11180.43607
B122: #96 | C122: 49 | D122: 2029 | E122: H | F122: A_VIE | G122: 0.45 | H122: 0.39 | I122: 0.6 | J122: 0.6 | K122: 85 | L122: 0 | M122: 11 | N122: 148054.5483 | O122: 283903.216 | P122: 36136.76659 | Q122: 24157.72794 | R122: 189069.16 | S122: 23359.12536 | T122: 11180.43607
B123: #97 | C123: 50 | D123: 2026 | E123: F | F123: A_VIE | G123: 0.45 | H123: 0.39 | I123: 0.6 | J123: 0.6 | K123: 85 | L123: 0 | M123: 68 | N123: 888327.2895 | O123: 1703419.296 | P123: 216820.5995 | Q123: 144946.3676 | R123: 1134414.96 | S123: 140154.7522 | T123: 67082.61643
B124: #98 | C124: 50 | D124: 2028 | E124: F | F124: A_VIE | G124: 0.45 | H124: 0.39 | I124: 0.6 | J124: 0.6 | K124: 85 | L124: 0 | M124: 68 | N124: 888327.2895 | O124: 1703419.296 | P124: 216820.5995 | Q124: 144946.3676 | R124: 1134414.96 | S124: 140154.7522 | T124: 67082.61643
B125: #99 | C125: 50 | D125: 2029 | E125: F | F125: A_VIE | G125: 0.45 | H125: 0.39 | I125: 0.6 | J125: 0.6 | K125: 85 | L125: 0 | M125: 68 | N125: 888327.2895 | O125: 1703419.296 | P125: 216820.5995 | Q125: 144946.3676 | R125: 1134414.96 | S125: 140154.7522 | T125: 67082.61643
B126: #100 | C126: 51 | D126: 2026 | E126: H | F126: A_VIE | G126: 0.45 | H126: 0.39 | I126: 0.6 | J126: 0.6 | K126: 85 | L126: 0 | M126: 68 | N126: 888327.2895 | O126: 1703419.296 | P126: 216820.5995 | Q126: 144946.3676 | R126: 1134414.96 | S126: 140154.7522 | T126: 67082.61643
B127: #101 | C127: 51 | D127: 2028 | E127: H | F127: A_VIE | G127: 0.45 | H127: 0.39 | I127: 0.6 | J127: 0.6 | K127: 85 | L127: 0 | M127: 68 | N127: 888327.2895 | O127: 1703419.296 | P127: 216820.5995 | Q127: 144946.3676 | R127: 1134414.96 | S127: 140154.7522 | T127: 67082.61643
B128: #102 | C128: 51 | D128: 2029 | E128: H | F128: A_VIE | G128: 0.45 | H128: 0.39 | I128: 0.6 | J128: 0.6 | K128: 85 | L128: 0 | M128: 68 | N128: 888327.2895 | O128: 1703419.296 | P128: 216820.5995 | Q128: 144946.3676 | R128: 1134414.96 | S128: 140154.7522 | T128: 67082.61643
B129: #103 | C129: 52 | D129: 2026 | E129: H | F129: A_VIE | G129: 0.45 | H129: 0.39 | I129: 0.6 | J129: 0.6 | K129: 85 | L129: 0 | M129: 68 | N129: 888327.2895 | O129: 1703419.296 | P129: 216820.5995 | Q129: 144946.3676 | R129: 1134414.96 | S129: 140154.7522 | T129: 67082.61643
B130: #104 | C130: 52 | D130: 2028 | E130: H | F130: A_VIE | G130: 0.45 | H130: 0.39 | I130: 0.6 | J130: 0.6 | K130: 85 | L130: 0 | M130: 68 | N130: 888327.2895 | O130: 1703419.296 | P130: 216820.5995 | Q130: 144946.3676 | R130: 1134414.96 | S130: 140154.7522 | T130: 67082.61643
B131: #105 | C131: 52 | D131: 2029 | E131: H | F131: A_VIE | G131: 0.45 | H131: 0.39 | I131: 0.6 | J131: 0.6 | K131: 85 | L131: 0 | M131: 68 | N131: 888327.2895 | O131: 1703419.296 | P131: 216820.5995 | Q131: 144946.3676 | R131: 1134414.96 | S131: 140154.7522 | T131: 67082.61643
B132: #106 | C132: 53 | D132: 2026 | E132: F | F132: A_VIE | G132: 0.45 | H132: 0.39 | I132: 0.6 | J132: 0.6 | K132: 85 | L132: 0 | M132: 68 | N132: 888327.2895 | O132: 1703419.296 | P132: 216820.5995 | Q132: 144946.3676 | R132: 1134414.96 | S132: 140154.7522 | T132: 67082.61643
B133: #107 | C133: 53 | D133: 2028 | E133: F | F133: A_VIE | G133: 0.45 | H133: 0.39 | I133: 0.6 | J133: 0.6 | K133: 85 | L133: 0 | M133: 68 | N133: 888327.2895 | O133: 1703419.296 | P133: 216820.5995 | Q133: 144946.3676 | R133: 1134414.96 | S133: 140154.7522 | T133: 67082.61643
B134: #108 | C134: 53 | D134: 2029 | E134: F | F134: A_VIE | G134: 0.45 | H134: 0.39 | I134: 0.6 | J134: 0.6 | K134: 85 | L134: 0 | M134: 68 | N134: 888327.2895 | O134: 1703419.296 | P134: 216820.5995 | Q134: 144946.3676 | R134: 1134414.96 | S134: 140154.7522 | T134: 67082.61643
B135: #109 | C135: 54 | D135: 2026 | E135: H | F135: A_VIE | G135: 0.45 | H135: 0.39 | I135: 0.6 | J135: 0.6 | K135: 85 | L135: 0 | M135: 68 | N135: 888327.2895 | O135: 1703419.296 | P135: 216820.5995 | Q135: 144946.3676 | R135: 1134414.96 | S135: 140154.7522 | T135: 67082.61643
B136: #110 | C136: 54 | D136: 2028 | E136: H | F136: A_VIE | G136: 0.45 | H136: 0.39 | I136: 0.6 | J136: 0.6 | K136: 85 | L136: 0 | M136: 68 | N136: 888327.2895 | O136: 1703419.296 | P136: 216820.5995 | Q136: 144946.3676 | R136: 1134414.96 | S136: 140154.7522 | T136: 67082.61643
B137: #111 | C137: 54 | D137: 2029 | E137: H | F137: A_VIE | G137: 0.45 | H137: 0.39 | I137: 0.6 | J137: 0.6 | K137: 85 | L137: 0 | M137: 68 | N137: 888327.2895 | O137: 1703419.296 | P137: 216820.5995 | Q137: 144946.3676 | R137: 1134414.96 | S137: 140154.7522 | T137: 67082.61643
B138: #112 | C138: 55 | D138: 2026 | E138: H | F138: A_VIE | G138: 0.45 | H138: 0.39 | I138: 0.6 | J138: 0.6 | K138: 85 | L138: 0 | M138: 68 | N138: 888327.2895 | O138: 1703419.296 | P138: 216820.5995 | Q138: 144946.3676 | R138: 1134414.96 | S138: 140154.7522 | T138: 67082.61643
B139: #113 | C139: 55 | D139: 2028 | E139: H | F139: A_VIE | G139: 0.45 | H139: 0.39 | I139: 0.6 | J139: 0.6 | K139: 85 | L139: 0 | M139: 68 | N139: 888327.2895 | O139: 1703419.296 | P139: 216820.5995 | Q139: 144946.3676 | R139: 1134414.96 | S139: 140154.7522 | T139: 67082.61643
B140: #114 | C140: 55 | D140: 2029 | E140: H | F140: A_VIE | G140: 0.45 | H140: 0.39 | I140: 0.6 | J140: 0.6 | K140: 85 | L140: 0 | M140: 68 | N140: 888327.2895 | O140: 1703419.296 | P140: 216820.5995 | Q140: 144946.3676 | R140: 1134414.96 | S140: 140154.7522 | T140: 67082.61643
B141: #115 | C141: 56 | D141: 2026 | E141: F | F141: A_VIE | G141: 0.45 | H141: 0.39 | I141: 0.6 | J141: 0.6 | K141: 85 | L141: 0 | M141: 68 | N141: 888327.2895 | O141: 1703419.296 | P141: 216820.5995 | Q141: 144946.3676 | R141: 1134414.96 | S141: 140154.7522 | T141: 67082.61643
B142: #116 | C142: 56 | D142: 2028 | E142: F | F142: A_VIE | G142: 0.45 | H142: 0.39 | I142: 0.6 | J142: 0.6 | K142: 85 | L142: 0 | M142: 68 | N142: 888327.2895 | O142: 1703419.296 | P142: 216820.5995 | Q142: 144946.3676 | R142: 1134414.96 | S142: 140154.7522 | T142: 67082.61643
B143: #117 | C143: 56 | D143: 2029 | E143: F | F143: A_VIE | G143: 0.45 | H143: 0.39 | I143: 0.6 | J143: 0.6 | K143: 85 | L143: 0 | M143: 68 | N143: 888327.2895 | O143: 1703419.296 | P143: 216820.5995 | Q143: 144946.3676 | R143: 1134414.96 | S143: 140154.7522 | T143: 67082.61643
B144: #118 | C144: 57 | D144: 2026 | E144: H | F144: A_VIE | G144: 0.45 | H144: 0.39 | I144: 0.6 | J144: 0.6 | K144: 85 | L144: 0 | M144: 68 | N144: 888327.2895 | O144: 1703419.296 | P144: 216820.5995 | Q144: 144946.3676 | R144: 1134414.96 | S144: 140154.7522 | T144: 67082.61643
B145: #119 | C145: 57 | D145: 2028 | E145: H | F145: A_VIE | G145: 0.45 | H145: 0.39 | I145: 0.6 | J145: 0.6 | K145: 85 | L145: 0 | M145: 68 | N145: 888327.2895 | O145: 1703419.296 | P145: 216820.5995 | Q145: 144946.3676 | R145: 1134414.96 | S145: 140154.7522 | T145: 67082.61643
B146: #120 | C146: 57 | D146: 2029 | E146: H | F146: A_VIE | G146: 0.45 | H146: 0.39 | I146: 0.6 | J146: 0.6 | K146: 85 | L146: 0 | M146: 68 | N146: 888327.2895 | O146: 1703419.296 | P146: 216820.5995 | Q146: 144946.3676 | R146: 1134414.96 | S146: 140154.7522 | T146: 67082.61643
B147: #121 | C147: 58 | D147: 2026 | E147: H | F147: A_VIE | G147: 0.45 | H147: 0.39 | I147: 0.6 | J147: 0.6 | K147: 85 | L147: 0 | M147: 68 | N147: 888327.2895 | O147: 1703419.296 | P147: 216820.5995 | Q147: 144946.3676 | R147: 1134414.96 | S147: 140154.7522 | T147: 67082.61643
B148: #122 | C148: 58 | D148: 2028 | E148: H | F148: A_VIE | G148: 0.45 | H148: 0.39 | I148: 0.6 | J148: 0.6 | K148: 85 | L148: 0 | M148: 68 | N148: 888327.2895 | O148: 1703419.296 | P148: 216820.5995 | Q148: 144946.3676 | R148: 1134414.96 | S148: 140154.7522 | T148: 67082.61643
B149: #123 | C149: 58 | D149: 2029 | E149: H | F149: A_VIE | G149: 0.45 | H149: 0.39 | I149: 0.6 | J149: 0.6 | K149: 85 | L149: 0 | M149: 68 | N149: 888327.2895 | O149: 1703419.296 | P149: 216820.5995 | Q149: 144946.3676 | R149: 1134414.96 | S149: 140154.7522 | T149: 67082.61643
B150: #124 | C150: 59 | D150: 2026 | E150: F | F150: A_VIE | G150: 0.45 | H150: 0.39 | I150: 0.6 | J150: 0.6 | K150: 85 | L150: 0 | M150: 68 | N150: 888327.2895 | O150: 1703419.296 | P150: 216820.5995 | Q150: 144946.3676 | R150: 1134414.96 | S150: 140154.7522 | T150: 67082.61643
B151: #125 | C151: 59 | D151: 2028 | E151: F | F151: A_VIE | G151: 0.45 | H151: 0.39 | I151: 0.6 | J151: 0.6 | K151: 85 | L151: 0 | M151: 68 | N151: 888327.2895 | O151: 1703419.296 | P151: 216820.5995 | Q151: 144946.3676 | R151: 1134414.96 | S151: 140154.7522 | T151: 67082.61643
B152: #126 | C152: 59 | D152: 2029 | E152: F | F152: A_VIE | G152: 0.45 | H152: 0.39 | I152: 0.6 | J152: 0.6 | K152: 85 | L152: 0 | M152: 68 | N152: 888327.2895 | O152: 1703419.296 | P152: 216820.5995 | Q152: 144946.3676 | R152: 1134414.96 | S152: 140154.7522 | T152: 67082.61643
B153: #127 | C153: 60 | D153: 2026 | E153: H | F153: A_VIE | G153: 0.45 | H153: 0.39 | I153: 0.6 | J153: 0.6 | K153: 85 | L153: 0 | M153: 114 | N153: 1480545.483 | O153: 2839032.16 | P153: 361367.6659 | Q153: 241577.2794 | R153: 1890691.6 | S153: 233591.2536 | T153: 111804.3607
B154: #128 | C154: 60 | D154: 2028 | E154: H | F154: A_VIE | G154: 0.45 | H154: 0.39 | I154: 0.6 | J154: 0.6 | K154: 85 | L154: 0 | M154: 114 | N154: 1480545.483 | O154: 2839032.16 | P154: 361367.6659 | Q154: 241577.2794 | R154: 1890691.6 | S154: 233591.2536 | T154: 111804.3607
B155: #129 | C155: 60 | D155: 2029 | E155: H | F155: A_VIE | G155: 0.45 | H155: 0.39 | I155: 0.6 | J155: 0.6 | K155: 85 | L155: 0 | M155: 114 | N155: 1480545.483 | O155: 2839032.16 | P155: 361367.6659 | Q155: 241577.2794 | R155: 1890691.6 | S155: 233591.2536 | T155: 111804.3607
B156: #130 | C156: 61 | D156: 2026 | E156: H | F156: A_VIE | G156: 0.45 | H156: 0.39 | I156: 0.6 | J156: 0.6 | K156: 85 | L156: 0 | M156: 68 | N156: 888327.2895 | O156: 1703419.296 | P156: 216820.5995 | Q156: 144946.3676 | R156: 1134414.96 | S156: 140154.7522 | T156: 67082.61643
B157: #131 | C157: 61 | D157: 2028 | E157: H | F157: A_VIE | G157: 0.45 | H157: 0.39 | I157: 0.6 | J157: 0.6 | K157: 85 | L157: 0 | M157: 68 | N157: 888327.2895 | O157: 1703419.296 | P157: 216820.5995 | Q157: 144946.3676 | R157: 1134414.96 | S157: 140154.7522 | T157: 67082.61643
B158: #132 | C158: 61 | D158: 2029 | E158: H | F158: A_VIE | G158: 0.45 | H158: 0.39 | I158: 0.6 | J158: 0.6 | K158: 85 | L158: 0 | M158: 68 | N158: 888327.2895 | O158: 1703419.296 | P158: 216820.5995 | Q158: 144946.3676 | R158: 1134414.96 | S158: 140154.7522 | T158: 67082.61643
B159: #133 | C159: 62 | D159: 2026 | E159: F | F159: A_VIE | G159: 0.45 | H159: 0.39 | I159: 0.6 | J159: 0.6 | K159: 85 | L159: 0 | M159: 68 | N159: 888327.2895 | O159: 1703419.296 | P159: 216820.5995 | Q159: 144946.3676 | R159: 1134414.96 | S159: 140154.7522 | T159: 67082.61643
B160: #134 | C160: 62 | D160: 2028 | E160: F | F160: A_VIE | G160: 0.45 | H160: 0.39 | I160: 0.6 | J160: 0.6 | K160: 85 | L160: 0 | M160: 68 | N160: 888327.2895 | O160: 1703419.296 | P160: 216820.5995 | Q160: 144946.3676 | R160: 1134414.96 | S160: 140154.7522 | T160: 67082.61643
B161: #135 | C161: 62 | D161: 2029 | E161: F | F161: A_VIE | G161: 0.45 | H161: 0.39 | I161: 0.6 | J161: 0.6 | K161: 85 | L161: 0 | M161: 68 | N161: 888327.2895 | O161: 1703419.296 | P161: 216820.5995 | Q161: 144946.3676 | R161: 1134414.96 | S161: 140154.7522 | T161: 67082.61643
B162: #136 | C162: 63 | D162: 2026 | E162: H | F162: A_VIE | G162: 0.45 | H162: 0.39 | I162: 0.6 | J162: 0.6 | K162: 85 | L162: 0 | M162: 68 | N162: 888327.2895 | O162: 1703419.296 | P162: 216820.5995 | Q162: 144946.3676 | R162: 1134414.96 | S162: 140154.7522 | T162: 67082.61643
B163: #137 | C163: 63 | D163: 2028 | E163: H | F163: A_VIE | G163: 0.45 | H163: 0.39 | I163: 0.6 | J163: 0.6 | K163: 85 | L163: 0 | M163: 68 | N163: 888327.2895 | O163: 1703419.296 | P163: 216820.5995 | Q163: 144946.3676 | R163: 1134414.96 | S163: 140154.7522 | T163: 67082.61643
B164: #138 | C164: 63 | D164: 2029 | E164: H | F164: A_VIE | G164: 0.45 | H164: 0.39 | I164: 0.6 | J164: 0.6 | K164: 85 | L164: 0 | M164: 68 | N164: 888327.2895 | O164: 1703419.296 | P164: 216820.5995 | Q164: 144946.3676 | R164: 1134414.96 | S164: 140154.7522 | T164: 67082.61643
B165: #139 | C165: 64 | D165: 2026 | E165: H | F165: A_VIE | G165: 0.45 | H165: 0.39 | I165: 0.6 | J165: 0.6 | K165: 85 | L165: 0 | M165: 68 | N165: 888327.2895 | O165: 1703419.296 | P165: 216820.5995 | Q165: 144946.3676 | R165: 1134414.96 | S165: 140154.7522 | T165: 67082.61643
B166: #140 | C166: 64 | D166: 2028 | E166: H | F166: A_VIE | G166: 0.45 | H166: 0.39 | I166: 0.6 | J166: 0.6 | K166: 85 | L166: 0 | M166: 68 | N166: 888327.2895 | O166: 1703419.296 | P166: 216820.5995 | Q166: 144946.3676 | R166: 1134414.96 | S166: 140154.7522 | T166: 67082.61643
B167: #141 | C167: 64 | D167: 2029 | E167: H | F167: A_VIE | G167: 0.45 | H167: 0.39 | I167: 0.6 | J167: 0.6 | K167: 85 | L167: 0 | M167: 68 | N167: 888327.2895 | O167: 1703419.296 | P167: 216820.5995 | Q167: 144946.3676 | R167: 1134414.96 | S167: 140154.7522 | T167: 67082.61643
B168: #142 | C168: 65 | D168: 2026 | E168: F | F168: A_VIE | G168: 0.45 | H168: 0.39 | I168: 0.6 | J168: 0.6 | K168: 85 | L168: 0 | M168: 68 | N168: 888327.2895 | O168: 1703419.296 | P168: 216820.5995 | Q168: 144946.3676 | R168: 1134414.96 | S168: 140154.7522 | T168: 67082.61643
B169: #143 | C169: 65 | D169: 2028 | E169: F | F169: A_VIE | G169: 0.45 | H169: 0.39 | I169: 0.6 | J169: 0.6 | K169: 85 | L169: 0 | M169: 68 | N169: 888327.2895 | O169: 1703419.296 | P169: 216820.5995 | Q169: 144946.3676 | R169: 1134414.96 | S169: 140154.7522 | T169: 67082.61643
B170: #144 | C170: 65 | D170: 2029 | E170: F | F170: A_VIE | G170: 0.45 | H170: 0.39 | I170: 0.6 | J170: 0.6 | K170: 85 | L170: 0 | M170: 68 | N170: 888327.2895 | O170: 1703419.296 | P170: 216820.5995 | Q170: 144946.3676 | R170: 1134414.96 | S170: 140154.7522 | T170: 67082.61643
B171: #145 | C171: 70 | D171: 2026 | E171: H | F171: A_VIE | G171: 0.45 | H171: 0.39 | I171: 0.6 | J171: 0.6 | K171: 85 | L171: 0 | M171: 11 | N171: 148054.5483 | O171: 283903.216 | P171: 36136.76659 | Q171: 24157.72794 | R171: 189069.16 | S171: 23359.12536 | T171: 11180.43607
B172: #146 | C172: 70 | D172: 2028 | E172: H | F172: A_VIE | G172: 0.45 | H172: 0.39 | I172: 0.6 | J172: 0.6 | K172: 85 | L172: 0 | M172: 11 | N172: 148054.5483 | O172: 283903.216 | P172: 36136.76659 | Q172: 24157.72794 | R172: 189069.16 | S172: 23359.12536 | T172: 11180.43607
B173: #147 | C173: 70 | D173: 2029 | E173: H | F173: A_VIE | G173: 0.45 | H173: 0.39 | I173: 0.6 | J173: 0.6 | K173: 85 | L173: 0 | M173: 11 | N173: 148054.5483 | O173: 283903.216 | P173: 36136.76659 | Q173: 24157.72794 | R173: 189069.16 | S173: 23359.12536 | T173: 11180.43607
B174: #148 | C174: 75 | D174: 2026 | E174: H | F174: A_VIE | G174: 0.45 | H174: 0.39 | I174: 0.6 | J174: 0.6 | K174: 85 | L174: 0 | M174: 11 | N174: 148054.5483 | O174: 283903.216 | P174: 36136.76659 | Q174: 24157.72794 | R174: 189069.16 | S174: 23359.12536 | T174: 11180.43607
B175: #149 | C175: 75 | D175: 2028 | E175: H | F175: A_VIE | G175: 0.45 | H175: 0.39 | I175: 0.6 | J175: 0.6 | K175: 85 | L175: 0 | M175: 11 | N175: 148054.5483 | O175: 283903.216 | P175: 36136.76659 | Q175: 24157.72794 | R175: 189069.16 | S175: 23359.12536 | T175: 11180.43607
B176: #150 | C176: 75 | D176: 2029 | E176: H | F176: A_VIE | G176: 0.45 | H176: 0.39 | I176: 0.6 | J176: 0.6 | K176: 85 | L176: 0 | M176: 11 | N176: 148054.5483 | O176: 283903.216 | P176: 36136.76659 | Q176: 24157.72794 | R176: 189069.16 | S176: 23359.12536 | T176: 11180.43607
B177: #151 | C177: 80 | D177: 2026 | E177: F | F177: A_VIE | G177: 0.45 | H177: 0.39 | I177: 0.6 | J177: 0.6 | K177: 85 | L177: 0 | M177: 11 | N177: 148054.5483 | O177: 283903.216 | P177: 36136.76659 | Q177: 24157.72794 | R177: 189069.16 | S177: 23359.12536 | T177: 11180.43607
B178: #152 | C178: 80 | D178: 2028 | E178: F | F178: A_VIE | G178: 0.45 | H178: 0.39 | I178: 0.6 | J178: 0.6 | K178: 85 | L178: 0 | M178: 11 | N178: 148054.5483 | O178: 283903.216 | P178: 36136.76659 | Q178: 24157.72794 | R178: 189069.16 | S178: 23359.12536 | T178: 11180.43607
B179: #153 | C179: 80 | D179: 2029 | E179: F | F179: A_VIE | G179: 0.45 | H179: 0.39 | I179: 0.6 | J179: 0.6 | K179: 85 | L179: 0 | M179: 11 | N179: 148054.5483 | O179: 283903.216 | P179: 36136.76659 | Q179: 24157.72794 | R179: 189069.16 | S179: 23359.12536 | T179: 11180.43607
B180: #154 | C180: 85 | D180: 2026 | E180: H | F180: A_VIE | G180: 0.45 | H180: 0.39 | I180: 0.6 | J180: 0.6 | K180: 85 | L180: 0 | M180: 6 | N180: 74027.27413 | O180: 141951.608 | P180: 18068.38329 | Q180: 12078.86397 | R180: 94534.58 | S180: 11679.56268 | T180: 5590.218036
B181: #155 | C181: 85 | D181: 2028 | E181: H | F181: A_VIE | G181: 0.45 | H181: 0.39 | I181: 0.6 | J181: 0.6 | K181: 85 | L181: 0 | M181: 6 | N181: 74027.27413 | O181: 141951.608 | P181: 18068.38329 | Q181: 12078.86397 | R181: 94534.58 | S181: 11679.56268 | T181: 5590.218036
B182: #156 | C182: 85 | D182: 2029 | E182: H | F182: A_VIE | G182: 0.45 | H182: 0.39 | I182: 0.6 | J182: 0.6 | K182: 85 | L182: 0 | M182: 6 | N182: 74027.27413 | O182: 141951.608 | P182: 18068.38329 | Q182: 12078.86397 | R182: 94534.58 | S182: 11679.56268 | T182: 5590.218036
B183: #157 | C183: 90 | D183: 2026 | E183: H | F183: A_VIE | G183: 0.45 | H183: 0.39 | I183: 0.6 | J183: 0.6 | K183: 85 | L183: 0 | M183: 6 | N183: 74027.27413 | O183: 141951.608 | P183: 18068.38329 | Q183: 12078.86397 | R183: 94534.58 | S183: 11679.56268 | T183: 5590.218036
B184: #158 | C184: 90 | D184: 2028 | E184: H | F184: A_VIE | G184: 0.45 | H184: 0.39 | I184: 0.6 | J184: 0.6 | K184: 85 | L184: 0 | M184: 6 | N184: 74027.27413 | O184: 141951.608 | P184: 18068.38329 | Q184: 12078.86397 | R184: 94534.58 | S184: 11679.56268 | T184: 5590.218036
B185: #159 | C185: 90 | D185: 2029 | E185: H | F185: A_VIE | G185: 0.45 | H185: 0.39 | I185: 0.6 | J185: 0.6 | K185: 85 | L185: 0 | M185: 6 | N185: 74027.27413 | O185: 141951.608 | P185: 18068.38329 | Q185: 12078.86397 | R185: 94534.58 | S185: 11679.56268 | T185: 5590.218036
B186: #160 | C186: 18 | D186: 2026 | E186: H | F186: A_CAPI | G186: 0.45 | H186: 0.39 | I186: 0.6 | J186: 0.6 | K186: 85 | L186: 0 | M186: 0.08 | N186: 0 | O186: 1860.263663 | P186: 236.7846154 | Q186: 158.2924777 | R186: 1238.867573 | S186: 153.0596685 | T186: 73.25932852
B187: #161 | C187: 18 | D187: 2028 | E187: H | F187: A_CAPI | G187: 0.45 | H187: 0.39 | I187: 0.6 | J187: 0.6 | K187: 85 | L187: 0 | M187: 0.08 | N187: 0 | O187: 1860.263663 | P187: 236.7846154 | Q187: 158.2924777 | R187: 1238.867573 | S187: 153.0596685 | T187: 73.25932852
B188: #162 | C188: 18 | D188: 2029 | E188: H | F188: A_CAPI | G188: 0.45 | H188: 0.39 | I188: 0.6 | J188: 0.6 | K188: 85 | L188: 0 | M188: 0.08 | N188: 0 | O188: 1860.263663 | P188: 236.7846154 | Q188: 158.2924777 | R188: 1238.867573 | S188: 153.0596685 | T188: 73.25932852
B189: #163 | C189: 19 | D189: 2026 | E189: H | F189: A_CAPI | G189: 0.45 | H189: 0.39 | I189: 0.6 | J189: 0.6 | K189: 85 | L189: 0 | M189: 0.08 | N189: 0 | O189: 1860.263663 | P189: 236.7846154 | Q189: 158.2924777 | R189: 1238.867573 | S189: 153.0596685 | T189: 73.25932852
B190: #164 | C190: 19 | D190: 2028 | E190: H | F190: A_CAPI | G190: 0.45 | H190: 0.39 | I190: 0.6 | J190: 0.6 | K190: 85 | L190: 0 | M190: 0.08 | N190: 0 | O190: 1860.263663 | P190: 236.7846154 | Q190: 158.2924777 | R190: 1238.867573 | S190: 153.0596685 | T190: 73.25932852
B191: #165 | C191: 19 | D191: 2029 | E191: H | F191: A_CAPI | G191: 0.45 | H191: 0.39 | I191: 0.6 | J191: 0.6 | K191: 85 | L191: 0 | M191: 0.08 | N191: 0 | O191: 1860.263663 | P191: 236.7846154 | Q191: 158.2924777 | R191: 1238.867573 | S191: 153.0596685 | T191: 73.25932852
B192: #166 | C192: 20 | D192: 2026 | E192: F | F192: A_CAPI | G192: 0.45 | H192: 0.39 | I192: 0.6 | J192: 0.6 | K192: 85 | L192: 0 | M192: 0.15 | N192: 0 | O192: 3720.527327 | P192: 473.5692308 | Q192: 316.5849554 | R192: 2477.735147 | S192: 306.119337 | T192: 146.518657
B193: #167 | C193: 20 | D193: 2028 | E193: F | F193: A_CAPI | G193: 0.45 | H193: 0.39 | I193: 0.6 | J193: 0.6 | K193: 85 | L193: 0 | M193: 0.15 | N193: 0 | O193: 3720.527327 | P193: 473.5692308 | Q193: 316.5849554 | R193: 2477.735147 | S193: 306.119337 | T193: 146.518657
B194: #168 | C194: 20 | D194: 2029 | E194: F | F194: A_CAPI | G194: 0.45 | H194: 0.39 | I194: 0.6 | J194: 0.6 | K194: 85 | L194: 0 | M194: 0.15 | N194: 0 | O194: 3720.527327 | P194: 473.5692308 | Q194: 316.5849554 | R194: 2477.735147 | S194: 306.119337 | T194: 146.518657
B195: #169 | C195: 21 | D195: 2026 | E195: H | F195: A_CAPI | G195: 0.45 | H195: 0.39 | I195: 0.6 | J195: 0.6 | K195: 85 | L195: 0 | M195: 0.15 | N195: 0 | O195: 3720.527327 | P195: 473.5692308 | Q195: 316.5849554 | R195: 2477.735147 | S195: 306.119337 | T195: 146.518657
B196: #170 | C196: 21 | D196: 2028 | E196: H | F196: A_CAPI | G196: 0.45 | H196: 0.39 | I196: 0.6 | J196: 0.6 | K196: 85 | L196: 0 | M196: 0.15 | N196: 0 | O196: 3720.527327 | P196: 473.5692308 | Q196: 316.5849554 | R196: 2477.735147 | S196: 306.119337 | T196: 146.518657
B197: #171 | C197: 21 | D197: 2029 | E197: H | F197: A_CAPI | G197: 0.45 | H197: 0.39 | I197: 0.6 | J197: 0.6 | K197: 85 | L197: 0 | M197: 0.15 | N197: 0 | O197: 3720.527327 | P197: 473.5692308 | Q197: 316.5849554 | R197: 2477.735147 | S197: 306.119337 | T197: 146.518657
B198: #172 | C198: 22 | D198: 2026 | E198: H | F198: A_CAPI | G198: 0.45 | H198: 0.39 | I198: 0.6 | J198: 0.6 | K198: 85 | L198: 0 | M198: 0.15 | N198: 0 | O198: 3720.527327 | P198: 473.5692308 | Q198: 316.5849554 | R198: 2477.735147 | S198: 306.119337 | T198: 146.518657
B199: #173 | C199: 22 | D199: 2028 | E199: H | F199: A_CAPI | G199: 0.45 | H199: 0.39 | I199: 0.6 | J199: 0.6 | K199: 85 | L199: 0 | M199: 0.15 | N199: 0 | O199: 3720.527327 | P199: 473.5692308 | Q199: 316.5849554 | R199: 2477.735147 | S199: 306.119337 | T199: 146.518657
B200: #174 | C200: 22 | D200: 2029 | E200: H | F200: A_CAPI | G200: 0.45 | H200: 0.39 | I200: 0.6 | J200: 0.6 | K200: 85 | L200: 0 | M200: 0.15 | N200: 0 | O200: 3720.527327 | P200: 473.5692308 | Q200: 316.5849554 | R200: 2477.735147 | S200: 306.119337 | T200: 146.518657
B201: #175 | C201: 23 | D201: 2026 | E201: F | F201: A_CAPI | G201: 0.45 | H201: 0.39 | I201: 0.6 | J201: 0.6 | K201: 85 | L201: 0 | M201: 0.15 | N201: 0 | O201: 3720.527327 | P201: 473.5692308 | Q201: 316.5849554 | R201: 2477.735147 | S201: 306.119337 | T201: 146.518657
B202: #176 | C202: 23 | D202: 2028 | E202: F | F202: A_CAPI | G202: 0.45 | H202: 0.39 | I202: 0.6 | J202: 0.6 | K202: 85 | L202: 0 | M202: 0.15 | N202: 0 | O202: 3720.527327 | P202: 473.5692308 | Q202: 316.5849554 | R202: 2477.735147 | S202: 306.119337 | T202: 146.518657
B203: #177 | C203: 23 | D203: 2029 | E203: F | F203: A_CAPI | G203: 0.45 | H203: 0.39 | I203: 0.6 | J203: 0.6 | K203: 85 | L203: 0 | M203: 0.15 | N203: 0 | O203: 3720.527327 | P203: 473.5692308 | Q203: 316.5849554 | R203: 2477.735147 | S203: 306.119337 | T203: 146.518657
B204: #178 | C204: 24 | D204: 2026 | E204: H | F204: A_CAPI | G204: 0.45 | H204: 0.39 | I204: 0.6 | J204: 0.6 | K204: 85 | L204: 0 | M204: 0.15 | N204: 0 | O204: 3720.527327 | P204: 473.5692308 | Q204: 316.5849554 | R204: 2477.735147 | S204: 306.119337 | T204: 146.518657
B205: #179 | C205: 24 | D205: 2028 | E205: H | F205: A_CAPI | G205: 0.45 | H205: 0.39 | I205: 0.6 | J205: 0.6 | K205: 85 | L205: 0 | M205: 0.15 | N205: 0 | O205: 3720.527327 | P205: 473.5692308 | Q205: 316.5849554 | R205: 2477.735147 | S205: 306.119337 | T205: 146.518657
B206: #180 | C206: 24 | D206: 2029 | E206: H | F206: A_CAPI | G206: 0.45 | H206: 0.39 | I206: 0.6 | J206: 0.6 | K206: 85 | L206: 0 | M206: 0.15 | N206: 0 | O206: 3720.527327 | P206: 473.5692308 | Q206: 316.5849554 | R206: 2477.735147 | S206: 306.119337 | T206: 146.518657
B207: #181 | C207: 25 | D207: 2026 | E207: H | F207: A_CAPI | G207: 0.45 | H207: 0.39 | I207: 0.6 | J207: 0.6 | K207: 85 | L207: 0 | M207: 0.75 | N207: 0 | O207: 18602.63663 | P207: 2367.846154 | Q207: 1582.924777 | R207: 12388.67573 | S207: 1530.596685 | T207: 732.5932852
B208: #182 | C208: 25 | D208: 2028 | E208: H | F208: A_CAPI | G208: 0.45 | H208: 0.39 | I208: 0.6 | J208: 0.6 | K208: 85 | L208: 0 | M208: 0.75 | N208: 0 | O208: 18602.63663 | P208: 2367.846154 | Q208: 1582.924777 | R208: 12388.67573 | S208: 1530.596685 | T208: 732.5932852
... 267 more rows

Sheet SCR_Op_BP_3
B2: I) Inputs pour SCR Opérationnel
B5: AVIE + CAPI + PER | D5: 2029-12-31
B6: Flux | C6: Euro | D6: UC
B7: Primes acquises pour les 12 derniers mois VIE UC (N) - Earn life-ul | C7: - | D7: 103083960
B8: Primes acquises pour les 12 derniers mois VIE Euros (N) - Earn life | C8: 41431040 | D8: -
B9: Primes acquises sur les 12 mois précédents les 12 derniers mois VIE UC (N-1) - pEarn life-ul | C9: - | D9: 66275503
B10: Primes acquises sur les 12 mois précédents les 12 derniers mois VIE Euros (N-1) - pEarn life | C10: 26782497 | D10: -
B11: Montant de frais engagé au titre des contrats UC (12 derniers mois) (Expul) | C11: - | D11: 2551595.167 | E11: répartition au regard du mix Euro / UC (idem split collecte) - yc comm distribution
B12: Montant de frais engagé au titre des contrats euros (12 derniers mois) | C12: 1037146.278 | D12: - | E12: répartition au regard du mix Euro / UC (idem split collecte) - yc comm distribution

Sheet RFR_BP_3
B2: Choc S2 | C2: 1 | D2: =C2+1 -> 2 | E2: 3 | F2: 4 | G2: 5 | H2: 6 | I2: 7 | J2: 8 | K2: 9 | L2: 10 | M2: 11 | N2: 12 | O2: 13 | P2: 14 | Q2: 15 | R2: 16 | S2: 17 | T2: 18 | U2: 19 | V2: 20 | W2: 21 | X2: 22 | Y2: 23 | Z2: 24 | AA2: 25 | AB2: 26 | AC2: 27 | AD2: 28 | AE2: 29 | AF2: 30 | AG2: 31 | AH2: 32 | AI2: 33 | AJ2: 34 | AK2: 35 | AL2: 36 | AM2: 37 | AN2: 38 | AO2: 39 | AP2: 40 | AQ2: 41 | AR2: 42 | AS2: 43 | AT2: 44 | AU2: 45 | AV2: 46 | AW2: 47 | AX2: 48 | AY2: 49 | AZ2: 50 | BA2: 51 | BB2: 52 | BC2: 53 | BD2: 54 | BE2: 55 | BF2: 56 | BG2: 57 | BH2: 58 | BI2: 59 | BJ2: 60 | BK2: 61 | BL2: 62 | BM2: 63 | BN2: 64 | BO2: 65 | BP2: =BO2+1 -> 66 | BQ2: 67 | BR2: 68 | BS2: 69 | BT2: 70 | BU2: 71 | BV2: 72 | BW2: 73 | BX2: 74 | BY2: 75 | BZ2: 76 | CA2: 77 | CB2: 78 | CC2: 79 | CD2: 80 | CE2: 81 | CF2: 82 | CG2: 83 | CH2: 84 | CI2: 85 | CJ2: 86 | CK2: 87 | CL2: 88 | CM2: 89 | CN2: 90 | CO2: 91 | CP2: 92 | CQ2: 93 | CR2: 94 | CS2: 95 | CT2: 96 | CU2: 97 | CV2: 98 | CW2: 99 | CX2: 100
B3: Central | C3: 0.02161 | D3: 0.02162 | E3: 0.02243 | F3: 0.02337 | G3: 0.0242 | H3: 0.02502 | I3: 0.02579 | J3: 0.02655 | K3: 0.02726 | L3: 0.02795 | M3: 0.02853 | N3: 0.02907 | O3: 0.02953 | P3: 0.02994 | Q3: 0.03027 | R3: 0.03051 | S3: 0.03068 | T3: 0.0308 | U3: 0.03089 | V3: 0.03097 | W3: 0.03104 | X3: 0.03111 | Y3: 0.03118 | Z3: 0.03124 | AA3: 0.03129 | AB3: 0.03135 | AC3: 0.03139 | AD3: 0.03144 | AE3: 0.03148 | AF3: 0.03152 | AG3: 0.03156 | AH3: 0.0316 | AI3: 0.03163 | AJ3: 0.03167 | AK3: 0.0317 | AL3: 0.03173 | AM3: 0.03176 | AN3: 0.03179 | AO3: 0.03181 | AP3: 0.03184 | AQ3: 0.03186 | AR3: 0.03188 | AS3: 0.03191 | AT3: 0.03193 | AU3: 0.03195 | AV3: 0.03197 | AW3: 0.03199 | AX3: 0.03201 | AY3: 0.03203 | AZ3: 0.03204 | BA3: 0.03206 | BB3: 0.03208 | BC3: 0.03209 | BD3: 0.03211 | BE3: 0.03212 | BF3: 0.03214 | BG3: 0.03215 | BH3: 0.03216 | BI3: 0.03218 | BJ3: 0.03219 | BK3: 0.0322 | BL3: 0.03221 | BM3: 0.03222 | BN3: 0.03224 | BO3: 0.03225 | BP3: 0.03226 | BQ3: 0.03227 | BR3: 0.03228 | BS3: 0.03229 | BT3: 0.0323 | BU3: 0.03231 | BV3: 0.03232 | BW3: 0.03233 | BX3: 0.03233 | BY3: 0.03234 | BZ3: 0.03235 | CA3: 0.03236 | CB3: 0.03237 | CC3: 0.03237 | CD3: 0.03238 | CE3: 0.03239 | CF3: 0.0324 | CG3: 0.0324 | CH3: 0.03241 | CI3: 0.03242 | CJ3: 0.03242 | CK3: 0.03243 | CL3: 0.03244 | CM3: 0.03244 | CN3: 0.03245 | CO3: 0.03245 | CP3: 0.03246 | CQ3: 0.03247 | CR3: 0.03247 | CS3: 0.03248 | CT3: 0.03248 | CU3: 0.03249 | CV3: 0.03249 | CW3: 0.0325 | CX3: 0.0325
B4: Up | C4: 0.03534 | D4: 0.03535 | E4: 0.03551 | F4: 0.03598 | G4: 0.03641 | H4: 0.03699 | I4: 0.03745 | J4: 0.03809 | K4: 0.03837 | L4: 0.03885 | M4: 0.03888 | N4: 0.03909 | O4: 0.03953 | P4: 0.03994 | Q4: 0.04027 | R4: 0.04051 | S4: 0.04068 | T4: 0.0408 | U4: 0.04089 | V4: 0.04097 | W4: 0.04104 | X4: 0.04111 | Y4: 0.04118 | Z4: 0.04124 | AA4: 0.04129 | AB4: 0.04135 | AC4: 0.04139 | AD4: 0.04144 | AE4: 0.04148 | AF4: 0.04152 | AG4: 0.04156 | AH4: 0.0416 | AI4: 0.04163 | AJ4: 0.04167 | AK4: 0.0417 | AL4: 0.04173 | AM4: 0.04176 | AN4: 0.04179 | AO4: 0.04181 | AP4: 0.04184 | AQ4: 0.04186 | AR4: 0.04188 | AS4: 0.04191 | AT4: 0.04193 | AU4: 0.04195 | AV4: 0.04197 | AW4: 0.04199 | AX4: 0.04201 | AY4: 0.04203 | AZ4: 0.04204 | BA4: 0.04206 | BB4: 0.04208 | BC4: 0.04209 | BD4: 0.04211 | BE4: 0.04212 | BF4: 0.04214 | BG4: 0.04215 | BH4: 0.04216 | BI4: 0.04218 | BJ4: 0.04219 | BK4: 0.0422 | BL4: 0.04221 | BM4: 0.04222 | BN4: 0.04224 | BO4: 0.04225 | BP4: 0.04226 | BQ4: 0.04227 | BR4: 0.04228 | BS4: 0.04229 | BT4: 0.0423 | BU4: 0.04231 | BV4: 0.04232 | BW4: 0.04233 | BX4: 0.04233 | BY4: 0.04234 | BZ4: 0.04235 | CA4: 0.04236 | CB4: 0.04237 | CC4: 0.04237 | CD4: 0.04238 | CE4: 0.04239 | CF4: 0.0424 | CG4: 0.0424 | CH4: 0.04241 | CI4: 0.04242 | CJ4: 0.04242 | CK4: 0.04243 | CL4: 0.04244 | CM4: 0.04244 | CN4: 0.04245 | CO4: 0.04245 | CP4: 0.04246 | CQ4: 0.04247 | CR4: 0.04247 | CS4: 0.04248 | CT4: 0.04248 | CU4: 0.04249 | CV4: 0.04249 | CW4: 0.0425 | CX4: 0.0425
B5: Down | C5: 0.0069 | D5: 0.00887 | E5: 0.01099 | F5: 0.01269 | G5: 0.01399 | H5: 0.01535 | I5: 0.01651 | J5: 0.01771 | K5: 0.01892 | L5: 0.01991 | M5: 0.02057 | N5: 0.02122 | O5: 0.02182 | P5: 0.02212 | Q5: 0.02264 | R5: 0.02253 | S5: 0.02265 | T5: 0.02274 | U5: 0.02251 | V5: 0.02257 | W5: 0.02265 | X5: 0.02274 | Y5: 0.02282 | Z5: 0.02289 | AA5: 0.02296 | AB5: 0.02303 | AC5: 0.02309 | AD5: 0.02316 | AE5: 0.02321 | AF5: 0.02327 | AG5: 0.02333 | AH5: 0.02339 | AI5: 0.02344 | AJ5: 0.0235 | AK5: 0.02355 | AL5: 0.02361 | AM5: 0.02366 | AN5: 0.02371 | AO5: 0.02376 | AP5: 0.02381 | AQ5: 0.02386 | AR5: 0.0239 | AS5: 0.02396 | AT5: 0.02401 | AU5: 0.02405 | AV5: 0.0241 | AW5: 0.02415 | AX5: 0.0242 | AY5: 0.02425 | AZ5: 0.02429 | BA5: 0.02434 | BB5: 0.02439 | BC5: 0.02443 | BD5: 0.02448 | BE5: 0.02452 | BF5: 0.02457 | BG5: 0.02462 | BH5: 0.02466 | BI5: 0.02471 | BJ5: 0.02475 | BK5: 0.0248 | BL5: 0.02484 | BM5: 0.02489 | BN5: 0.02494 | BO5: 0.02498 | BP5: 0.02503 | BQ5: 0.02507 | BR5: 0.02512 | BS5: 0.02516 | BT5: 0.02521 | BU5: 0.02525 | BV5: 0.0253 | BW5: 0.02535 | BX5: 0.02538 | BY5: 0.02543 | BZ5: 0.02547 | CA5: 0.02552 | CB5: 0.02557 | CC5: 0.0256 | CD5: 0.02565 | CE5: 0.0257 | CF5: 0.02574 | CG5: 0.02578 | CH5: 0.02583 | CI5: 0.02588 | CJ5: 0.02591 | CK5: 0.02596 | CL5: 0.02601 | CM5: 0.02605 | CN5: 0.0261 | CO5: 0.02609 | CP5: 0.0261 | CQ5: 0.02611 | CR5: 0.02611 | CS5: 0.02611 | CT5: 0.02611 | CU5: 0.02612 | CV5: 0.02612 | CW5: 0.02612 | CX5: 0.02612
B6: Central hors VA | C6: 0.01961 | D6: 0.01962 | E6: 0.02043 | F6: 0.02137 | G6: 0.0222 | H6: 0.02302 | I6: 0.02379 | J6: 0.02455 | K6: 0.02526 | L6: 0.02595 | M6: 0.02653 | N6: 0.02707 | O6: 0.02753 | P6: 0.02794 | Q6: 0.02827 | R6: 0.02851 | S6: 0.02868 | T6: 0.0288 | U6: 0.02889 | V6: 0.02897 | W6: 0.02905 | X6: 0.02913 | Y6: 0.02921 | Z6: 0.0293 | AA6: 0.02938 | AB6: 0.02946 | AC6: 0.02953 | AD6: 0.02961 | AE6: 0.02969 | AF6: 0.02976 | AG6: 0.02983 | AH6: 0.0299 | AI6: 0.02996 | AJ6: 0.03003 | AK6: 0.03009 | AL6: 0.03015 | AM6: 0.03021 | AN6: 0.03027 | AO6: 0.03033 | AP6: 0.03038 | AQ6: 0.03043 | AR6: 0.03048 | AS6: 0.03053 | AT6: 0.03058 | AU6: 0.03062 | AV6: 0.03067 | AW6: 0.03071 | AX6: 0.03075 | AY6: 0.0308 | AZ6: 0.03083 | BA6: 0.03087 | BB6: 0.03091 | BC6: 0.03095 | BD6: 0.03098 | BE6: 0.03101 | BF6: 0.03105 | BG6: 0.03108 | BH6: 0.03111 | BI6: 0.03114 | BJ6: 0.03117 | BK6: 0.0312 | BL6: 0.03122 | BM6: 0.03125 | BN6: 0.03128 | BO6: 0.0313 | BP6: 0.03133 | BQ6: 0.03135 | BR6: 0.03138 | BS6: 0.0314 | BT6: 0.03142 | BU6: 0.03144 | BV6: 0.03146 | BW6: 0.03148 | BX6: 0.0315 | BY6: 0.03152 | BZ6: 0.03154 | CA6: 0.03156 | CB6: 0.03158 | CC6: 0.0316 | CD6: 0.03161 | CE6: 0.03163 | CF6: 0.03165 | CG6: 0.03166 | CH6: 0.03168 | CI6: 0.03169 | CJ6: 0.03171 | CK6: 0.03172 | CL6: 0.03174 | CM6: 0.03175 | CN6: 0.03177 | CO6: 0.03178 | CP6: 0.03179 | CQ6: 0.03181 | CR6: 0.03182 | CS6: 0.03183 | CT6: 0.03184 | CU6: 0.03185 | CV6: 0.03187 | CW6: 0.03188 | CX6: 0.03189

Sheet Frais_BP_4
B2: I) Frais et commissions
B5: AVIE / PER / CAPI | D5: 2031-12-31
B6: Frais | C6: Taux | D6: Driver
B7: Frais Acquisition | C7: 0.006324348591 | D7: Primes
B8: Frais Gestion Sinistres | C8: 0.003310441478 | D8: Prestations
B9: Frais Administration | C9: 0.002613334516 | D9: PM | E9: exclusion C3S sur primes
B10: Frais Financiers | C10: 0.00075859202 | D10: VM | E10: MP 2029 car 2030 non calculés
B11: Prélèvements Sociaux | C11: 0.172 | D11: PB
B12: Clause PB | C12: 0.85 | D12: Produits financiers
B13: Frais d'acquisition : hors comm. distribution intégrées directement dans la projection des frais dans la maquette S2
B14: Frais Administration / Frais acq : montant de frais sur l'ensemble des périmètres => tx unique tout produit

Sheet Bilan_Social_BP_4
B2: I) Bilan Social
B5: AVIE + PER + CAPI + FP | C5: 2030-12-31
B7: ACTIF | C7: VNC | D7: VM | F7: PASSIF
B8: Capital souscrit non appelé ou compte de liaison avec le siège | C8: 0 | D8: 0 | F8: Capitaux Propres | G8: 26484266.66
B9: Actifs Incorporels | C9: 0 | D9: 0 | F9: Résultat de l'exercice | G9: -227157.2389
B10: Obligation Govies | C10: 139641195 | D10: 139641195 | F10: Passifs subordonnés | G10: 0
B11: Obligation Corporate | C11: 37237652.01 | D11: 38354781.57 | F11: Provisions techniques brutes | G11: 159931150.6
B12: Action | C12: 0 | D12: 0 | F12: PM | G12: 159931150.6 | J12: =G12=SUM(Model_Points_BP_4!$C$7:$C$11,Model_Points_BP_4!$C$15:$C$19) -> TRUE
B13: Monétaire | C13: 9309413.002 | D13: 9309413.002 | F13: PSAP | G13: 0
B14: UC | C14: 311761283.5 | D14: 311761283.5 | F14: PPE | G14: 0 | I14: =C14=G15 -> TRUE
B15: Provisions sur placements | C15: 0 | D15: 0 | F15: Provision techniques des contrats en unité de comptes | G15: 311761283.5 | J15: =ROUND(G15,5)=ROUND(SUM(Model_Points_BP_4!$L$7:$L$11,Model_Points_BP_4!$L$15:$L$19),5) -> TRUE
B16: PDD | C16: 0 | D16: 0 | F16: Autres provisions techniques | G16: 0
B17: Part des cessionnaires et rétrocessionnaires dans les provisions techniques | C17: 0 | D17: 0 | F17: RC | G17: 0
B18: Créances | C18: 0 | D18: 0 | F18: PRE | G18: 0
B19: Autres Actifs | C19: 0 | D19: 0 | F19: Provisions (autres que techniques) | G19: 0
B20: Comptes de régularisation Actif | C20: 0 | D20: 0 | F20: Dettes pour dépôts en espèces reçues des cessionnaires | G20: 0
F21: Autres Dettes | G21: 0
F22: Comptes de régularisation Passif | G22: 0

Sheet Model_Points_BP_4
B2: I) Model Points Actifs
B5: AVIE | C5: Euro | D5: 2030-12-31 | K5: AVIE / CAPI | L5: UC | M5: 2030-12-31 | Q5: AVIE / CAPI | R5: 2027-12-31
B6: Asset Type | C6: VNC | D6: VM | E6: COUPON_PC | F6: NOMINAL | G6: MATURITY_RESID | H6: SPREAD_PC | I6: DIV_PC | K6: Asset Type | L6: VNC | M6: VM | N6: DIV_PC | O6: UC_TYPE | Q6: Reserves | R6: VNC
B7: BONDS_GOV | C7: 109678214.7 | D7: 109678214.7 | E7: 0 | F7: 109678214.7 | G7: 7 | K7: OBLIG_CORP | L7: 36312603.2 | M7: 36312603.2 | N7: 0 | O7: 1 | P7: =M7/SUM($M$7:$M$11) -> 0.1272855134 | Q7: PPE | R7: 0
B8: BONDS_CORP | C8: 29247523.93 | D8: 30124949.65 | E8: 0 | F8: 29247523.93 | G8: 7 | K8: OBLIG_CORP_NR | L8: 24275276.17 | M8: 24275276.17 | N8: 0 | O8: 2 | P8: =M8/SUM($M$7:$M$11) -> 0.08509142053 | Q8: RC | R8: 0
B9: EQ_TYPE_1 | C9: 0 | D9: 0 | E9: 0 | I9: 0 | K9: EQ_TYPE_1 | L9: 189989144.9 | M9: 189989144.9 | N9: 0 | O9: 3 | P9: 0.6659634318 | Q9: PSAP | R9: 0
B10: EQ_TYPE_2 | C10: 0 | D10: 0 | E10: 0 | I10: 0 | K10: EQ_TYPE_2 | L10: 23472787.7 | M10: 23472787.7 | N10: 0 | O10: 4 | P10: 0.08227848101 | T10: PMVL ALL | U10: =SUM(D7:D11)-SUM(C7:C11)+SUM(D15:D19)-SUM(C15:C19) -> 959586.9037
B11: CASH | C11: 7311880.982 | D11: 7311880.982 | E11: 0 | K11: MONETAIRE | L11: 11234838.56 | M11: 11234838.56 | N11: 0 | O11: 5 | P11: 0.03938115331
B13: PER | C13: Euro | D13: 2030-12-31 | K13: PER | L13: UC | M13: 2030-12-31 | Q13: PER | R13: 2027-12-31
B14: Asset Type | C14: VNC | D14: VM | E14: COUPON_PC | F14: NOMINAL | G14: MATURITY_RESID | H14: SPREAD_PC | I14: DIV_PC | K14: Asset Type | L14: VNC | M14: VM | N14: DIV_PC | O14: UC_TYPE | Q14: Reserves | R14: VNC
B15: BONDS_GOV | C15: 10270148.24 | D15: 10270148.24 | E15: 0 | F15: 10270148.24 | G15: 7 | K15: OBLIG_CORP | L15: 3370091.815 | M15: 3370091.815 | N15: 0 | O15: 1 | Q15: PPE | R15: 0
B16: BONDS_CORP | C16: 2738706.196 | D16: 2820867.382 | E16: 0 | F16: 2738706.196 | G16: 7 | K16: OBLIG_CORP_NR | L16: 2252934.307 | M16: 2252934.307 | N16: 0 | O16: 2 | Q16: RC | R16: 0
B17: EQ_TYPE_1 | C17: 0 | D17: 0 | E17: 0 | I17: 0 | K17: EQ_TYPE_1 | L17: 17632469.33 | M17: 17632469.33 | N17: 0 | O17: 3 | Q17: PSAP | R17: 0
B18: EQ_TYPE_2 | C18: 0 | D18: 0 | E18: 0 | I18: 0 | K18: EQ_TYPE_2 | L18: 2178457.14 | M18: 2178457.14 | N18: 0 | O18: 4
B19: CASH | C19: 684676.5491 | D19: 684676.5491 | E19: 0 | K19: MONETAIRE | L19: 1042680.341 | M19: 1042680.341 | N19: 0 | O19: 5
B22: II) Model Points Passif
B25: Assurance Vie | C25: Euro - UC | D25: 2030-12-31
B26: ID | C26: AGE | D26: SOUSCRIPTION_YR | E26: SEXE | F26: PDT | G26: CHGT_GEST_EURO_PC | H26: CHGT_GEST_UC_PC | I26: COMM_DIST_EURO_PC | J26: COMM_DIST_UC_PC | K26: CLAUSE_PB_PC | L26: TMG_PC | M26: NO_POLS | N26: PM_EURO | O26: PM_UC_TOT | P26: PM_UC_1 | Q26: PM_UC_2 | R26: PM_UC_3 | S26: PM_UC_4 | T26: PM_UC_5
B27: #1 | C27: 18 | D27: 2026 | E27: H | F27: A_VIE | G27: 0.45 | H27: 0.39 | I27: 0.6 | J27: 0.6 | K27: 85 | L27: 0 | M27: 12 | N27: 182797.0245 | O27: 353440.5937 | P27: 44987.86741 | Q27: 30074.76219 | R27: 235378.5107 | S27: 29080.55518 | T27: 13918.89821
B28: #2 | C28: 18 | D28: 2028 | E28: H | F28: A_VIE | G28: 0.45 | H28: 0.39 | I28: 0.6 | J28: 0.6 | K28: 85 | L28: 0 | M28: 12 | N28: 182797.0245 | O28: 353440.5937 | P28: 44987.86741 | Q28: 30074.76219 | R28: 235378.5107 | S28: 29080.55518 | T28: 13918.89821
B29: #3 | C29: 18 | D29: 2029 | E29: H | F29: A_VIE | G29: 0.45 | H29: 0.39 | I29: 0.6 | J29: 0.6 | K29: 85 | L29: 0 | M29: 12 | N29: 182797.0245 | O29: 353440.5937 | P29: 44987.86741 | Q29: 30074.76219 | R29: 235378.5107 | S29: 29080.55518 | T29: 13918.89821
B30: #4 | C30: 18 | D30: 2030 | E30: H | F30: A_VIE | G30: 0.45 | H30: 0.39 | I30: 0.6 | J30: 0.6 | K30: 85 | L30: 0 | M30: 12 | N30: 182797.0245 | O30: 353440.5937 | P30: 44987.86741 | Q30: 30074.76219 | R30: 235378.5107 | S30: 29080.55518 | T30: 13918.89821
B31: #5 | C31: 19 | D31: 2026 | E31: H | F31: A_VIE | G31: 0.45 | H31: 0.39 | I31: 0.6 | J31: 0.6 | K31: 85 | L31: 0 | M31: 12 | N31: 182797.0245 | O31: 353440.5937 | P31: 44987.86741 | Q31: 30074.76219 | R31: 235378.5107 | S31: 29080.55518 | T31: 13918.89821
B32: #6 | C32: 19 | D32: 2028 | E32: H | F32: A_VIE | G32: 0.45 | H32: 0.39 | I32: 0.6 | J32: 0.6 | K32: 85 | L32: 0 | M32: 12 | N32: 182797.0245 | O32: 353440.5937 | P32: 44987.86741 | Q32: 30074.76219 | R32: 235378.5107 | S32: 29080.55518 | T32: 13918.89821
B33: #7 | C33: 19 | D33: 2029 | E33: H | F33: A_VIE | G33: 0.45 | H33: 0.39 | I33: 0.6 | J33: 0.6 | K33: 85 | L33: 0 | M33: 12 | N33: 182797.0245 | O33: 353440.5937 | P33: 44987.86741 | Q33: 30074.76219 | R33: 235378.5107 | S33: 29080.55518 | T33: 13918.89821
B34: #8 | C34: 19 | D34: 2030 | E34: H | F34: A_VIE | G34: 0.45 | H34: 0.39 | I34: 0.6 | J34: 0.6 | K34: 85 | L34: 0 | M34: 12 | N34: 182797.0245 | O34: 353440.5937 | P34: 44987.86741 | Q34: 30074.76219 | R34: 235378.5107 | S34: 29080.55518 | T34: 13918.89821
B35: #9 | C35: 20 | D35: 2026 | E35: F | F35: A_VIE | G35: 0.45 | H35: 0.39 | I35: 0.6 | J35: 0.6 | K35: 85 | L35: 0 | M35: 24 | N35: 365594.0491 | O35: 706881.1874 | P35: 89975.73483 | Q35: 60149.52439 | R35: 470757.0214 | S35: 58161.11036 | T35: 27837.79641
B36: #10 | C36: 20 | D36: 2028 | E36: F | F36: A_VIE | G36: 0.45 | H36: 0.39 | I36: 0.6 | J36: 0.6 | K36: 85 | L36: 0 | M36: 24 | N36: 365594.0491 | O36: 706881.1874 | P36: 89975.73483 | Q36: 60149.52439 | R36: 470757.0214 | S36: 58161.11036 | T36: 27837.79641
B37: #11 | C37: 20 | D37: 2029 | E37: F | F37: A_VIE | G37: 0.45 | H37: 0.39 | I37: 0.6 | J37: 0.6 | K37: 85 | L37: 0 | M37: 24 | N37: 365594.0491 | O37: 706881.1874 | P37: 89975.73483 | Q37: 60149.52439 | R37: 470757.0214 | S37: 58161.11036 | T37: 27837.79641
B38: #12 | C38: 20 | D38: 2030 | E38: F | F38: A_VIE | G38: 0.45 | H38: 0.39 | I38: 0.6 | J38: 0.6 | K38: 85 | L38: 0 | M38: 24 | N38: 365594.0491 | O38: 706881.1874 | P38: 89975.73483 | Q38: 60149.52439 | R38: 470757.0214 | S38: 58161.11036 | T38: 27837.79641
B39: #13 | C39: 21 | D39: 2026 | E39: H | F39: A_VIE | G39: 0.45 | H39: 0.39 | I39: 0.6 | J39: 0.6 | K39: 85 | L39: 0 | M39: 24 | N39: 365594.0491 | O39: 706881.1874 | P39: 89975.73483 | Q39: 60149.52439 | R39: 470757.0214 | S39: 58161.11036 | T39: 27837.79641
B40: #14 | C40: 21 | D40: 2028 | E40: H | F40: A_VIE | G40: 0.45 | H40: 0.39 | I40: 0.6 | J40: 0.6 | K40: 85 | L40: 0 | M40: 24 | N40: 365594.0491 | O40: 706881.1874 | P40: 89975.73483 | Q40: 60149.52439 | R40: 470757.0214 | S40: 58161.11036 | T40: 27837.79641
B41: #15 | C41: 21 | D41: 2029 | E41: H | F41: A_VIE | G41: 0.45 | H41: 0.39 | I41: 0.6 | J41: 0.6 | K41: 85 | L41: 0 | M41: 24 | N41: 365594.0491 | O41: 706881.1874 | P41: 89975.73483 | Q41: 60149.52439 | R41: 470757.0214 | S41: 58161.11036 | T41: 27837.79641
B42: #16 | C42: 21 | D42: 2030 | E42: H | F42: A_VIE | G42: 0.45 | H42: 0.39 | I42: 0.6 | J42: 0.6 | K42: 85 | L42: 0 | M42: 24 | N42: 365594.0491 | O42: 706881.1874 | P42: 89975.73483 | Q42: 60149.52439 | R42: 470757.0214 | S42: 58161.11036 | T42: 27837.79641
B43: #17 | C43: 22 | D43: 2026 | E43: H | F43: A_VIE | G43: 0.45 | H43: 0.39 | I43: 0.6 | J43: 0.6 | K43: 85 | L43: 0 | M43: 24 | N43: 365594.0491 | O43: 706881.1874 | P43: 89975.73483 | Q43: 60149.52439 | R43: 470757.0214 | S43: 58161.11036 | T43: 27837.79641
B44: #18 | C44: 22 | D44: 2028 | E44: H | F44: A_VIE | G44: 0.45 | H44: 0.39 | I44: 0.6 | J44: 0.6 | K44: 85 | L44: 0 | M44: 24 | N44: 365594.0491 | O44: 706881.1874 | P44: 89975.73483 | Q44: 60149.52439 | R44: 470757.0214 | S44: 58161.11036 | T44: 27837.79641
B45: #19 | C45: 22 | D45: 2029 | E45: H | F45: A_VIE | G45: 0.45 | H45: 0.39 | I45: 0.6 | J45: 0.6 | K45: 85 | L45: 0 | M45: 24 | N45: 365594.0491 | O45: 706881.1874 | P45: 89975.73483 | Q45: 60149.52439 | R45: 470757.0214 | S45: 58161.11036 | T45: 27837.79641
B46: #20 | C46: 22 | D46: 2030 | E46: H | F46: A_VIE | G46: 0.45 | H46: 0.39 | I46: 0.6 | J46: 0.6 | K46: 85 | L46: 0 | M46: 24 | N46: 365594.0491 | O46: 706881.1874 | P46: 89975.73483 | Q46: 60149.52439 | R46: 470757.0214 | S46: 58161.11036 | T46: 27837.79641
B47: #21 | C47: 23 | D47: 2026 | E47: F | F47: A_VIE | G47: 0.45 | H47: 0.39 | I47: 0.6 | J47: 0.6 | K47: 85 | L47: 0 | M47: 24 | N47: 365594.0491 | O47: 706881.1874 | P47: 89975.73483 | Q47: 60149.52439 | R47: 470757.0214 | S47: 58161.11036 | T47: 27837.79641
B48: #22 | C48: 23 | D48: 2028 | E48: F | F48: A_VIE | G48: 0.45 | H48: 0.39 | I48: 0.6 | J48: 0.6 | K48: 85 | L48: 0 | M48: 24 | N48: 365594.0491 | O48: 706881.1874 | P48: 89975.73483 | Q48: 60149.52439 | R48: 470757.0214 | S48: 58161.11036 | T48: 27837.79641
B49: #23 | C49: 23 | D49: 2029 | E49: F | F49: A_VIE | G49: 0.45 | H49: 0.39 | I49: 0.6 | J49: 0.6 | K49: 85 | L49: 0 | M49: 24 | N49: 365594.0491 | O49: 706881.1874 | P49: 89975.73483 | Q49: 60149.52439 | R49: 470757.0214 | S49: 58161.11036 | T49: 27837.79641
B50: #24 | C50: 23 | D50: 2030 | E50: F | F50: A_VIE | G50: 0.45 | H50: 0.39 | I50: 0.6 | J50: 0.6 | K50: 85 | L50: 0 | M50: 24 | N50: 365594.0491 | O50: 706881.1874 | P50: 89975.73483 | Q50: 60149.52439 | R50: 470757.0214 | S50: 58161.11036 | T50: 27837.79641
B51: #25 | C51: 24 | D51: 2026 | E51: H | F51: A_VIE | G51: 0.45 | H51: 0.39 | I51: 0.6 | J51: 0.6 | K51: 85 | L51: 0 | M51: 24 | N51: 365594.0491 | O51: 706881.1874 | P51: 89975.73483 | Q51: 60149.52439 | R51: 470757.0214 | S51: 58161.11036 | T51: 27837.79641
B52: #26 | C52: 24 | D52: 2028 | E52: H | F52: A_VIE | G52: 0.45 | H52: 0.39 | I52: 0.6 | J52: 0.6 | K52: 85 | L52: 0 | M52: 24 | N52: 365594.0491 | O52: 706881.1874 | P52: 89975.73483 | Q52: 60149.52439 | R52: 470757.0214 | S52: 58161.11036 | T52: 27837.79641
B53: #27 | C53: 24 | D53: 2029 | E53: H | F53: A_VIE | G53: 0.45 | H53: 0.39 | I53: 0.6 | J53: 0.6 | K53: 85 | L53: 0 | M53: 24 | N53: 365594.0491 | O53: 706881.1874 | P53: 89975.73483 | Q53: 60149.52439 | R53: 470757.0214 | S53: 58161.11036 | T53: 27837.79641
B54: #28 | C54: 24 | D54: 2030 | E54: H | F54: A_VIE | G54: 0.45 | H54: 0.39 | I54: 0.6 | J54: 0.6 | K54: 85 | L54: 0 | M54: 24 | N54: 365594.0491 | O54: 706881.1874 | P54: 89975.73483 | Q54: 60149.52439 | R54: 470757.0214 | S54: 58161.11036 | T54: 27837.79641
B55: #29 | C55: 25 | D55: 2026 | E55: H | F55: A_VIE | G55: 0.45 | H55: 0.39 | I55: 0.6 | J55: 0.6 | K55: 85 | L55: 0 | M55: 119 | N55: 1827970.245 | O55: 3534405.937 | P55: 449878.6741 | Q55: 300747.6219 | R55: 2353785.107 | S55: 290805.5518 | T55: 139188.9821
B56: #30 | C56: 25 | D56: 2028 | E56: H | F56: A_VIE | G56: 0.45 | H56: 0.39 | I56: 0.6 | J56: 0.6 | K56: 85 | L56: 0 | M56: 119 | N56: 1827970.245 | O56: 3534405.937 | P56: 449878.6741 | Q56: 300747.6219 | R56: 2353785.107 | S56: 290805.5518 | T56: 139188.9821
B57: #31 | C57: 25 | D57: 2029 | E57: H | F57: A_VIE | G57: 0.45 | H57: 0.39 | I57: 0.6 | J57: 0.6 | K57: 85 | L57: 0 | M57: 119 | N57: 1827970.245 | O57: 3534405.937 | P57: 449878.6741 | Q57: 300747.6219 | R57: 2353785.107 | S57: 290805.5518 | T57: 139188.9821
B58: #32 | C58: 25 | D58: 2030 | E58: H | F58: A_VIE | G58: 0.45 | H58: 0.39 | I58: 0.6 | J58: 0.6 | K58: 85 | L58: 0 | M58: 119 | N58: 1827970.245 | O58: 3534405.937 | P58: 449878.6741 | Q58: 300747.6219 | R58: 2353785.107 | S58: 290805.5518 | T58: 139188.9821
B59: #33 | C59: 26 | D59: 2026 | E59: F | F59: A_VIE | G59: 0.45 | H59: 0.39 | I59: 0.6 | J59: 0.6 | K59: 85 | L59: 0 | M59: 71 | N59: 1096782.147 | O59: 2120643.562 | P59: 269927.2045 | Q59: 180448.5732 | R59: 1412271.064 | S59: 174483.3311 | T59: 83513.38923
B60: #34 | C60: 26 | D60: 2028 | E60: F | F60: A_VIE | G60: 0.45 | H60: 0.39 | I60: 0.6 | J60: 0.6 | K60: 85 | L60: 0 | M60: 71 | N60: 1096782.147 | O60: 2120643.562 | P60: 269927.2045 | Q60: 180448.5732 | R60: 1412271.064 | S60: 174483.3311 | T60: 83513.38923
B61: #35 | C61: 26 | D61: 2029 | E61: F | F61: A_VIE | G61: 0.45 | H61: 0.39 | I61: 0.6 | J61: 0.6 | K61: 85 | L61: 0 | M61: 71 | N61: 1096782.147 | O61: 2120643.562 | P61: 269927.2045 | Q61: 180448.5732 | R61: 1412271.064 | S61: 174483.3311 | T61: 83513.38923
B62: #36 | C62: 26 | D62: 2030 | E62: F | F62: A_VIE | G62: 0.45 | H62: 0.39 | I62: 0.6 | J62: 0.6 | K62: 85 | L62: 0 | M62: 71 | N62: 1096782.147 | O62: 2120643.562 | P62: 269927.2045 | Q62: 180448.5732 | R62: 1412271.064 | S62: 174483.3311 | T62: 83513.38923
B63: #37 | C63: 27 | D63: 2026 | E63: H | F63: A_VIE | G63: 0.45 | H63: 0.39 | I63: 0.6 | J63: 0.6 | K63: 85 | L63: 0 | M63: 71 | N63: 1096782.147 | O63: 2120643.562 | P63: 269927.2045 | Q63: 180448.5732 | R63: 1412271.064 | S63: 174483.3311 | T63: 83513.38923
B64: #38 | C64: 27 | D64: 2028 | E64: H | F64: A_VIE | G64: 0.45 | H64: 0.39 | I64: 0.6 | J64: 0.6 | K64: 85 | L64: 0 | M64: 71 | N64: 1096782.147 | O64: 2120643.562 | P64: 269927.2045 | Q64: 180448.5732 | R64: 1412271.064 | S64: 174483.3311 | T64: 83513.38923
B65: #39 | C65: 27 | D65: 2029 | E65: H | F65: A_VIE | G65: 0.45 | H65: 0.39 | I65: 0.6 | J65: 0.6 | K65: 85 | L65: 0 | M65: 71 | N65: 1096782.147 | O65: 2120643.562 | P65: 269927.2045 | Q65: 180448.5732 | R65: 1412271.064 | S65: 174483.3311 | T65: 83513.38923
B66: #40 | C66: 27 | D66: 2030 | E66: H | F66: A_VIE | G66: 0.45 | H66: 0.39 | I66: 0.6 | J66: 0.6 | K66: 85 | L66: 0 | M66: 71 | N66: 1096782.147 | O66: 2120643.562 | P66: 269927.2045 | Q66: 180448.5732 | R66: 1412271.064 | S66: 174483.3311 | T66: 83513.38923
B67: #41 | C67: 28 | D67: 2026 | E67: H | F67: A_VIE | G67: 0.45 | H67: 0.39 | I67: 0.6 | J67: 0.6 | K67: 85 | L67: 0 | M67: 71 | N67: 1096782.147 | O67: 2120643.562 | P67: 269927.2045 | Q67: 180448.5732 | R67: 1412271.064 | S67: 174483.3311 | T67: 83513.38923
B68: #42 | C68: 28 | D68: 2028 | E68: H | F68: A_VIE | G68: 0.45 | H68: 0.39 | I68: 0.6 | J68: 0.6 | K68: 85 | L68: 0 | M68: 71 | N68: 1096782.147 | O68: 2120643.562 | P68: 269927.2045 | Q68: 180448.5732 | R68: 1412271.064 | S68: 174483.3311 | T68: 83513.38923
B69: #43 | C69: 28 | D69: 2029 | E69: H | F69: A_VIE | G69: 0.45 | H69: 0.39 | I69: 0.6 | J69: 0.6 | K69: 85 | L69: 0 | M69: 71 | N69: 1096782.147 | O69: 2120643.562 | P69: 269927.2045 | Q69: 180448.5732 | R69: 1412271.064 | S69: 174483.3311 | T69: 83513.38923
B70: #44 | C70: 28 | D70: 2030 | E70: H | F70: A_VIE | G70: 0.45 | H70: 0.39 | I70: 0.6 | J70: 0.6 | K70: 85 | L70: 0 | M70: 71 | N70: 1096782.147 | O70: 2120643.562 | P70: 269927.2045 | Q70: 180448.5732 | R70: 1412271.064 | S70: 174483.3311 | T70: 83513.38923
B71: #45 | C71: 29 | D71: 2026 | E71: F | F71: A_VIE | G71: 0.45 | H71: 0.39 | I71: 0.6 | J71: 0.6 | K71: 85 | L71: 0 | M71: 71 | N71: 1096782.147 | O71: 2120643.562 | P71: 269927.2045 | Q71: 180448.5732 | R71: 1412271.064 | S71: 174483.3311 | T71: 83513.38923
B72: #46 | C72: 29 | D72: 2028 | E72: F | F72: A_VIE | G72: 0.45 | H72: 0.39 | I72: 0.6 | J72: 0.6 | K72: 85 | L72: 0 | M72: 71 | N72: 1096782.147 | O72: 2120643.562 | P72: 269927.2045 | Q72: 180448.5732 | R72: 1412271.064 | S72: 174483.3311 | T72: 83513.38923
B73: #47 | C73: 29 | D73: 2029 | E73: F | F73: A_VIE | G73: 0.45 | H73: 0.39 | I73: 0.6 | J73: 0.6 | K73: 85 | L73: 0 | M73: 71 | N73: 1096782.147 | O73: 2120643.562 | P73: 269927.2045 | Q73: 180448.5732 | R73: 1412271.064 | S73: 174483.3311 | T73: 83513.38923
B74: #48 | C74: 29 | D74: 2030 | E74: F | F74: A_VIE | G74: 0.45 | H74: 0.39 | I74: 0.6 | J74: 0.6 | K74: 85 | L74: 0 | M74: 71 | N74: 1096782.147 | O74: 2120643.562 | P74: 269927.2045 | Q74: 180448.5732 | R74: 1412271.064 | S74: 174483.3311 | T74: 83513.38923
B75: #49 | C75: 30 | D75: 2026 | E75: H | F75: A_VIE | G75: 0.45 | H75: 0.39 | I75: 0.6 | J75: 0.6 | K75: 85 | L75: 0 | M75: 71 | N75: 1096782.147 | O75: 2120643.562 | P75: 269927.2045 | Q75: 180448.5732 | R75: 1412271.064 | S75: 174483.3311 | T75: 83513.38923
B76: #50 | C76: 30 | D76: 2028 | E76: H | F76: A_VIE | G76: 0.45 | H76: 0.39 | I76: 0.6 | J76: 0.6 | K76: 85 | L76: 0 | M76: 71 | N76: 1096782.147 | O76: 2120643.562 | P76: 269927.2045 | Q76: 180448.5732 | R76: 1412271.064 | S76: 174483.3311 | T76: 83513.38923
B77: #51 | C77: 30 | D77: 2029 | E77: H | F77: A_VIE | G77: 0.45 | H77: 0.39 | I77: 0.6 | J77: 0.6 | K77: 85 | L77: 0 | M77: 71 | N77: 1096782.147 | O77: 2120643.562 | P77: 269927.2045 | Q77: 180448.5732 | R77: 1412271.064 | S77: 174483.3311 | T77: 83513.38923
B78: #52 | C78: 30 | D78: 2030 | E78: H | F78: A_VIE | G78: 0.45 | H78: 0.39 | I78: 0.6 | J78: 0.6 | K78: 85 | L78: 0 | M78: 71 | N78: 1096782.147 | O78: 2120643.562 | P78: 269927.2045 | Q78: 180448.5732 | R78: 1412271.064 | S78: 174483.3311 | T78: 83513.38923
B79: #53 | C79: 31 | D79: 2026 | E79: H | F79: A_VIE | G79: 0.45 | H79: 0.39 | I79: 0.6 | J79: 0.6 | K79: 85 | L79: 0 | M79: 71 | N79: 1096782.147 | O79: 2120643.562 | P79: 269927.2045 | Q79: 180448.5732 | R79: 1412271.064 | S79: 174483.3311 | T79: 83513.38923
B80: #54 | C80: 31 | D80: 2028 | E80: H | F80: A_VIE | G80: 0.45 | H80: 0.39 | I80: 0.6 | J80: 0.6 | K80: 85 | L80: 0 | M80: 71 | N80: 1096782.147 | O80: 2120643.562 | P80: 269927.2045 | Q80: 180448.5732 | R80: 1412271.064 | S80: 174483.3311 | T80: 83513.38923
B81: #55 | C81: 31 | D81: 2029 | E81: H | F81: A_VIE | G81: 0.45 | H81: 0.39 | I81: 0.6 | J81: 0.6 | K81: 85 | L81: 0 | M81: 71 | N81: 1096782.147 | O81: 2120643.562 | P81: 269927.2045 | Q81: 180448.5732 | R81: 1412271.064 | S81: 174483.3311 | T81: 83513.38923
B82: #56 | C82: 31 | D82: 2030 | E82: H | F82: A_VIE | G82: 0.45 | H82: 0.39 | I82: 0.6 | J82: 0.6 | K82: 85 | L82: 0 | M82: 71 | N82: 1096782.147 | O82: 2120643.562 | P82: 269927.2045 | Q82: 180448.5732 | R82: 1412271.064 | S82: 174483.3311 | T82: 83513.38923
B83: #57 | C83: 32 | D83: 2026 | E83: F | F83: A_VIE | G83: 0.45 | H83: 0.39 | I83: 0.6 | J83: 0.6 | K83: 85 | L83: 0 | M83: 71 | N83: 1096782.147 | O83: 2120643.562 | P83: 269927.2045 | Q83: 180448.5732 | R83: 1412271.064 | S83: 174483.3311 | T83: 83513.38923
B84: #58 | C84: 32 | D84: 2028 | E84: F | F84: A_VIE | G84: 0.45 | H84: 0.39 | I84: 0.6 | J84: 0.6 | K84: 85 | L84: 0 | M84: 71 | N84: 1096782.147 | O84: 2120643.562 | P84: 269927.2045 | Q84: 180448.5732 | R84: 1412271.064 | S84: 174483.3311 | T84: 83513.38923
B85: #59 | C85: 32 | D85: 2029 | E85: F | F85: A_VIE | G85: 0.45 | H85: 0.39 | I85: 0.6 | J85: 0.6 | K85: 85 | L85: 0 | M85: 71 | N85: 1096782.147 | O85: 2120643.562 | P85: 269927.2045 | Q85: 180448.5732 | R85: 1412271.064 | S85: 174483.3311 | T85: 83513.38923
B86: #60 | C86: 32 | D86: 2030 | E86: F | F86: A_VIE | G86: 0.45 | H86: 0.39 | I86: 0.6 | J86: 0.6 | K86: 85 | L86: 0 | M86: 71 | N86: 1096782.147 | O86: 2120643.562 | P86: 269927.2045 | Q86: 180448.5732 | R86: 1412271.064 | S86: 174483.3311 | T86: 83513.38923
B87: #61 | C87: 33 | D87: 2026 | E87: H | F87: A_VIE | G87: 0.45 | H87: 0.39 | I87: 0.6 | J87: 0.6 | K87: 85 | L87: 0 | M87: 71 | N87: 1096782.147 | O87: 2120643.562 | P87: 269927.2045 | Q87: 180448.5732 | R87: 1412271.064 | S87: 174483.3311 | T87: 83513.38923
B88: #62 | C88: 33 | D88: 2028 | E88: H | F88: A_VIE | G88: 0.45 | H88: 0.39 | I88: 0.6 | J88: 0.6 | K88: 85 | L88: 0 | M88: 71 | N88: 1096782.147 | O88: 2120643.562 | P88: 269927.2045 | Q88: 180448.5732 | R88: 1412271.064 | S88: 174483.3311 | T88: 83513.38923
B89: #63 | C89: 33 | D89: 2029 | E89: H | F89: A_VIE | G89: 0.45 | H89: 0.39 | I89: 0.6 | J89: 0.6 | K89: 85 | L89: 0 | M89: 71 | N89: 1096782.147 | O89: 2120643.562 | P89: 269927.2045 | Q89: 180448.5732 | R89: 1412271.064 | S89: 174483.3311 | T89: 83513.38923
B90: #64 | C90: 33 | D90: 2030 | E90: H | F90: A_VIE | G90: 0.45 | H90: 0.39 | I90: 0.6 | J90: 0.6 | K90: 85 | L90: 0 | M90: 71 | N90: 1096782.147 | O90: 2120643.562 | P90: 269927.2045 | Q90: 180448.5732 | R90: 1412271.064 | S90: 174483.3311 | T90: 83513.38923
B91: #65 | C91: 34 | D91: 2026 | E91: H | F91: A_VIE | G91: 0.45 | H91: 0.39 | I91: 0.6 | J91: 0.6 | K91: 85 | L91: 0 | M91: 71 | N91: 1096782.147 | O91: 2120643.562 | P91: 269927.2045 | Q91: 180448.5732 | R91: 1412271.064 | S91: 174483.3311 | T91: 83513.38923
B92: #66 | C92: 34 | D92: 2028 | E92: H | F92: A_VIE | G92: 0.45 | H92: 0.39 | I92: 0.6 | J92: 0.6 | K92: 85 | L92: 0 | M92: 71 | N92: 1096782.147 | O92: 2120643.562 | P92: 269927.2045 | Q92: 180448.5732 | R92: 1412271.064 | S92: 174483.3311 | T92: 83513.38923
B93: #67 | C93: 34 | D93: 2029 | E93: H | F93: A_VIE | G93: 0.45 | H93: 0.39 | I93: 0.6 | J93: 0.6 | K93: 85 | L93: 0 | M93: 71 | N93: 1096782.147 | O93: 2120643.562 | P93: 269927.2045 | Q93: 180448.5732 | R93: 1412271.064 | S93: 174483.3311 | T93: 83513.38923
B94: #68 | C94: 34 | D94: 2030 | E94: H | F94: A_VIE | G94: 0.45 | H94: 0.39 | I94: 0.6 | J94: 0.6 | K94: 85 | L94: 0 | M94: 71 | N94: 1096782.147 | O94: 2120643.562 | P94: 269927.2045 | Q94: 180448.5732 | R94: 1412271.064 | S94: 174483.3311 | T94: 83513.38923
B95: #69 | C95: 35 | D95: 2026 | E95: F | F95: A_VIE | G95: 0.45 | H95: 0.39 | I95: 0.6 | J95: 0.6 | K95: 85 | L95: 0 | M95: 71 | N95: 1096782.147 | O95: 2120643.562 | P95: 269927.2045 | Q95: 180448.5732 | R95: 1412271.064 | S95: 174483.3311 | T95: 83513.38923
B96: #70 | C96: 35 | D96: 2028 | E96: F | F96: A_VIE | G96: 0.45 | H96: 0.39 | I96: 0.6 | J96: 0.6 | K96: 85 | L96: 0 | M96: 71 | N96: 1096782.147 | O96: 2120643.562 | P96: 269927.2045 | Q96: 180448.5732 | R96: 1412271.064 | S96: 174483.3311 | T96: 83513.38923
B97: #71 | C97: 35 | D97: 2029 | E97: F | F97: A_VIE | G97: 0.45 | H97: 0.39 | I97: 0.6 | J97: 0.6 | K97: 85 | L97: 0 | M97: 71 | N97: 1096782.147 | O97: 2120643.562 | P97: 269927.2045 | Q97: 180448.5732 | R97: 1412271.064 | S97: 174483.3311 | T97: 83513.38923
B98: #72 | C98: 35 | D98: 2030 | E98: F | F98: A_VIE | G98: 0.45 | H98: 0.39 | I98: 0.6 | J98: 0.6 | K98: 85 | L98: 0 | M98: 71 | N98: 1096782.147 | O98: 2120643.562 | P98: 269927.2045 | Q98: 180448.5732 | R98: 1412271.064 | S98: 174483.3311 | T98: 83513.38923
B99: #73 | C99: 36 | D99: 2026 | E99: H | F99: A_VIE | G99: 0.45 | H99: 0.39 | I99: 0.6 | J99: 0.6 | K99: 85 | L99: 0 | M99: 12 | N99: 182797.0245 | O99: 353440.5937 | P99: 44987.86741 | Q99: 30074.76219 | R99: 235378.5107 | S99: 29080.55518 | T99: 13918.89821
B100: #74 | C100: 36 | D100: 2028 | E100: H | F100: A_VIE | G100: 0.45 | H100: 0.39 | I100: 0.6 | J100: 0.6 | K100: 85 | L100: 0 | M100: 12 | N100: 182797.0245 | O100: 353440.5937 | P100: 44987.86741 | Q100: 30074.76219 | R100: 235378.5107 | S100: 29080.55518 | T100: 13918.89821
B101: #75 | C101: 36 | D101: 2029 | E101: H | F101: A_VIE | G101: 0.45 | H101: 0.39 | I101: 0.6 | J101: 0.6 | K101: 85 | L101: 0 | M101: 12 | N101: 182797.0245 | O101: 353440.5937 | P101: 44987.86741 | Q101: 30074.76219 | R101: 235378.5107 | S101: 29080.55518 | T101: 13918.89821
B102: #76 | C102: 36 | D102: 2030 | E102: H | F102: A_VIE | G102: 0.45 | H102: 0.39 | I102: 0.6 | J102: 0.6 | K102: 85 | L102: 0 | M102: 12 | N102: 182797.0245 | O102: 353440.5937 | P102: 44987.86741 | Q102: 30074.76219 | R102: 235378.5107 | S102: 29080.55518 | T102: 13918.89821
B103: #77 | C103: 37 | D103: 2026 | E103: H | F103: A_VIE | G103: 0.45 | H103: 0.39 | I103: 0.6 | J103: 0.6 | K103: 85 | L103: 0 | M103: 12 | N103: 182797.0245 | O103: 353440.5937 | P103: 44987.86741 | Q103: 30074.76219 | R103: 235378.5107 | S103: 29080.55518 | T103: 13918.89821
B104: #78 | C104: 37 | D104: 2028 | E104: H | F104: A_VIE | G104: 0.45 | H104: 0.39 | I104: 0.6 | J104: 0.6 | K104: 85 | L104: 0 | M104: 12 | N104: 182797.0245 | O104: 353440.5937 | P104: 44987.86741 | Q104: 30074.76219 | R104: 235378.5107 | S104: 29080.55518 | T104: 13918.89821
B105: #79 | C105: 37 | D105: 2029 | E105: H | F105: A_VIE | G105: 0.45 | H105: 0.39 | I105: 0.6 | J105: 0.6 | K105: 85 | L105: 0 | M105: 12 | N105: 182797.0245 | O105: 353440.5937 | P105: 44987.86741 | Q105: 30074.76219 | R105: 235378.5107 | S105: 29080.55518 | T105: 13918.89821
B106: #80 | C106: 37 | D106: 2030 | E106: H | F106: A_VIE | G106: 0.45 | H106: 0.39 | I106: 0.6 | J106: 0.6 | K106: 85 | L106: 0 | M106: 12 | N106: 182797.0245 | O106: 353440.5937 | P106: 44987.86741 | Q106: 30074.76219 | R106: 235378.5107 | S106: 29080.55518 | T106: 13918.89821
B107: #81 | C107: 38 | D107: 2026 | E107: F | F107: A_VIE | G107: 0.45 | H107: 0.39 | I107: 0.6 | J107: 0.6 | K107: 85 | L107: 0 | M107: 12 | N107: 182797.0245 | O107: 353440.5937 | P107: 44987.86741 | Q107: 30074.76219 | R107: 235378.5107 | S107: 29080.55518 | T107: 13918.89821
B108: #82 | C108: 38 | D108: 2028 | E108: F | F108: A_VIE | G108: 0.45 | H108: 0.39 | I108: 0.6 | J108: 0.6 | K108: 85 | L108: 0 | M108: 12 | N108: 182797.0245 | O108: 353440.5937 | P108: 44987.86741 | Q108: 30074.76219 | R108: 235378.5107 | S108: 29080.55518 | T108: 13918.89821
B109: #83 | C109: 38 | D109: 2029 | E109: F | F109: A_VIE | G109: 0.45 | H109: 0.39 | I109: 0.6 | J109: 0.6 | K109: 85 | L109: 0 | M109: 12 | N109: 182797.0245 | O109: 353440.5937 | P109: 44987.86741 | Q109: 30074.76219 | R109: 235378.5107 | S109: 29080.55518 | T109: 13918.89821
B110: #84 | C110: 38 | D110: 2030 | E110: F | F110: A_VIE | G110: 0.45 | H110: 0.39 | I110: 0.6 | J110: 0.6 | K110: 85 | L110: 0 | M110: 12 | N110: 182797.0245 | O110: 353440.5937 | P110: 44987.86741 | Q110: 30074.76219 | R110: 235378.5107 | S110: 29080.55518 | T110: 13918.89821
B111: #85 | C111: 39 | D111: 2026 | E111: H | F111: A_VIE | G111: 0.45 | H111: 0.39 | I111: 0.6 | J111: 0.6 | K111: 85 | L111: 0 | M111: 12 | N111: 182797.0245 | O111: 353440.5937 | P111: 44987.86741 | Q111: 30074.76219 | R111: 235378.5107 | S111: 29080.55518 | T111: 13918.89821
B112: #86 | C112: 39 | D112: 2028 | E112: H | F112: A_VIE | G112: 0.45 | H112: 0.39 | I112: 0.6 | J112: 0.6 | K112: 85 | L112: 0 | M112: 12 | N112: 182797.0245 | O112: 353440.5937 | P112: 44987.86741 | Q112: 30074.76219 | R112: 235378.5107 | S112: 29080.55518 | T112: 13918.89821
B113: #87 | C113: 39 | D113: 2029 | E113: H | F113: A_VIE | G113: 0.45 | H113: 0.39 | I113: 0.6 | J113: 0.6 | K113: 85 | L113: 0 | M113: 12 | N113: 182797.0245 | O113: 353440.5937 | P113: 44987.86741 | Q113: 30074.76219 | R113: 235378.5107 | S113: 29080.55518 | T113: 13918.89821
B114: #88 | C114: 39 | D114: 2030 | E114: H | F114: A_VIE | G114: 0.45 | H114: 0.39 | I114: 0.6 | J114: 0.6 | K114: 85 | L114: 0 | M114: 12 | N114: 182797.0245 | O114: 353440.5937 | P114: 44987.86741 | Q114: 30074.76219 | R114: 235378.5107 | S114: 29080.55518 | T114: 13918.89821
B115: #89 | C115: 40 | D115: 2026 | E115: H | F115: A_VIE | G115: 0.45 | H115: 0.39 | I115: 0.6 | J115: 0.6 | K115: 85 | L115: 0 | M115: 12 | N115: 182797.0245 | O115: 353440.5937 | P115: 44987.86741 | Q115: 30074.76219 | R115: 235378.5107 | S115: 29080.55518 | T115: 13918.89821
B116: #90 | C116: 40 | D116: 2028 | E116: H | F116: A_VIE | G116: 0.45 | H116: 0.39 | I116: 0.6 | J116: 0.6 | K116: 85 | L116: 0 | M116: 12 | N116: 182797.0245 | O116: 353440.5937 | P116: 44987.86741 | Q116: 30074.76219 | R116: 235378.5107 | S116: 29080.55518 | T116: 13918.89821
B117: #91 | C117: 40 | D117: 2029 | E117: H | F117: A_VIE | G117: 0.45 | H117: 0.39 | I117: 0.6 | J117: 0.6 | K117: 85 | L117: 0 | M117: 12 | N117: 182797.0245 | O117: 353440.5937 | P117: 44987.86741 | Q117: 30074.76219 | R117: 235378.5107 | S117: 29080.55518 | T117: 13918.89821
B118: #92 | C118: 40 | D118: 2030 | E118: H | F118: A_VIE | G118: 0.45 | H118: 0.39 | I118: 0.6 | J118: 0.6 | K118: 85 | L118: 0 | M118: 12 | N118: 182797.0245 | O118: 353440.5937 | P118: 44987.86741 | Q118: 30074.76219 | R118: 235378.5107 | S118: 29080.55518 | T118: 13918.89821
B119: #93 | C119: 41 | D119: 2026 | E119: F | F119: A_VIE | G119: 0.45 | H119: 0.39 | I119: 0.6 | J119: 0.6 | K119: 85 | L119: 0 | M119: 12 | N119: 182797.0245 | O119: 353440.5937 | P119: 44987.86741 | Q119: 30074.76219 | R119: 235378.5107 | S119: 29080.55518 | T119: 13918.89821
B120: #94 | C120: 41 | D120: 2028 | E120: F | F120: A_VIE | G120: 0.45 | H120: 0.39 | I120: 0.6 | J120: 0.6 | K120: 85 | L120: 0 | M120: 12 | N120: 182797.0245 | O120: 353440.5937 | P120: 44987.86741 | Q120: 30074.76219 | R120: 235378.5107 | S120: 29080.55518 | T120: 13918.89821
B121: #95 | C121: 41 | D121: 2029 | E121: F | F121: A_VIE | G121: 0.45 | H121: 0.39 | I121: 0.6 | J121: 0.6 | K121: 85 | L121: 0 | M121: 12 | N121: 182797.0245 | O121: 353440.5937 | P121: 44987.86741 | Q121: 30074.76219 | R121: 235378.5107 | S121: 29080.55518 | T121: 13918.89821
B122: #96 | C122: 41 | D122: 2030 | E122: F | F122: A_VIE | G122: 0.45 | H122: 0.39 | I122: 0.6 | J122: 0.6 | K122: 85 | L122: 0 | M122: 12 | N122: 182797.0245 | O122: 353440.5937 | P122: 44987.86741 | Q122: 30074.76219 | R122: 235378.5107 | S122: 29080.55518 | T122: 13918.89821
B123: #97 | C123: 42 | D123: 2026 | E123: H | F123: A_VIE | G123: 0.45 | H123: 0.39 | I123: 0.6 | J123: 0.6 | K123: 85 | L123: 0 | M123: 12 | N123: 182797.0245 | O123: 353440.5937 | P123: 44987.86741 | Q123: 30074.76219 | R123: 235378.5107 | S123: 29080.55518 | T123: 13918.89821
B124: #98 | C124: 42 | D124: 2028 | E124: H | F124: A_VIE | G124: 0.45 | H124: 0.39 | I124: 0.6 | J124: 0.6 | K124: 85 | L124: 0 | M124: 12 | N124: 182797.0245 | O124: 353440.5937 | P124: 44987.86741 | Q124: 30074.76219 | R124: 235378.5107 | S124: 29080.55518 | T124: 13918.89821
B125: #99 | C125: 42 | D125: 2029 | E125: H | F125: A_VIE | G125: 0.45 | H125: 0.39 | I125: 0.6 | J125: 0.6 | K125: 85 | L125: 0 | M125: 12 | N125: 182797.0245 | O125: 353440.5937 | P125: 44987.86741 | Q125: 30074.76219 | R125: 235378.5107 | S125: 29080.55518 | T125: 13918.89821
B126: #100 | C126: 42 | D126: 2030 | E126: H | F126: A_VIE | G126: 0.45 | H126: 0.39 | I126: 0.6 | J126: 0.6 | K126: 85 | L126: 0 | M126: 12 | N126: 182797.0245 | O126: 353440.5937 | P126: 44987.86741 | Q126: 30074.76219 | R126: 235378.5107 | S126: 29080.55518 | T126: 13918.89821
B127: #101 | C127: 43 | D127: 2026 | E127: H | F127: A_VIE | G127: 0.45 | H127: 0.39 | I127: 0.6 | J127: 0.6 | K127: 85 | L127: 0 | M127: 12 | N127: 182797.0245 | O127: 353440.5937 | P127: 44987.86741 | Q127: 30074.76219 | R127: 235378.5107 | S127: 29080.55518 | T127: 13918.89821
B128: #102 | C128: 43 | D128: 2028 | E128: H | F128: A_VIE | G128: 0.45 | H128: 0.39 | I128: 0.6 | J128: 0.6 | K128: 85 | L128: 0 | M128: 12 | N128: 182797.0245 | O128: 353440.5937 | P128: 44987.86741 | Q128: 30074.76219 | R128: 235378.5107 | S128: 29080.55518 | T128: 13918.89821
B129: #103 | C129: 43 | D129: 2029 | E129: H | F129: A_VIE | G129: 0.45 | H129: 0.39 | I129: 0.6 | J129: 0.6 | K129: 85 | L129: 0 | M129: 12 | N129: 182797.0245 | O129: 353440.5937 | P129: 44987.86741 | Q129: 30074.76219 | R129: 235378.5107 | S129: 29080.55518 | T129: 13918.89821
B130: #104 | C130: 43 | D130: 2030 | E130: H | F130: A_VIE | G130: 0.45 | H130: 0.39 | I130: 0.6 | J130: 0.6 | K130: 85 | L130: 0 | M130: 12 | N130: 182797.0245 | O130: 353440.5937 | P130: 44987.86741 | Q130: 30074.76219 | R130: 235378.5107 | S130: 29080.55518 | T130: 13918.89821
B131: #105 | C131: 44 | D131: 2026 | E131: F | F131: A_VIE | G131: 0.45 | H131: 0.39 | I131: 0.6 | J131: 0.6 | K131: 85 | L131: 0 | M131: 12 | N131: 182797.0245 | O131: 353440.5937 | P131: 44987.86741 | Q131: 30074.76219 | R131: 235378.5107 | S131: 29080.55518 | T131: 13918.89821
B132: #106 | C132: 44 | D132: 2028 | E132: F | F132: A_VIE | G132: 0.45 | H132: 0.39 | I132: 0.6 | J132: 0.6 | K132: 85 | L132: 0 | M132: 12 | N132: 182797.0245 | O132: 353440.5937 | P132: 44987.86741 | Q132: 30074.76219 | R132: 235378.5107 | S132: 29080.55518 | T132: 13918.89821
B133: #107 | C133: 44 | D133: 2029 | E133: F | F133: A_VIE | G133: 0.45 | H133: 0.39 | I133: 0.6 | J133: 0.6 | K133: 85 | L133: 0 | M133: 12 | N133: 182797.0245 | O133: 353440.5937 | P133: 44987.86741 | Q133: 30074.76219 | R133: 235378.5107 | S133: 29080.55518 | T133: 13918.89821
B134: #108 | C134: 44 | D134: 2030 | E134: F | F134: A_VIE | G134: 0.45 | H134: 0.39 | I134: 0.6 | J134: 0.6 | K134: 85 | L134: 0 | M134: 12 | N134: 182797.0245 | O134: 353440.5937 | P134: 44987.86741 | Q134: 30074.76219 | R134: 235378.5107 | S134: 29080.55518 | T134: 13918.89821
B135: #109 | C135: 45 | D135: 2026 | E135: H | F135: A_VIE | G135: 0.45 | H135: 0.39 | I135: 0.6 | J135: 0.6 | K135: 85 | L135: 0 | M135: 12 | N135: 182797.0245 | O135: 353440.5937 | P135: 44987.86741 | Q135: 30074.76219 | R135: 235378.5107 | S135: 29080.55518 | T135: 13918.89821
B136: #110 | C136: 45 | D136: 2028 | E136: H | F136: A_VIE | G136: 0.45 | H136: 0.39 | I136: 0.6 | J136: 0.6 | K136: 85 | L136: 0 | M136: 12 | N136: 182797.0245 | O136: 353440.5937 | P136: 44987.86741 | Q136: 30074.76219 | R136: 235378.5107 | S136: 29080.55518 | T136: 13918.89821
B137: #111 | C137: 45 | D137: 2029 | E137: H | F137: A_VIE | G137: 0.45 | H137: 0.39 | I137: 0.6 | J137: 0.6 | K137: 85 | L137: 0 | M137: 12 | N137: 182797.0245 | O137: 353440.5937 | P137: 44987.86741 | Q137: 30074.76219 | R137: 235378.5107 | S137: 29080.55518 | T137: 13918.89821
B138: #112 | C138: 45 | D138: 2030 | E138: H | F138: A_VIE | G138: 0.45 | H138: 0.39 | I138: 0.6 | J138: 0.6 | K138: 85 | L138: 0 | M138: 12 | N138: 182797.0245 | O138: 353440.5937 | P138: 44987.86741 | Q138: 30074.76219 | R138: 235378.5107 | S138: 29080.55518 | T138: 13918.89821
B139: #113 | C139: 46 | D139: 2026 | E139: H | F139: A_VIE | G139: 0.45 | H139: 0.39 | I139: 0.6 | J139: 0.6 | K139: 85 | L139: 0 | M139: 12 | N139: 182797.0245 | O139: 353440.5937 | P139: 44987.86741 | Q139: 30074.76219 | R139: 235378.5107 | S139: 29080.55518 | T139: 13918.89821
B140: #114 | C140: 46 | D140: 2028 | E140: H | F140: A_VIE | G140: 0.45 | H140: 0.39 | I140: 0.6 | J140: 0.6 | K140: 85 | L140: 0 | M140: 12 | N140: 182797.0245 | O140: 353440.5937 | P140: 44987.86741 | Q140: 30074.76219 | R140: 235378.5107 | S140: 29080.55518 | T140: 13918.89821
B141: #115 | C141: 46 | D141: 2029 | E141: H | F141: A_VIE | G141: 0.45 | H141: 0.39 | I141: 0.6 | J141: 0.6 | K141: 85 | L141: 0 | M141: 12 | N141: 182797.0245 | O141: 353440.5937 | P141: 44987.86741 | Q141: 30074.76219 | R141: 235378.5107 | S141: 29080.55518 | T141: 13918.89821
B142: #116 | C142: 46 | D142: 2030 | E142: H | F142: A_VIE | G142: 0.45 | H142: 0.39 | I142: 0.6 | J142: 0.6 | K142: 85 | L142: 0 | M142: 12 | N142: 182797.0245 | O142: 353440.5937 | P142: 44987.86741 | Q142: 30074.76219 | R142: 235378.5107 | S142: 29080.55518 | T142: 13918.89821
B143: #117 | C143: 47 | D143: 2026 | E143: F | F143: A_VIE | G143: 0.45 | H143: 0.39 | I143: 0.6 | J143: 0.6 | K143: 85 | L143: 0 | M143: 12 | N143: 182797.0245 | O143: 353440.5937 | P143: 44987.86741 | Q143: 30074.76219 | R143: 235378.5107 | S143: 29080.55518 | T143: 13918.89821
B144: #118 | C144: 47 | D144: 2028 | E144: F | F144: A_VIE | G144: 0.45 | H144: 0.39 | I144: 0.6 | J144: 0.6 | K144: 85 | L144: 0 | M144: 12 | N144: 182797.0245 | O144: 353440.5937 | P144: 44987.86741 | Q144: 30074.76219 | R144: 235378.5107 | S144: 29080.55518 | T144: 13918.89821
B145: #119 | C145: 47 | D145: 2029 | E145: F | F145: A_VIE | G145: 0.45 | H145: 0.39 | I145: 0.6 | J145: 0.6 | K145: 85 | L145: 0 | M145: 12 | N145: 182797.0245 | O145: 353440.5937 | P145: 44987.86741 | Q145: 30074.76219 | R145: 235378.5107 | S145: 29080.55518 | T145: 13918.89821
B146: #120 | C146: 47 | D146: 2030 | E146: F | F146: A_VIE | G146: 0.45 | H146: 0.39 | I146: 0.6 | J146: 0.6 | K146: 85 | L146: 0 | M146: 12 | N146: 182797.0245 | O146: 353440.5937 | P146: 44987.86741 | Q146: 30074.76219 | R146: 235378.5107 | S146: 29080.55518 | T146: 13918.89821
B147: #121 | C147: 48 | D147: 2026 | E147: H | F147: A_VIE | G147: 0.45 | H147: 0.39 | I147: 0.6 | J147: 0.6 | K147: 85 | L147: 0 | M147: 12 | N147: 182797.0245 | O147: 353440.5937 | P147: 44987.86741 | Q147: 30074.76219 | R147: 235378.5107 | S147: 29080.55518 | T147: 13918.89821
B148: #122 | C148: 48 | D148: 2028 | E148: H | F148: A_VIE | G148: 0.45 | H148: 0.39 | I148: 0.6 | J148: 0.6 | K148: 85 | L148: 0 | M148: 12 | N148: 182797.0245 | O148: 353440.5937 | P148: 44987.86741 | Q148: 30074.76219 | R148: 235378.5107 | S148: 29080.55518 | T148: 13918.89821
B149: #123 | C149: 48 | D149: 2029 | E149: H | F149: A_VIE | G149: 0.45 | H149: 0.39 | I149: 0.6 | J149: 0.6 | K149: 85 | L149: 0 | M149: 12 | N149: 182797.0245 | O149: 353440.5937 | P149: 44987.86741 | Q149: 30074.76219 | R149: 235378.5107 | S149: 29080.55518 | T149: 13918.89821
B150: #124 | C150: 48 | D150: 2030 | E150: H | F150: A_VIE | G150: 0.45 | H150: 0.39 | I150: 0.6 | J150: 0.6 | K150: 85 | L150: 0 | M150: 12 | N150: 182797.0245 | O150: 353440.5937 | P150: 44987.86741 | Q150: 30074.76219 | R150: 235378.5107 | S150: 29080.55518 | T150: 13918.89821
B151: #125 | C151: 49 | D151: 2026 | E151: H | F151: A_VIE | G151: 0.45 | H151: 0.39 | I151: 0.6 | J151: 0.6 | K151: 85 | L151: 0 | M151: 12 | N151: 182797.0245 | O151: 353440.5937 | P151: 44987.86741 | Q151: 30074.76219 | R151: 235378.5107 | S151: 29080.55518 | T151: 13918.89821
B152: #126 | C152: 49 | D152: 2028 | E152: H | F152: A_VIE | G152: 0.45 | H152: 0.39 | I152: 0.6 | J152: 0.6 | K152: 85 | L152: 0 | M152: 12 | N152: 182797.0245 | O152: 353440.5937 | P152: 44987.86741 | Q152: 30074.76219 | R152: 235378.5107 | S152: 29080.55518 | T152: 13918.89821
B153: #127 | C153: 49 | D153: 2029 | E153: H | F153: A_VIE | G153: 0.45 | H153: 0.39 | I153: 0.6 | J153: 0.6 | K153: 85 | L153: 0 | M153: 12 | N153: 182797.0245 | O153: 353440.5937 | P153: 44987.86741 | Q153: 30074.76219 | R153: 235378.5107 | S153: 29080.55518 | T153: 13918.89821
B154: #128 | C154: 49 | D154: 2030 | E154: H | F154: A_VIE | G154: 0.45 | H154: 0.39 | I154: 0.6 | J154: 0.6 | K154: 85 | L154: 0 | M154: 12 | N154: 182797.0245 | O154: 353440.5937 | P154: 44987.86741 | Q154: 30074.76219 | R154: 235378.5107 | S154: 29080.55518 | T154: 13918.89821
B155: #129 | C155: 50 | D155: 2026 | E155: F | F155: A_VIE | G155: 0.45 | H155: 0.39 | I155: 0.6 | J155: 0.6 | K155: 85 | L155: 0 | M155: 71 | N155: 1096782.147 | O155: 2120643.562 | P155: 269927.2045 | Q155: 180448.5732 | R155: 1412271.064 | S155: 174483.3311 | T155: 83513.38923
B156: #130 | C156: 50 | D156: 2028 | E156: F | F156: A_VIE | G156: 0.45 | H156: 0.39 | I156: 0.6 | J156: 0.6 | K156: 85 | L156: 0 | M156: 71 | N156: 1096782.147 | O156: 2120643.562 | P156: 269927.2045 | Q156: 180448.5732 | R156: 1412271.064 | S156: 174483.3311 | T156: 83513.38923
B157: #131 | C157: 50 | D157: 2029 | E157: F | F157: A_VIE | G157: 0.45 | H157: 0.39 | I157: 0.6 | J157: 0.6 | K157: 85 | L157: 0 | M157: 71 | N157: 1096782.147 | O157: 2120643.562 | P157: 269927.2045 | Q157: 180448.5732 | R157: 1412271.064 | S157: 174483.3311 | T157: 83513.38923
B158: #132 | C158: 50 | D158: 2030 | E158: F | F158: A_VIE | G158: 0.45 | H158: 0.39 | I158: 0.6 | J158: 0.6 | K158: 85 | L158: 0 | M158: 71 | N158: 1096782.147 | O158: 2120643.562 | P158: 269927.2045 | Q158: 180448.5732 | R158: 1412271.064 | S158: 174483.3311 | T158: 83513.38923
B159: #133 | C159: 51 | D159: 2026 | E159: H | F159: A_VIE | G159: 0.45 | H159: 0.39 | I159: 0.6 | J159: 0.6 | K159: 85 | L159: 0 | M159: 71 | N159: 1096782.147 | O159: 2120643.562 | P159: 269927.2045 | Q159: 180448.5732 | R159: 1412271.064 | S159: 174483.3311 | T159: 83513.38923
B160: #134 | C160: 51 | D160: 2028 | E160: H | F160: A_VIE | G160: 0.45 | H160: 0.39 | I160: 0.6 | J160: 0.6 | K160: 85 | L160: 0 | M160: 71 | N160: 1096782.147 | O160: 2120643.562 | P160: 269927.2045 | Q160: 180448.5732 | R160: 1412271.064 | S160: 174483.3311 | T160: 83513.38923
B161: #135 | C161: 51 | D161: 2029 | E161: H | F161: A_VIE | G161: 0.45 | H161: 0.39 | I161: 0.6 | J161: 0.6 | K161: 85 | L161: 0 | M161: 71 | N161: 1096782.147 | O161: 2120643.562 | P161: 269927.2045 | Q161: 180448.5732 | R161: 1412271.064 | S161: 174483.3311 | T161: 83513.38923
B162: #136 | C162: 51 | D162: 2030 | E162: H | F162: A_VIE | G162: 0.45 | H162: 0.39 | I162: 0.6 | J162: 0.6 | K162: 85 | L162: 0 | M162: 71 | N162: 1096782.147 | O162: 2120643.562 | P162: 269927.2045 | Q162: 180448.5732 | R162: 1412271.064 | S162: 174483.3311 | T162: 83513.38923
B163: #137 | C163: 52 | D163: 2026 | E163: H | F163: A_VIE | G163: 0.45 | H163: 0.39 | I163: 0.6 | J163: 0.6 | K163: 85 | L163: 0 | M163: 71 | N163: 1096782.147 | O163: 2120643.562 | P163: 269927.2045 | Q163: 180448.5732 | R163: 1412271.064 | S163: 174483.3311 | T163: 83513.38923
B164: #138 | C164: 52 | D164: 2028 | E164: H | F164: A_VIE | G164: 0.45 | H164: 0.39 | I164: 0.6 | J164: 0.6 | K164: 85 | L164: 0 | M164: 71 | N164: 1096782.147 | O164: 2120643.562 | P164: 269927.2045 | Q164: 180448.5732 | R164: 1412271.064 | S164: 174483.3311 | T164: 83513.38923
B165: #139 | C165: 52 | D165: 2029 | E165: H | F165: A_VIE | G165: 0.45 | H165: 0.39 | I165: 0.6 | J165: 0.6 | K165: 85 | L165: 0 | M165: 71 | N165: 1096782.147 | O165: 2120643.562 | P165: 269927.2045 | Q165: 180448.5732 | R165: 1412271.064 | S165: 174483.3311 | T165: 83513.38923
B166: #140 | C166: 52 | D166: 2030 | E166: H | F166: A_VIE | G166: 0.45 | H166: 0.39 | I166: 0.6 | J166: 0.6 | K166: 85 | L166: 0 | M166: 71 | N166: 1096782.147 | O166: 2120643.562 | P166: 269927.2045 | Q166: 180448.5732 | R166: 1412271.064 | S166: 174483.3311 | T166: 83513.38923
B167: #141 | C167: 53 | D167: 2026 | E167: F | F167: A_VIE | G167: 0.45 | H167: 0.39 | I167: 0.6 | J167: 0.6 | K167: 85 | L167: 0 | M167: 71 | N167: 1096782.147 | O167: 2120643.562 | P167: 269927.2045 | Q167: 180448.5732 | R167: 1412271.064 | S167: 174483.3311 | T167: 83513.38923
B168: #142 | C168: 53 | D168: 2028 | E168: F | F168: A_VIE | G168: 0.45 | H168: 0.39 | I168: 0.6 | J168: 0.6 | K168: 85 | L168: 0 | M168: 71 | N168: 1096782.147 | O168: 2120643.562 | P168: 269927.2045 | Q168: 180448.5732 | R168: 1412271.064 | S168: 174483.3311 | T168: 83513.38923
B169: #143 | C169: 53 | D169: 2029 | E169: F | F169: A_VIE | G169: 0.45 | H169: 0.39 | I169: 0.6 | J169: 0.6 | K169: 85 | L169: 0 | M169: 71 | N169: 1096782.147 | O169: 2120643.562 | P169: 269927.2045 | Q169: 180448.5732 | R169: 1412271.064 | S169: 174483.3311 | T169: 83513.38923
B170: #144 | C170: 53 | D170: 2030 | E170: F | F170: A_VIE | G170: 0.45 | H170: 0.39 | I170: 0.6 | J170: 0.6 | K170: 85 | L170: 0 | M170: 71 | N170: 1096782.147 | O170: 2120643.562 | P170: 269927.2045 | Q170: 180448.5732 | R170: 1412271.064 | S170: 174483.3311 | T170: 83513.38923
B171: #145 | C171: 54 | D171: 2026 | E171: H | F171: A_VIE | G171: 0.45 | H171: 0.39 | I171: 0.6 | J171: 0.6 | K171: 85 | L171: 0 | M171: 71 | N171: 1096782.147 | O171: 2120643.562 | P171: 269927.2045 | Q171: 180448.5732 | R171: 1412271.064 | S171: 174483.3311 | T171: 83513.38923
B172: #146 | C172: 54 | D172: 2028 | E172: H | F172: A_VIE | G172: 0.45 | H172: 0.39 | I172: 0.6 | J172: 0.6 | K172: 85 | L172: 0 | M172: 71 | N172: 1096782.147 | O172: 2120643.562 | P172: 269927.2045 | Q172: 180448.5732 | R172: 1412271.064 | S172: 174483.3311 | T172: 83513.38923
B173: #147 | C173: 54 | D173: 2029 | E173: H | F173: A_VIE | G173: 0.45 | H173: 0.39 | I173: 0.6 | J173: 0.6 | K173: 85 | L173: 0 | M173: 71 | N173: 1096782.147 | O173: 2120643.562 | P173: 269927.2045 | Q173: 180448.5732 | R173: 1412271.064 | S173: 174483.3311 | T173: 83513.38923
B174: #148 | C174: 54 | D174: 2030 | E174: H | F174: A_VIE | G174: 0.45 | H174: 0.39 | I174: 0.6 | J174: 0.6 | K174: 85 | L174: 0 | M174: 71 | N174: 1096782.147 | O174: 2120643.562 | P174: 269927.2045 | Q174: 180448.5732 | R174: 1412271.064 | S174: 174483.3311 | T174: 83513.38923
B175: #149 | C175: 55 | D175: 2026 | E175: H | F175: A_VIE | G175: 0.45 | H175: 0.39 | I175: 0.6 | J175: 0.6 | K175: 85 | L175: 0 | M175: 71 | N175: 1096782.147 | O175: 2120643.562 | P175: 269927.2045 | Q175: 180448.5732 | R175: 1412271.064 | S175: 174483.3311 | T175: 83513.38923
B176: #150 | C176: 55 | D176: 2028 | E176: H | F176: A_VIE | G176: 0.45 | H176: 0.39 | I176: 0.6 | J176: 0.6 | K176: 85 | L176: 0 | M176: 71 | N176: 1096782.147 | O176: 2120643.562 | P176: 269927.2045 | Q176: 180448.5732 | R176: 1412271.064 | S176: 174483.3311 | T176: 83513.38923
B177: #151 | C177: 55 | D177: 2029 | E177: H | F177: A_VIE | G177: 0.45 | H177: 0.39 | I177: 0.6 | J177: 0.6 | K177: 85 | L177: 0 | M177: 71 | N177: 1096782.147 | O177: 2120643.562 | P177: 269927.2045 | Q177: 180448.5732 | R177: 1412271.064 | S177: 174483.3311 | T177: 83513.38923
B178: #152 | C178: 55 | D178: 2030 | E178: H | F178: A_VIE | G178: 0.45 | H178: 0.39 | I178: 0.6 | J178: 0.6 | K178: 85 | L178: 0 | M178: 71 | N178: 1096782.147 | O178: 2120643.562 | P178: 269927.2045 | Q178: 180448.5732 | R178: 1412271.064 | S178: 174483.3311 | T178: 83513.38923
B179: #153 | C179: 56 | D179: 2026 | E179: F | F179: A_VIE | G179: 0.45 | H179: 0.39 | I179: 0.6 | J179: 0.6 | K179: 85 | L179: 0 | M179: 71 | N179: 1096782.147 | O179: 2120643.562 | P179: 269927.2045 | Q179: 180448.5732 | R179: 1412271.064 | S179: 174483.3311 | T179: 83513.38923
B180: #154 | C180: 56 | D180: 2028 | E180: F | F180: A_VIE | G180: 0.45 | H180: 0.39 | I180: 0.6 | J180: 0.6 | K180: 85 | L180: 0 | M180: 71 | N180: 1096782.147 | O180: 2120643.562 | P180: 269927.2045 | Q180: 180448.5732 | R180: 1412271.064 | S180: 174483.3311 | T180: 83513.38923
B181: #155 | C181: 56 | D181: 2029 | E181: F | F181: A_VIE | G181: 0.45 | H181: 0.39 | I181: 0.6 | J181: 0.6 | K181: 85 | L181: 0 | M181: 71 | N181: 1096782.147 | O181: 2120643.562 | P181: 269927.2045 | Q181: 180448.5732 | R181: 1412271.064 | S181: 174483.3311 | T181: 83513.38923
B182: #156 | C182: 56 | D182: 2030 | E182: F | F182: A_VIE | G182: 0.45 | H182: 0.39 | I182: 0.6 | J182: 0.6 | K182: 85 | L182: 0 | M182: 71 | N182: 1096782.147 | O182: 2120643.562 | P182: 269927.2045 | Q182: 180448.5732 | R182: 1412271.064 | S182: 174483.3311 | T182: 83513.38923
B183: #157 | C183: 57 | D183: 2026 | E183: H | F183: A_VIE | G183: 0.45 | H183: 0.39 | I183: 0.6 | J183: 0.6 | K183: 85 | L183: 0 | M183: 71 | N183: 1096782.147 | O183: 2120643.562 | P183: 269927.2045 | Q183: 180448.5732 | R183: 1412271.064 | S183: 174483.3311 | T183: 83513.38923
B184: #158 | C184: 57 | D184: 2028 | E184: H | F184: A_VIE | G184: 0.45 | H184: 0.39 | I184: 0.6 | J184: 0.6 | K184: 85 | L184: 0 | M184: 71 | N184: 1096782.147 | O184: 2120643.562 | P184: 269927.2045 | Q184: 180448.5732 | R184: 1412271.064 | S184: 174483.3311 | T184: 83513.38923
B185: #159 | C185: 57 | D185: 2029 | E185: H | F185: A_VIE | G185: 0.45 | H185: 0.39 | I185: 0.6 | J185: 0.6 | K185: 85 | L185: 0 | M185: 71 | N185: 1096782.147 | O185: 2120643.562 | P185: 269927.2045 | Q185: 180448.5732 | R185: 1412271.064 | S185: 174483.3311 | T185: 83513.38923
B186: #160 | C186: 57 | D186: 2030 | E186: H | F186: A_VIE | G186: 0.45 | H186: 0.39 | I186: 0.6 | J186: 0.6 | K186: 85 | L186: 0 | M186: 71 | N186: 1096782.147 | O186: 2120643.562 | P186: 269927.2045 | Q186: 180448.5732 | R186: 1412271.064 | S186: 174483.3311 | T186: 83513.38923
B187: #161 | C187: 58 | D187: 2026 | E187: H | F187: A_VIE | G187: 0.45 | H187: 0.39 | I187: 0.6 | J187: 0.6 | K187: 85 | L187: 0 | M187: 71 | N187: 1096782.147 | O187: 2120643.562 | P187: 269927.2045 | Q187: 180448.5732 | R187: 1412271.064 | S187: 174483.3311 | T187: 83513.38923
B188: #162 | C188: 58 | D188: 2028 | E188: H | F188: A_VIE | G188: 0.45 | H188: 0.39 | I188: 0.6 | J188: 0.6 | K188: 85 | L188: 0 | M188: 71 | N188: 1096782.147 | O188: 2120643.562 | P188: 269927.2045 | Q188: 180448.5732 | R188: 1412271.064 | S188: 174483.3311 | T188: 83513.38923
B189: #163 | C189: 58 | D189: 2029 | E189: H | F189: A_VIE | G189: 0.45 | H189: 0.39 | I189: 0.6 | J189: 0.6 | K189: 85 | L189: 0 | M189: 71 | N189: 1096782.147 | O189: 2120643.562 | P189: 269927.2045 | Q189: 180448.5732 | R189: 1412271.064 | S189: 174483.3311 | T189: 83513.38923
B190: #164 | C190: 58 | D190: 2030 | E190: H | F190: A_VIE | G190: 0.45 | H190: 0.39 | I190: 0.6 | J190: 0.6 | K190: 85 | L190: 0 | M190: 71 | N190: 1096782.147 | O190: 2120643.562 | P190: 269927.2045 | Q190: 180448.5732 | R190: 1412271.064 | S190: 174483.3311 | T190: 83513.38923
B191: #165 | C191: 59 | D191: 2026 | E191: F | F191: A_VIE | G191: 0.45 | H191: 0.39 | I191: 0.6 | J191: 0.6 | K191: 85 | L191: 0 | M191: 71 | N191: 1096782.147 | O191: 2120643.562 | P191: 269927.2045 | Q191: 180448.5732 | R191: 1412271.064 | S191: 174483.3311 | T191: 83513.38923
B192: #166 | C192: 59 | D192: 2028 | E192: F | F192: A_VIE | G192: 0.45 | H192: 0.39 | I192: 0.6 | J192: 0.6 | K192: 85 | L192: 0 | M192: 71 | N192: 1096782.147 | O192: 2120643.562 | P192: 269927.2045 | Q192: 180448.5732 | R192: 1412271.064 | S192: 174483.3311 | T192: 83513.38923
B193: #167 | C193: 59 | D193: 2029 | E193: F | F193: A_VIE | G193: 0.45 | H193: 0.39 | I193: 0.6 | J193: 0.6 | K193: 85 | L193: 0 | M193: 71 | N193: 1096782.147 | O193: 2120643.562 | P193: 269927.2045 | Q193: 180448.5732 | R193: 1412271.064 | S193: 174483.3311 | T193: 83513.38923
B194: #168 | C194: 59 | D194: 2030 | E194: F | F194: A_VIE | G194: 0.45 | H194: 0.39 | I194: 0.6 | J194: 0.6 | K194: 85 | L194: 0 | M194: 71 | N194: 1096782.147 | O194: 2120643.562 | P194: 269927.2045 | Q194: 180448.5732 | R194: 1412271.064 | S194: 174483.3311 | T194: 83513.38923
B195: #169 | C195: 60 | D195: 2026 | E195: H | F195: A_VIE | G195: 0.45 | H195: 0.39 | I195: 0.6 | J195: 0.6 | K195: 85 | L195: 0 | M195: 119 | N195: 1827970.245 | O195: 3534405.937 | P195: 449878.6741 | Q195: 300747.6219 | R195: 2353785.107 | S195: 290805.5518 | T195: 139188.9821
B196: #170 | C196: 60 | D196: 2028 | E196: H | F196: A_VIE | G196: 0.45 | H196: 0.39 | I196: 0.6 | J196: 0.6 | K196: 85 | L196: 0 | M196: 119 | N196: 1827970.245 | O196: 3534405.937 | P196: 449878.6741 | Q196: 300747.6219 | R196: 2353785.107 | S196: 290805.5518 | T196: 139188.9821
B197: #171 | C197: 60 | D197: 2029 | E197: H | F197: A_VIE | G197: 0.45 | H197: 0.39 | I197: 0.6 | J197: 0.6 | K197: 85 | L197: 0 | M197: 119 | N197: 1827970.245 | O197: 3534405.937 | P197: 449878.6741 | Q197: 300747.6219 | R197: 2353785.107 | S197: 290805.5518 | T197: 139188.9821
B198: #172 | C198: 60 | D198: 2030 | E198: H | F198: A_VIE | G198: 0.45 | H198: 0.39 | I198: 0.6 | J198: 0.6 | K198: 85 | L198: 0 | M198: 119 | N198: 1827970.245 | O198: 3534405.937 | P198: 449878.6741 | Q198: 300747.6219 | R198: 2353785.107 | S198: 290805.5518 | T198: 139188.9821
B199: #173 | C199: 61 | D199: 2026 | E199: H | F199: A_VIE | G199: 0.45 | H199: 0.39 | I199: 0.6 | J199: 0.6 | K199: 85 | L199: 0 | M199: 71 | N199: 1096782.147 | O199: 2120643.562 | P199: 269927.2045 | Q199: 180448.5732 | R199: 1412271.064 | S199: 174483.3311 | T199: 83513.38923
B200: #174 | C200: 61 | D200: 2028 | E200: H | F200: A_VIE | G200: 0.45 | H200: 0.39 | I200: 0.6 | J200: 0.6 | K200: 85 | L200: 0 | M200: 71 | N200: 1096782.147 | O200: 2120643.562 | P200: 269927.2045 | Q200: 180448.5732 | R200: 1412271.064 | S200: 174483.3311 | T200: 83513.38923
B201: #175 | C201: 61 | D201: 2029 | E201: H | F201: A_VIE | G201: 0.45 | H201: 0.39 | I201: 0.6 | J201: 0.6 | K201: 85 | L201: 0 | M201: 71 | N201: 1096782.147 | O201: 2120643.562 | P201: 269927.2045 | Q201: 180448.5732 | R201: 1412271.064 | S201: 174483.3311 | T201: 83513.38923
B202: #176 | C202: 61 | D202: 2030 | E202: H | F202: A_VIE | G202: 0.45 | H202: 0.39 | I202: 0.6 | J202: 0.6 | K202: 85 | L202: 0 | M202: 71 | N202: 1096782.147 | O202: 2120643.562 | P202: 269927.2045 | Q202: 180448.5732 | R202: 1412271.064 | S202: 174483.3311 | T202: 83513.38923
B203: #177 | C203: 62 | D203: 2026 | E203: F | F203: A_VIE | G203: 0.45 | H203: 0.39 | I203: 0.6 | J203: 0.6 | K203: 85 | L203: 0 | M203: 71 | N203: 1096782.147 | O203: 2120643.562 | P203: 269927.2045 | Q203: 180448.5732 | R203: 1412271.064 | S203: 174483.3311 | T203: 83513.38923
B204: #178 | C204: 62 | D204: 2028 | E204: F | F204: A_VIE | G204: 0.45 | H204: 0.39 | I204: 0.6 | J204: 0.6 | K204: 85 | L204: 0 | M204: 71 | N204: 1096782.147 | O204: 2120643.562 | P204: 269927.2045 | Q204: 180448.5732 | R204: 1412271.064 | S204: 174483.3311 | T204: 83513.38923
B205: #179 | C205: 62 | D205: 2029 | E205: F | F205: A_VIE | G205: 0.45 | H205: 0.39 | I205: 0.6 | J205: 0.6 | K205: 85 | L205: 0 | M205: 71 | N205: 1096782.147 | O205: 2120643.562 | P205: 269927.2045 | Q205: 180448.5732 | R205: 1412271.064 | S205: 174483.3311 | T205: 83513.38923
B206: #180 | C206: 62 | D206: 2030 | E206: F | F206: A_VIE | G206: 0.45 | H206: 0.39 | I206: 0.6 | J206: 0.6 | K206: 85 | L206: 0 | M206: 71 | N206: 1096782.147 | O206: 2120643.562 | P206: 269927.2045 | Q206: 180448.5732 | R206: 1412271.064 | S206: 174483.3311 | T206: 83513.38923
B207: #181 | C207: 63 | D207: 2026 | E207: H | F207: A_VIE | G207: 0.45 | H207: 0.39 | I207: 0.6 | J207: 0.6 | K207: 85 | L207: 0 | M207: 71 | N207: 1096782.147 | O207: 2120643.562 | P207: 269927.2045 | Q207: 180448.5732 | R207: 1412271.064 | S207: 174483.3311 | T207: 83513.38923
B208: #182 | C208: 63 | D208: 2028 | E208: H | F208: A_VIE | G208: 0.45 | H208: 0.39 | I208: 0.6 | J208: 0.6 | K208: 85 | L208: 0 | M208: 71 | N208: 1096782.147 | O208: 2120643.562 | P208: 269927.2045 | Q208: 180448.5732 | R208: 1412271.064 | S208: 174483.3311 | T208: 83513.38923
... 416 more rows

Sheet SCR_Op_BP_4
B2: I) Inputs pour SCR Opérationnel
B5: AVIE + CAPI + PER | D5: 2030-12-31
B6: Flux | C6: Euro | D6: UC
B7: Primes acquises pour les 12 derniers mois VIE UC (N) - Earn life-ul | C7: - | D7: 145767048
B8: Primes acquises pour les 12 derniers mois VIE Euros (N) - Earn life | C8: 58310952 | D8: -
B9: Primes acquises sur les 12 mois précédents les 12 derniers mois VIE UC (N-1) - pEarn life-ul | C9: - | D9: 103083960
B10: Primes acquises sur les 12 mois précédents les 12 derniers mois VIE Euros (N-1) - pEarn life | C10: 41431040 | D10: -
B11: Montant de frais engagé au titre des contrats UC (12 derniers mois) (Expul) | C11: - | D11: 3582645.153 | E11: répartition au regard du mix Euro / UC (idem split collecte) - yc comm distribution
B12: Montant de frais engagé au titre des contrats euros (12 derniers mois) | C12: 1456236.919 | D12: - | E12: répartition au regard du mix Euro / UC (idem split collecte) - yc comm distribution

Sheet RFR_BP_4
B2: Choc S2 | C2: 1 | D2: =C2+1 -> 2 | E2: 3 | F2: 4 | G2: 5 | H2: 6 | I2: 7 | J2: 8 | K2: 9 | L2: 10 | M2: 11 | N2: 12 | O2: 13 | P2: 14 | Q2: 15 | R2: 16 | S2: 17 | T2: 18 | U2: 19 | V2: 20 | W2: 21 | X2: 22 | Y2: 23 | Z2: 24 | AA2: 25 | AB2: 26 | AC2: 27 | AD2: 28 | AE2: 29 | AF2: 30 | AG2: 31 | AH2: 32 | AI2: 33 | AJ2: 34 | AK2: 35 | AL2: 36 | AM2: 37 | AN2: 38 | AO2: 39 | AP2: 40 | AQ2: 41 | AR2: 42 | AS2: 43 | AT2: 44 | AU2: 45 | AV2: 46 | AW2: 47 | AX2: 48 | AY2: 49 | AZ2: 50 | BA2: 51 | BB2: 52 | BC2: 53 | BD2: 54 | BE2: 55 | BF2: 56 | BG2: 57 | BH2: 58 | BI2: 59 | BJ2: 60 | BK2: 61 | BL2: 62 | BM2: 63 | BN2: 64 | BO2: 65 | BP2: =BO2+1 -> 66 | BQ2: 67 | BR2: 68 | BS2: 69 | BT2: 70 | BU2: 71 | BV2: 72 | BW2: 73 | BX2: 74 | BY2: 75 | BZ2: 76 | CA2: 77 | CB2: 78 | CC2: 79 | CD2: 80 | CE2: 81 | CF2: 82 | CG2: 83 | CH2: 84 | CI2: 85 | CJ2: 86 | CK2: 87 | CL2: 88 | CM2: 89 | CN2: 90 | CO2: 91 | CP2: 92 | CQ2: 93 | CR2: 94 | CS2: 95 | CT2: 96 | CU2: 97 | CV2: 98 | CW2: 99 | CX2: 100
B3: Central | C3: 0.02161 | D3: 0.02162 | E3: 0.02243 | F3: 0.02337 | G3: 0.0242 | H3: 0.02502 | I3: 0.02579 | J3: 0.02655 | K3: 0.02726 | L3: 0.02795 | M3: 0.02853 | N3: 0.02907 | O3: 0.02953 | P3: 0.02994 | Q3: 0.03027 | R3: 0.03051 | S3: 0.03068 | T3: 0.0308 | U3: 0.03089 | V3: 0.03097 | W3: 0.03104 | X3: 0.03111 | Y3: 0.03118 | Z3: 0.03124 | AA3: 0.03129 | AB3: 0.03135 | AC3: 0.03139 | AD3: 0.03144 | AE3: 0.03148 | AF3: 0.03152 | AG3: 0.03156 | AH3: 0.0316 | AI3: 0.03163 | AJ3: 0.03167 | AK3: 0.0317 | AL3: 0.03173 | AM3: 0.03176 | AN3: 0.03179 | AO3: 0.03181 | AP3: 0.03184 | AQ3: 0.03186 | AR3: 0.03188 | AS3: 0.03191 | AT3: 0.03193 | AU3: 0.03195 | AV3: 0.03197 | AW3: 0.03199 | AX3: 0.03201 | AY3: 0.03203 | AZ3: 0.03204 | BA3: 0.03206 | BB3: 0.03208 | BC3: 0.03209 | BD3: 0.03211 | BE3: 0.03212 | BF3: 0.03214 | BG3: 0.03215 | BH3: 0.03216 | BI3: 0.03218 | BJ3: 0.03219 | BK3: 0.0322 | BL3: 0.03221 | BM3: 0.03222 | BN3: 0.03224 | BO3: 0.03225 | BP3: 0.03226 | BQ3: 0.03227 | BR3: 0.03228 | BS3: 0.03229 | BT3: 0.0323 | BU3: 0.03231 | BV3: 0.03232 | BW3: 0.03233 | BX3: 0.03233 | BY3: 0.03234 | BZ3: 0.03235 | CA3: 0.03236 | CB3: 0.03237 | CC3: 0.03237 | CD3: 0.03238 | CE3: 0.03239 | CF3: 0.0324 | CG3: 0.0324 | CH3: 0.03241 | CI3: 0.03242 | CJ3: 0.03242 | CK3: 0.03243 | CL3: 0.03244 | CM3: 0.03244 | CN3: 0.03245 | CO3: 0.03245 | CP3: 0.03246 | CQ3: 0.03247 | CR3: 0.03247 | CS3: 0.03248 | CT3: 0.03248 | CU3: 0.03249 | CV3: 0.03249 | CW3: 0.0325 | CX3: 0.0325
B4: Up | C4: 0.03534 | D4: 0.03535 | E4: 0.03551 | F4: 0.03598 | G4: 0.03641 | H4: 0.03699 | I4: 0.03745 | J4: 0.03809 | K4: 0.03837 | L4: 0.03885 | M4: 0.03888 | N4: 0.03909 | O4: 0.03953 | P4: 0.03994 | Q4: 0.04027 | R4: 0.04051 | S4: 0.04068 | T4: 0.0408 | U4: 0.04089 | V4: 0.04097 | W4: 0.04104 | X4: 0.04111 | Y4: 0.04118 | Z4: 0.04124 | AA4: 0.04129 | AB4: 0.04135 | AC4: 0.04139 | AD4: 0.04144 | AE4: 0.04148 | AF4: 0.04152 | AG4: 0.04156 | AH4: 0.0416 | AI4: 0.04163 | AJ4: 0.04167 | AK4: 0.0417 | AL4: 0.04173 | AM4: 0.04176 | AN4: 0.04179 | AO4: 0.04181 | AP4: 0.04184 | AQ4: 0.04186 | AR4: 0.04188 | AS4: 0.04191 | AT4: 0.04193 | AU4: 0.04195 | AV4: 0.04197 | AW4: 0.04199 | AX4: 0.04201 | AY4: 0.04203 | AZ4: 0.04204 | BA4: 0.04206 | BB4: 0.04208 | BC4: 0.04209 | BD4: 0.04211 | BE4: 0.04212 | BF4: 0.04214 | BG4: 0.04215 | BH4: 0.04216 | BI4: 0.04218 | BJ4: 0.04219 | BK4: 0.0422 | BL4: 0.04221 | BM4: 0.04222 | BN4: 0.04224 | BO4: 0.04225 | BP4: 0.04226 | BQ4: 0.04227 | BR4: 0.04228 | BS4: 0.04229 | BT4: 0.0423 | BU4: 0.04231 | BV4: 0.04232 | BW4: 0.04233 | BX4: 0.04233 | BY4: 0.04234 | BZ4: 0.04235 | CA4: 0.04236 | CB4: 0.04237 | CC4: 0.04237 | CD4: 0.04238 | CE4: 0.04239 | CF4: 0.0424 | CG4: 0.0424 | CH4: 0.04241 | CI4: 0.04242 | CJ4: 0.04242 | CK4: 0.04243 | CL4: 0.04244 | CM4: 0.04244 | CN4: 0.04245 | CO4: 0.04245 | CP4: 0.04246 | CQ4: 0.04247 | CR4: 0.04247 | CS4: 0.04248 | CT4: 0.04248 | CU4: 0.04249 | CV4: 0.04249 | CW4: 0.0425 | CX4: 0.0425
B5: Down | C5: 0.0069 | D5: 0.00887 | E5: 0.01099 | F5: 0.01269 | G5: 0.01399 | H5: 0.01535 | I5: 0.01651 | J5: 0.01771 | K5: 0.01892 | L5: 0.01991 | M5: 0.02057 | N5: 0.02122 | O5: 0.02182 | P5: 0.02212 | Q5: 0.02264 | R5: 0.02253 | S5: 0.02265 | T5: 0.02274 | U5: 0.02251 | V5: 0.02257 | W5: 0.02265 | X5: 0.02274 | Y5: 0.02282 | Z5: 0.02289 | AA5: 0.02296 | AB5: 0.02303 | AC5: 0.02309 | AD5: 0.02316 | AE5: 0.02321 | AF5: 0.02327 | AG5: 0.02333 | AH5: 0.02339 | AI5: 0.02344 | AJ5: 0.0235 | AK5: 0.02355 | AL5: 0.02361 | AM5: 0.02366 | AN5: 0.02371 | AO5: 0.02376 | AP5: 0.02381 | AQ5: 0.02386 | AR5: 0.0239 | AS5: 0.02396 | AT5: 0.02401 | AU5: 0.02405 | AV5: 0.0241 | AW5: 0.02415 | AX5: 0.0242 | AY5: 0.02425 | AZ5: 0.02429 | BA5: 0.02434 | BB5: 0.02439 | BC5: 0.02443 | BD5: 0.02448 | BE5: 0.02452 | BF5: 0.02457 | BG5: 0.02462 | BH5: 0.02466 | BI5: 0.02471 | BJ5: 0.02475 | BK5: 0.0248 | BL5: 0.02484 | BM5: 0.02489 | BN5: 0.02494 | BO5: 0.02498 | BP5: 0.02503 | BQ5: 0.02507 | BR5: 0.02512 | BS5: 0.02516 | BT5: 0.02521 | BU5: 0.02525 | BV5: 0.0253 | BW5: 0.02535 | BX5: 0.02538 | BY5: 0.02543 | BZ5: 0.02547 | CA5: 0.02552 | CB5: 0.02557 | CC5: 0.0256 | CD5: 0.02565 | CE5: 0.0257 | CF5: 0.02574 | CG5: 0.02578 | CH5: 0.02583 | CI5: 0.02588 | CJ5: 0.02591 | CK5: 0.02596 | CL5: 0.02601 | CM5: 0.02605 | CN5: 0.0261 | CO5: 0.02609 | CP5: 0.0261 | CQ5: 0.02611 | CR5: 0.02611 | CS5: 0.02611 | CT5: 0.02611 | CU5: 0.02612 | CV5: 0.02612 | CW5: 0.02612 | CX5: 0.02612
B6: Central hors VA | C6: 0.01961 | D6: 0.01962 | E6: 0.02043 | F6: 0.02137 | G6: 0.0222 | H6: 0.02302 | I6: 0.02379 | J6: 0.02455 | K6: 0.02526 | L6: 0.02595 | M6: 0.02653 | N6: 0.02707 | O6: 0.02753 | P6: 0.02794 | Q6: 0.02827 | R6: 0.02851 | S6: 0.02868 | T6: 0.0288 | U6: 0.02889 | V6: 0.02897 | W6: 0.02905 | X6: 0.02913 | Y6: 0.02921 | Z6: 0.0293 | AA6: 0.02938 | AB6: 0.02946 | AC6: 0.02953 | AD6: 0.02961 | AE6: 0.02969 | AF6: 0.02976 | AG6: 0.02983 | AH6: 0.0299 | AI6: 0.02996 | AJ6: 0.03003 | AK6: 0.03009 | AL6: 0.03015 | AM6: 0.03021 | AN6: 0.03027 | AO6: 0.03033 | AP6: 0.03038 | AQ6: 0.03043 | AR6: 0.03048 | AS6: 0.03053 | AT6: 0.03058 | AU6: 0.03062 | AV6: 0.03067 | AW6: 0.03071 | AX6: 0.03075 | AY6: 0.0308 | AZ6: 0.03083 | BA6: 0.03087 | BB6: 0.03091 | BC6: 0.03095 | BD6: 0.03098 | BE6: 0.03101 | BF6: 0.03105 | BG6: 0.03108 | BH6: 0.03111 | BI6: 0.03114 | BJ6: 0.03117 | BK6: 0.0312 | BL6: 0.03122 | BM6: 0.03125 | BN6: 0.03128 | BO6: 0.0313 | BP6: 0.03133 | BQ6: 0.03135 | BR6: 0.03138 | BS6: 0.0314 | BT6: 0.03142 | BU6: 0.03144 | BV6: 0.03146 | BW6: 0.03148 | BX6: 0.0315 | BY6: 0.03152 | BZ6: 0.03154 | CA6: 0.03156 | CB6: 0.03158 | CC6: 0.0316 | CD6: 0.03161 | CE6: 0.03163 | CF6: 0.03165 | CG6: 0.03166 | CH6: 0.03168 | CI6: 0.03169 | CJ6: 0.03171 | CK6: 0.03172 | CL6: 0.03174 | CM6: 0.03175 | CN6: 0.03177 | CO6: 0.03178 | CP6: 0.03179 | CQ6: 0.03181 | CR6: 0.03182 | CS6: 0.03183 | CT6: 0.03184 | CU6: 0.03185 | CV6: 0.03187 | CW6: 0.03188 | CX6: 0.03189

Sheet Frais_BP_5
B2: I) Frais et commissions
B5: AVIE / PER / CAPI | D5: 2031-12-31
B6: Frais | C6: Taux | D6: Driver
B7: Frais Acquisition | C7: 0.006324348591 | D7: Primes
B8: Frais Gestion Sinistres | C8: 0.003310441478 | D8: Prestations
B9: Frais Administration | C9: 0.002613334516 | D9: PM | E9: exclusion C3S sur primes
B10: Frais Financiers | C10: 0.00075859202 | D10: VM | E10: MP 2029 car 2030 non calculés
B11: Prélèvements Sociaux | C11: 0.172 | D11: PB
B12: Clause PB | C12: 0.85 | D12: Produits financiers
B13: Frais d'acquisition : hors comm. distribution intégrées directement dans la projection des frais dans la maquette S2
B14: Frais Administration / Frais acq : montant de frais sur l'ensemble des périmètres => tx unique tout produit

Sheet Bilan_Social_BP_5
B2: I) Bilan Social
B5: AVIE + PER + CAPI + FP | C5: 2031-12-31
B7: ACTIF | C7: VNC | D7: VM | F7: PASSIF
B8: Capital souscrit non appelé ou compte de liaison avec le siège | C8: 0 | D8: 0 | F8: Capitaux Propres | G8: 26257109.42
B9: Actifs Incorporels | C9: 0 | D9: 0 | F9: Résultat de l'exercice | G9: 733066.872
B10: Obligation Govies | C10: 197556783.3 | D10: 197556783.3 | F10: Passifs subordonnés | G10: 0
B11: Obligation Corporate | C11: 52681808.87 | D11: 54262263.13 | F11: Provisions techniques brutes | G11: 236418868
B12: Action | C12: 0 | D12: 0 | F12: PM | G12: 236418868 | J12: =ROUND(G12,2)=ROUND(SUM(Model_Points_BP_5!$C$7:$C$11,Model_Points_BP_5!$C$15:$C$19),2) -> TRUE
B13: Monétaire | C13: 13170452.22 | D13: 13170452.22 | F13: PSAP | G13: 0
B14: UC | C14: 465857868.2 | D14: 465857868.2 | F14: PPE | G14: 0 | I14: =C14=G15 -> TRUE
B15: Provisions sur placements | C15: 0 | D15: 0 | F15: Provision techniques des contrats en unité de comptes | G15: 465857868.2 | J15: =ROUND(G15,2)=ROUND(SUM(Model_Points_BP_5!$L$7:$L$11,Model_Points_BP_5!$L$15:$L$19),2) -> TRUE
B16: PDD | C16: 0 | D16: 0 | F16: Autres provisions techniques | G16: 0
B17: Part des cessionnaires et rétrocessionnaires dans les provisions techniques | C17: 0 | D17: 0 | F17: RC | G17: 0
B18: Créances | C18: 0 | D18: 0 | F18: PRE | G18: 0
B19: Autres Actifs | C19: 0 | D19: 0 | F19: Provisions (autres que techniques) | G19: 0
B20: Comptes de régularisation Actif | C20: 0 | D20: 0 | F20: Dettes pour dépôts en espèces reçues des cessionnaires | G20: 0
F21: Autres Dettes | G21: 0
F22: Comptes de régularisation Passif | G22: 0

Sheet Model_Points_BP_5
B2: I) Model Points Actifs
B5: AVIE | C5: Euro | D5: 2031-12-31 | K5: AVIE / CAPI | L5: UC | M5: 2031-12-31 | Q5: AVIE / CAPI | R5: 2028-12-31
B6: Asset Type | C6: VNC | D6: VM | E6: COUPON_PC | F6: NOMINAL | G6: MATURITY_RESID | H6: SPREAD_PC | I6: DIV_PC | K6: Asset Type | L6: VNC | M6: VM | N6: DIV_PC | O6: UC_TYPE | Q6: Reserves | R6: VNC
B7: BONDS_GOV | C7: 161213394.5 | D7: 161213394.5 | E7: 0 | F7: 161213394.5 | G7: 7 | K7: OBLIG_CORP | L7: 53966146.95 | M7: 53966146.95 | N7: 0 | O7: 1 | P7: =M7/SUM($M$7:$M$11) -> 0.1272855134 | Q7: PPE | R7: 0
B8: BONDS_CORP | C8: 42990238.53 | D8: 44279945.68 | E8: 0 | F8: 42990238.53 | G8: 7 | K8: OBLIG_CORP_NR | L8: 36076816.47 | M8: 36076816.47 | N8: 0 | O8: 2 | P8: =M8/SUM($M$7:$M$11) -> 0.08509142053 | Q8: RC | R8: 0
B9: EQ_TYPE_1 | C9: 0 | D9: 0 | E9: 0 | I9: 0 | K9: EQ_TYPE_1 | L9: 282353266.1 | M9: 282353266.1 | N9: 0 | O9: 3 | P9: 0.6659634318
B10: EQ_TYPE_2 | C10: 0 | D10: 0 | E10: 0 | I10: 0 | K10: EQ_TYPE_2 | L10: 34884194.44 | M10: 34884194.44 | N10: 0 | O10: 4 | P10: 0.08227848101 | T10: PMVL ALL | U10: =SUM(D7:D11)-SUM(C7:C11)+SUM(D15:D19)-SUM(C15:C19) -> 1418513.208
B11: CASH | C11: 10747559.63 | D11: 10747559.63 | E11: 0 | K11: MONETAIRE | L11: 16696708.45 | M11: 16696708.45 | N11: 0 | O11: 5 | P11: 0.03938115331
B13: PER | C13: Euro | D13: 2031-12-31 | K13: PER | L13: UC | M13: 2031-12-31 | Q13: PER | R13: 2028-12-31
B14: Asset Type | C14: VNC | D14: VM | E14: COUPON_PC | F14: NOMINAL | G14: MATURITY_RESID | H14: SPREAD_PC | I14: DIV_PC | K14: Asset Type | L14: VNC | M14: VM | N14: DIV_PC | O14: UC_TYPE | Q14: Reserves | R14: VNC
B15: BONDS_GOV | C15: 16100756.56 | D15: 16100756.56 | E15: 0 | F15: 16100756.56 | G15: 7 | K15: OBLIG_CORP | L15: 5330810.964 | M15: 5330810.964 | N15: 0 | O15: 1 | Q15: PPE | R15: 0
B16: BONDS_CORP | C16: 4293535.083 | D16: 4422341.136 | E16: 0 | F16: 4293535.083 | G16: 7 | K16: OBLIG_CORP_NR | L16: 3563691.307 | M16: 3563691.307 | N16: 0 | O16: 2 | Q16: RC | R16: 0
B17: EQ_TYPE_1 | C17: 0 | D17: 0 | E17: 0 | I17: 0 | K17: EQ_TYPE_1 | L17: 27891038.58 | M17: 27891038.58 | N17: 0 | O17: 3
B18: EQ_TYPE_2 | C18: 0 | D18: 0 | E18: 0 | I18: 0 | K18: EQ_TYPE_2 | L18: 3445883.33 | M18: 3445883.33 | N18: 0 | O18: 4
B19: CASH | C19: 1073383.771 | D19: 1073383.771 | E19: 0 | K19: MONETAIRE | L19: 1649311.679 | M19: 1649311.679 | N19: 0 | O19: 5
B22: II) Model Points Passif
B25: Assurance Vie | C25: Euro - UC | D25: 2031-12-31
B26: ID | C26: AGE | D26: SOUSCRIPTION_YR | E26: SEXE | F26: PDT | G26: CHGT_GEST_EURO_PC | H26: CHGT_GEST_UC_PC | I26: COMM_DIST_EURO_PC | J26: COMM_DIST_UC_PC | K26: CLAUSE_PB_PC | L26: TMG_PC | M26: NO_POLS | N26: PM_EURO | O26: PM_UC_TOT | P26: PM_UC_1 | Q26: PM_UC_2 | R26: PM_UC_3 | S26: PM_UC_4 | T26: PM_UC_5
B27: #1 | C27: 18 | D27: 2026 | E27: H | F27: A_VIE | G27: 0.45 | H27: 0.39 | I27: 0.6 | J27: 0.6 | K27: 85 | L27: 0 | M27: 11 | N27: 214951.1926 | O27: 419342.7536 | P27: 53376.25766 | Q27: 35682.47059 | R27: 279266.9393 | S27: 34502.88479 | T27: 16514.20127
B28: #2 | C28: 18 | D28: 2028 | E28: H | F28: A_VIE | G28: 0.45 | H28: 0.39 | I28: 0.6 | J28: 0.6 | K28: 85 | L28: 0 | M28: 11 | N28: 214951.1926 | O28: 419342.7536 | P28: 53376.25766 | Q28: 35682.47059 | R28: 279266.9393 | S28: 34502.88479 | T28: 16514.20127
B29: #3 | C29: 18 | D29: 2029 | E29: H | F29: A_VIE | G29: 0.45 | H29: 0.39 | I29: 0.6 | J29: 0.6 | K29: 85 | L29: 0 | M29: 11 | N29: 214951.1926 | O29: 419342.7536 | P29: 53376.25766 | Q29: 35682.47059 | R29: 279266.9393 | S29: 34502.88479 | T29: 16514.20127
B30: #4 | C30: 18 | D30: 2030 | E30: H | F30: A_VIE | G30: 0.45 | H30: 0.39 | I30: 0.6 | J30: 0.6 | K30: 85 | L30: 0 | M30: 11 | N30: 214951.1926 | O30: 419342.7536 | P30: 53376.25766 | Q30: 35682.47059 | R30: 279266.9393 | S30: 34502.88479 | T30: 16514.20127
B31: #5 | C31: 18 | D31: 2031 | E31: H | F31: A_VIE | G31: 0.45 | H31: 0.39 | I31: 0.6 | J31: 0.6 | K31: 85 | L31: 0 | M31: 11 | N31: 214951.1926 | O31: 419342.7536 | P31: 53376.25766 | Q31: 35682.47059 | R31: 279266.9393 | S31: 34502.88479 | T31: 16514.20127
B32: #6 | C32: 19 | D32: 2026 | E32: H | F32: A_VIE | G32: 0.45 | H32: 0.39 | I32: 0.6 | J32: 0.6 | K32: 85 | L32: 0 | M32: 11 | N32: 214951.1926 | O32: 419342.7536 | P32: 53376.25766 | Q32: 35682.47059 | R32: 279266.9393 | S32: 34502.88479 | T32: 16514.20127
B33: #7 | C33: 19 | D33: 2028 | E33: H | F33: A_VIE | G33: 0.45 | H33: 0.39 | I33: 0.6 | J33: 0.6 | K33: 85 | L33: 0 | M33: 11 | N33: 214951.1926 | O33: 419342.7536 | P33: 53376.25766 | Q33: 35682.47059 | R33: 279266.9393 | S33: 34502.88479 | T33: 16514.20127
B34: #8 | C34: 19 | D34: 2029 | E34: H | F34: A_VIE | G34: 0.45 | H34: 0.39 | I34: 0.6 | J34: 0.6 | K34: 85 | L34: 0 | M34: 11 | N34: 214951.1926 | O34: 419342.7536 | P34: 53376.25766 | Q34: 35682.47059 | R34: 279266.9393 | S34: 34502.88479 | T34: 16514.20127
B35: #9 | C35: 19 | D35: 2030 | E35: H | F35: A_VIE | G35: 0.45 | H35: 0.39 | I35: 0.6 | J35: 0.6 | K35: 85 | L35: 0 | M35: 11 | N35: 214951.1926 | O35: 419342.7536 | P35: 53376.25766 | Q35: 35682.47059 | R35: 279266.9393 | S35: 34502.88479 | T35: 16514.20127
B36: #10 | C36: 19 | D36: 2031 | E36: H | F36: A_VIE | G36: 0.45 | H36: 0.39 | I36: 0.6 | J36: 0.6 | K36: 85 | L36: 0 | M36: 11 | N36: 214951.1926 | O36: 419342.7536 | P36: 53376.25766 | Q36: 35682.47059 | R36: 279266.9393 | S36: 34502.88479 | T36: 16514.20127
B37: #11 | C37: 20 | D37: 2026 | E37: F | F37: A_VIE | G37: 0.45 | H37: 0.39 | I37: 0.6 | J37: 0.6 | K37: 85 | L37: 0 | M37: 23 | N37: 429902.3853 | O37: 838685.5071 | P37: 106752.5153 | Q37: 71364.94118 | R37: 558533.8785 | S37: 69005.76957 | T37: 33028.40253
B38: #12 | C38: 20 | D38: 2028 | E38: F | F38: A_VIE | G38: 0.45 | H38: 0.39 | I38: 0.6 | J38: 0.6 | K38: 85 | L38: 0 | M38: 23 | N38: 429902.3853 | O38: 838685.5071 | P38: 106752.5153 | Q38: 71364.94118 | R38: 558533.8785 | S38: 69005.76957 | T38: 33028.40253
B39: #13 | C39: 20 | D39: 2029 | E39: F | F39: A_VIE | G39: 0.45 | H39: 0.39 | I39: 0.6 | J39: 0.6 | K39: 85 | L39: 0 | M39: 23 | N39: 429902.3853 | O39: 838685.5071 | P39: 106752.5153 | Q39: 71364.94118 | R39: 558533.8785 | S39: 69005.76957 | T39: 33028.40253
B40: #14 | C40: 20 | D40: 2030 | E40: F | F40: A_VIE | G40: 0.45 | H40: 0.39 | I40: 0.6 | J40: 0.6 | K40: 85 | L40: 0 | M40: 23 | N40: 429902.3853 | O40: 838685.5071 | P40: 106752.5153 | Q40: 71364.94118 | R40: 558533.8785 | S40: 69005.76957 | T40: 33028.40253
B41: #15 | C41: 20 | D41: 2031 | E41: F | F41: A_VIE | G41: 0.45 | H41: 0.39 | I41: 0.6 | J41: 0.6 | K41: 85 | L41: 0 | M41: 23 | N41: 429902.3853 | O41: 838685.5071 | P41: 106752.5153 | Q41: 71364.94118 | R41: 558533.8785 | S41: 69005.76957 | T41: 33028.40253
B42: #16 | C42: 21 | D42: 2026 | E42: H | F42: A_VIE | G42: 0.45 | H42: 0.39 | I42: 0.6 | J42: 0.6 | K42: 85 | L42: 0 | M42: 23 | N42: 429902.3853 | O42: 838685.5071 | P42: 106752.5153 | Q42: 71364.94118 | R42: 558533.8785 | S42: 69005.76957 | T42: 33028.40253
B43: #17 | C43: 21 | D43: 2028 | E43: H | F43: A_VIE | G43: 0.45 | H43: 0.39 | I43: 0.6 | J43: 0.6 | K43: 85 | L43: 0 | M43: 23 | N43: 429902.3853 | O43: 838685.5071 | P43: 106752.5153 | Q43: 71364.94118 | R43: 558533.8785 | S43: 69005.76957 | T43: 33028.40253
B44: #18 | C44: 21 | D44: 2029 | E44: H | F44: A_VIE | G44: 0.45 | H44: 0.39 | I44: 0.6 | J44: 0.6 | K44: 85 | L44: 0 | M44: 23 | N44: 429902.3853 | O44: 838685.5071 | P44: 106752.5153 | Q44: 71364.94118 | R44: 558533.8785 | S44: 69005.76957 | T44: 33028.40253
B45: #19 | C45: 21 | D45: 2030 | E45: H | F45: A_VIE | G45: 0.45 | H45: 0.39 | I45: 0.6 | J45: 0.6 | K45: 85 | L45: 0 | M45: 23 | N45: 429902.3853 | O45: 838685.5071 | P45: 106752.5153 | Q45: 71364.94118 | R45: 558533.8785 | S45: 69005.76957 | T45: 33028.40253
B46: #20 | C46: 21 | D46: 2031 | E46: H | F46: A_VIE | G46: 0.45 | H46: 0.39 | I46: 0.6 | J46: 0.6 | K46: 85 | L46: 0 | M46: 23 | N46: 429902.3853 | O46: 838685.5071 | P46: 106752.5153 | Q46: 71364.94118 | R46: 558533.8785 | S46: 69005.76957 | T46: 33028.40253
B47: #21 | C47: 22 | D47: 2026 | E47: H | F47: A_VIE | G47: 0.45 | H47: 0.39 | I47: 0.6 | J47: 0.6 | K47: 85 | L47: 0 | M47: 23 | N47: 429902.3853 | O47: 838685.5071 | P47: 106752.5153 | Q47: 71364.94118 | R47: 558533.8785 | S47: 69005.76957 | T47: 33028.40253
B48: #22 | C48: 22 | D48: 2028 | E48: H | F48: A_VIE | G48: 0.45 | H48: 0.39 | I48: 0.6 | J48: 0.6 | K48: 85 | L48: 0 | M48: 23 | N48: 429902.3853 | O48: 838685.5071 | P48: 106752.5153 | Q48: 71364.94118 | R48: 558533.8785 | S48: 69005.76957 | T48: 33028.40253
B49: #23 | C49: 22 | D49: 2029 | E49: H | F49: A_VIE | G49: 0.45 | H49: 0.39 | I49: 0.6 | J49: 0.6 | K49: 85 | L49: 0 | M49: 23 | N49: 429902.3853 | O49: 838685.5071 | P49: 106752.5153 | Q49: 71364.94118 | R49: 558533.8785 | S49: 69005.76957 | T49: 33028.40253
B50: #24 | C50: 22 | D50: 2030 | E50: H | F50: A_VIE | G50: 0.45 | H50: 0.39 | I50: 0.6 | J50: 0.6 | K50: 85 | L50: 0 | M50: 23 | N50: 429902.3853 | O50: 838685.5071 | P50: 106752.5153 | Q50: 71364.94118 | R50: 558533.8785 | S50: 69005.76957 | T50: 33028.40253
B51: #25 | C51: 22 | D51: 2031 | E51: H | F51: A_VIE | G51: 0.45 | H51: 0.39 | I51: 0.6 | J51: 0.6 | K51: 85 | L51: 0 | M51: 23 | N51: 429902.3853 | O51: 838685.5071 | P51: 106752.5153 | Q51: 71364.94118 | R51: 558533.8785 | S51: 69005.76957 | T51: 33028.40253
B52: #26 | C52: 23 | D52: 2026 | E52: F | F52: A_VIE | G52: 0.45 | H52: 0.39 | I52: 0.6 | J52: 0.6 | K52: 85 | L52: 0 | M52: 23 | N52: 429902.3853 | O52: 838685.5071 | P52: 106752.5153 | Q52: 71364.94118 | R52: 558533.8785 | S52: 69005.76957 | T52: 33028.40253
B53: #27 | C53: 23 | D53: 2028 | E53: F | F53: A_VIE | G53: 0.45 | H53: 0.39 | I53: 0.6 | J53: 0.6 | K53: 85 | L53: 0 | M53: 23 | N53: 429902.3853 | O53: 838685.5071 | P53: 106752.5153 | Q53: 71364.94118 | R53: 558533.8785 | S53: 69005.76957 | T53: 33028.40253
B54: #28 | C54: 23 | D54: 2029 | E54: F | F54: A_VIE | G54: 0.45 | H54: 0.39 | I54: 0.6 | J54: 0.6 | K54: 85 | L54: 0 | M54: 23 | N54: 429902.3853 | O54: 838685.5071 | P54: 106752.5153 | Q54: 71364.94118 | R54: 558533.8785 | S54: 69005.76957 | T54: 33028.40253
B55: #29 | C55: 23 | D55: 2030 | E55: F | F55: A_VIE | G55: 0.45 | H55: 0.39 | I55: 0.6 | J55: 0.6 | K55: 85 | L55: 0 | M55: 23 | N55: 429902.3853 | O55: 838685.5071 | P55: 106752.5153 | Q55: 71364.94118 | R55: 558533.8785 | S55: 69005.76957 | T55: 33028.40253
B56: #30 | C56: 23 | D56: 2031 | E56: F | F56: A_VIE | G56: 0.45 | H56: 0.39 | I56: 0.6 | J56: 0.6 | K56: 85 | L56: 0 | M56: 23 | N56: 429902.3853 | O56: 838685.5071 | P56: 106752.5153 | Q56: 71364.94118 | R56: 558533.8785 | S56: 69005.76957 | T56: 33028.40253
B57: #31 | C57: 24 | D57: 2026 | E57: H | F57: A_VIE | G57: 0.45 | H57: 0.39 | I57: 0.6 | J57: 0.6 | K57: 85 | L57: 0 | M57: 23 | N57: 429902.3853 | O57: 838685.5071 | P57: 106752.5153 | Q57: 71364.94118 | R57: 558533.8785 | S57: 69005.76957 | T57: 33028.40253
B58: #32 | C58: 24 | D58: 2028 | E58: H | F58: A_VIE | G58: 0.45 | H58: 0.39 | I58: 0.6 | J58: 0.6 | K58: 85 | L58: 0 | M58: 23 | N58: 429902.3853 | O58: 838685.5071 | P58: 106752.5153 | Q58: 71364.94118 | R58: 558533.8785 | S58: 69005.76957 | T58: 33028.40253
B59: #33 | C59: 24 | D59: 2029 | E59: H | F59: A_VIE | G59: 0.45 | H59: 0.39 | I59: 0.6 | J59: 0.6 | K59: 85 | L59: 0 | M59: 23 | N59: 429902.3853 | O59: 838685.5071 | P59: 106752.5153 | Q59: 71364.94118 | R59: 558533.8785 | S59: 69005.76957 | T59: 33028.40253
B60: #34 | C60: 24 | D60: 2030 | E60: H | F60: A_VIE | G60: 0.45 | H60: 0.39 | I60: 0.6 | J60: 0.6 | K60: 85 | L60: 0 | M60: 23 | N60: 429902.3853 | O60: 838685.5071 | P60: 106752.5153 | Q60: 71364.94118 | R60: 558533.8785 | S60: 69005.76957 | T60: 33028.40253
B61: #35 | C61: 24 | D61: 2031 | E61: H | F61: A_VIE | G61: 0.45 | H61: 0.39 | I61: 0.6 | J61: 0.6 | K61: 85 | L61: 0 | M61: 23 | N61: 429902.3853 | O61: 838685.5071 | P61: 106752.5153 | Q61: 71364.94118 | R61: 558533.8785 | S61: 69005.76957 | T61: 33028.40253
B62: #36 | C62: 25 | D62: 2026 | E62: H | F62: A_VIE | G62: 0.45 | H62: 0.39 | I62: 0.6 | J62: 0.6 | K62: 85 | L62: 0 | M62: 114 | N62: 2149511.926 | O62: 4193427.536 | P62: 533762.5766 | Q62: 356824.7059 | R62: 2792669.393 | S62: 345028.8479 | T62: 165142.0127
B63: #37 | C63: 25 | D63: 2028 | E63: H | F63: A_VIE | G63: 0.45 | H63: 0.39 | I63: 0.6 | J63: 0.6 | K63: 85 | L63: 0 | M63: 114 | N63: 2149511.926 | O63: 4193427.536 | P63: 533762.5766 | Q63: 356824.7059 | R63: 2792669.393 | S63: 345028.8479 | T63: 165142.0127
B64: #38 | C64: 25 | D64: 2029 | E64: H | F64: A_VIE | G64: 0.45 | H64: 0.39 | I64: 0.6 | J64: 0.6 | K64: 85 | L64: 0 | M64: 114 | N64: 2149511.926 | O64: 4193427.536 | P64: 533762.5766 | Q64: 356824.7059 | R64: 2792669.393 | S64: 345028.8479 | T64: 165142.0127
B65: #39 | C65: 25 | D65: 2030 | E65: H | F65: A_VIE | G65: 0.45 | H65: 0.39 | I65: 0.6 | J65: 0.6 | K65: 85 | L65: 0 | M65: 114 | N65: 2149511.926 | O65: 4193427.536 | P65: 533762.5766 | Q65: 356824.7059 | R65: 2792669.393 | S65: 345028.8479 | T65: 165142.0127
B66: #40 | C66: 25 | D66: 2031 | E66: H | F66: A_VIE | G66: 0.45 | H66: 0.39 | I66: 0.6 | J66: 0.6 | K66: 85 | L66: 0 | M66: 114 | N66: 2149511.926 | O66: 4193427.536 | P66: 533762.5766 | Q66: 356824.7059 | R66: 2792669.393 | S66: 345028.8479 | T66: 165142.0127
B67: #41 | C67: 26 | D67: 2026 | E67: F | F67: A_VIE | G67: 0.45 | H67: 0.39 | I67: 0.6 | J67: 0.6 | K67: 85 | L67: 0 | M67: 68 | N67: 1289707.156 | O67: 2516056.521 | P67: 320257.546 | Q67: 214094.8235 | R67: 1675601.636 | S67: 207017.3087 | T67: 99085.20759
B68: #42 | C68: 26 | D68: 2028 | E68: F | F68: A_VIE | G68: 0.45 | H68: 0.39 | I68: 0.6 | J68: 0.6 | K68: 85 | L68: 0 | M68: 68 | N68: 1289707.156 | O68: 2516056.521 | P68: 320257.546 | Q68: 214094.8235 | R68: 1675601.636 | S68: 207017.3087 | T68: 99085.20759
B69: #43 | C69: 26 | D69: 2029 | E69: F | F69: A_VIE | G69: 0.45 | H69: 0.39 | I69: 0.6 | J69: 0.6 | K69: 85 | L69: 0 | M69: 68 | N69: 1289707.156 | O69: 2516056.521 | P69: 320257.546 | Q69: 214094.8235 | R69: 1675601.636 | S69: 207017.3087 | T69: 99085.20759
B70: #44 | C70: 26 | D70: 2030 | E70: F | F70: A_VIE | G70: 0.45 | H70: 0.39 | I70: 0.6 | J70: 0.6 | K70: 85 | L70: 0 | M70: 68 | N70: 1289707.156 | O70: 2516056.521 | P70: 320257.546 | Q70: 214094.8235 | R70: 1675601.636 | S70: 207017.3087 | T70: 99085.20759
B71: #45 | C71: 26 | D71: 2031 | E71: F | F71: A_VIE | G71: 0.45 | H71: 0.39 | I71: 0.6 | J71: 0.6 | K71: 85 | L71: 0 | M71: 68 | N71: 1289707.156 | O71: 2516056.521 | P71: 320257.546 | Q71: 214094.8235 | R71: 1675601.636 | S71: 207017.3087 | T71: 99085.20759
B72: #46 | C72: 27 | D72: 2026 | E72: H | F72: A_VIE | G72: 0.45 | H72: 0.39 | I72: 0.6 | J72: 0.6 | K72: 85 | L72: 0 | M72: 68 | N72: 1289707.156 | O72: 2516056.521 | P72: 320257.546 | Q72: 214094.8235 | R72: 1675601.636 | S72: 207017.3087 | T72: 99085.20759
B73: #47 | C73: 27 | D73: 2028 | E73: H | F73: A_VIE | G73: 0.45 | H73: 0.39 | I73: 0.6 | J73: 0.6 | K73: 85 | L73: 0 | M73: 68 | N73: 1289707.156 | O73: 2516056.521 | P73: 320257.546 | Q73: 214094.8235 | R73: 1675601.636 | S73: 207017.3087 | T73: 99085.20759
B74: #48 | C74: 27 | D74: 2029 | E74: H | F74: A_VIE | G74: 0.45 | H74: 0.39 | I74: 0.6 | J74: 0.6 | K74: 85 | L74: 0 | M74: 68 | N74: 1289707.156 | O74: 2516056.521 | P74: 320257.546 | Q74: 214094.8235 | R74: 1675601.636 | S74: 207017.3087 | T74: 99085.20759
B75: #49 | C75: 27 | D75: 2030 | E75: H | F75: A_VIE | G75: 0.45 | H75: 0.39 | I75: 0.6 | J75: 0.6 | K75: 85 | L75: 0 | M75: 68 | N75: 1289707.156 | O75: 2516056.521 | P75: 320257.546 | Q75: 214094.8235 | R75: 1675601.636 | S75: 207017.3087 | T75: 99085.20759
B76: #50 | C76: 27 | D76: 2031 | E76: H | F76: A_VIE | G76: 0.45 | H76: 0.39 | I76: 0.6 | J76: 0.6 | K76: 85 | L76: 0 | M76: 68 | N76: 1289707.156 | O76: 2516056.521 | P76: 320257.546 | Q76: 214094.8235 | R76: 1675601.636 | S76: 207017.3087 | T76: 99085.20759
B77: #51 | C77: 28 | D77: 2026 | E77: H | F77: A_VIE | G77: 0.45 | H77: 0.39 | I77: 0.6 | J77: 0.6 | K77: 85 | L77: 0 | M77: 68 | N77: 1289707.156 | O77: 2516056.521 | P77: 320257.546 | Q77: 214094.8235 | R77: 1675601.636 | S77: 207017.3087 | T77: 99085.20759
B78: #52 | C78: 28 | D78: 2028 | E78: H | F78: A_VIE | G78: 0.45 | H78: 0.39 | I78: 0.6 | J78: 0.6 | K78: 85 | L78: 0 | M78: 68 | N78: 1289707.156 | O78: 2516056.521 | P78: 320257.546 | Q78: 214094.8235 | R78: 1675601.636 | S78: 207017.3087 | T78: 99085.20759
B79: #53 | C79: 28 | D79: 2029 | E79: H | F79: A_VIE | G79: 0.45 | H79: 0.39 | I79: 0.6 | J79: 0.6 | K79: 85 | L79: 0 | M79: 68 | N79: 1289707.156 | O79: 2516056.521 | P79: 320257.546 | Q79: 214094.8235 | R79: 1675601.636 | S79: 207017.3087 | T79: 99085.20759
B80: #54 | C80: 28 | D80: 2030 | E80: H | F80: A_VIE | G80: 0.45 | H80: 0.39 | I80: 0.6 | J80: 0.6 | K80: 85 | L80: 0 | M80: 68 | N80: 1289707.156 | O80: 2516056.521 | P80: 320257.546 | Q80: 214094.8235 | R80: 1675601.636 | S80: 207017.3087 | T80: 99085.20759
B81: #55 | C81: 28 | D81: 2031 | E81: H | F81: A_VIE | G81: 0.45 | H81: 0.39 | I81: 0.6 | J81: 0.6 | K81: 85 | L81: 0 | M81: 68 | N81: 1289707.156 | O81: 2516056.521 | P81: 320257.546 | Q81: 214094.8235 | R81: 1675601.636 | S81: 207017.3087 | T81: 99085.20759
B82: #56 | C82: 29 | D82: 2026 | E82: F | F82: A_VIE | G82: 0.45 | H82: 0.39 | I82: 0.6 | J82: 0.6 | K82: 85 | L82: 0 | M82: 68 | N82: 1289707.156 | O82: 2516056.521 | P82: 320257.546 | Q82: 214094.8235 | R82: 1675601.636 | S82: 207017.3087 | T82: 99085.20759
B83: #57 | C83: 29 | D83: 2028 | E83: F | F83: A_VIE | G83: 0.45 | H83: 0.39 | I83: 0.6 | J83: 0.6 | K83: 85 | L83: 0 | M83: 68 | N83: 1289707.156 | O83: 2516056.521 | P83: 320257.546 | Q83: 214094.8235 | R83: 1675601.636 | S83: 207017.3087 | T83: 99085.20759
B84: #58 | C84: 29 | D84: 2029 | E84: F | F84: A_VIE | G84: 0.45 | H84: 0.39 | I84: 0.6 | J84: 0.6 | K84: 85 | L84: 0 | M84: 68 | N84: 1289707.156 | O84: 2516056.521 | P84: 320257.546 | Q84: 214094.8235 | R84: 1675601.636 | S84: 207017.3087 | T84: 99085.20759
B85: #59 | C85: 29 | D85: 2030 | E85: F | F85: A_VIE | G85: 0.45 | H85: 0.39 | I85: 0.6 | J85: 0.6 | K85: 85 | L85: 0 | M85: 68 | N85: 1289707.156 | O85: 2516056.521 | P85: 320257.546 | Q85: 214094.8235 | R85: 1675601.636 | S85: 207017.3087 | T85: 99085.20759
B86: #60 | C86: 29 | D86: 2031 | E86: F | F86: A_VIE | G86: 0.45 | H86: 0.39 | I86: 0.6 | J86: 0.6 | K86: 85 | L86: 0 | M86: 68 | N86: 1289707.156 | O86: 2516056.521 | P86: 320257.546 | Q86: 214094.8235 | R86: 1675601.636 | S86: 207017.3087 | T86: 99085.20759
B87: #61 | C87: 30 | D87: 2026 | E87: H | F87: A_VIE | G87: 0.45 | H87: 0.39 | I87: 0.6 | J87: 0.6 | K87: 85 | L87: 0 | M87: 68 | N87: 1289707.156 | O87: 2516056.521 | P87: 320257.546 | Q87: 214094.8235 | R87: 1675601.636 | S87: 207017.3087 | T87: 99085.20759
B88: #62 | C88: 30 | D88: 2028 | E88: H | F88: A_VIE | G88: 0.45 | H88: 0.39 | I88: 0.6 | J88: 0.6 | K88: 85 | L88: 0 | M88: 68 | N88: 1289707.156 | O88: 2516056.521 | P88: 320257.546 | Q88: 214094.8235 | R88: 1675601.636 | S88: 207017.3087 | T88: 99085.20759
B89: #63 | C89: 30 | D89: 2029 | E89: H | F89: A_VIE | G89: 0.45 | H89: 0.39 | I89: 0.6 | J89: 0.6 | K89: 85 | L89: 0 | M89: 68 | N89: 1289707.156 | O89: 2516056.521 | P89: 320257.546 | Q89: 214094.8235 | R89: 1675601.636 | S89: 207017.3087 | T89: 99085.20759
B90: #64 | C90: 30 | D90: 2030 | E90: H | F90: A_VIE | G90: 0.45 | H90: 0.39 | I90: 0.6 | J90: 0.6 | K90: 85 | L90: 0 | M90: 68 | N90: 1289707.156 | O90: 2516056.521 | P90: 320257.546 | Q90: 214094.8235 | R90: 1675601.636 | S90: 207017.3087 | T90: 99085.20759
B91: #65 | C91: 30 | D91: 2031 | E91: H | F91: A_VIE | G91: 0.45 | H91: 0.39 | I91: 0.6 | J91: 0.6 | K91: 85 | L91: 0 | M91: 68 | N91: 1289707.156 | O91: 2516056.521 | P91: 320257.546 | Q91: 214094.8235 | R91: 1675601.636 | S91: 207017.3087 | T91: 99085.20759
B92: #66 | C92: 31 | D92: 2026 | E92: H | F92: A_VIE | G92: 0.45 | H92: 0.39 | I92: 0.6 | J92: 0.6 | K92: 85 | L92: 0 | M92: 68 | N92: 1289707.156 | O92: 2516056.521 | P92: 320257.546 | Q92: 214094.8235 | R92: 1675601.636 | S92: 207017.3087 | T92: 99085.20759
B93: #67 | C93: 31 | D93: 2028 | E93: H | F93: A_VIE | G93: 0.45 | H93: 0.39 | I93: 0.6 | J93: 0.6 | K93: 85 | L93: 0 | M93: 68 | N93: 1289707.156 | O93: 2516056.521 | P93: 320257.546 | Q93: 214094.8235 | R93: 1675601.636 | S93: 207017.3087 | T93: 99085.20759
B94: #68 | C94: 31 | D94: 2029 | E94: H | F94: A_VIE | G94: 0.45 | H94: 0.39 | I94: 0.6 | J94: 0.6 | K94: 85 | L94: 0 | M94: 68 | N94: 1289707.156 | O94: 2516056.521 | P94: 320257.546 | Q94: 214094.8235 | R94: 1675601.636 | S94: 207017.3087 | T94: 99085.20759
B95: #69 | C95: 31 | D95: 2030 | E95: H | F95: A_VIE | G95: 0.45 | H95: 0.39 | I95: 0.6 | J95: 0.6 | K95: 85 | L95: 0 | M95: 68 | N95: 1289707.156 | O95: 2516056.521 | P95: 320257.546 | Q95: 214094.8235 | R95: 1675601.636 | S95: 207017.3087 | T95: 99085.20759
B96: #70 | C96: 31 | D96: 2031 | E96: H | F96: A_VIE | G96: 0.45 | H96: 0.39 | I96: 0.6 | J96: 0.6 | K96: 85 | L96: 0 | M96: 68 | N96: 1289707.156 | O96: 2516056.521 | P96: 320257.546 | Q96: 214094.8235 | R96: 1675601.636 | S96: 207017.3087 | T96: 99085.20759
B97: #71 | C97: 32 | D97: 2026 | E97: F | F97: A_VIE | G97: 0.45 | H97: 0.39 | I97: 0.6 | J97: 0.6 | K97: 85 | L97: 0 | M97: 68 | N97: 1289707.156 | O97: 2516056.521 | P97: 320257.546 | Q97: 214094.8235 | R97: 1675601.636 | S97: 207017.3087 | T97: 99085.20759
B98: #72 | C98: 32 | D98: 2028 | E98: F | F98: A_VIE | G98: 0.45 | H98: 0.39 | I98: 0.6 | J98: 0.6 | K98: 85 | L98: 0 | M98: 68 | N98: 1289707.156 | O98: 2516056.521 | P98: 320257.546 | Q98: 214094.8235 | R98: 1675601.636 | S98: 207017.3087 | T98: 99085.20759
B99: #73 | C99: 32 | D99: 2029 | E99: F | F99: A_VIE | G99: 0.45 | H99: 0.39 | I99: 0.6 | J99: 0.6 | K99: 85 | L99: 0 | M99: 68 | N99: 1289707.156 | O99: 2516056.521 | P99: 320257.546 | Q99: 214094.8235 | R99: 1675601.636 | S99: 207017.3087 | T99: 99085.20759
B100: #74 | C100: 32 | D100: 2030 | E100: F | F100: A_VIE | G100: 0.45 | H100: 0.39 | I100: 0.6 | J100: 0.6 | K100: 85 | L100: 0 | M100: 68 | N100: 1289707.156 | O100: 2516056.521 | P100: 320257.546 | Q100: 214094.8235 | R100: 1675601.636 | S100: 207017.3087 | T100: 99085.20759
B101: #75 | C101: 32 | D101: 2031 | E101: F | F101: A_VIE | G101: 0.45 | H101: 0.39 | I101: 0.6 | J101: 0.6 | K101: 85 | L101: 0 | M101: 68 | N101: 1289707.156 | O101: 2516056.521 | P101: 320257.546 | Q101: 214094.8235 | R101: 1675601.636 | S101: 207017.3087 | T101: 99085.20759
B102: #76 | C102: 33 | D102: 2026 | E102: H | F102: A_VIE | G102: 0.45 | H102: 0.39 | I102: 0.6 | J102: 0.6 | K102: 85 | L102: 0 | M102: 68 | N102: 1289707.156 | O102: 2516056.521 | P102: 320257.546 | Q102: 214094.8235 | R102: 1675601.636 | S102: 207017.3087 | T102: 99085.20759
B103: #77 | C103: 33 | D103: 2028 | E103: H | F103: A_VIE | G103: 0.45 | H103: 0.39 | I103: 0.6 | J103: 0.6 | K103: 85 | L103: 0 | M103: 68 | N103: 1289707.156 | O103: 2516056.521 | P103: 320257.546 | Q103: 214094.8235 | R103: 1675601.636 | S103: 207017.3087 | T103: 99085.20759
B104: #78 | C104: 33 | D104: 2029 | E104: H | F104: A_VIE | G104: 0.45 | H104: 0.39 | I104: 0.6 | J104: 0.6 | K104: 85 | L104: 0 | M104: 68 | N104: 1289707.156 | O104: 2516056.521 | P104: 320257.546 | Q104: 214094.8235 | R104: 1675601.636 | S104: 207017.3087 | T104: 99085.20759
B105: #79 | C105: 33 | D105: 2030 | E105: H | F105: A_VIE | G105: 0.45 | H105: 0.39 | I105: 0.6 | J105: 0.6 | K105: 85 | L105: 0 | M105: 68 | N105: 1289707.156 | O105: 2516056.521 | P105: 320257.546 | Q105: 214094.8235 | R105: 1675601.636 | S105: 207017.3087 | T105: 99085.20759
B106: #80 | C106: 33 | D106: 2031 | E106: H | F106: A_VIE | G106: 0.45 | H106: 0.39 | I106: 0.6 | J106: 0.6 | K106: 85 | L106: 0 | M106: 68 | N106: 1289707.156 | O106: 2516056.521 | P106: 320257.546 | Q106: 214094.8235 | R106: 1675601.636 | S106: 207017.3087 | T106: 99085.20759
B107: #81 | C107: 34 | D107: 2026 | E107: H | F107: A_VIE | G107: 0.45 | H107: 0.39 | I107: 0.6 | J107: 0.6 | K107: 85 | L107: 0 | M107: 68 | N107: 1289707.156 | O107: 2516056.521 | P107: 320257.546 | Q107: 214094.8235 | R107: 1675601.636 | S107: 207017.3087 | T107: 99085.20759
B108: #82 | C108: 34 | D108: 2028 | E108: H | F108: A_VIE | G108: 0.45 | H108: 0.39 | I108: 0.6 | J108: 0.6 | K108: 85 | L108: 0 | M108: 68 | N108: 1289707.156 | O108: 2516056.521 | P108: 320257.546 | Q108: 214094.8235 | R108: 1675601.636 | S108: 207017.3087 | T108: 99085.20759
B109: #83 | C109: 34 | D109: 2029 | E109: H | F109: A_VIE | G109: 0.45 | H109: 0.39 | I109: 0.6 | J109: 0.6 | K109: 85 | L109: 0 | M109: 68 | N109: 1289707.156 | O109: 2516056.521 | P109: 320257.546 | Q109: 214094.8235 | R109: 1675601.636 | S109: 207017.3087 | T109: 99085.20759
B110: #84 | C110: 34 | D110: 2030 | E110: H | F110: A_VIE | G110: 0.45 | H110: 0.39 | I110: 0.6 | J110: 0.6 | K110: 85 | L110: 0 | M110: 68 | N110: 1289707.156 | O110: 2516056.521 | P110: 320257.546 | Q110: 214094.8235 | R110: 1675601.636 | S110: 207017.3087 | T110: 99085.20759
B111: #85 | C111: 34 | D111: 2031 | E111: H | F111: A_VIE | G111: 0.45 | H111: 0.39 | I111: 0.6 | J111: 0.6 | K111: 85 | L111: 0 | M111: 68 | N111: 1289707.156 | O111: 2516056.521 | P111: 320257.546 | Q111: 214094.8235 | R111: 1675601.636 | S111: 207017.3087 | T111: 99085.20759
B112: #86 | C112: 35 | D112: 2026 | E112: F | F112: A_VIE | G112: 0.45 | H112: 0.39 | I112: 0.6 | J112: 0.6 | K112: 85 | L112: 0 | M112: 68 | N112: 1289707.156 | O112: 2516056.521 | P112: 320257.546 | Q112: 214094.8235 | R112: 1675601.636 | S112: 207017.3087 | T112: 99085.20759
B113: #87 | C113: 35 | D113: 2028 | E113: F | F113: A_VIE | G113: 0.45 | H113: 0.39 | I113: 0.6 | J113: 0.6 | K113: 85 | L113: 0 | M113: 68 | N113: 1289707.156 | O113: 2516056.521 | P113: 320257.546 | Q113: 214094.8235 | R113: 1675601.636 | S113: 207017.3087 | T113: 99085.20759
B114: #88 | C114: 35 | D114: 2029 | E114: F | F114: A_VIE | G114: 0.45 | H114: 0.39 | I114: 0.6 | J114: 0.6 | K114: 85 | L114: 0 | M114: 68 | N114: 1289707.156 | O114: 2516056.521 | P114: 320257.546 | Q114: 214094.8235 | R114: 1675601.636 | S114: 207017.3087 | T114: 99085.20759
B115: #89 | C115: 35 | D115: 2030 | E115: F | F115: A_VIE | G115: 0.45 | H115: 0.39 | I115: 0.6 | J115: 0.6 | K115: 85 | L115: 0 | M115: 68 | N115: 1289707.156 | O115: 2516056.521 | P115: 320257.546 | Q115: 214094.8235 | R115: 1675601.636 | S115: 207017.3087 | T115: 99085.20759
B116: #90 | C116: 35 | D116: 2031 | E116: F | F116: A_VIE | G116: 0.45 | H116: 0.39 | I116: 0.6 | J116: 0.6 | K116: 85 | L116: 0 | M116: 68 | N116: 1289707.156 | O116: 2516056.521 | P116: 320257.546 | Q116: 214094.8235 | R116: 1675601.636 | S116: 207017.3087 | T116: 99085.20759
B117: #91 | C117: 36 | D117: 2026 | E117: H | F117: A_VIE | G117: 0.45 | H117: 0.39 | I117: 0.6 | J117: 0.6 | K117: 85 | L117: 0 | M117: 11 | N117: 214951.1926 | O117: 419342.7536 | P117: 53376.25766 | Q117: 35682.47059 | R117: 279266.9393 | S117: 34502.88479 | T117: 16514.20127
B118: #92 | C118: 36 | D118: 2028 | E118: H | F118: A_VIE | G118: 0.45 | H118: 0.39 | I118: 0.6 | J118: 0.6 | K118: 85 | L118: 0 | M118: 11 | N118: 214951.1926 | O118: 419342.7536 | P118: 53376.25766 | Q118: 35682.47059 | R118: 279266.9393 | S118: 34502.88479 | T118: 16514.20127
B119: #93 | C119: 36 | D119: 2029 | E119: H | F119: A_VIE | G119: 0.45 | H119: 0.39 | I119: 0.6 | J119: 0.6 | K119: 85 | L119: 0 | M119: 11 | N119: 214951.1926 | O119: 419342.7536 | P119: 53376.25766 | Q119: 35682.47059 | R119: 279266.9393 | S119: 34502.88479 | T119: 16514.20127
B120: #94 | C120: 36 | D120: 2030 | E120: H | F120: A_VIE | G120: 0.45 | H120: 0.39 | I120: 0.6 | J120: 0.6 | K120: 85 | L120: 0 | M120: 11 | N120: 214951.1926 | O120: 419342.7536 | P120: 53376.25766 | Q120: 35682.47059 | R120: 279266.9393 | S120: 34502.88479 | T120: 16514.20127
B121: #95 | C121: 36 | D121: 2031 | E121: H | F121: A_VIE | G121: 0.45 | H121: 0.39 | I121: 0.6 | J121: 0.6 | K121: 85 | L121: 0 | M121: 11 | N121: 214951.1926 | O121: 419342.7536 | P121: 53376.25766 | Q121: 35682.47059 | R121: 279266.9393 | S121: 34502.88479 | T121: 16514.20127
B122: #96 | C122: 37 | D122: 2026 | E122: H | F122: A_VIE | G122: 0.45 | H122: 0.39 | I122: 0.6 | J122: 0.6 | K122: 85 | L122: 0 | M122: 11 | N122: 214951.1926 | O122: 419342.7536 | P122: 53376.25766 | Q122: 35682.47059 | R122: 279266.9393 | S122: 34502.88479 | T122: 16514.20127
B123: #97 | C123: 37 | D123: 2028 | E123: H | F123: A_VIE | G123: 0.45 | H123: 0.39 | I123: 0.6 | J123: 0.6 | K123: 85 | L123: 0 | M123: 11 | N123: 214951.1926 | O123: 419342.7536 | P123: 53376.25766 | Q123: 35682.47059 | R123: 279266.9393 | S123: 34502.88479 | T123: 16514.20127
B124: #98 | C124: 37 | D124: 2029 | E124: H | F124: A_VIE | G124: 0.45 | H124: 0.39 | I124: 0.6 | J124: 0.6 | K124: 85 | L124: 0 | M124: 11 | N124: 214951.1926 | O124: 419342.7536 | P124: 53376.25766 | Q124: 35682.47059 | R124: 279266.9393 | S124: 34502.88479 | T124: 16514.20127
B125: #99 | C125: 37 | D125: 2030 | E125: H | F125: A_VIE | G125: 0.45 | H125: 0.39 | I125: 0.6 | J125: 0.6 | K125: 85 | L125: 0 | M125: 11 | N125: 214951.1926 | O125: 419342.7536 | P125: 53376.25766 | Q125: 35682.47059 | R125: 279266.9393 | S125: 34502.88479 | T125: 16514.20127
B126: #100 | C126: 37 | D126: 2031 | E126: H | F126: A_VIE | G126: 0.45 | H126: 0.39 | I126: 0.6 | J126: 0.6 | K126: 85 | L126: 0 | M126: 11 | N126: 214951.1926 | O126: 419342.7536 | P126: 53376.25766 | Q126: 35682.47059 | R126: 279266.9393 | S126: 34502.88479 | T126: 16514.20127
B127: #101 | C127: 38 | D127: 2026 | E127: F | F127: A_VIE | G127: 0.45 | H127: 0.39 | I127: 0.6 | J127: 0.6 | K127: 85 | L127: 0 | M127: 11 | N127: 214951.1926 | O127: 419342.7536 | P127: 53376.25766 | Q127: 35682.47059 | R127: 279266.9393 | S127: 34502.88479 | T127: 16514.20127
B128: #102 | C128: 38 | D128: 2028 | E128: F | F128: A_VIE | G128: 0.45 | H128: 0.39 | I128: 0.6 | J128: 0.6 | K128: 85 | L128: 0 | M128: 11 | N128: 214951.1926 | O128: 419342.7536 | P128: 53376.25766 | Q128: 35682.47059 | R128: 279266.9393 | S128: 34502.88479 | T128: 16514.20127
B129: #103 | C129: 38 | D129: 2029 | E129: F | F129: A_VIE | G129: 0.45 | H129: 0.39 | I129: 0.6 | J129: 0.6 | K129: 85 | L129: 0 | M129: 11 | N129: 214951.1926 | O129: 419342.7536 | P129: 53376.25766 | Q129: 35682.47059 | R129: 279266.9393 | S129: 34502.88479 | T129: 16514.20127
B130: #104 | C130: 38 | D130: 2030 | E130: F | F130: A_VIE | G130: 0.45 | H130: 0.39 | I130: 0.6 | J130: 0.6 | K130: 85 | L130: 0 | M130: 11 | N130: 214951.1926 | O130: 419342.7536 | P130: 53376.25766 | Q130: 35682.47059 | R130: 279266.9393 | S130: 34502.88479 | T130: 16514.20127
B131: #105 | C131: 38 | D131: 2031 | E131: F | F131: A_VIE | G131: 0.45 | H131: 0.39 | I131: 0.6 | J131: 0.6 | K131: 85 | L131: 0 | M131: 11 | N131: 214951.1926 | O131: 419342.7536 | P131: 53376.25766 | Q131: 35682.47059 | R131: 279266.9393 | S131: 34502.88479 | T131: 16514.20127
B132: #106 | C132: 39 | D132: 2026 | E132: H | F132: A_VIE | G132: 0.45 | H132: 0.39 | I132: 0.6 | J132: 0.6 | K132: 85 | L132: 0 | M132: 11 | N132: 214951.1926 | O132: 419342.7536 | P132: 53376.25766 | Q132: 35682.47059 | R132: 279266.9393 | S132: 34502.88479 | T132: 16514.20127
B133: #107 | C133: 39 | D133: 2028 | E133: H | F133: A_VIE | G133: 0.45 | H133: 0.39 | I133: 0.6 | J133: 0.6 | K133: 85 | L133: 0 | M133: 11 | N133: 214951.1926 | O133: 419342.7536 | P133: 53376.25766 | Q133: 35682.47059 | R133: 279266.9393 | S133: 34502.88479 | T133: 16514.20127
B134: #108 | C134: 39 | D134: 2029 | E134: H | F134: A_VIE | G134: 0.45 | H134: 0.39 | I134: 0.6 | J134: 0.6 | K134: 85 | L134: 0 | M134: 11 | N134: 214951.1926 | O134: 419342.7536 | P134: 53376.25766 | Q134: 35682.47059 | R134: 279266.9393 | S134: 34502.88479 | T134: 16514.20127
B135: #109 | C135: 39 | D135: 2030 | E135: H | F135: A_VIE | G135: 0.45 | H135: 0.39 | I135: 0.6 | J135: 0.6 | K135: 85 | L135: 0 | M135: 11 | N135: 214951.1926 | O135: 419342.7536 | P135: 53376.25766 | Q135: 35682.47059 | R135: 279266.9393 | S135: 34502.88479 | T135: 16514.20127
B136: #110 | C136: 39 | D136: 2031 | E136: H | F136: A_VIE | G136: 0.45 | H136: 0.39 | I136: 0.6 | J136: 0.6 | K136: 85 | L136: 0 | M136: 11 | N136: 214951.1926 | O136: 419342.7536 | P136: 53376.25766 | Q136: 35682.47059 | R136: 279266.9393 | S136: 34502.88479 | T136: 16514.20127
B137: #111 | C137: 40 | D137: 2026 | E137: H | F137: A_VIE | G137: 0.45 | H137: 0.39 | I137: 0.6 | J137: 0.6 | K137: 85 | L137: 0 | M137: 11 | N137: 214951.1926 | O137: 419342.7536 | P137: 53376.25766 | Q137: 35682.47059 | R137: 279266.9393 | S137: 34502.88479 | T137: 16514.20127
